Workbook

Sheet Velkomst

Sheet Tabel 1 NJ
A1: Tabel 1. Forsikrede medlemmer
A3: Nordjylland
C5: Mænd | E5: Kvinder | G5: I alt
A7: Civ. ing. | C7: 3202 | E7: 966 | G7: 4168
A8: Diplom ing. | C8: 1217 | E8: 237 | G8: 1454
A9: Cand. Scient. Tek. | C9: 1050 | E9: 575 | G9: 1625
A10: MA. Hum. | C10: 1005 | E10: 2133 | G10: 3138
A11: MA. Nat. | C11: 380 | E11: 313 | G11: 693
A12: MA. Ph.d. | C12: 58 | E12: 37 | G12: 95
A13: MA. Samf. | C13: 85 | E13: 303 | G13: 388
A14: Øvrige Mag. | C14: 88 | E14: 171 | G14: 259
A15: Agronom | C15: 70 | E15: 60 | G15: 130
A16: Landsk. Arkt. | C16: 3 | E16: 12 | G16: 15
A17: Hortonom | C17: 1 | E17: 2 | G17: 3
A18: Forstkand. | C18: 14 | E18: 8 | G18: 22
A19: Jordbrugsakad. | C19: 88 | E19: 82 | G19: 170
A20: Mejeriing. | C20: 11 | E20: 7 | G20: 18
A21: Levn.m.kand. | C21: 1 | E21: 5 | G21: 6
A22: Dyrlæge | C22: 32 | E22: 162 | G22: 194
A23: Farmaceut | C23: 26 | E23: 96 | G23: 122
A24: Læge | C24: 274 | E24: 594 | G24: 868
A25: Tandlæge | C25: 14 | E25: 107 | G25: 121
A26: Arkitekt | C26: 62 | E26: 73 | G26: 135
A27: Landinspek. | C27: 157 | E27: 78 | G27: 235
A28: Bibliotekar | C28: 77 | E28: 232 | G28: 309
A29: Musikudd. | C29: 44 | E29: 55 | G29: 99
A30: Teolog | C30: 58 | E30: 104 | G30: 162
A31: Psykolog | C31: 129 | E31: 631 | G31: 760
A32: Jurist | C32: 219 | E32: 488 | G32: 707
A33: Økonom | C33: 271 | E33: 198 | G33: 469
A34: Samf. Adm. | C34: 609 | E34: 947 | G34: 1556
A35: Cand. Merc. | C35: 1193 | E35: 1062 | G35: 2255
A36: HA | C36: 253 | E36: 206 | G36: 459
A37: HD | C37: 186 | E37: 148 | G37: 334
A38: Komm. og Sprog | C38: 64 | E38: 309 | G38: 373
A39: Bygningskonst. | C39: 833 | E39: 99 | G39: 932
A40: Cand. IT. | C40: 326 | E40: 250 | G40: 576
A41: Bac. Samf. | C41: 36 | E41: 28 | G41: 64
A42: Bac. Hum. | C42: 130 | E42: 196 | G42: 326
A43: Bac. Nat. | C43: 224 | E43: 80 | G43: 304
A44: Andre | C44: 749 | E44: 503 | G44: 1252
A46: Total | C46: 13151 | E46: 11475 | G46: 24626
A48: Ingeniører i alt | C48: 4419 | E48: 1203 | G48: 5622
A49: Magistre i alt | C49: 1616 | E49: 2957 | G49: 4573
A50: DJØF'ere i alt | C50: 2545 | E50: 2901 | G50: 5446
A57: Morsø
C59: Mænd | E59: Kvinder | G59: I alt
A61: Civ. ing. | C61: 15 | E61: 10 | G61: 25
A62: Diplom ing. | C62: 18 | E62: 7 | G62: 25
A63: Cand. Scient. Tek. | C63: 5 | E63: 3 | G63: 8
A64: MA. Hum. | C64: 13 | E64: 25 | G64: 38
A65: MA. Nat. | C65: 10 | E65: 9 | G65: 19
A66: MA. Ph.d. | C66: 2 | E66: 2 | G66: 4
A67: MA. Samf. | C67: 2 | E67: 1 | G67: 3
A68: Øvrige Mag. | C68: 2 | E68: 2 | G68: 4
A69: Agronom | C69: 3 | E69: 0 | G69: 3
A70: Landsk. Arkt. | C70: 1 | E70: 1 | G70: 2
A71: Hortonom | C71: 0 | E71: 0 | G71: 0
A72: Forstkand. | C72: 0 | E72: 0 | G72: 0
A73: Jordbrugsakad. | C73: 4 | E73: 1 | G73: 5
A74: Mejeriing. | C74: 0 | E74: 0 | G74: 0
A75: Levn.m.kand. | C75: 1 | E75: 0 | G75: 1
A76: Dyrlæge | C76: 0 | E76: 5 | G76: 5
A77: Farmaceut | C77: 0 | E77: 0 | G77: 0
A78: Læge | C78: 0 | E78: 4 | G78: 4
A79: Tandlæge | C79: 0 | E79: 3 | G79: 3
A80: Arkitekt | C80: 1 | E80: 2 | G80: 3
A81: Landinspek. | C81: 2 | E81: 0 | G81: 2
A82: Bibliotekar | C82: 2 | E82: 6 | G82: 8
A83: Musikudd. | C83: 0 | E83: 0 | G83: 0
A84: Teolog | C84: 3 | E84: 2 | G84: 5
A85: Psykolog | C85: 0 | E85: 4 | G85: 4
A86: Jurist | C86: 2 | E86: 7 | G86: 9
A87: Økonom | C87: 2 | E87: 0 | G87: 2
A88: Samf. Adm. | C88: 2 | E88: 5 | G88: 7
A89: Cand. Merc. | C89: 7 | E89: 13 | G89: 20
A90: HA | C90: 7 | E90: 1 | G90: 8
A91: HD | C91: 4 | E91: 3 | G91: 7
A92: Komm. og Sprog | C92: 2 | E92: 5 | G92: 7
A93: Bygningskonst. | C93: 13 | E93: 1 | G93: 14
A94: Cand. IT. | C94: 0 | E94: 0 | G94: 0
A95: Bac. Samf. | C95: 0 | E95: 0 | G95: 0
A96: Bac. Hum. | C96: 2 | E96: 4 | G96: 6
A97: Bac. Nat. | C97: 1 | E97: 0 | G97: 1
A98: Andre | C98: 7 | E98: 8 | G98: 15
A100: Total | C100: 129 | E100: 133 | G100: 262
A102: Ingeniører i alt | C102: 33 | E102: 17 | G102: 50
A103: Magistre i alt | C103: 29 | E103: 39 | G103: 68
A104: DJØF'ere i alt | C104: 20 | E104: 26 | G104: 46
A111: Thisted
C113: Mænd | E113: Kvinder | G113: I alt
A115: Civ. ing. | C115: 43 | E115: 12 | G115: 55
A116: Diplom ing. | C116: 54 | E116: 8 | G116: 62
A117: Cand. Scient. Tek. | C117: 21 | E117: 17 | G117: 38
A118: MA. Hum. | C118: 42 | E118: 94 | G118: 136
A119: MA. Nat. | C119: 15 | E119: 18 | G119: 33
A120: MA. Ph.d. | C120: 1 | E120: 1 | G120: 2
A121: MA. Samf. | C121: 2 | E121: 10 | G121: 12
A122: Øvrige Mag. | C122: 6 | E122: 7 | G122: 13
A123: Agronom | C123: 8 | E123: 1 | G123: 9
A124: Landsk. Arkt. | C124: 0 | E124: 1 | G124: 1
A125: Hortonom | C125: 0 | E125: 0 | G125: 0
A126: Forstkand. | C126: 2 | E126: 1 | G126: 3
A127: Jordbrugsakad. | C127: 10 | E127: 3 | G127: 13
A128: Mejeriing. | C128: 2 | E128: 2 | G128: 4
A129: Levn.m.kand. | C129: 0 | E129: 0 | G129: 0
A130: Dyrlæge | C130: 2 | E130: 16 | G130: 18
A131: Farmaceut | C131: 3 | E131: 5 | G131: 8
A132: Læge | C132: 13 | E132: 24 | G132: 37
A133: Tandlæge | C133: 1 | E133: 5 | G133: 6
A134: Arkitekt | C134: 5 | E134: 8 | G134: 13
A135: Landinspek. | C135: 3 | E135: 3 | G135: 6
A136: Bibliotekar | C136: 3 | E136: 9 | G136: 12
A137: Musikudd. | C137: 2 | E137: 2 | G137: 4
A138: Teolog | C138: 3 | E138: 13 | G138: 16
A139: Psykolog | C139: 3 | E139: 18 | G139: 21
A140: Jurist | C140: 4 | E140: 15 | G140: 19
A141: Økonom | C141: 4 | E141: 9 | G141: 13
A142: Samf. Adm. | C142: 17 | E142: 23 | G142: 40
A143: Cand. Merc. | C143: 24 | E143: 18 | G143: 42
A144: HA | C144: 7 | E144: 5 | G144: 12
A145: HD | C145: 11 | E145: 5 | G145: 16
A146: Komm. og Sprog | C146: 0 | E146: 10 | G146: 10
A147: Bygningskonst. | C147: 37 | E147: 6 | G147: 43
A148: Cand. IT. | C148: 7 | E148: 4 | G148: 11
A149: Bac. Samf. | C149: 2 | E149: 1 | G149: 3
A150: Bac. Hum. | C150: 5 | E150: 9 | G150: 14
A151: Bac. Nat. | C151: 3 | E151: 4 | G151: 7
A152: Andre | C152: 17 | E152: 20 | G152: 37
A154: Total | C154: 372 | E154: 404 | G154: 776
A156: Ingeniører i alt | C156: 97 | E156: 20 | G156: 117
A157: Magistre i alt | C157: 66 | E157: 130 | G157: 196
A158: DJØF'ere i alt | C158: 56 | E158: 70 | G158: 126
A165: Brønderslev
C167: Mænd | E167: Kvinder | G167: I alt
A169: Civ. ing. | C169: 117 | E169: 44 | G169: 161
A170: Diplom ing. | C170: 69 | E170: 12 | G170: 81
A171: Cand. Scient. Tek. | C171: 36 | E171: 22 | G171: 58
A172: MA. Hum. | C172: 40 | E172: 88 | G172: 128
A173: MA. Nat. | C173: 17 | E173: 13 | G173: 30
A174: MA. Ph.d. | C174: 1 | E174: 0 | G174: 1
A175: MA. Samf. | C175: 2 | E175: 6 | G175: 8
A176: Øvrige Mag. | C176: 3 | E176: 9 | G176: 12
A177: Agronom | C177: 8 | E177: 2 | G177: 10
A178: Landsk. Arkt. | C178: 0 | E178: 1 | G178: 1
A179: Hortonom | C179: 0 | E179: 0 | G179: 0
A180: Forstkand. | C180: 0 | E180: 1 | G180: 1
A181: Jordbrugsakad. | C181: 8 | E181: 4 | G181: 12
A182: Mejeriing. | C182: 1 | E182: 0 | G182: 1
A183: Levn.m.kand. | C183: 0 | E183: 0 | G183: 0
A184: Dyrlæge | C184: 4 | E184: 15 | G184: 19
A185: Farmaceut | C185: 1 | E185: 4 | G185: 5
A186: Læge | C186: 8 | E186: 18 | G186: 26
A187: Tandlæge | C187: 0 | E187: 5 | G187: 5
A188: Arkitekt | C188: 1 | E188: 0 | G188: 1
A189: Landinspek. | C189: 8 | E189: 3 | G189: 11
A190: Bibliotekar | C190: 4 | E190: 12 | G190: 16
A191: Musikudd. | C191: 4 | E191: 2 | G191: 6
A192: Teolog | C192: 3 | E192: 3 | G192: 6
A193: Psykolog | C193: 2 | E193: 24 | G193: 26
A194: Jurist | C194: 5 | E194: 25 | G194: 30
A195: Økonom | C195: 7 | E195: 10 | G195: 17
A196: Samf. Adm. | C196: 24 | E196: 21 | G196: 45
A197: Cand. Merc. | C197: 49 | E197: 51 | G197: 100
A198: HA | C198: 11 | E198: 6 | G198: 17
A199: HD | C199: 12 | E199: 7 | G199: 19
A200: Komm. og Sprog | C200: 5 | E200: 18 | G200: 23
A201: Bygningskonst. | C201: 47 | E201: 7 | G201: 54
A202: Cand. IT. | C202: 5 | E202: 6 | G202: 11
A203: Bac. Samf. | C203: 0 | E203: 1 | G203: 1
A204: Bac. Hum. | C204: 7 | E204: 11 | G204: 18
A205: Bac. Nat. | C205: 4 | E205: 0 | G205: 4
A206: Andre | C206: 30 | E206: 26 | G206: 56
A208: Total | C208: 535 | E208: 473 | G208: 1008
A210: Ingeniører i alt | C210: 186 | E210: 56 | G210: 242
A211: Magistre i alt | C211: 63 | E211: 116 | G211: 179
A212: DJØF'ere i alt | C212: 96 | E212: 113 | G212: 209
A219: Frederikshavn
C221: Mænd | E221: Kvinder | G221: I alt
A223: Civ. ing. | C223: 63 | E223: 24 | G223: 87
A224: Diplom ing. | C224: 63 | E224: 15 | G224: 78
A225: Cand. Scient. Tek. | C225: 12 | E225: 14 | G225: 26
A226: MA. Hum. | C226: 28 | E226: 99 | G226: 127
A227: MA. Nat. | C227: 11 | E227: 7 | G227: 18
A228: MA. Ph.d. | C228: 3 | E228: 1 | G228: 4
A229: MA. Samf. | C229: 5 | E229: 5 | G229: 10
A230: Øvrige Mag. | C230: 5 | E230: 6 | G230: 11
A231: Agronom | C231: 3 | E231: 4 | G231: 7
A232: Landsk. Arkt. | C232: 1 | E232: 0 | G232: 1
A233: Hortonom | C233: 0 | E233: 0 | G233: 0
A234: Forstkand. | C234: 1 | E234: 2 | G234: 3
A235: Jordbrugsakad. | C235: 5 | E235: 6 | G235: 11
A236: Mejeriing. | C236: 0 | E236: 1 | G236: 1
A237: Levn.m.kand. | C237: 0 | E237: 0 | G237: 0
A238: Dyrlæge | C238: 4 | E238: 16 | G238: 20
A239: Farmaceut | C239: 2 | E239: 6 | G239: 8
A240: Læge | C240: 4 | E240: 16 | G240: 20
A241: Tandlæge | C241: 2 | E241: 10 | G241: 12
A242: Arkitekt | C242: 2 | E242: 5 | G242: 7
A243: Landinspek. | C243: 7 | E243: 5 | G243: 12
... 330 more rows

Sheet Tabel 2 NJ
A1: Tabel 2. Antal bruttoledighedsberørte og gennemsnitlig antal ledige brutto
A3: Nordjylland
C5: Mænd | F5: Kvinder | I5: I alt
C6: Ledigheds- berørte | D6: Gns. brutto- ledighed | F6: Ledigheds- berørte | G6: Gns. brutto- ledighed | I6: Ledigheds- berørte | J6: Gns. brutto- ledighed
A9: Civ. ing. | C9: 115 | D9: 106.2589659 | F9: 46 | G9: 41.22622092 | I9: 161 | J9: 147.4851868
A10: Diplom ing. | C10: 29 | D10: 25.36393688 | F10: 3 | G10: 2.999438658 | I10: 32 | J10: 28.36337554
A11: Cand. Scient. Tek. | C11: 88 | D11: 80.98172519 | F11: 68 | G11: 63.40422878 | I11: 156 | J11: 144.385954
A12: MA. Hum. | C12: 124 | D12: 107.855049 | F12: 219 | G12: 184.4645419 | I12: 343 | J12: 292.3195908
A13: MA. Nat. | C13: 7 | D13: 5.622154307 | F13: 16 | G13: 13.32189858 | I13: 23 | J13: 18.94405289
A14: MA. Ph.d. | C14: 1 | D14: 0.9998128859 | F14: 3 | G14: 2.860974241 | I14: 4 | J14: 3.860787127
A15: MA. Samf. | C15: 16 | D15: 14.53564523 | F15: 50 | G15: 40.85448762 | I15: 66 | J15: 55.39013285
A16: Øvrige Mag. | C16: 11 | D16: 9.555915923 | F16: 20 | G16: 17.37666064 | I16: 31 | J16: 26.93257656
A17: Agronom | C17: 1 | D17: 0.9998128859 | F17: 1 | G17: 0.9998128859 | I17: 2 | J17: 1.999625772
A18: Landsk. Arkt. | C18: 0 | D18: 0 | F18: 1 | G18: 0.8002245369 | I18: 1 | J18: 0.8002245369
A19: Hortonom | C19: 0 | D19: 0 | F19: 0 | G19: 0 | I19: 0 | J19: 0
A20: Forstkand. | C20: 0 | D20: 0 | F20: 0 | G20: 0 | I20: 0 | J20: 0
A21: Jordbrugsakad. | C21: 1 | D21: 0.9998128859 | F21: 2 | G21: 1.800037423 | I21: 3 | J21: 2.799850309
A22: Mejeriing. | C22: 0 | D22: 0 | F22: 1 | G22: 0.7690388574 | I22: 1 | J22: 0.7690388574
A23: Levn.m.kand. | C23: 0 | D23: 0 | F23: 0 | G23: 0 | I23: 0 | J23: 0
A24: Dyrlæge | C24: 0 | D24: 0 | F24: 0 | G24: 0 | I24: 0 | J24: 0
A25: Farmaceut | C25: 2 | D25: 1.953470966 | F25: 6 | G25: 4.864966008 | I25: 8 | J25: 6.818436974
A26: Læge | C26: 5 | D26: 4.537516372 | F26: 16 | G26: 14.43647477 | I26: 21 | J26: 18.97399114
A27: Tandlæge | C27: 1 | D27: 0.9910808957 | F27: 0 | G27: 0 | I27: 1 | J27: 0.9910808957
A28: Arkitekt | C28: 5 | D28: 4.845630886 | F28: 6 | G28: 5.607185181 | I28: 11 | J28: 10.45281607
A29: Landinspek. | C29: 3 | D29: 2.999438658 | F29: 1 | G29: 0.7690388574 | I29: 4 | J29: 3.768477515
A30: Bibliotekar | C30: 9 | D30: 8.451319154 | F30: 8 | G30: 6.29327013 | I30: 17 | J30: 14.74458928
A31: Musikudd. | C31: 0 | D31: 0 | F31: 1 | G31: 0.9998128859 | I31: 1 | J31: 0.9998128859
A32: Teolog | C32: 1 | D32: 0.883802158 | F32: 1 | G32: 0.9998128859 | I32: 2 | J32: 1.883615044
A33: Psykolog | C33: 20 | D33: 17.37790806 | F33: 45 | G33: 38.20619971 | I33: 65 | J33: 55.58410778
A34: Jurist | C34: 9 | D34: 7.188299133 | F34: 10 | G34: 8.224287407 | I34: 19 | J34: 15.41258654
A35: Økonom | C35: 11 | D35: 10.13409842 | F35: 4 | G35: 3.906941932 | I35: 15 | J35: 14.04104035
A36: Samf. Adm. | C36: 58 | D36: 51.72955779 | F36: 74 | G36: 63.36805339 | I36: 132 | J36: 115.0976112
A37: Cand. Merc. | C37: 79 | D37: 68.93843947 | F37: 67 | G37: 58.33530843 | I37: 146 | J37: 127.2737479
A38: HA | C38: 12 | D38: 11.18068983 | F38: 21 | G38: 17.98665253 | I38: 33 | J38: 29.16734236
A39: HD | C39: 15 | D39: 11.84182623 | F39: 8 | G39: 7.746522797 | I39: 23 | J39: 19.58834903
A40: Komm. og Sprog | C40: 9 | D40: 7.532589035 | F40: 30 | G40: 26.35938377 | I40: 39 | J40: 33.89197281
A41: Bygningskonst. | C41: 22 | D41: 16.82130606 | F41: 4 | G41: 3.567142768 | I41: 26 | J41: 20.38844882
A42: Cand. IT. | C42: 38 | D42: 32.34578681 | F42: 37 | G42: 30.6835901 | I42: 75 | J42: 63.02937691
A43: Bac. Samf. | C43: 4 | D43: 3.152872201 | F43: 2 | G43: 1.999625772 | I43: 6 | J43: 5.152497973
A44: Bac. Hum. | C44: 20 | D44: 15.28035926 | F44: 41 | G44: 34.47265016 | I44: 61 | J44: 49.75300942
A45: Bac. Nat. | C45: 29 | D45: 26.83028753 | F45: 7 | G45: 5.697623651 | I45: 36 | J45: 32.52791118
A46: Andre | C46: 47 | D46: 41.04409655 | F46: 54 | G46: 47.22884052 | I46: 101 | J46: 88.27293707
A48: Total | C48: 791 | D48: 698.2333936 | F48: 871 | G48: 750.8309112 | I48: 1662 | J48: 1449.064305
A50: Ingeniører i alt | C50: 144 | D50: 131.6229028 | F50: 49 | G50: 44.22565958 | I50: 193 | J50: 175.8485623
A51: Magistre i alt | C51: 159 | D51: 138.5685773 | F51: 308 | G51: 258.878563 | I51: 467 | J51: 397.4471403
A52: DJØF'ere i alt | C52: 169 | D52: 149.1710846 | F52: 176 | G52: 151.8212437 | I52: 345 | J52: 300.9923283
A57: Morsø
C59: Mænd | F59: Kvinder | I59: I alt
C60: Ledigheds- berørte | D60: Gns. brutto- ledighed | F60: Ledigheds- berørte | G60: Gns. brutto- ledighed | I60: Ledigheds- berørte | J60: Gns. brutto- ledighed
A63: Civ. ing. | C63: 0 | D63: 0 | F63: 0 | G63: 0 | I63: 0 | J63: 0
A64: Diplom ing. | C64: 0 | D64: 0 | F64: 0 | G64: 0 | I64: 0 | J64: 0
A65: Cand. Scient. Tek. | C65: 0 | D65: 0 | F65: 0 | G65: 0 | I65: 0 | J65: 0
A66: MA. Hum. | C66: 1 | D66: 0.9998128859 | F66: 1 | G66: 0.9998128859 | I66: 2 | J66: 1.999625772
A67: MA. Nat. | C67: 0 | D67: 0 | F67: 0 | G67: 0 | I67: 0 | J67: 0
A68: MA. Ph.d. | C68: 0 | D68: 0 | F68: 0 | G68: 0 | I68: 0 | J68: 0
A69: MA. Samf. | C69: 0 | D69: 0 | F69: 0 | G69: 0 | I69: 0 | J69: 0
A70: Øvrige Mag. | C70: 0 | D70: 0 | F70: 1 | G70: 0.8856732988 | I70: 1 | J70: 0.8856732988
A71: Agronom | C71: 0 | D71: 0 | F71: 0 | G71: 0 | I71: 0 | J71: 0
A72: Landsk. Arkt. | C72: 0 | D72: 0 | F72: 0 | G72: 0 | I72: 0 | J72: 0
A73: Hortonom | C73: 0 | D73: 0 | F73: 0 | G73: 0 | I73: 0 | J73: 0
A74: Forstkand. | C74: 0 | D74: 0 | F74: 0 | G74: 0 | I74: 0 | J74: 0
A75: Jordbrugsakad. | C75: 0 | D75: 0 | F75: 0 | G75: 0 | I75: 0 | J75: 0
A76: Mejeriing. | C76: 0 | D76: 0 | F76: 0 | G76: 0 | I76: 0 | J76: 0
A77: Levn.m.kand. | C77: 0 | D77: 0 | F77: 0 | G77: 0 | I77: 0 | J77: 0
A78: Dyrlæge | C78: 0 | D78: 0 | F78: 0 | G78: 0 | I78: 0 | J78: 0
A79: Farmaceut | C79: 0 | D79: 0 | F79: 0 | G79: 0 | I79: 0 | J79: 0
A80: Læge | C80: 0 | D80: 0 | F80: 0 | G80: 0 | I80: 0 | J80: 0
A81: Tandlæge | C81: 0 | D81: 0 | F81: 0 | G81: 0 | I81: 0 | J81: 0
A82: Arkitekt | C82: 0 | D82: 0 | F82: 0 | G82: 0 | I82: 0 | J82: 0
A83: Landinspek. | C83: 0 | D83: 0 | F83: 0 | G83: 0 | I83: 0 | J83: 0
A84: Bibliotekar | C84: 0 | D84: 0 | F84: 0 | G84: 0 | I84: 0 | J84: 0
A85: Musikudd. | C85: 0 | D85: 0 | F85: 0 | G85: 0 | I85: 0 | J85: 0
A86: Teolog | C86: 0 | D86: 0 | F86: 0 | G86: 0 | I86: 0 | J86: 0
A87: Psykolog | C87: 0 | D87: 0 | F87: 0 | G87: 0 | I87: 0 | J87: 0
A88: Jurist | C88: 0 | D88: 0 | F88: 0 | G88: 0 | I88: 0 | J88: 0
A89: Økonom | C89: 0 | D89: 0 | F89: 0 | G89: 0 | I89: 0 | J89: 0
A90: Samf. Adm. | C90: 0 | D90: 0 | F90: 0 | G90: 0 | I90: 0 | J90: 0
A91: Cand. Merc. | C91: 0 | D91: 0 | F91: 1 | G91: 0.3074908002 | I91: 1 | J91: 0.3074908002
A92: HA | C92: 0 | D92: 0 | F92: 0 | G92: 0 | I92: 0 | J92: 0
A93: HD | C93: 0 | D93: 0 | F93: 0 | G93: 0 | I93: 0 | J93: 0
A94: Komm. og Sprog | C94: 0 | D94: 0 | F94: 0 | G94: 0 | I94: 0 | J94: 0
A95: Bygningskonst. | C95: 0 | D95: 0 | F95: 0 | G95: 0 | I95: 0 | J95: 0
A96: Cand. IT. | C96: 0 | D96: 0 | F96: 0 | G96: 0 | I96: 0 | J96: 0
A97: Bac. Samf. | C97: 0 | D97: 0 | F97: 0 | G97: 0 | I97: 0 | J97: 0
A98: Bac. Hum. | C98: 0 | D98: 0 | F98: 0 | G98: 0 | I98: 0 | J98: 0
A99: Bac. Nat. | C99: 0 | D99: 0 | F99: 0 | G99: 0 | I99: 0 | J99: 0
A100: Andre | C100: 0 | D100: 0 | F100: 0 | G100: 0 | I100: 0 | J100: 0
A102: Total | C102: 1 | D102: 0.9998128859 | F102: 3 | G102: 2.192976985 | I102: 4 | J102: 3.192789871
A104: Ingeniører i alt | C104: 0 | D104: 0 | F104: 0 | G104: 0 | I104: 0 | J104: 0
A105: Magistre i alt | C105: 1 | D105: 0.9998128859 | F105: 2 | G105: 1.885486185 | I105: 3 | J105: 2.885299071
A106: DJØF'ere i alt | C106: 0 | D106: 0 | F106: 1 | G106: 0.3074908002 | I106: 1 | J106: 0.3074908002
A111: Thisted
C113: Mænd | F113: Kvinder | I113: I alt
C114: Ledigheds- berørte | D114: Gns. brutto- ledighed | F114: Ledigheds- berørte | G114: Gns. brutto- ledighed | I114: Ledigheds- berørte | J114: Gns. brutto- ledighed
A117: Civ. ing. | C117: 1 | D117: 0.8151936631 | F117: 1 | G117: 0.8151936631 | I117: 2 | J117: 1.630387326
A118: Diplom ing. | C118: 3 | D118: 2.213559533 | F118: 0 | G118: 0 | I118: 3 | J118: 2.213559533
A119: Cand. Scient. Tek. | C119: 0 | D119: 0 | F119: 0 | G119: 0 | I119: 0 | J119: 0
A120: MA. Hum. | C120: 2 | D120: 1.580490239 | F120: 8 | G120: 6.176635689 | I120: 10 | J120: 7.757125928
A121: MA. Nat. | C121: 0 | D121: 0 | F121: 0 | G121: 0 | I121: 0 | J121: 0
A122: MA. Ph.d. | C122: 0 | D122: 0 | F122: 0 | G122: 0 | I122: 0 | J122: 0
A123: MA. Samf. | C123: 0 | D123: 0 | F123: 1 | G123: 0.4085324019 | I123: 1 | J123: 0.4085324019
A124: Øvrige Mag. | C124: 0 | D124: 0 | F124: 0 | G124: 0 | I124: 0 | J124: 0
A125: Agronom | C125: 0 | D125: 0 | F125: 0 | G125: 0 | I125: 0 | J125: 0
A126: Landsk. Arkt. | C126: 0 | D126: 0 | F126: 0 | G126: 0 | I126: 0 | J126: 0
A127: Hortonom | C127: 0 | D127: 0 | F127: 0 | G127: 0 | I127: 0 | J127: 0
A128: Forstkand. | C128: 0 | D128: 0 | F128: 0 | G128: 0 | I128: 0 | J128: 0
A129: Jordbrugsakad. | C129: 0 | D129: 0 | F129: 0 | G129: 0 | I129: 0 | J129: 0
A130: Mejeriing. | C130: 0 | D130: 0 | F130: 1 | G130: 0.7690388574 | I130: 1 | J130: 0.7690388574
A131: Levn.m.kand. | C131: 0 | D131: 0 | F131: 0 | G131: 0 | I131: 0 | J131: 0
A132: Dyrlæge | C132: 0 | D132: 0 | F132: 0 | G132: 0 | I132: 0 | J132: 0
A133: Farmaceut | C133: 0 | D133: 0 | F133: 0 | G133: 0 | I133: 0 | J133: 0
A134: Læge | C134: 1 | D134: 0.9998128859 | F134: 0 | G134: 0 | I134: 1 | J134: 0.9998128859
A135: Tandlæge | C135: 0 | D135: 0 | F135: 0 | G135: 0 | I135: 0 | J135: 0
A136: Arkitekt | C136: 0 | D136: 0 | F136: 0 | G136: 0 | I136: 0 | J136: 0
A137: Landinspek. | C137: 0 | D137: 0 | F137: 0 | G137: 0 | I137: 0 | J137: 0
A138: Bibliotekar | C138: 0 | D138: 0 | F138: 1 | G138: 0.9075032745 | I138: 1 | J138: 0.9075032745
A139: Musikudd. | C139: 0 | D139: 0 | F139: 0 | G139: 0 | I139: 0 | J139: 0
A140: Teolog | C140: 0 | D140: 0 | F140: 0 | G140: 0 | I140: 0 | J140: 0
A141: Psykolog | C141: 0 | D141: 0 | F141: 1 | G141: 0.4921100231 | I141: 1 | J141: 0.4921100231
A142: Jurist | C142: 0 | D142: 0 | F142: 1 | G142: 0.9998128859 | I142: 1 | J142: 0.9998128859
A143: Økonom | C143: 0 | D143: 0 | F143: 0 | G143: 0 | I143: 0 | J143: 0
A144: Samf. Adm. | C144: 0 | D144: 0 | F144: 2 | G144: 1.182560968 | I144: 2 | J144: 1.182560968
A145: Cand. Merc. | C145: 0 | D145: 0 | F145: 1 | G145: 0.4921100231 | I145: 1 | J145: 0.4921100231
A146: HA | C146: 0 | D146: 0 | F146: 0 | G146: 0 | I146: 0 | J146: 0
A147: HD | C147: 0 | D147: 0 | F147: 1 | G147: 0.9536580802 | I147: 1 | J147: 0.9536580802
A148: Komm. og Sprog | C148: 0 | D148: 0 | F148: 2 | G148: 1.26114888 | I148: 2 | J148: 1.26114888
A149: Bygningskonst. | C149: 0 | D149: 0 | F149: 0 | G149: 0 | I149: 0 | J149: 0
A150: Cand. IT. | C150: 0 | D150: 0 | F150: 2 | G150: 1.229339487 | I150: 2 | J150: 1.229339487
A151: Bac. Samf. | C151: 0 | D151: 0 | F151: 0 | G151: 0 | I151: 0 | J151: 0
A152: Bac. Hum. | C152: 0 | D152: 0 | F152: 2 | G152: 1.790681719 | I152: 2 | J152: 1.790681719
A153: Bac. Nat. | C153: 0 | D153: 0 | F153: 0 | G153: 0 | I153: 0 | J153: 0
A154: Andre | C154: 0 | D154: 0 | F154: 1 | G154: 0.9811014782 | I154: 1 | J154: 0.9811014782
A156: Total | C156: 7 | D156: 5.609056321 | F156: 25 | G156: 18.45942743 | I156: 32 | J156: 24.06848375
A158: Ingeniører i alt | C158: 4 | D158: 3.028753197 | F158: 1 | G158: 0.8151936631 | I158: 5 | J158: 3.84394686
A159: Magistre i alt | C159: 2 | D159: 1.580490239 | F159: 9 | G159: 6.585168091 | I159: 11 | J159: 8.16565833
A160: DJØF'ere i alt | C160: 0 | D160: 0 | F160: 4 | G160: 2.674483877 | I160: 4 | J160: 2.674483877
A165: Brønderslev
C167: Mænd | F167: Kvinder | I167: I alt
C168: Ledigheds- berørte | D168: Gns. brutto- ledighed | F168: Ledigheds- berørte | G168: Gns. brutto- ledighed | I168: Ledigheds- berørte | J168: Gns. brutto- ledighed
A171: Civ. ing. | C171: 1 | D171: 0.7646728622 | F171: 2 | G171: 1.768851743 | I171: 3 | J171: 2.533524606
A172: Diplom ing. | C172: 1 | D172: 0.9998128859 | F172: 0 | G172: 0 | I172: 1 | J172: 0.9998128859
A173: Cand. Scient. Tek. | C173: 1 | D173: 0.9998128859 | F173: 1 | G173: 0.7690388574 | I173: 2 | J173: 1.768851743
A174: MA. Hum. | C174: 7 | D174: 6.81781326 | F174: 6 | G174: 5.230462172 | I174: 13 | J174: 12.04827543
A175: MA. Nat. | C175: 0 | D175: 0 | F175: 0 | G175: 0 | I175: 0 | J175: 0
A176: MA. Ph.d. | C176: 0 | D176: 0 | F176: 0 | G176: 0 | I176: 0 | J176: 0
A177: MA. Samf. | C177: 0 | D177: 0 | F177: 1 | G177: 0.9998128859 | I177: 1 | J177: 0.9998128859
A178: Øvrige Mag. | C178: 0 | D178: 0 | F178: 1 | G178: 0.9998128859 | I178: 1 | J178: 0.9998128859
A179: Agronom | C179: 0 | D179: 0 | F179: 0 | G179: 0 | I179: 0 | J179: 0
A180: Landsk. Arkt. | C180: 0 | D180: 0 | F180: 0 | G180: 0 | I180: 0 | J180: 0
A181: Hortonom | C181: 0 | D181: 0 | F181: 0 | G181: 0 | I181: 0 | J181: 0
A182: Forstkand. | C182: 0 | D182: 0 | F182: 0 | G182: 0 | I182: 0 | J182: 0
A183: Jordbrugsakad. | C183: 0 | D183: 0 | F183: 0 | G183: 0 | I183: 0 | J183: 0
A184: Mejeriing. | C184: 0 | D184: 0 | F184: 0 | G184: 0 | I184: 0 | J184: 0
A185: Levn.m.kand. | C185: 0 | D185: 0 | F185: 0 | G185: 0 | I185: 0 | J185: 0
A186: Dyrlæge | C186: 0 | D186: 0 | F186: 0 | G186: 0 | I186: 0 | J186: 0
A187: Farmaceut | C187: 0 | D187: 0 | F187: 0 | G187: 0 | I187: 0 | J187: 0
A188: Læge | C188: 0 | D188: 0 | F188: 1 | G188: 0.9998128859 | I188: 1 | J188: 0.9998128859
A189: Tandlæge | C189: 0 | D189: 0 | F189: 0 | G189: 0 | I189: 0 | J189: 0
A190: Arkitekt | C190: 0 | D190: 0 | F190: 0 | G190: 0 | I190: 0 | J190: 0
A191: Landinspek. | C191: 0 | D191: 0 | F191: 0 | G191: 0 | I191: 0 | J191: 0
A192: Bibliotekar | C192: 0 | D192: 0 | F192: 0 | G192: 0 | I192: 0 | J192: 0
A193: Musikudd. | C193: 0 | D193: 0 | F193: 0 | G193: 0 | I193: 0 | J193: 0
A194: Teolog | C194: 0 | D194: 0 | F194: 0 | G194: 0 | I194: 0 | J194: 0
A195: Psykolog | C195: 0 | D195: 0 | F195: 1 | G195: 0.9998128859 | I195: 1 | J195: 0.9998128859
A196: Jurist | C196: 0 | D196: 0 | F196: 0 | G196: 0 | I196: 0 | J196: 0
A197: Økonom | C197: 0 | D197: 0 | F197: 0 | G197: 0 | I197: 0 | J197: 0
A198: Samf. Adm. | C198: 1 | D198: 0.9998128859 | F198: 2 | G198: 1.999625772 | I198: 3 | J198: 2.999438658
A199: Cand. Merc. | C199: 1 | D199: 0.9998128859 | F199: 3 | G199: 2.590906256 | I199: 4 | J199: 3.590719142
A200: HA | C200: 0 | D200: 0 | F200: 0 | G200: 0 | I200: 0 | J200: 0
A201: HD | C201: 0 | D201: 0 | F201: 1 | G201: 0.9998128859 | I201: 1 | J201: 0.9998128859
A202: Komm. og Sprog | C202: 0 | D202: 0 | F202: 0 | G202: 0 | I202: 0 | J202: 0
A203: Bygningskonst. | C203: 0 | D203: 0 | F203: 0 | G203: 0 | I203: 0 | J203: 0
A204: Cand. IT. | C204: 0 | D204: 0 | F204: 1 | G204: 0.9536580802 | I204: 1 | J204: 0.9536580802
A205: Bac. Samf. | C205: 0 | D205: 0 | F205: 0 | G205: 0 | I205: 0 | J205: 0
A206: Bac. Hum. | C206: 0 | D206: 0 | F206: 0 | G206: 0 | I206: 0 | J206: 0
A207: Bac. Nat. | C207: 1 | D207: 0.9998128859 | F207: 0 | G207: 0 | I207: 1 | J207: 0.9998128859
A208: Andre | C208: 0 | D208: 0 | F208: 1 | G208: 0.9998128859 | I208: 1 | J208: 0.9998128859
A210: Total | C210: 13 | D210: 12.58155055 | F210: 21 | G210: 19.3114202 | I210: 34 | J210: 31.89297075
A212: Ingeniører i alt | C212: 2 | D212: 1.764485748 | F212: 2 | G212: 1.768851743 | I212: 4 | J212: 3.533337491
A213: Magistre i alt | C213: 7 | D213: 6.81781326 | F213: 8 | G213: 7.230087944 | I213: 15 | J213: 14.0479012
A214: DJØF'ere i alt | C214: 2 | D214: 1.999625772 | F214: 5 | G214: 4.590532028 | I214: 7 | J214: 6.5901578
A219: Frederikshavn
C221: Mænd | F221: Kvinder | I221: I alt
C222: Ledigheds- berørte | D222: Gns. brutto- ledighed | F222: Ledigheds- berørte | G222: Gns. brutto- ledighed | I222: Ledigheds- berørte | J222: Gns. brutto- ledighed
A225: Civ. ing. | C225: 0 | D225: 0 | F225: 0 | G225: 0 | I225: 0 | J225: 0
A226: Diplom ing. | C226: 1 | D226: 0.7690388574 | F226: 0 | G226: 0 | I226: 1 | J226: 0.7690388574
A227: Cand. Scient. Tek. | C227: 0 | D227: 0 | F227: 0 | G227: 0 | I227: 0 | J227: 0
A228: MA. Hum. | C228: 4 | D228: 3.707353583 | F228: 7 | G228: 4.993451007 | I228: 11 | J228: 8.700804591
A229: MA. Nat. | C229: 0 | D229: 0 | F229: 0 | G229: 0 | I229: 0 | J229: 0
A230: MA. Ph.d. | C230: 0 | D230: 0 | F230: 0 | G230: 0 | I230: 0 | J230: 0
A231: MA. Samf. | C231: 0 | D231: 0 | F231: 2 | G231: 1.299819123 | I231: 2 | J231: 1.299819123
A232: Øvrige Mag. | C232: 1 | D232: 0.9998128859 | F232: 1 | G232: 0.9998128859 | I232: 2 | J232: 1.999625772
A233: Agronom | C233: 0 | D233: 0 | F233: 0 | G233: 0 | I233: 0 | J233: 0
A234: Landsk. Arkt. | C234: 0 | D234: 0 | F234: 0 | G234: 0 | I234: 0 | J234: 0
A235: Hortonom | C235: 0 | D235: 0 | F235: 0 | G235: 0 | I235: 0 | J235: 0
A236: Forstkand. | C236: 0 | D236: 0 | F236: 0 | G236: 0 | I236: 0 | J236: 0
A237: Jordbrugsakad. | C237: 0 | D237: 0 | F237: 0 | G237: 0 | I237: 0 | J237: 0
A238: Mejeriing. | C238: 0 | D238: 0 | F238: 0 | G238: 0 | I238: 0 | J238: 0
A239: Levn.m.kand. | C239: 0 | D239: 0 | F239: 0 | G239: 0 | I239: 0 | J239: 0
A240: Dyrlæge | C240: 0 | D240: 0 | F240: 0 | G240: 0 | I240: 0 | J240: 0
... 341 more rows

Sheet Tabel 3 NJ
A1: Tabel 3. Ledige i procent af forsikrede
A3: Nordjylland
C5: Mænd | F5: Kvinder | I5: I alt
C6: Ledigheds- berørte | D6: Gns. brutto- ledighed | F6: Ledigheds- berørte | G6: Gns. brutto- ledighed | I6: Ledigheds- berørte | J6: Gns. brutto- ledighed
A9: Civ. ing. | C9: =IF(OR('Tabel 1 NJ'!C7<5,'Tabel 2 NJ'!C9<0.5),"-",IFERROR('Tabel 2 NJ'!C9/'Tabel 1 NJ'!C7*100,"-")) -> 3.591505309 | D9: =IF(OR('Tabel 1 NJ'!C7<5,'Tabel 2 NJ'!D9<0.5),"-",IFERROR('Tabel 2 NJ'!D9/'Tabel 1 NJ'!C7*100,"-")) -> 3.31851861 | F9: =IF(OR('Tabel 1 NJ'!E7<5,'Tabel 2 NJ'!F9<0.5),"-",IFERROR('Tabel 2 NJ'!F9/'Tabel 1 NJ'!E7*100,"-")) -> 4.761904762 | G9: =IF(OR('Tabel 1 NJ'!E7<5,'Tabel 2 NJ'!G9<0.5),"-",IFERROR('Tabel 2 NJ'!G9/'Tabel 1 NJ'!E7*100,"-")) -> 4.267724733 | I9: =IF(OR('Tabel 1 NJ'!G7<5,'Tabel 2 NJ'!I9<0.5),"-",IFERROR('Tabel 2 NJ'!I9/'Tabel 1 NJ'!G7*100,"-")) -> 3.862763916 | J9: =IF(OR('Tabel 1 NJ'!G7<5,'Tabel 2 NJ'!J9<0.5),"-",IFERROR('Tabel 2 NJ'!J9/'Tabel 1 NJ'!G7*100,"-")) -> 3.538512159
A10: Diplom ing. | C10: =IF(OR('Tabel 1 NJ'!C8<5,'Tabel 2 NJ'!C10<0.5),"-",IFERROR('Tabel 2 NJ'!C10/'Tabel 1 NJ'!C8*100,"-")) -> 2.382908792 | D10: =IF(OR('Tabel 1 NJ'!C8<5,'Tabel 2 NJ'!D10<0.5),"-",IFERROR('Tabel 2 NJ'!D10/'Tabel 1 NJ'!C8*100,"-")) -> 2.084136145 | F10: =IF(OR('Tabel 1 NJ'!E8<5,'Tabel 2 NJ'!F10<0.5),"-",IFERROR('Tabel 2 NJ'!F10/'Tabel 1 NJ'!E8*100,"-")) -> 1.265822785 | G10: =IF(OR('Tabel 1 NJ'!E8<5,'Tabel 2 NJ'!G10<0.5),"-",IFERROR('Tabel 2 NJ'!G10/'Tabel 1 NJ'!E8*100,"-")) -> 1.265585932 | I10: =IF(OR('Tabel 1 NJ'!G8<5,'Tabel 2 NJ'!I10<0.5),"-",IFERROR('Tabel 2 NJ'!I10/'Tabel 1 NJ'!G8*100,"-")) -> 2.200825309 | J10: =IF(OR('Tabel 1 NJ'!G8<5,'Tabel 2 NJ'!J10<0.5),"-",IFERROR('Tabel 2 NJ'!J10/'Tabel 1 NJ'!G8*100,"-")) -> 1.950713586
A11: Cand. Scient. Tek. | C11: =IF(OR('Tabel 1 NJ'!C9<5,'Tabel 2 NJ'!C11<0.5),"-",IFERROR('Tabel 2 NJ'!C11/'Tabel 1 NJ'!C9*100,"-")) -> 8.380952381 | D11: =IF(OR('Tabel 1 NJ'!C9<5,'Tabel 2 NJ'!D11<0.5),"-",IFERROR('Tabel 2 NJ'!D11/'Tabel 1 NJ'!C9*100,"-")) -> 7.712545256 | F11: =IF(OR('Tabel 1 NJ'!E9<5,'Tabel 2 NJ'!F11<0.5),"-",IFERROR('Tabel 2 NJ'!F11/'Tabel 1 NJ'!E9*100,"-")) -> 11.82608696 | G11: =IF(OR('Tabel 1 NJ'!E9<5,'Tabel 2 NJ'!G11<0.5),"-",IFERROR('Tabel 2 NJ'!G11/'Tabel 1 NJ'!E9*100,"-")) -> 11.0268224 | I11: =IF(OR('Tabel 1 NJ'!G9<5,'Tabel 2 NJ'!I11<0.5),"-",IFERROR('Tabel 2 NJ'!I11/'Tabel 1 NJ'!G9*100,"-")) -> 9.6 | J11: =IF(OR('Tabel 1 NJ'!G9<5,'Tabel 2 NJ'!J11<0.5),"-",IFERROR('Tabel 2 NJ'!J11/'Tabel 1 NJ'!G9*100,"-")) -> 8.885289475
A12: MA. Hum. | C12: =IF(OR('Tabel 1 NJ'!C10<5,'Tabel 2 NJ'!C12<0.5),"-",IFERROR('Tabel 2 NJ'!C12/'Tabel 1 NJ'!C10*100,"-")) -> 12.33830846 | D12: =IF(OR('Tabel 1 NJ'!C10<5,'Tabel 2 NJ'!D12<0.5),"-",IFERROR('Tabel 2 NJ'!D12/'Tabel 1 NJ'!C10*100,"-")) -> 10.73184567 | F12: =IF(OR('Tabel 1 NJ'!E10<5,'Tabel 2 NJ'!F12<0.5),"-",IFERROR('Tabel 2 NJ'!F12/'Tabel 1 NJ'!E10*100,"-")) -> 10.26722925 | G12: =IF(OR('Tabel 1 NJ'!E10<5,'Tabel 2 NJ'!G12<0.5),"-",IFERROR('Tabel 2 NJ'!G12/'Tabel 1 NJ'!E10*100,"-")) -> 8.648126671 | I12: =IF(OR('Tabel 1 NJ'!G10<5,'Tabel 2 NJ'!I12<0.5),"-",IFERROR('Tabel 2 NJ'!I12/'Tabel 1 NJ'!G10*100,"-")) -> 10.930529 | J12: =IF(OR('Tabel 1 NJ'!G10<5,'Tabel 2 NJ'!J12<0.5),"-",IFERROR('Tabel 2 NJ'!J12/'Tabel 1 NJ'!G10*100,"-")) -> 9.315474533
A13: MA. Nat. | C13: =IF(OR('Tabel 1 NJ'!C11<5,'Tabel 2 NJ'!C13<0.5),"-",IFERROR('Tabel 2 NJ'!C13/'Tabel 1 NJ'!C11*100,"-")) -> 1.842105263 | D13: =IF(OR('Tabel 1 NJ'!C11<5,'Tabel 2 NJ'!D13<0.5),"-",IFERROR('Tabel 2 NJ'!D13/'Tabel 1 NJ'!C11*100,"-")) -> 1.479514291 | F13: =IF(OR('Tabel 1 NJ'!E11<5,'Tabel 2 NJ'!F13<0.5),"-",IFERROR('Tabel 2 NJ'!F13/'Tabel 1 NJ'!E11*100,"-")) -> 5.111821086 | G13: =IF(OR('Tabel 1 NJ'!E11<5,'Tabel 2 NJ'!G13<0.5),"-",IFERROR('Tabel 2 NJ'!G13/'Tabel 1 NJ'!E11*100,"-")) -> 4.256197631 | I13: =IF(OR('Tabel 1 NJ'!G11<5,'Tabel 2 NJ'!I13<0.5),"-",IFERROR('Tabel 2 NJ'!I13/'Tabel 1 NJ'!G11*100,"-")) -> 3.318903319 | J13: =IF(OR('Tabel 1 NJ'!G11<5,'Tabel 2 NJ'!J13<0.5),"-",IFERROR('Tabel 2 NJ'!J13/'Tabel 1 NJ'!G11*100,"-")) -> 2.733629566
A14: MA. Ph.d. | C14: =IF(OR('Tabel 1 NJ'!C12<5,'Tabel 2 NJ'!C14<0.5),"-",IFERROR('Tabel 2 NJ'!C14/'Tabel 1 NJ'!C12*100,"-")) -> 1.724137931 | D14: =IF(OR('Tabel 1 NJ'!C12<5,'Tabel 2 NJ'!D14<0.5),"-",IFERROR('Tabel 2 NJ'!D14/'Tabel 1 NJ'!C12*100,"-")) -> 1.723815321 | F14: =IF(OR('Tabel 1 NJ'!E12<5,'Tabel 2 NJ'!F14<0.5),"-",IFERROR('Tabel 2 NJ'!F14/'Tabel 1 NJ'!E12*100,"-")) -> 8.108108108 | G14: =IF(OR('Tabel 1 NJ'!E12<5,'Tabel 2 NJ'!G14<0.5),"-",IFERROR('Tabel 2 NJ'!G14/'Tabel 1 NJ'!E12*100,"-")) -> 7.732362813 | I14: =IF(OR('Tabel 1 NJ'!G12<5,'Tabel 2 NJ'!I14<0.5),"-",IFERROR('Tabel 2 NJ'!I14/'Tabel 1 NJ'!G12*100,"-")) -> 4.210526316 | J14: =IF(OR('Tabel 1 NJ'!G12<5,'Tabel 2 NJ'!J14<0.5),"-",IFERROR('Tabel 2 NJ'!J14/'Tabel 1 NJ'!G12*100,"-")) -> 4.063986449
A15: MA. Samf. | C15: =IF(OR('Tabel 1 NJ'!C13<5,'Tabel 2 NJ'!C15<0.5),"-",IFERROR('Tabel 2 NJ'!C15/'Tabel 1 NJ'!C13*100,"-")) -> 18.82352941 | D15: =IF(OR('Tabel 1 NJ'!C13<5,'Tabel 2 NJ'!D15<0.5),"-",IFERROR('Tabel 2 NJ'!D15/'Tabel 1 NJ'!C13*100,"-")) -> 17.1007591 | F15: =IF(OR('Tabel 1 NJ'!E13<5,'Tabel 2 NJ'!F15<0.5),"-",IFERROR('Tabel 2 NJ'!F15/'Tabel 1 NJ'!E13*100,"-")) -> 16.50165017 | G15: =IF(OR('Tabel 1 NJ'!E13<5,'Tabel 2 NJ'!G15<0.5),"-",IFERROR('Tabel 2 NJ'!G15/'Tabel 1 NJ'!E13*100,"-")) -> 13.48332925 | I15: =IF(OR('Tabel 1 NJ'!G13<5,'Tabel 2 NJ'!I15<0.5),"-",IFERROR('Tabel 2 NJ'!I15/'Tabel 1 NJ'!G13*100,"-")) -> 17.01030928 | J15: =IF(OR('Tabel 1 NJ'!G13<5,'Tabel 2 NJ'!J15<0.5),"-",IFERROR('Tabel 2 NJ'!J15/'Tabel 1 NJ'!G13*100,"-")) -> 14.27580744
A16: Øvrige Mag. | C16: =IF(OR('Tabel 1 NJ'!C14<5,'Tabel 2 NJ'!C16<0.5),"-",IFERROR('Tabel 2 NJ'!C16/'Tabel 1 NJ'!C14*100,"-")) -> 12.5 | D16: =IF(OR('Tabel 1 NJ'!C14<5,'Tabel 2 NJ'!D16<0.5),"-",IFERROR('Tabel 2 NJ'!D16/'Tabel 1 NJ'!C14*100,"-")) -> 10.85899537 | F16: =IF(OR('Tabel 1 NJ'!E14<5,'Tabel 2 NJ'!F16<0.5),"-",IFERROR('Tabel 2 NJ'!F16/'Tabel 1 NJ'!E14*100,"-")) -> 11.69590643 | G16: =IF(OR('Tabel 1 NJ'!E14<5,'Tabel 2 NJ'!G16<0.5),"-",IFERROR('Tabel 2 NJ'!G16/'Tabel 1 NJ'!E14*100,"-")) -> 10.16178985 | I16: =IF(OR('Tabel 1 NJ'!G14<5,'Tabel 2 NJ'!I16<0.5),"-",IFERROR('Tabel 2 NJ'!I16/'Tabel 1 NJ'!G14*100,"-")) -> 11.96911197 | J16: =IF(OR('Tabel 1 NJ'!G14<5,'Tabel 2 NJ'!J16<0.5),"-",IFERROR('Tabel 2 NJ'!J16/'Tabel 1 NJ'!G14*100,"-")) -> 10.39867821
A17: Agronom | C17: =IF(OR('Tabel 1 NJ'!C15<5,'Tabel 2 NJ'!C17<0.5),"-",IFERROR('Tabel 2 NJ'!C17/'Tabel 1 NJ'!C15*100,"-")) -> 1.428571429 | D17: =IF(OR('Tabel 1 NJ'!C15<5,'Tabel 2 NJ'!D17<0.5),"-",IFERROR('Tabel 2 NJ'!D17/'Tabel 1 NJ'!C15*100,"-")) -> 1.428304123 | F17: =IF(OR('Tabel 1 NJ'!E15<5,'Tabel 2 NJ'!F17<0.5),"-",IFERROR('Tabel 2 NJ'!F17/'Tabel 1 NJ'!E15*100,"-")) -> 1.666666667 | G17: =IF(OR('Tabel 1 NJ'!E15<5,'Tabel 2 NJ'!G17<0.5),"-",IFERROR('Tabel 2 NJ'!G17/'Tabel 1 NJ'!E15*100,"-")) -> 1.66635481 | I17: =IF(OR('Tabel 1 NJ'!G15<5,'Tabel 2 NJ'!I17<0.5),"-",IFERROR('Tabel 2 NJ'!I17/'Tabel 1 NJ'!G15*100,"-")) -> 1.538461538 | J17: =IF(OR('Tabel 1 NJ'!G15<5,'Tabel 2 NJ'!J17<0.5),"-",IFERROR('Tabel 2 NJ'!J17/'Tabel 1 NJ'!G15*100,"-")) -> 1.538173671
A18: Landsk. Arkt. | C18: =IF(OR('Tabel 1 NJ'!C16<5,'Tabel 2 NJ'!C18<0.5),"-",IFERROR('Tabel 2 NJ'!C18/'Tabel 1 NJ'!C16*100,"-")) -> - | D18: =IF(OR('Tabel 1 NJ'!C16<5,'Tabel 2 NJ'!D18<0.5),"-",IFERROR('Tabel 2 NJ'!D18/'Tabel 1 NJ'!C16*100,"-")) -> - | F18: =IF(OR('Tabel 1 NJ'!E16<5,'Tabel 2 NJ'!F18<0.5),"-",IFERROR('Tabel 2 NJ'!F18/'Tabel 1 NJ'!E16*100,"-")) -> 8.333333333 | G18: =IF(OR('Tabel 1 NJ'!E16<5,'Tabel 2 NJ'!G18<0.5),"-",IFERROR('Tabel 2 NJ'!G18/'Tabel 1 NJ'!E16*100,"-")) -> 6.668537807 | I18: =IF(OR('Tabel 1 NJ'!G16<5,'Tabel 2 NJ'!I18<0.5),"-",IFERROR('Tabel 2 NJ'!I18/'Tabel 1 NJ'!G16*100,"-")) -> 6.666666667 | J18: =IF(OR('Tabel 1 NJ'!G16<5,'Tabel 2 NJ'!J18<0.5),"-",IFERROR('Tabel 2 NJ'!J18/'Tabel 1 NJ'!G16*100,"-")) -> 5.334830246
A19: Hortonom | C19: =IF(OR('Tabel 1 NJ'!C17<5,'Tabel 2 NJ'!C19<0.5),"-",IFERROR('Tabel 2 NJ'!C19/'Tabel 1 NJ'!C17*100,"-")) -> - | D19: =IF(OR('Tabel 1 NJ'!C17<5,'Tabel 2 NJ'!D19<0.5),"-",IFERROR('Tabel 2 NJ'!D19/'Tabel 1 NJ'!C17*100,"-")) -> - | F19: =IF(OR('Tabel 1 NJ'!E17<5,'Tabel 2 NJ'!F19<0.5),"-",IFERROR('Tabel 2 NJ'!F19/'Tabel 1 NJ'!E17*100,"-")) -> - | G19: =IF(OR('Tabel 1 NJ'!E17<5,'Tabel 2 NJ'!G19<0.5),"-",IFERROR('Tabel 2 NJ'!G19/'Tabel 1 NJ'!E17*100,"-")) -> - | I19: =IF(OR('Tabel 1 NJ'!G17<5,'Tabel 2 NJ'!I19<0.5),"-",IFERROR('Tabel 2 NJ'!I19/'Tabel 1 NJ'!G17*100,"-")) -> - | J19: =IF(OR('Tabel 1 NJ'!G17<5,'Tabel 2 NJ'!J19<0.5),"-",IFERROR('Tabel 2 NJ'!J19/'Tabel 1 NJ'!G17*100,"-")) -> -
A20: Forstkand. | C20: =IF(OR('Tabel 1 NJ'!C18<5,'Tabel 2 NJ'!C20<0.5),"-",IFERROR('Tabel 2 NJ'!C20/'Tabel 1 NJ'!C18*100,"-")) -> - | D20: =IF(OR('Tabel 1 NJ'!C18<5,'Tabel 2 NJ'!D20<0.5),"-",IFERROR('Tabel 2 NJ'!D20/'Tabel 1 NJ'!C18*100,"-")) -> - | F20: =IF(OR('Tabel 1 NJ'!E18<5,'Tabel 2 NJ'!F20<0.5),"-",IFERROR('Tabel 2 NJ'!F20/'Tabel 1 NJ'!E18*100,"-")) -> - | G20: =IF(OR('Tabel 1 NJ'!E18<5,'Tabel 2 NJ'!G20<0.5),"-",IFERROR('Tabel 2 NJ'!G20/'Tabel 1 NJ'!E18*100,"-")) -> - | I20: =IF(OR('Tabel 1 NJ'!G18<5,'Tabel 2 NJ'!I20<0.5),"-",IFERROR('Tabel 2 NJ'!I20/'Tabel 1 NJ'!G18*100,"-")) -> - | J20: =IF(OR('Tabel 1 NJ'!G18<5,'Tabel 2 NJ'!J20<0.5),"-",IFERROR('Tabel 2 NJ'!J20/'Tabel 1 NJ'!G18*100,"-")) -> -
A21: Jordbrugsakad. | C21: =IF(OR('Tabel 1 NJ'!C19<5,'Tabel 2 NJ'!C21<0.5),"-",IFERROR('Tabel 2 NJ'!C21/'Tabel 1 NJ'!C19*100,"-")) -> 1.136363636 | D21: =IF(OR('Tabel 1 NJ'!C19<5,'Tabel 2 NJ'!D21<0.5),"-",IFERROR('Tabel 2 NJ'!D21/'Tabel 1 NJ'!C19*100,"-")) -> 1.136151007 | F21: =IF(OR('Tabel 1 NJ'!E19<5,'Tabel 2 NJ'!F21<0.5),"-",IFERROR('Tabel 2 NJ'!F21/'Tabel 1 NJ'!E19*100,"-")) -> 2.43902439 | G21: =IF(OR('Tabel 1 NJ'!E19<5,'Tabel 2 NJ'!G21<0.5),"-",IFERROR('Tabel 2 NJ'!G21/'Tabel 1 NJ'!E19*100,"-")) -> 2.195167589 | I21: =IF(OR('Tabel 1 NJ'!G19<5,'Tabel 2 NJ'!I21<0.5),"-",IFERROR('Tabel 2 NJ'!I21/'Tabel 1 NJ'!G19*100,"-")) -> 1.764705882 | J21: =IF(OR('Tabel 1 NJ'!G19<5,'Tabel 2 NJ'!J21<0.5),"-",IFERROR('Tabel 2 NJ'!J21/'Tabel 1 NJ'!G19*100,"-")) -> 1.64697077
A22: Mejeriing. | C22: =IF(OR('Tabel 1 NJ'!C20<5,'Tabel 2 NJ'!C22<0.5),"-",IFERROR('Tabel 2 NJ'!C22/'Tabel 1 NJ'!C20*100,"-")) -> - | D22: =IF(OR('Tabel 1 NJ'!C20<5,'Tabel 2 NJ'!D22<0.5),"-",IFERROR('Tabel 2 NJ'!D22/'Tabel 1 NJ'!C20*100,"-")) -> - | F22: =IF(OR('Tabel 1 NJ'!E20<5,'Tabel 2 NJ'!F22<0.5),"-",IFERROR('Tabel 2 NJ'!F22/'Tabel 1 NJ'!E20*100,"-")) -> 14.28571429 | G22: =IF(OR('Tabel 1 NJ'!E20<5,'Tabel 2 NJ'!G22<0.5),"-",IFERROR('Tabel 2 NJ'!G22/'Tabel 1 NJ'!E20*100,"-")) -> 10.98626939 | I22: =IF(OR('Tabel 1 NJ'!G20<5,'Tabel 2 NJ'!I22<0.5),"-",IFERROR('Tabel 2 NJ'!I22/'Tabel 1 NJ'!G20*100,"-")) -> 5.555555556 | J22: =IF(OR('Tabel 1 NJ'!G20<5,'Tabel 2 NJ'!J22<0.5),"-",IFERROR('Tabel 2 NJ'!J22/'Tabel 1 NJ'!G20*100,"-")) -> 4.272438096
A23: Levn.m.kand. | C23: =IF(OR('Tabel 1 NJ'!C21<5,'Tabel 2 NJ'!C23<0.5),"-",IFERROR('Tabel 2 NJ'!C23/'Tabel 1 NJ'!C21*100,"-")) -> - | D23: =IF(OR('Tabel 1 NJ'!C21<5,'Tabel 2 NJ'!D23<0.5),"-",IFERROR('Tabel 2 NJ'!D23/'Tabel 1 NJ'!C21*100,"-")) -> - | F23: =IF(OR('Tabel 1 NJ'!E21<5,'Tabel 2 NJ'!F23<0.5),"-",IFERROR('Tabel 2 NJ'!F23/'Tabel 1 NJ'!E21*100,"-")) -> - | G23: =IF(OR('Tabel 1 NJ'!E21<5,'Tabel 2 NJ'!G23<0.5),"-",IFERROR('Tabel 2 NJ'!G23/'Tabel 1 NJ'!E21*100,"-")) -> - | I23: =IF(OR('Tabel 1 NJ'!G21<5,'Tabel 2 NJ'!I23<0.5),"-",IFERROR('Tabel 2 NJ'!I23/'Tabel 1 NJ'!G21*100,"-")) -> - | J23: =IF(OR('Tabel 1 NJ'!G21<5,'Tabel 2 NJ'!J23<0.5),"-",IFERROR('Tabel 2 NJ'!J23/'Tabel 1 NJ'!G21*100,"-")) -> -
A24: Dyrlæge | C24: =IF(OR('Tabel 1 NJ'!C22<5,'Tabel 2 NJ'!C24<0.5),"-",IFERROR('Tabel 2 NJ'!C24/'Tabel 1 NJ'!C22*100,"-")) -> - | D24: =IF(OR('Tabel 1 NJ'!C22<5,'Tabel 2 NJ'!D24<0.5),"-",IFERROR('Tabel 2 NJ'!D24/'Tabel 1 NJ'!C22*100,"-")) -> - | F24: =IF(OR('Tabel 1 NJ'!E22<5,'Tabel 2 NJ'!F24<0.5),"-",IFERROR('Tabel 2 NJ'!F24/'Tabel 1 NJ'!E22*100,"-")) -> - | G24: =IF(OR('Tabel 1 NJ'!E22<5,'Tabel 2 NJ'!G24<0.5),"-",IFERROR('Tabel 2 NJ'!G24/'Tabel 1 NJ'!E22*100,"-")) -> - | I24: =IF(OR('Tabel 1 NJ'!G22<5,'Tabel 2 NJ'!I24<0.5),"-",IFERROR('Tabel 2 NJ'!I24/'Tabel 1 NJ'!G22*100,"-")) -> - | J24: =IF(OR('Tabel 1 NJ'!G22<5,'Tabel 2 NJ'!J24<0.5),"-",IFERROR('Tabel 2 NJ'!J24/'Tabel 1 NJ'!G22*100,"-")) -> -
A25: Farmaceut | C25: =IF(OR('Tabel 1 NJ'!C23<5,'Tabel 2 NJ'!C25<0.5),"-",IFERROR('Tabel 2 NJ'!C25/'Tabel 1 NJ'!C23*100,"-")) -> 7.692307692 | D25: =IF(OR('Tabel 1 NJ'!C23<5,'Tabel 2 NJ'!D25<0.5),"-",IFERROR('Tabel 2 NJ'!D25/'Tabel 1 NJ'!C23*100,"-")) -> 7.51334987 | F25: =IF(OR('Tabel 1 NJ'!E23<5,'Tabel 2 NJ'!F25<0.5),"-",IFERROR('Tabel 2 NJ'!F25/'Tabel 1 NJ'!E23*100,"-")) -> 6.25 | G25: =IF(OR('Tabel 1 NJ'!E23<5,'Tabel 2 NJ'!G25<0.5),"-",IFERROR('Tabel 2 NJ'!G25/'Tabel 1 NJ'!E23*100,"-")) -> 5.067672925 | I25: =IF(OR('Tabel 1 NJ'!G23<5,'Tabel 2 NJ'!I25<0.5),"-",IFERROR('Tabel 2 NJ'!I25/'Tabel 1 NJ'!G23*100,"-")) -> 6.557377049 | J25: =IF(OR('Tabel 1 NJ'!G23<5,'Tabel 2 NJ'!J25<0.5),"-",IFERROR('Tabel 2 NJ'!J25/'Tabel 1 NJ'!G23*100,"-")) -> 5.588882765
A26: Læge | C26: =IF(OR('Tabel 1 NJ'!C24<5,'Tabel 2 NJ'!C26<0.5),"-",IFERROR('Tabel 2 NJ'!C26/'Tabel 1 NJ'!C24*100,"-")) -> 1.824817518 | D26: =IF(OR('Tabel 1 NJ'!C24<5,'Tabel 2 NJ'!D26<0.5),"-",IFERROR('Tabel 2 NJ'!D26/'Tabel 1 NJ'!C24*100,"-")) -> 1.656027873 | F26: =IF(OR('Tabel 1 NJ'!E24<5,'Tabel 2 NJ'!F26<0.5),"-",IFERROR('Tabel 2 NJ'!F26/'Tabel 1 NJ'!E24*100,"-")) -> 2.693602694 | G26: =IF(OR('Tabel 1 NJ'!E24<5,'Tabel 2 NJ'!G26<0.5),"-",IFERROR('Tabel 2 NJ'!G26/'Tabel 1 NJ'!E24*100,"-")) -> 2.430382958 | I26: =IF(OR('Tabel 1 NJ'!G24<5,'Tabel 2 NJ'!I26<0.5),"-",IFERROR('Tabel 2 NJ'!I26/'Tabel 1 NJ'!G24*100,"-")) -> 2.419354839 | J26: =IF(OR('Tabel 1 NJ'!G24<5,'Tabel 2 NJ'!J26<0.5),"-",IFERROR('Tabel 2 NJ'!J26/'Tabel 1 NJ'!G24*100,"-")) -> 2.18594368
A27: Tandlæge | C27: =IF(OR('Tabel 1 NJ'!C25<5,'Tabel 2 NJ'!C27<0.5),"-",IFERROR('Tabel 2 NJ'!C27/'Tabel 1 NJ'!C25*100,"-")) -> 7.142857143 | D27: =IF(OR('Tabel 1 NJ'!C25<5,'Tabel 2 NJ'!D27<0.5),"-",IFERROR('Tabel 2 NJ'!D27/'Tabel 1 NJ'!C25*100,"-")) -> 7.079149255 | F27: =IF(OR('Tabel 1 NJ'!E25<5,'Tabel 2 NJ'!F27<0.5),"-",IFERROR('Tabel 2 NJ'!F27/'Tabel 1 NJ'!E25*100,"-")) -> - | G27: =IF(OR('Tabel 1 NJ'!E25<5,'Tabel 2 NJ'!G27<0.5),"-",IFERROR('Tabel 2 NJ'!G27/'Tabel 1 NJ'!E25*100,"-")) -> - | I27: =IF(OR('Tabel 1 NJ'!G25<5,'Tabel 2 NJ'!I27<0.5),"-",IFERROR('Tabel 2 NJ'!I27/'Tabel 1 NJ'!G25*100,"-")) -> 0.826446281 | J27: =IF(OR('Tabel 1 NJ'!G25<5,'Tabel 2 NJ'!J27<0.5),"-",IFERROR('Tabel 2 NJ'!J27/'Tabel 1 NJ'!G25*100,"-")) -> 0.8190751204
A28: Arkitekt | C28: =IF(OR('Tabel 1 NJ'!C26<5,'Tabel 2 NJ'!C28<0.5),"-",IFERROR('Tabel 2 NJ'!C28/'Tabel 1 NJ'!C26*100,"-")) -> 8.064516129 | D28: =IF(OR('Tabel 1 NJ'!C26<5,'Tabel 2 NJ'!D28<0.5),"-",IFERROR('Tabel 2 NJ'!D28/'Tabel 1 NJ'!C26*100,"-")) -> 7.815533688 | F28: =IF(OR('Tabel 1 NJ'!E26<5,'Tabel 2 NJ'!F28<0.5),"-",IFERROR('Tabel 2 NJ'!F28/'Tabel 1 NJ'!E26*100,"-")) -> 8.219178082 | G28: =IF(OR('Tabel 1 NJ'!E26<5,'Tabel 2 NJ'!G28<0.5),"-",IFERROR('Tabel 2 NJ'!G28/'Tabel 1 NJ'!E26*100,"-")) -> 7.68107559 | I28: =IF(OR('Tabel 1 NJ'!G26<5,'Tabel 2 NJ'!I28<0.5),"-",IFERROR('Tabel 2 NJ'!I28/'Tabel 1 NJ'!G26*100,"-")) -> 8.148148148 | J28: =IF(OR('Tabel 1 NJ'!G26<5,'Tabel 2 NJ'!J28<0.5),"-",IFERROR('Tabel 2 NJ'!J28/'Tabel 1 NJ'!G26*100,"-")) -> 7.742826716
A29: Landinspek. | C29: =IF(OR('Tabel 1 NJ'!C27<5,'Tabel 2 NJ'!C29<0.5),"-",IFERROR('Tabel 2 NJ'!C29/'Tabel 1 NJ'!C27*100,"-")) -> 1.910828025 | D29: =IF(OR('Tabel 1 NJ'!C27<5,'Tabel 2 NJ'!D29<0.5),"-",IFERROR('Tabel 2 NJ'!D29/'Tabel 1 NJ'!C27*100,"-")) -> 1.910470483 | F29: =IF(OR('Tabel 1 NJ'!E27<5,'Tabel 2 NJ'!F29<0.5),"-",IFERROR('Tabel 2 NJ'!F29/'Tabel 1 NJ'!E27*100,"-")) -> 1.282051282 | G29: =IF(OR('Tabel 1 NJ'!E27<5,'Tabel 2 NJ'!G29<0.5),"-",IFERROR('Tabel 2 NJ'!G29/'Tabel 1 NJ'!E27*100,"-")) -> 0.985947253 | I29: =IF(OR('Tabel 1 NJ'!G27<5,'Tabel 2 NJ'!I29<0.5),"-",IFERROR('Tabel 2 NJ'!I29/'Tabel 1 NJ'!G27*100,"-")) -> 1.70212766 | J29: =IF(OR('Tabel 1 NJ'!G27<5,'Tabel 2 NJ'!J29<0.5),"-",IFERROR('Tabel 2 NJ'!J29/'Tabel 1 NJ'!G27*100,"-")) -> 1.603607453
A30: Bibliotekar | C30: =IF(OR('Tabel 1 NJ'!C28<5,'Tabel 2 NJ'!C30<0.5),"-",IFERROR('Tabel 2 NJ'!C30/'Tabel 1 NJ'!C28*100,"-")) -> 11.68831169 | D30: =IF(OR('Tabel 1 NJ'!C28<5,'Tabel 2 NJ'!D30<0.5),"-",IFERROR('Tabel 2 NJ'!D30/'Tabel 1 NJ'!C28*100,"-")) -> 10.97573916 | F30: =IF(OR('Tabel 1 NJ'!E28<5,'Tabel 2 NJ'!F30<0.5),"-",IFERROR('Tabel 2 NJ'!F30/'Tabel 1 NJ'!E28*100,"-")) -> 3.448275862 | G30: =IF(OR('Tabel 1 NJ'!E28<5,'Tabel 2 NJ'!G30<0.5),"-",IFERROR('Tabel 2 NJ'!G30/'Tabel 1 NJ'!E28*100,"-")) -> 2.712616435 | I30: =IF(OR('Tabel 1 NJ'!G28<5,'Tabel 2 NJ'!I30<0.5),"-",IFERROR('Tabel 2 NJ'!I30/'Tabel 1 NJ'!G28*100,"-")) -> 5.501618123 | J30: =IF(OR('Tabel 1 NJ'!G28<5,'Tabel 2 NJ'!J30<0.5),"-",IFERROR('Tabel 2 NJ'!J30/'Tabel 1 NJ'!G28*100,"-")) -> 4.771711743
A31: Musikudd. | C31: =IF(OR('Tabel 1 NJ'!C29<5,'Tabel 2 NJ'!C31<0.5),"-",IFERROR('Tabel 2 NJ'!C31/'Tabel 1 NJ'!C29*100,"-")) -> - | D31: =IF(OR('Tabel 1 NJ'!C29<5,'Tabel 2 NJ'!D31<0.5),"-",IFERROR('Tabel 2 NJ'!D31/'Tabel 1 NJ'!C29*100,"-")) -> - | F31: =IF(OR('Tabel 1 NJ'!E29<5,'Tabel 2 NJ'!F31<0.5),"-",IFERROR('Tabel 2 NJ'!F31/'Tabel 1 NJ'!E29*100,"-")) -> 1.818181818 | G31: =IF(OR('Tabel 1 NJ'!E29<5,'Tabel 2 NJ'!G31<0.5),"-",IFERROR('Tabel 2 NJ'!G31/'Tabel 1 NJ'!E29*100,"-")) -> 1.817841611 | I31: =IF(OR('Tabel 1 NJ'!G29<5,'Tabel 2 NJ'!I31<0.5),"-",IFERROR('Tabel 2 NJ'!I31/'Tabel 1 NJ'!G29*100,"-")) -> 1.01010101 | J31: =IF(OR('Tabel 1 NJ'!G29<5,'Tabel 2 NJ'!J31<0.5),"-",IFERROR('Tabel 2 NJ'!J31/'Tabel 1 NJ'!G29*100,"-")) -> 1.009912006
A32: Teolog | C32: =IF(OR('Tabel 1 NJ'!C30<5,'Tabel 2 NJ'!C32<0.5),"-",IFERROR('Tabel 2 NJ'!C32/'Tabel 1 NJ'!C30*100,"-")) -> 1.724137931 | D32: =IF(OR('Tabel 1 NJ'!C30<5,'Tabel 2 NJ'!D32<0.5),"-",IFERROR('Tabel 2 NJ'!D32/'Tabel 1 NJ'!C30*100,"-")) -> 1.523796824 | F32: =IF(OR('Tabel 1 NJ'!E30<5,'Tabel 2 NJ'!F32<0.5),"-",IFERROR('Tabel 2 NJ'!F32/'Tabel 1 NJ'!E30*100,"-")) -> 0.9615384615 | G32: =IF(OR('Tabel 1 NJ'!E30<5,'Tabel 2 NJ'!G32<0.5),"-",IFERROR('Tabel 2 NJ'!G32/'Tabel 1 NJ'!E30*100,"-")) -> 0.9613585442 | I32: =IF(OR('Tabel 1 NJ'!G30<5,'Tabel 2 NJ'!I32<0.5),"-",IFERROR('Tabel 2 NJ'!I32/'Tabel 1 NJ'!G30*100,"-")) -> 1.234567901 | J32: =IF(OR('Tabel 1 NJ'!G30<5,'Tabel 2 NJ'!J32<0.5),"-",IFERROR('Tabel 2 NJ'!J32/'Tabel 1 NJ'!G30*100,"-")) -> 1.162725336
A33: Psykolog | C33: =IF(OR('Tabel 1 NJ'!C31<5,'Tabel 2 NJ'!C33<0.5),"-",IFERROR('Tabel 2 NJ'!C33/'Tabel 1 NJ'!C31*100,"-")) -> 15.50387597 | D33: =IF(OR('Tabel 1 NJ'!C31<5,'Tabel 2 NJ'!D33<0.5),"-",IFERROR('Tabel 2 NJ'!D33/'Tabel 1 NJ'!C31*100,"-")) -> 13.47124656 | F33: =IF(OR('Tabel 1 NJ'!E31<5,'Tabel 2 NJ'!F33<0.5),"-",IFERROR('Tabel 2 NJ'!F33/'Tabel 1 NJ'!E31*100,"-")) -> 7.131537242 | G33: =IF(OR('Tabel 1 NJ'!E31<5,'Tabel 2 NJ'!G33<0.5),"-",IFERROR('Tabel 2 NJ'!G33/'Tabel 1 NJ'!E31*100,"-")) -> 6.054865248 | I33: =IF(OR('Tabel 1 NJ'!G31<5,'Tabel 2 NJ'!I33<0.5),"-",IFERROR('Tabel 2 NJ'!I33/'Tabel 1 NJ'!G31*100,"-")) -> 8.552631579 | J33: =IF(OR('Tabel 1 NJ'!G31<5,'Tabel 2 NJ'!J33<0.5),"-",IFERROR('Tabel 2 NJ'!J33/'Tabel 1 NJ'!G31*100,"-")) -> 7.313698392
A34: Jurist | C34: =IF(OR('Tabel 1 NJ'!C32<5,'Tabel 2 NJ'!C34<0.5),"-",IFERROR('Tabel 2 NJ'!C34/'Tabel 1 NJ'!C32*100,"-")) -> 4.109589041 | D34: =IF(OR('Tabel 1 NJ'!C32<5,'Tabel 2 NJ'!D34<0.5),"-",IFERROR('Tabel 2 NJ'!D34/'Tabel 1 NJ'!C32*100,"-")) -> 3.282328371 | F34: =IF(OR('Tabel 1 NJ'!E32<5,'Tabel 2 NJ'!F34<0.5),"-",IFERROR('Tabel 2 NJ'!F34/'Tabel 1 NJ'!E32*100,"-")) -> 2.049180328 | G34: =IF(OR('Tabel 1 NJ'!E32<5,'Tabel 2 NJ'!G34<0.5),"-",IFERROR('Tabel 2 NJ'!G34/'Tabel 1 NJ'!E32*100,"-")) -> 1.685304797 | I34: =IF(OR('Tabel 1 NJ'!G32<5,'Tabel 2 NJ'!I34<0.5),"-",IFERROR('Tabel 2 NJ'!I34/'Tabel 1 NJ'!G32*100,"-")) -> 2.687411598 | J34: =IF(OR('Tabel 1 NJ'!G32<5,'Tabel 2 NJ'!J34<0.5),"-",IFERROR('Tabel 2 NJ'!J34/'Tabel 1 NJ'!G32*100,"-")) -> 2.179998096
A35: Økonom | C35: =IF(OR('Tabel 1 NJ'!C33<5,'Tabel 2 NJ'!C35<0.5),"-",IFERROR('Tabel 2 NJ'!C35/'Tabel 1 NJ'!C33*100,"-")) -> 4.05904059 | D35: =IF(OR('Tabel 1 NJ'!C33<5,'Tabel 2 NJ'!D35<0.5),"-",IFERROR('Tabel 2 NJ'!D35/'Tabel 1 NJ'!C33*100,"-")) -> 3.739519713 | F35: =IF(OR('Tabel 1 NJ'!E33<5,'Tabel 2 NJ'!F35<0.5),"-",IFERROR('Tabel 2 NJ'!F35/'Tabel 1 NJ'!E33*100,"-")) -> 2.02020202 | G35: =IF(OR('Tabel 1 NJ'!E33<5,'Tabel 2 NJ'!G35<0.5),"-",IFERROR('Tabel 2 NJ'!G35/'Tabel 1 NJ'!E33*100,"-")) -> 1.973202996 | I35: =IF(OR('Tabel 1 NJ'!G33<5,'Tabel 2 NJ'!I35<0.5),"-",IFERROR('Tabel 2 NJ'!I35/'Tabel 1 NJ'!G33*100,"-")) -> 3.198294243 | J35: =IF(OR('Tabel 1 NJ'!G33<5,'Tabel 2 NJ'!J35<0.5),"-",IFERROR('Tabel 2 NJ'!J35/'Tabel 1 NJ'!G33*100,"-")) -> 2.993825235
A36: Samf. Adm. | C36: =IF(OR('Tabel 1 NJ'!C34<5,'Tabel 2 NJ'!C36<0.5),"-",IFERROR('Tabel 2 NJ'!C36/'Tabel 1 NJ'!C34*100,"-")) -> 9.523809524 | D36: =IF(OR('Tabel 1 NJ'!C34<5,'Tabel 2 NJ'!D36<0.5),"-",IFERROR('Tabel 2 NJ'!D36/'Tabel 1 NJ'!C34*100,"-")) -> 8.494180261 | F36: =IF(OR('Tabel 1 NJ'!E34<5,'Tabel 2 NJ'!F36<0.5),"-",IFERROR('Tabel 2 NJ'!F36/'Tabel 1 NJ'!E34*100,"-")) -> 7.814149947 | G36: =IF(OR('Tabel 1 NJ'!E34<5,'Tabel 2 NJ'!G36<0.5),"-",IFERROR('Tabel 2 NJ'!G36/'Tabel 1 NJ'!E34*100,"-")) -> 6.691452311 | I36: =IF(OR('Tabel 1 NJ'!G34<5,'Tabel 2 NJ'!I36<0.5),"-",IFERROR('Tabel 2 NJ'!I36/'Tabel 1 NJ'!G34*100,"-")) -> 8.483290488 | J36: =IF(OR('Tabel 1 NJ'!G34<5,'Tabel 2 NJ'!J36<0.5),"-",IFERROR('Tabel 2 NJ'!J36/'Tabel 1 NJ'!G34*100,"-")) -> 7.397018713
A37: Cand. Merc. | C37: =IF(OR('Tabel 1 NJ'!C35<5,'Tabel 2 NJ'!C37<0.5),"-",IFERROR('Tabel 2 NJ'!C37/'Tabel 1 NJ'!C35*100,"-")) -> 6.621961442 | D37: =IF(OR('Tabel 1 NJ'!C35<5,'Tabel 2 NJ'!D37<0.5),"-",IFERROR('Tabel 2 NJ'!D37/'Tabel 1 NJ'!C35*100,"-")) -> 5.778578329 | F37: =IF(OR('Tabel 1 NJ'!E35<5,'Tabel 2 NJ'!F37<0.5),"-",IFERROR('Tabel 2 NJ'!F37/'Tabel 1 NJ'!E35*100,"-")) -> 6.308851224 | G37: =IF(OR('Tabel 1 NJ'!E35<5,'Tabel 2 NJ'!G37<0.5),"-",IFERROR('Tabel 2 NJ'!G37/'Tabel 1 NJ'!E35*100,"-")) -> 5.492966895 | I37: =IF(OR('Tabel 1 NJ'!G35<5,'Tabel 2 NJ'!I37<0.5),"-",IFERROR('Tabel 2 NJ'!I37/'Tabel 1 NJ'!G35*100,"-")) -> 6.474501109 | J37: =IF(OR('Tabel 1 NJ'!G35<5,'Tabel 2 NJ'!J37<0.5),"-",IFERROR('Tabel 2 NJ'!J37/'Tabel 1 NJ'!G35*100,"-")) -> 5.644068643
A38: HA | C38: =IF(OR('Tabel 1 NJ'!C36<5,'Tabel 2 NJ'!C38<0.5),"-",IFERROR('Tabel 2 NJ'!C38/'Tabel 1 NJ'!C36*100,"-")) -> 4.743083004 | D38: =IF(OR('Tabel 1 NJ'!C36<5,'Tabel 2 NJ'!D38<0.5),"-",IFERROR('Tabel 2 NJ'!D38/'Tabel 1 NJ'!C36*100,"-")) -> 4.419244991 | F38: =IF(OR('Tabel 1 NJ'!E36<5,'Tabel 2 NJ'!F38<0.5),"-",IFERROR('Tabel 2 NJ'!F38/'Tabel 1 NJ'!E36*100,"-")) -> 10.19417476 | G38: =IF(OR('Tabel 1 NJ'!E36<5,'Tabel 2 NJ'!G38<0.5),"-",IFERROR('Tabel 2 NJ'!G38/'Tabel 1 NJ'!E36*100,"-")) -> 8.731384723 | I38: =IF(OR('Tabel 1 NJ'!G36<5,'Tabel 2 NJ'!I38<0.5),"-",IFERROR('Tabel 2 NJ'!I38/'Tabel 1 NJ'!G36*100,"-")) -> 7.189542484 | J38: =IF(OR('Tabel 1 NJ'!G36<5,'Tabel 2 NJ'!J38<0.5),"-",IFERROR('Tabel 2 NJ'!J38/'Tabel 1 NJ'!G36*100,"-")) -> 6.354540818
A39: HD | C39: =IF(OR('Tabel 1 NJ'!C37<5,'Tabel 2 NJ'!C39<0.5),"-",IFERROR('Tabel 2 NJ'!C39/'Tabel 1 NJ'!C37*100,"-")) -> 8.064516129 | D39: =IF(OR('Tabel 1 NJ'!C37<5,'Tabel 2 NJ'!D39<0.5),"-",IFERROR('Tabel 2 NJ'!D39/'Tabel 1 NJ'!C37*100,"-")) -> 6.366573244 | F39: =IF(OR('Tabel 1 NJ'!E37<5,'Tabel 2 NJ'!F39<0.5),"-",IFERROR('Tabel 2 NJ'!F39/'Tabel 1 NJ'!E37*100,"-")) -> 5.405405405 | G39: =IF(OR('Tabel 1 NJ'!E37<5,'Tabel 2 NJ'!G39<0.5),"-",IFERROR('Tabel 2 NJ'!G39/'Tabel 1 NJ'!E37*100,"-")) -> 5.234137025 | I39: =IF(OR('Tabel 1 NJ'!G37<5,'Tabel 2 NJ'!I39<0.5),"-",IFERROR('Tabel 2 NJ'!I39/'Tabel 1 NJ'!G37*100,"-")) -> 6.886227545 | J39: =IF(OR('Tabel 1 NJ'!G37<5,'Tabel 2 NJ'!J39<0.5),"-",IFERROR('Tabel 2 NJ'!J39/'Tabel 1 NJ'!G37*100,"-")) -> 5.864775159
A40: Komm. og Sprog | C40: =IF(OR('Tabel 1 NJ'!C38<5,'Tabel 2 NJ'!C40<0.5),"-",IFERROR('Tabel 2 NJ'!C40/'Tabel 1 NJ'!C38*100,"-")) -> 14.0625 | D40: =IF(OR('Tabel 1 NJ'!C38<5,'Tabel 2 NJ'!D40<0.5),"-",IFERROR('Tabel 2 NJ'!D40/'Tabel 1 NJ'!C38*100,"-")) -> 11.76967037 | F40: =IF(OR('Tabel 1 NJ'!E38<5,'Tabel 2 NJ'!F40<0.5),"-",IFERROR('Tabel 2 NJ'!F40/'Tabel 1 NJ'!E38*100,"-")) -> 9.708737864 | G40: =IF(OR('Tabel 1 NJ'!E38<5,'Tabel 2 NJ'!G40<0.5),"-",IFERROR('Tabel 2 NJ'!G40/'Tabel 1 NJ'!E38*100,"-")) -> 8.53054491 | I40: =IF(OR('Tabel 1 NJ'!G38<5,'Tabel 2 NJ'!I40<0.5),"-",IFERROR('Tabel 2 NJ'!I40/'Tabel 1 NJ'!G38*100,"-")) -> 10.45576408 | J40: =IF(OR('Tabel 1 NJ'!G38<5,'Tabel 2 NJ'!J40<0.5),"-",IFERROR('Tabel 2 NJ'!J40/'Tabel 1 NJ'!G38*100,"-")) -> 9.086319787
A41: Bygningskonst. | C41: =IF(OR('Tabel 1 NJ'!C39<5,'Tabel 2 NJ'!C41<0.5),"-",IFERROR('Tabel 2 NJ'!C41/'Tabel 1 NJ'!C39*100,"-")) -> 2.641056423 | D41: =IF(OR('Tabel 1 NJ'!C39<5,'Tabel 2 NJ'!D41<0.5),"-",IFERROR('Tabel 2 NJ'!D41/'Tabel 1 NJ'!C39*100,"-")) -> 2.019364473 | F41: =IF(OR('Tabel 1 NJ'!E39<5,'Tabel 2 NJ'!F41<0.5),"-",IFERROR('Tabel 2 NJ'!F41/'Tabel 1 NJ'!E39*100,"-")) -> 4.04040404 | G41: =IF(OR('Tabel 1 NJ'!E39<5,'Tabel 2 NJ'!G41<0.5),"-",IFERROR('Tabel 2 NJ'!G41/'Tabel 1 NJ'!E39*100,"-")) -> 3.603174513 | I41: =IF(OR('Tabel 1 NJ'!G39<5,'Tabel 2 NJ'!I41<0.5),"-",IFERROR('Tabel 2 NJ'!I41/'Tabel 1 NJ'!G39*100,"-")) -> 2.789699571 | J41: =IF(OR('Tabel 1 NJ'!G39<5,'Tabel 2 NJ'!J41<0.5),"-",IFERROR('Tabel 2 NJ'!J41/'Tabel 1 NJ'!G39*100,"-")) -> 2.187601805
A42: Cand. IT. | C42: =IF(OR('Tabel 1 NJ'!C40<5,'Tabel 2 NJ'!C42<0.5),"-",IFERROR('Tabel 2 NJ'!C42/'Tabel 1 NJ'!C40*100,"-")) -> 11.65644172 | D42: =IF(OR('Tabel 1 NJ'!C40<5,'Tabel 2 NJ'!D42<0.5),"-",IFERROR('Tabel 2 NJ'!D42/'Tabel 1 NJ'!C40*100,"-")) -> 9.922020495 | F42: =IF(OR('Tabel 1 NJ'!E40<5,'Tabel 2 NJ'!F42<0.5),"-",IFERROR('Tabel 2 NJ'!F42/'Tabel 1 NJ'!E40*100,"-")) -> 14.8 | G42: =IF(OR('Tabel 1 NJ'!E40<5,'Tabel 2 NJ'!G42<0.5),"-",IFERROR('Tabel 2 NJ'!G42/'Tabel 1 NJ'!E40*100,"-")) -> 12.27343604 | I42: =IF(OR('Tabel 1 NJ'!G40<5,'Tabel 2 NJ'!I42<0.5),"-",IFERROR('Tabel 2 NJ'!I42/'Tabel 1 NJ'!G40*100,"-")) -> 13.02083333 | J42: =IF(OR('Tabel 1 NJ'!G40<5,'Tabel 2 NJ'!J42<0.5),"-",IFERROR('Tabel 2 NJ'!J42/'Tabel 1 NJ'!G40*100,"-")) -> 10.94260016
A43: Bac. Samf. | C43: =IF(OR('Tabel 1 NJ'!C41<5,'Tabel 2 NJ'!C43<0.5),"-",IFERROR('Tabel 2 NJ'!C43/'Tabel 1 NJ'!C41*100,"-")) -> 11.11111111 | D43: =IF(OR('Tabel 1 NJ'!C41<5,'Tabel 2 NJ'!D43<0.5),"-",IFERROR('Tabel 2 NJ'!D43/'Tabel 1 NJ'!C41*100,"-")) -> 8.757978336 | F43: =IF(OR('Tabel 1 NJ'!E41<5,'Tabel 2 NJ'!F43<0.5),"-",IFERROR('Tabel 2 NJ'!F43/'Tabel 1 NJ'!E41*100,"-")) -> 7.142857143 | G43: =IF(OR('Tabel 1 NJ'!E41<5,'Tabel 2 NJ'!G43<0.5),"-",IFERROR('Tabel 2 NJ'!G43/'Tabel 1 NJ'!E41*100,"-")) -> 7.141520614 | I43: =IF(OR('Tabel 1 NJ'!G41<5,'Tabel 2 NJ'!I43<0.5),"-",IFERROR('Tabel 2 NJ'!I43/'Tabel 1 NJ'!G41*100,"-")) -> 9.375 | J43: =IF(OR('Tabel 1 NJ'!G41<5,'Tabel 2 NJ'!J43<0.5),"-",IFERROR('Tabel 2 NJ'!J43/'Tabel 1 NJ'!G41*100,"-")) -> 8.050778083
A44: Bac. Hum. | C44: =IF(OR('Tabel 1 NJ'!C42<5,'Tabel 2 NJ'!C44<0.5),"-",IFERROR('Tabel 2 NJ'!C44/'Tabel 1 NJ'!C42*100,"-")) -> 15.38461538 | D44: =IF(OR('Tabel 1 NJ'!C42<5,'Tabel 2 NJ'!D44<0.5),"-",IFERROR('Tabel 2 NJ'!D44/'Tabel 1 NJ'!C42*100,"-")) -> 11.75412251 | F44: =IF(OR('Tabel 1 NJ'!E42<5,'Tabel 2 NJ'!F44<0.5),"-",IFERROR('Tabel 2 NJ'!F44/'Tabel 1 NJ'!E42*100,"-")) -> 20.91836735 | G44: =IF(OR('Tabel 1 NJ'!E42<5,'Tabel 2 NJ'!G44<0.5),"-",IFERROR('Tabel 2 NJ'!G44/'Tabel 1 NJ'!E42*100,"-")) -> 17.58808682 | I44: =IF(OR('Tabel 1 NJ'!G42<5,'Tabel 2 NJ'!I44<0.5),"-",IFERROR('Tabel 2 NJ'!I44/'Tabel 1 NJ'!G42*100,"-")) -> 18.71165644 | J44: =IF(OR('Tabel 1 NJ'!G42<5,'Tabel 2 NJ'!J44<0.5),"-",IFERROR('Tabel 2 NJ'!J44/'Tabel 1 NJ'!G42*100,"-")) -> 15.26165933
A45: Bac. Nat. | C45: =IF(OR('Tabel 1 NJ'!C43<5,'Tabel 2 NJ'!C45<0.5),"-",IFERROR('Tabel 2 NJ'!C45/'Tabel 1 NJ'!C43*100,"-")) -> 12.94642857 | D45: =IF(OR('Tabel 1 NJ'!C43<5,'Tabel 2 NJ'!D45<0.5),"-",IFERROR('Tabel 2 NJ'!D45/'Tabel 1 NJ'!C43*100,"-")) -> 11.97780693 | F45: =IF(OR('Tabel 1 NJ'!E43<5,'Tabel 2 NJ'!F45<0.5),"-",IFERROR('Tabel 2 NJ'!F45/'Tabel 1 NJ'!E43*100,"-")) -> 8.75 | G45: =IF(OR('Tabel 1 NJ'!E43<5,'Tabel 2 NJ'!G45<0.5),"-",IFERROR('Tabel 2 NJ'!G45/'Tabel 1 NJ'!E43*100,"-")) -> 7.122029564 | I45: =IF(OR('Tabel 1 NJ'!G43<5,'Tabel 2 NJ'!I45<0.5),"-",IFERROR('Tabel 2 NJ'!I45/'Tabel 1 NJ'!G43*100,"-")) -> 11.84210526 | J45: =IF(OR('Tabel 1 NJ'!G43<5,'Tabel 2 NJ'!J45<0.5),"-",IFERROR('Tabel 2 NJ'!J45/'Tabel 1 NJ'!G43*100,"-")) -> 10.69997078
A46: Andre | C46: =IF(OR('Tabel 1 NJ'!C44<5,'Tabel 2 NJ'!C46<0.5),"-",IFERROR('Tabel 2 NJ'!C46/'Tabel 1 NJ'!C44*100,"-")) -> 6.275033378 | D46: =IF(OR('Tabel 1 NJ'!C44<5,'Tabel 2 NJ'!D46<0.5),"-",IFERROR('Tabel 2 NJ'!D46/'Tabel 1 NJ'!C44*100,"-")) -> 5.479852677 | F46: =IF(OR('Tabel 1 NJ'!E44<5,'Tabel 2 NJ'!F46<0.5),"-",IFERROR('Tabel 2 NJ'!F46/'Tabel 1 NJ'!E44*100,"-")) -> 10.73558648 | G46: =IF(OR('Tabel 1 NJ'!E44<5,'Tabel 2 NJ'!G46<0.5),"-",IFERROR('Tabel 2 NJ'!G46/'Tabel 1 NJ'!E44*100,"-")) -> 9.389431514 | I46: =IF(OR('Tabel 1 NJ'!G44<5,'Tabel 2 NJ'!I46<0.5),"-",IFERROR('Tabel 2 NJ'!I46/'Tabel 1 NJ'!G44*100,"-")) -> 8.067092652 | J46: =IF(OR('Tabel 1 NJ'!G44<5,'Tabel 2 NJ'!J46<0.5),"-",IFERROR('Tabel 2 NJ'!J46/'Tabel 1 NJ'!G44*100,"-")) -> 7.050554079
A48: Total | C48: =IF(OR('Tabel 1 NJ'!C46<5,'Tabel 2 NJ'!C48<0.5),"-",IFERROR('Tabel 2 NJ'!C48/'Tabel 1 NJ'!C46*100,"-")) -> 6.01475173 | D48: =IF(OR('Tabel 1 NJ'!C46<5,'Tabel 2 NJ'!D48<0.5),"-",IFERROR('Tabel 2 NJ'!D48/'Tabel 1 NJ'!C46*100,"-")) -> 5.309355894 | F48: =IF(OR('Tabel 1 NJ'!E46<5,'Tabel 2 NJ'!F48<0.5),"-",IFERROR('Tabel 2 NJ'!F48/'Tabel 1 NJ'!E46*100,"-")) -> 7.590413943 | G48: =IF(OR('Tabel 1 NJ'!E46<5,'Tabel 2 NJ'!G48<0.5),"-",IFERROR('Tabel 2 NJ'!G48/'Tabel 1 NJ'!E46*100,"-")) -> 6.543188769 | I48: =IF(OR('Tabel 1 NJ'!G46<5,'Tabel 2 NJ'!I48<0.5),"-",IFERROR('Tabel 2 NJ'!I48/'Tabel 1 NJ'!G46*100,"-")) -> 6.748964509 | J48: =IF(OR('Tabel 1 NJ'!G46<5,'Tabel 2 NJ'!J48<0.5),"-",IFERROR('Tabel 2 NJ'!J48/'Tabel 1 NJ'!G46*100,"-")) -> 5.88428614
A50: Ingeniører i alt | C50: =IF(OR('Tabel 1 NJ'!C48<5,'Tabel 2 NJ'!C50<0.5),"-",IFERROR('Tabel 2 NJ'!C50/'Tabel 1 NJ'!C48*100,"-")) -> 3.258655804 | D50: =IF(OR('Tabel 1 NJ'!C48<5,'Tabel 2 NJ'!D50<0.5),"-",IFERROR('Tabel 2 NJ'!D50/'Tabel 1 NJ'!C48*100,"-")) -> 2.978567612 | F50: =IF(OR('Tabel 1 NJ'!E48<5,'Tabel 2 NJ'!F50<0.5),"-",IFERROR('Tabel 2 NJ'!F50/'Tabel 1 NJ'!E48*100,"-")) -> 4.073150457 | G50: =IF(OR('Tabel 1 NJ'!E48<5,'Tabel 2 NJ'!G50<0.5),"-",IFERROR('Tabel 2 NJ'!G50/'Tabel 1 NJ'!E48*100,"-")) -> 3.676280929 | I50: =IF(OR('Tabel 1 NJ'!G48<5,'Tabel 2 NJ'!I50<0.5),"-",IFERROR('Tabel 2 NJ'!I50/'Tabel 1 NJ'!G48*100,"-")) -> 3.432942014 | J50: =IF(OR('Tabel 1 NJ'!G48<5,'Tabel 2 NJ'!J50<0.5),"-",IFERROR('Tabel 2 NJ'!J50/'Tabel 1 NJ'!G48*100,"-")) -> 3.127864858
A51: Magistre i alt | C51: =IF(OR('Tabel 1 NJ'!C49<5,'Tabel 2 NJ'!C51<0.5),"-",IFERROR('Tabel 2 NJ'!C51/'Tabel 1 NJ'!C49*100,"-")) -> 9.839108911 | D51: =IF(OR('Tabel 1 NJ'!C49<5,'Tabel 2 NJ'!D51<0.5),"-",IFERROR('Tabel 2 NJ'!D51/'Tabel 1 NJ'!C49*100,"-")) -> 8.5747882 | F51: =IF(OR('Tabel 1 NJ'!E49<5,'Tabel 2 NJ'!F51<0.5),"-",IFERROR('Tabel 2 NJ'!F51/'Tabel 1 NJ'!E49*100,"-")) -> 10.41596212 | G51: =IF(OR('Tabel 1 NJ'!E49<5,'Tabel 2 NJ'!G51<0.5),"-",IFERROR('Tabel 2 NJ'!G51/'Tabel 1 NJ'!E49*100,"-")) -> 8.754770476 | I51: =IF(OR('Tabel 1 NJ'!G49<5,'Tabel 2 NJ'!I51<0.5),"-",IFERROR('Tabel 2 NJ'!I51/'Tabel 1 NJ'!G49*100,"-")) -> 10.21211459 | J51: =IF(OR('Tabel 1 NJ'!G49<5,'Tabel 2 NJ'!J51<0.5),"-",IFERROR('Tabel 2 NJ'!J51/'Tabel 1 NJ'!G49*100,"-")) -> 8.691168604
A52: DJØF'ere i alt | C52: =IF(OR('Tabel 1 NJ'!C50<5,'Tabel 2 NJ'!C52<0.5),"-",IFERROR('Tabel 2 NJ'!C52/'Tabel 1 NJ'!C50*100,"-")) -> 6.640471513 | D52: =IF(OR('Tabel 1 NJ'!C50<5,'Tabel 2 NJ'!D52<0.5),"-",IFERROR('Tabel 2 NJ'!D52/'Tabel 1 NJ'!C50*100,"-")) -> 5.861339279 | F52: =IF(OR('Tabel 1 NJ'!E50<5,'Tabel 2 NJ'!F52<0.5),"-",IFERROR('Tabel 2 NJ'!F52/'Tabel 1 NJ'!E50*100,"-")) -> 6.066873492 | G52: =IF(OR('Tabel 1 NJ'!E50<5,'Tabel 2 NJ'!G52<0.5),"-",IFERROR('Tabel 2 NJ'!G52/'Tabel 1 NJ'!E50*100,"-")) -> 5.233410675 | I52: =IF(OR('Tabel 1 NJ'!G50<5,'Tabel 2 NJ'!I52<0.5),"-",IFERROR('Tabel 2 NJ'!I52/'Tabel 1 NJ'!G50*100,"-")) -> 6.334924715 | J52: =IF(OR('Tabel 1 NJ'!G50<5,'Tabel 2 NJ'!J52<0.5),"-",IFERROR('Tabel 2 NJ'!J52/'Tabel 1 NJ'!G50*100,"-")) -> 5.52685142
A57: Morsø
C59: Mænd | F59: Kvinder | I59: I alt
C60: Ledigheds- berørte | D60: Gns. brutto- ledighed | F60: Ledigheds- berørte | G60: Gns. brutto- ledighed | I60: Ledigheds- berørte | J60: Gns. brutto- ledighed
A63: Civ. ing. | C63: =IF(OR('Tabel 1 NJ'!C61<5,'Tabel 2 NJ'!C63<0.5),"-",IFERROR('Tabel 2 NJ'!C63/'Tabel 1 NJ'!C61*100,"-")) -> - | D63: =IF(OR('Tabel 1 NJ'!C61<5,'Tabel 2 NJ'!D63<0.5),"-",IFERROR('Tabel 2 NJ'!D63/'Tabel 1 NJ'!C61*100,"-")) -> - | F63: =IF(OR('Tabel 1 NJ'!E61<5,'Tabel 2 NJ'!F63<0.5),"-",IFERROR('Tabel 2 NJ'!F63/'Tabel 1 NJ'!E61*100,"-")) -> - | G63: =IF(OR('Tabel 1 NJ'!E61<5,'Tabel 2 NJ'!G63<0.5),"-",IFERROR('Tabel 2 NJ'!G63/'Tabel 1 NJ'!E61*100,"-")) -> - | I63: =IF(OR('Tabel 1 NJ'!G61<5,'Tabel 2 NJ'!I63<0.5),"-",IFERROR('Tabel 2 NJ'!I63/'Tabel 1 NJ'!G61*100,"-")) -> - | J63: =IF(OR('Tabel 1 NJ'!G61<5,'Tabel 2 NJ'!J63<0.5),"-",IFERROR('Tabel 2 NJ'!J63/'Tabel 1 NJ'!G61*100,"-")) -> -
A64: Diplom ing. | C64: =IF(OR('Tabel 1 NJ'!C62<5,'Tabel 2 NJ'!C64<0.5),"-",IFERROR('Tabel 2 NJ'!C64/'Tabel 1 NJ'!C62*100,"-")) -> - | D64: =IF(OR('Tabel 1 NJ'!C62<5,'Tabel 2 NJ'!D64<0.5),"-",IFERROR('Tabel 2 NJ'!D64/'Tabel 1 NJ'!C62*100,"-")) -> - | F64: =IF(OR('Tabel 1 NJ'!E62<5,'Tabel 2 NJ'!F64<0.5),"-",IFERROR('Tabel 2 NJ'!F64/'Tabel 1 NJ'!E62*100,"-")) -> - | G64: =IF(OR('Tabel 1 NJ'!E62<5,'Tabel 2 NJ'!G64<0.5),"-",IFERROR('Tabel 2 NJ'!G64/'Tabel 1 NJ'!E62*100,"-")) -> - | I64: =IF(OR('Tabel 1 NJ'!G62<5,'Tabel 2 NJ'!I64<0.5),"-",IFERROR('Tabel 2 NJ'!I64/'Tabel 1 NJ'!G62*100,"-")) -> - | J64: =IF(OR('Tabel 1 NJ'!G62<5,'Tabel 2 NJ'!J64<0.5),"-",IFERROR('Tabel 2 NJ'!J64/'Tabel 1 NJ'!G62*100,"-")) -> -
A65: Cand. Scient. Tek. | C65: =IF(OR('Tabel 1 NJ'!C63<5,'Tabel 2 NJ'!C65<0.5),"-",IFERROR('Tabel 2 NJ'!C65/'Tabel 1 NJ'!C63*100,"-")) -> - | D65: =IF(OR('Tabel 1 NJ'!C63<5,'Tabel 2 NJ'!D65<0.5),"-",IFERROR('Tabel 2 NJ'!D65/'Tabel 1 NJ'!C63*100,"-")) -> - | F65: =IF(OR('Tabel 1 NJ'!E63<5,'Tabel 2 NJ'!F65<0.5),"-",IFERROR('Tabel 2 NJ'!F65/'Tabel 1 NJ'!E63*100,"-")) -> - | G65: =IF(OR('Tabel 1 NJ'!E63<5,'Tabel 2 NJ'!G65<0.5),"-",IFERROR('Tabel 2 NJ'!G65/'Tabel 1 NJ'!E63*100,"-")) -> - | I65: =IF(OR('Tabel 1 NJ'!G63<5,'Tabel 2 NJ'!I65<0.5),"-",IFERROR('Tabel 2 NJ'!I65/'Tabel 1 NJ'!G63*100,"-")) -> - | J65: =IF(OR('Tabel 1 NJ'!G63<5,'Tabel 2 NJ'!J65<0.5),"-",IFERROR('Tabel 2 NJ'!J65/'Tabel 1 NJ'!G63*100,"-")) -> -
A66: MA. Hum. | C66: =IF(OR('Tabel 1 NJ'!C64<5,'Tabel 2 NJ'!C66<0.5),"-",IFERROR('Tabel 2 NJ'!C66/'Tabel 1 NJ'!C64*100,"-")) -> 7.692307692 | D66: =IF(OR('Tabel 1 NJ'!C64<5,'Tabel 2 NJ'!D66<0.5),"-",IFERROR('Tabel 2 NJ'!D66/'Tabel 1 NJ'!C64*100,"-")) -> 7.690868353 | F66: =IF(OR('Tabel 1 NJ'!E64<5,'Tabel 2 NJ'!F66<0.5),"-",IFERROR('Tabel 2 NJ'!F66/'Tabel 1 NJ'!E64*100,"-")) -> 4 | G66: =IF(OR('Tabel 1 NJ'!E64<5,'Tabel 2 NJ'!G66<0.5),"-",IFERROR('Tabel 2 NJ'!G66/'Tabel 1 NJ'!E64*100,"-")) -> 3.999251544 | I66: =IF(OR('Tabel 1 NJ'!G64<5,'Tabel 2 NJ'!I66<0.5),"-",IFERROR('Tabel 2 NJ'!I66/'Tabel 1 NJ'!G64*100,"-")) -> 5.263157895 | J66: =IF(OR('Tabel 1 NJ'!G64<5,'Tabel 2 NJ'!J66<0.5),"-",IFERROR('Tabel 2 NJ'!J66/'Tabel 1 NJ'!G64*100,"-")) -> 5.262173084
A67: MA. Nat. | C67: =IF(OR('Tabel 1 NJ'!C65<5,'Tabel 2 NJ'!C67<0.5),"-",IFERROR('Tabel 2 NJ'!C67/'Tabel 1 NJ'!C65*100,"-")) -> - | D67: =IF(OR('Tabel 1 NJ'!C65<5,'Tabel 2 NJ'!D67<0.5),"-",IFERROR('Tabel 2 NJ'!D67/'Tabel 1 NJ'!C65*100,"-")) -> - | F67: =IF(OR('Tabel 1 NJ'!E65<5,'Tabel 2 NJ'!F67<0.5),"-",IFERROR('Tabel 2 NJ'!F67/'Tabel 1 NJ'!E65*100,"-")) -> - | G67: =IF(OR('Tabel 1 NJ'!E65<5,'Tabel 2 NJ'!G67<0.5),"-",IFERROR('Tabel 2 NJ'!G67/'Tabel 1 NJ'!E65*100,"-")) -> - | I67: =IF(OR('Tabel 1 NJ'!G65<5,'Tabel 2 NJ'!I67<0.5),"-",IFERROR('Tabel 2 NJ'!I67/'Tabel 1 NJ'!G65*100,"-")) -> - | J67: =IF(OR('Tabel 1 NJ'!G65<5,'Tabel 2 NJ'!J67<0.5),"-",IFERROR('Tabel 2 NJ'!J67/'Tabel 1 NJ'!G65*100,"-")) -> -
A68: MA. Ph.d. | C68: =IF(OR('Tabel 1 NJ'!C66<5,'Tabel 2 NJ'!C68<0.5),"-",IFERROR('Tabel 2 NJ'!C68/'Tabel 1 NJ'!C66*100,"-")) -> - | D68: =IF(OR('Tabel 1 NJ'!C66<5,'Tabel 2 NJ'!D68<0.5),"-",IFERROR('Tabel 2 NJ'!D68/'Tabel 1 NJ'!C66*100,"-")) -> - | F68: =IF(OR('Tabel 1 NJ'!E66<5,'Tabel 2 NJ'!F68<0.5),"-",IFERROR('Tabel 2 NJ'!F68/'Tabel 1 NJ'!E66*100,"-")) -> - | G68: =IF(OR('Tabel 1 NJ'!E66<5,'Tabel 2 NJ'!G68<0.5),"-",IFERROR('Tabel 2 NJ'!G68/'Tabel 1 NJ'!E66*100,"-")) -> - | I68: =IF(OR('Tabel 1 NJ'!G66<5,'Tabel 2 NJ'!I68<0.5),"-",IFERROR('Tabel 2 NJ'!I68/'Tabel 1 NJ'!G66*100,"-")) -> - | J68: =IF(OR('Tabel 1 NJ'!G66<5,'Tabel 2 NJ'!J68<0.5),"-",IFERROR('Tabel 2 NJ'!J68/'Tabel 1 NJ'!G66*100,"-")) -> -
A69: MA. Samf. | C69: =IF(OR('Tabel 1 NJ'!C67<5,'Tabel 2 NJ'!C69<0.5),"-",IFERROR('Tabel 2 NJ'!C69/'Tabel 1 NJ'!C67*100,"-")) -> - | D69: =IF(OR('Tabel 1 NJ'!C67<5,'Tabel 2 NJ'!D69<0.5),"-",IFERROR('Tabel 2 NJ'!D69/'Tabel 1 NJ'!C67*100,"-")) -> - | F69: =IF(OR('Tabel 1 NJ'!E67<5,'Tabel 2 NJ'!F69<0.5),"-",IFERROR('Tabel 2 NJ'!F69/'Tabel 1 NJ'!E67*100,"-")) -> - | G69: =IF(OR('Tabel 1 NJ'!E67<5,'Tabel 2 NJ'!G69<0.5),"-",IFERROR('Tabel 2 NJ'!G69/'Tabel 1 NJ'!E67*100,"-")) -> - | I69: =IF(OR('Tabel 1 NJ'!G67<5,'Tabel 2 NJ'!I69<0.5),"-",IFERROR('Tabel 2 NJ'!I69/'Tabel 1 NJ'!G67*100,"-")) -> - | J69: =IF(OR('Tabel 1 NJ'!G67<5,'Tabel 2 NJ'!J69<0.5),"-",IFERROR('Tabel 2 NJ'!J69/'Tabel 1 NJ'!G67*100,"-")) -> -
A70: Øvrige Mag. | C70: =IF(OR('Tabel 1 NJ'!C68<5,'Tabel 2 NJ'!C70<0.5),"-",IFERROR('Tabel 2 NJ'!C70/'Tabel 1 NJ'!C68*100,"-")) -> - | D70: =IF(OR('Tabel 1 NJ'!C68<5,'Tabel 2 NJ'!D70<0.5),"-",IFERROR('Tabel 2 NJ'!D70/'Tabel 1 NJ'!C68*100,"-")) -> - | F70: =IF(OR('Tabel 1 NJ'!E68<5,'Tabel 2 NJ'!F70<0.5),"-",IFERROR('Tabel 2 NJ'!F70/'Tabel 1 NJ'!E68*100,"-")) -> - | G70: =IF(OR('Tabel 1 NJ'!E68<5,'Tabel 2 NJ'!G70<0.5),"-",IFERROR('Tabel 2 NJ'!G70/'Tabel 1 NJ'!E68*100,"-")) -> - | I70: =IF(OR('Tabel 1 NJ'!G68<5,'Tabel 2 NJ'!I70<0.5),"-",IFERROR('Tabel 2 NJ'!I70/'Tabel 1 NJ'!G68*100,"-")) -> - | J70: =IF(OR('Tabel 1 NJ'!G68<5,'Tabel 2 NJ'!J70<0.5),"-",IFERROR('Tabel 2 NJ'!J70/'Tabel 1 NJ'!G68*100,"-")) -> -
A71: Agronom | C71: =IF(OR('Tabel 1 NJ'!C69<5,'Tabel 2 NJ'!C71<0.5),"-",IFERROR('Tabel 2 NJ'!C71/'Tabel 1 NJ'!C69*100,"-")) -> - | D71: =IF(OR('Tabel 1 NJ'!C69<5,'Tabel 2 NJ'!D71<0.5),"-",IFERROR('Tabel 2 NJ'!D71/'Tabel 1 NJ'!C69*100,"-")) -> - | F71: =IF(OR('Tabel 1 NJ'!E69<5,'Tabel 2 NJ'!F71<0.5),"-",IFERROR('Tabel 2 NJ'!F71/'Tabel 1 NJ'!E69*100,"-")) -> - | G71: =IF(OR('Tabel 1 NJ'!E69<5,'Tabel 2 NJ'!G71<0.5),"-",IFERROR('Tabel 2 NJ'!G71/'Tabel 1 NJ'!E69*100,"-")) -> - | I71: =IF(OR('Tabel 1 NJ'!G69<5,'Tabel 2 NJ'!I71<0.5),"-",IFERROR('Tabel 2 NJ'!I71/'Tabel 1 NJ'!G69*100,"-")) -> - | J71: =IF(OR('Tabel 1 NJ'!G69<5,'Tabel 2 NJ'!J71<0.5),"-",IFERROR('Tabel 2 NJ'!J71/'Tabel 1 NJ'!G69*100,"-")) -> -
A72: Landsk. Arkt. | C72: =IF(OR('Tabel 1 NJ'!C70<5,'Tabel 2 NJ'!C72<0.5),"-",IFERROR('Tabel 2 NJ'!C72/'Tabel 1 NJ'!C70*100,"-")) -> - | D72: =IF(OR('Tabel 1 NJ'!C70<5,'Tabel 2 NJ'!D72<0.5),"-",IFERROR('Tabel 2 NJ'!D72/'Tabel 1 NJ'!C70*100,"-")) -> - | F72: =IF(OR('Tabel 1 NJ'!E70<5,'Tabel 2 NJ'!F72<0.5),"-",IFERROR('Tabel 2 NJ'!F72/'Tabel 1 NJ'!E70*100,"-")) -> - | G72: =IF(OR('Tabel 1 NJ'!E70<5,'Tabel 2 NJ'!G72<0.5),"-",IFERROR('Tabel 2 NJ'!G72/'Tabel 1 NJ'!E70*100,"-")) -> - | I72: =IF(OR('Tabel 1 NJ'!G70<5,'Tabel 2 NJ'!I72<0.5),"-",IFERROR('Tabel 2 NJ'!I72/'Tabel 1 NJ'!G70*100,"-")) -> - | J72: =IF(OR('Tabel 1 NJ'!G70<5,'Tabel 2 NJ'!J72<0.5),"-",IFERROR('Tabel 2 NJ'!J72/'Tabel 1 NJ'!G70*100,"-")) -> -
A73: Hortonom | C73: =IF(OR('Tabel 1 NJ'!C71<5,'Tabel 2 NJ'!C73<0.5),"-",IFERROR('Tabel 2 NJ'!C73/'Tabel 1 NJ'!C71*100,"-")) -> - | D73: =IF(OR('Tabel 1 NJ'!C71<5,'Tabel 2 NJ'!D73<0.5),"-",IFERROR('Tabel 2 NJ'!D73/'Tabel 1 NJ'!C71*100,"-")) -> - | F73: =IF(OR('Tabel 1 NJ'!E71<5,'Tabel 2 NJ'!F73<0.5),"-",IFERROR('Tabel 2 NJ'!F73/'Tabel 1 NJ'!E71*100,"-")) -> - | G73: =IF(OR('Tabel 1 NJ'!E71<5,'Tabel 2 NJ'!G73<0.5),"-",IFERROR('Tabel 2 NJ'!G73/'Tabel 1 NJ'!E71*100,"-")) -> - | I73: =IF(OR('Tabel 1 NJ'!G71<5,'Tabel 2 NJ'!I73<0.5),"-",IFERROR('Tabel 2 NJ'!I73/'Tabel 1 NJ'!G71*100,"-")) -> - | J73: =IF(OR('Tabel 1 NJ'!G71<5,'Tabel 2 NJ'!J73<0.5),"-",IFERROR('Tabel 2 NJ'!J73/'Tabel 1 NJ'!G71*100,"-")) -> -
A74: Forstkand. | C74: =IF(OR('Tabel 1 NJ'!C72<5,'Tabel 2 NJ'!C74<0.5),"-",IFERROR('Tabel 2 NJ'!C74/'Tabel 1 NJ'!C72*100,"-")) -> - | D74: =IF(OR('Tabel 1 NJ'!C72<5,'Tabel 2 NJ'!D74<0.5),"-",IFERROR('Tabel 2 NJ'!D74/'Tabel 1 NJ'!C72*100,"-")) -> - | F74: =IF(OR('Tabel 1 NJ'!E72<5,'Tabel 2 NJ'!F74<0.5),"-",IFERROR('Tabel 2 NJ'!F74/'Tabel 1 NJ'!E72*100,"-")) -> - | G74: =IF(OR('Tabel 1 NJ'!E72<5,'Tabel 2 NJ'!G74<0.5),"-",IFERROR('Tabel 2 NJ'!G74/'Tabel 1 NJ'!E72*100,"-")) -> - | I74: =IF(OR('Tabel 1 NJ'!G72<5,'Tabel 2 NJ'!I74<0.5),"-",IFERROR('Tabel 2 NJ'!I74/'Tabel 1 NJ'!G72*100,"-")) -> - | J74: =IF(OR('Tabel 1 NJ'!G72<5,'Tabel 2 NJ'!J74<0.5),"-",IFERROR('Tabel 2 NJ'!J74/'Tabel 1 NJ'!G72*100,"-")) -> -
A75: Jordbrugsakad. | C75: =IF(OR('Tabel 1 NJ'!C73<5,'Tabel 2 NJ'!C75<0.5),"-",IFERROR('Tabel 2 NJ'!C75/'Tabel 1 NJ'!C73*100,"-")) -> - | D75: =IF(OR('Tabel 1 NJ'!C73<5,'Tabel 2 NJ'!D75<0.5),"-",IFERROR('Tabel 2 NJ'!D75/'Tabel 1 NJ'!C73*100,"-")) -> - | F75: =IF(OR('Tabel 1 NJ'!E73<5,'Tabel 2 NJ'!F75<0.5),"-",IFERROR('Tabel 2 NJ'!F75/'Tabel 1 NJ'!E73*100,"-")) -> - | G75: =IF(OR('Tabel 1 NJ'!E73<5,'Tabel 2 NJ'!G75<0.5),"-",IFERROR('Tabel 2 NJ'!G75/'Tabel 1 NJ'!E73*100,"-")) -> - | I75: =IF(OR('Tabel 1 NJ'!G73<5,'Tabel 2 NJ'!I75<0.5),"-",IFERROR('Tabel 2 NJ'!I75/'Tabel 1 NJ'!G73*100,"-")) -> - | J75: =IF(OR('Tabel 1 NJ'!G73<5,'Tabel 2 NJ'!J75<0.5),"-",IFERROR('Tabel 2 NJ'!J75/'Tabel 1 NJ'!G73*100,"-")) -> -
A76: Mejeriing. | C76: =IF(OR('Tabel 1 NJ'!C74<5,'Tabel 2 NJ'!C76<0.5),"-",IFERROR('Tabel 2 NJ'!C76/'Tabel 1 NJ'!C74*100,"-")) -> - | D76: =IF(OR('Tabel 1 NJ'!C74<5,'Tabel 2 NJ'!D76<0.5),"-",IFERROR('Tabel 2 NJ'!D76/'Tabel 1 NJ'!C74*100,"-")) -> - | F76: =IF(OR('Tabel 1 NJ'!E74<5,'Tabel 2 NJ'!F76<0.5),"-",IFERROR('Tabel 2 NJ'!F76/'Tabel 1 NJ'!E74*100,"-")) -> - | G76: =IF(OR('Tabel 1 NJ'!E74<5,'Tabel 2 NJ'!G76<0.5),"-",IFERROR('Tabel 2 NJ'!G76/'Tabel 1 NJ'!E74*100,"-")) -> - | I76: =IF(OR('Tabel 1 NJ'!G74<5,'Tabel 2 NJ'!I76<0.5),"-",IFERROR('Tabel 2 NJ'!I76/'Tabel 1 NJ'!G74*100,"-")) -> - | J76: =IF(OR('Tabel 1 NJ'!G74<5,'Tabel 2 NJ'!J76<0.5),"-",IFERROR('Tabel 2 NJ'!J76/'Tabel 1 NJ'!G74*100,"-")) -> -
A77: Levn.m.kand. | C77: =IF(OR('Tabel 1 NJ'!C75<5,'Tabel 2 NJ'!C77<0.5),"-",IFERROR('Tabel 2 NJ'!C77/'Tabel 1 NJ'!C75*100,"-")) -> - | D77: =IF(OR('Tabel 1 NJ'!C75<5,'Tabel 2 NJ'!D77<0.5),"-",IFERROR('Tabel 2 NJ'!D77/'Tabel 1 NJ'!C75*100,"-")) -> - | F77: =IF(OR('Tabel 1 NJ'!E75<5,'Tabel 2 NJ'!F77<0.5),"-",IFERROR('Tabel 2 NJ'!F77/'Tabel 1 NJ'!E75*100,"-")) -> - | G77: =IF(OR('Tabel 1 NJ'!E75<5,'Tabel 2 NJ'!G77<0.5),"-",IFERROR('Tabel 2 NJ'!G77/'Tabel 1 NJ'!E75*100,"-")) -> - | I77: =IF(OR('Tabel 1 NJ'!G75<5,'Tabel 2 NJ'!I77<0.5),"-",IFERROR('Tabel 2 NJ'!I77/'Tabel 1 NJ'!G75*100,"-")) -> - | J77: =IF(OR('Tabel 1 NJ'!G75<5,'Tabel 2 NJ'!J77<0.5),"-",IFERROR('Tabel 2 NJ'!J77/'Tabel 1 NJ'!G75*100,"-")) -> -
A78: Dyrlæge | C78: =IF(OR('Tabel 1 NJ'!C76<5,'Tabel 2 NJ'!C78<0.5),"-",IFERROR('Tabel 2 NJ'!C78/'Tabel 1 NJ'!C76*100,"-")) -> - | D78: =IF(OR('Tabel 1 NJ'!C76<5,'Tabel 2 NJ'!D78<0.5),"-",IFERROR('Tabel 2 NJ'!D78/'Tabel 1 NJ'!C76*100,"-")) -> - | F78: =IF(OR('Tabel 1 NJ'!E76<5,'Tabel 2 NJ'!F78<0.5),"-",IFERROR('Tabel 2 NJ'!F78/'Tabel 1 NJ'!E76*100,"-")) -> - | G78: =IF(OR('Tabel 1 NJ'!E76<5,'Tabel 2 NJ'!G78<0.5),"-",IFERROR('Tabel 2 NJ'!G78/'Tabel 1 NJ'!E76*100,"-")) -> - | I78: =IF(OR('Tabel 1 NJ'!G76<5,'Tabel 2 NJ'!I78<0.5),"-",IFERROR('Tabel 2 NJ'!I78/'Tabel 1 NJ'!G76*100,"-")) -> - | J78: =IF(OR('Tabel 1 NJ'!G76<5,'Tabel 2 NJ'!J78<0.5),"-",IFERROR('Tabel 2 NJ'!J78/'Tabel 1 NJ'!G76*100,"-")) -> -
A79: Farmaceut | C79: =IF(OR('Tabel 1 NJ'!C77<5,'Tabel 2 NJ'!C79<0.5),"-",IFERROR('Tabel 2 NJ'!C79/'Tabel 1 NJ'!C77*100,"-")) -> - | D79: =IF(OR('Tabel 1 NJ'!C77<5,'Tabel 2 NJ'!D79<0.5),"-",IFERROR('Tabel 2 NJ'!D79/'Tabel 1 NJ'!C77*100,"-")) -> - | F79: =IF(OR('Tabel 1 NJ'!E77<5,'Tabel 2 NJ'!F79<0.5),"-",IFERROR('Tabel 2 NJ'!F79/'Tabel 1 NJ'!E77*100,"-")) -> - | G79: =IF(OR('Tabel 1 NJ'!E77<5,'Tabel 2 NJ'!G79<0.5),"-",IFERROR('Tabel 2 NJ'!G79/'Tabel 1 NJ'!E77*100,"-")) -> - | I79: =IF(OR('Tabel 1 NJ'!G77<5,'Tabel 2 NJ'!I79<0.5),"-",IFERROR('Tabel 2 NJ'!I79/'Tabel 1 NJ'!G77*100,"-")) -> - | J79: =IF(OR('Tabel 1 NJ'!G77<5,'Tabel 2 NJ'!J79<0.5),"-",IFERROR('Tabel 2 NJ'!J79/'Tabel 1 NJ'!G77*100,"-")) -> -
A80: Læge | C80: =IF(OR('Tabel 1 NJ'!C78<5,'Tabel 2 NJ'!C80<0.5),"-",IFERROR('Tabel 2 NJ'!C80/'Tabel 1 NJ'!C78*100,"-")) -> - | D80: =IF(OR('Tabel 1 NJ'!C78<5,'Tabel 2 NJ'!D80<0.5),"-",IFERROR('Tabel 2 NJ'!D80/'Tabel 1 NJ'!C78*100,"-")) -> - | F80: =IF(OR('Tabel 1 NJ'!E78<5,'Tabel 2 NJ'!F80<0.5),"-",IFERROR('Tabel 2 NJ'!F80/'Tabel 1 NJ'!E78*100,"-")) -> - | G80: =IF(OR('Tabel 1 NJ'!E78<5,'Tabel 2 NJ'!G80<0.5),"-",IFERROR('Tabel 2 NJ'!G80/'Tabel 1 NJ'!E78*100,"-")) -> - | I80: =IF(OR('Tabel 1 NJ'!G78<5,'Tabel 2 NJ'!I80<0.5),"-",IFERROR('Tabel 2 NJ'!I80/'Tabel 1 NJ'!G78*100,"-")) -> - | J80: =IF(OR('Tabel 1 NJ'!G78<5,'Tabel 2 NJ'!J80<0.5),"-",IFERROR('Tabel 2 NJ'!J80/'Tabel 1 NJ'!G78*100,"-")) -> -
A81: Tandlæge | C81: =IF(OR('Tabel 1 NJ'!C79<5,'Tabel 2 NJ'!C81<0.5),"-",IFERROR('Tabel 2 NJ'!C81/'Tabel 1 NJ'!C79*100,"-")) -> - | D81: =IF(OR('Tabel 1 NJ'!C79<5,'Tabel 2 NJ'!D81<0.5),"-",IFERROR('Tabel 2 NJ'!D81/'Tabel 1 NJ'!C79*100,"-")) -> - | F81: =IF(OR('Tabel 1 NJ'!E79<5,'Tabel 2 NJ'!F81<0.5),"-",IFERROR('Tabel 2 NJ'!F81/'Tabel 1 NJ'!E79*100,"-")) -> - | G81: =IF(OR('Tabel 1 NJ'!E79<5,'Tabel 2 NJ'!G81<0.5),"-",IFERROR('Tabel 2 NJ'!G81/'Tabel 1 NJ'!E79*100,"-")) -> - | I81: =IF(OR('Tabel 1 NJ'!G79<5,'Tabel 2 NJ'!I81<0.5),"-",IFERROR('Tabel 2 NJ'!I81/'Tabel 1 NJ'!G79*100,"-")) -> - | J81: =IF(OR('Tabel 1 NJ'!G79<5,'Tabel 2 NJ'!J81<0.5),"-",IFERROR('Tabel 2 NJ'!J81/'Tabel 1 NJ'!G79*100,"-")) -> -
A82: Arkitekt | C82: =IF(OR('Tabel 1 NJ'!C80<5,'Tabel 2 NJ'!C82<0.5),"-",IFERROR('Tabel 2 NJ'!C82/'Tabel 1 NJ'!C80*100,"-")) -> - | D82: =IF(OR('Tabel 1 NJ'!C80<5,'Tabel 2 NJ'!D82<0.5),"-",IFERROR('Tabel 2 NJ'!D82/'Tabel 1 NJ'!C80*100,"-")) -> - | F82: =IF(OR('Tabel 1 NJ'!E80<5,'Tabel 2 NJ'!F82<0.5),"-",IFERROR('Tabel 2 NJ'!F82/'Tabel 1 NJ'!E80*100,"-")) -> - | G82: =IF(OR('Tabel 1 NJ'!E80<5,'Tabel 2 NJ'!G82<0.5),"-",IFERROR('Tabel 2 NJ'!G82/'Tabel 1 NJ'!E80*100,"-")) -> - | I82: =IF(OR('Tabel 1 NJ'!G80<5,'Tabel 2 NJ'!I82<0.5),"-",IFERROR('Tabel 2 NJ'!I82/'Tabel 1 NJ'!G80*100,"-")) -> - | J82: =IF(OR('Tabel 1 NJ'!G80<5,'Tabel 2 NJ'!J82<0.5),"-",IFERROR('Tabel 2 NJ'!J82/'Tabel 1 NJ'!G80*100,"-")) -> -
A83: Landinspek. | C83: =IF(OR('Tabel 1 NJ'!C81<5,'Tabel 2 NJ'!C83<0.5),"-",IFERROR('Tabel 2 NJ'!C83/'Tabel 1 NJ'!C81*100,"-")) -> - | D83: =IF(OR('Tabel 1 NJ'!C81<5,'Tabel 2 NJ'!D83<0.5),"-",IFERROR('Tabel 2 NJ'!D83/'Tabel 1 NJ'!C81*100,"-")) -> - | F83: =IF(OR('Tabel 1 NJ'!E81<5,'Tabel 2 NJ'!F83<0.5),"-",IFERROR('Tabel 2 NJ'!F83/'Tabel 1 NJ'!E81*100,"-")) -> - | G83: =IF(OR('Tabel 1 NJ'!E81<5,'Tabel 2 NJ'!G83<0.5),"-",IFERROR('Tabel 2 NJ'!G83/'Tabel 1 NJ'!E81*100,"-")) -> - | I83: =IF(OR('Tabel 1 NJ'!G81<5,'Tabel 2 NJ'!I83<0.5),"-",IFERROR('Tabel 2 NJ'!I83/'Tabel 1 NJ'!G81*100,"-")) -> - | J83: =IF(OR('Tabel 1 NJ'!G81<5,'Tabel 2 NJ'!J83<0.5),"-",IFERROR('Tabel 2 NJ'!J83/'Tabel 1 NJ'!G81*100,"-")) -> -
A84: Bibliotekar | C84: =IF(OR('Tabel 1 NJ'!C82<5,'Tabel 2 NJ'!C84<0.5),"-",IFERROR('Tabel 2 NJ'!C84/'Tabel 1 NJ'!C82*100,"-")) -> - | D84: =IF(OR('Tabel 1 NJ'!C82<5,'Tabel 2 NJ'!D84<0.5),"-",IFERROR('Tabel 2 NJ'!D84/'Tabel 1 NJ'!C82*100,"-")) -> - | F84: =IF(OR('Tabel 1 NJ'!E82<5,'Tabel 2 NJ'!F84<0.5),"-",IFERROR('Tabel 2 NJ'!F84/'Tabel 1 NJ'!E82*100,"-")) -> - | G84: =IF(OR('Tabel 1 NJ'!E82<5,'Tabel 2 NJ'!G84<0.5),"-",IFERROR('Tabel 2 NJ'!G84/'Tabel 1 NJ'!E82*100,"-")) -> - | I84: =IF(OR('Tabel 1 NJ'!G82<5,'Tabel 2 NJ'!I84<0.5),"-",IFERROR('Tabel 2 NJ'!I84/'Tabel 1 NJ'!G82*100,"-")) -> - | J84: =IF(OR('Tabel 1 NJ'!G82<5,'Tabel 2 NJ'!J84<0.5),"-",IFERROR('Tabel 2 NJ'!J84/'Tabel 1 NJ'!G82*100,"-")) -> -
A85: Musikudd. | C85: =IF(OR('Tabel 1 NJ'!C83<5,'Tabel 2 NJ'!C85<0.5),"-",IFERROR('Tabel 2 NJ'!C85/'Tabel 1 NJ'!C83*100,"-")) -> - | D85: =IF(OR('Tabel 1 NJ'!C83<5,'Tabel 2 NJ'!D85<0.5),"-",IFERROR('Tabel 2 NJ'!D85/'Tabel 1 NJ'!C83*100,"-")) -> - | F85: =IF(OR('Tabel 1 NJ'!E83<5,'Tabel 2 NJ'!F85<0.5),"-",IFERROR('Tabel 2 NJ'!F85/'Tabel 1 NJ'!E83*100,"-")) -> - | G85: =IF(OR('Tabel 1 NJ'!E83<5,'Tabel 2 NJ'!G85<0.5),"-",IFERROR('Tabel 2 NJ'!G85/'Tabel 1 NJ'!E83*100,"-")) -> - | I85: =IF(OR('Tabel 1 NJ'!G83<5,'Tabel 2 NJ'!I85<0.5),"-",IFERROR('Tabel 2 NJ'!I85/'Tabel 1 NJ'!G83*100,"-")) -> - | J85: =IF(OR('Tabel 1 NJ'!G83<5,'Tabel 2 NJ'!J85<0.5),"-",IFERROR('Tabel 2 NJ'!J85/'Tabel 1 NJ'!G83*100,"-")) -> -
A86: Teolog | C86: =IF(OR('Tabel 1 NJ'!C84<5,'Tabel 2 NJ'!C86<0.5),"-",IFERROR('Tabel 2 NJ'!C86/'Tabel 1 NJ'!C84*100,"-")) -> - | D86: =IF(OR('Tabel 1 NJ'!C84<5,'Tabel 2 NJ'!D86<0.5),"-",IFERROR('Tabel 2 NJ'!D86/'Tabel 1 NJ'!C84*100,"-")) -> - | F86: =IF(OR('Tabel 1 NJ'!E84<5,'Tabel 2 NJ'!F86<0.5),"-",IFERROR('Tabel 2 NJ'!F86/'Tabel 1 NJ'!E84*100,"-")) -> - | G86: =IF(OR('Tabel 1 NJ'!E84<5,'Tabel 2 NJ'!G86<0.5),"-",IFERROR('Tabel 2 NJ'!G86/'Tabel 1 NJ'!E84*100,"-")) -> - | I86: =IF(OR('Tabel 1 NJ'!G84<5,'Tabel 2 NJ'!I86<0.5),"-",IFERROR('Tabel 2 NJ'!I86/'Tabel 1 NJ'!G84*100,"-")) -> - | J86: =IF(OR('Tabel 1 NJ'!G84<5,'Tabel 2 NJ'!J86<0.5),"-",IFERROR('Tabel 2 NJ'!J86/'Tabel 1 NJ'!G84*100,"-")) -> -
A87: Psykolog | C87: =IF(OR('Tabel 1 NJ'!C85<5,'Tabel 2 NJ'!C87<0.5),"-",IFERROR('Tabel 2 NJ'!C87/'Tabel 1 NJ'!C85*100,"-")) -> - | D87: =IF(OR('Tabel 1 NJ'!C85<5,'Tabel 2 NJ'!D87<0.5),"-",IFERROR('Tabel 2 NJ'!D87/'Tabel 1 NJ'!C85*100,"-")) -> - | F87: =IF(OR('Tabel 1 NJ'!E85<5,'Tabel 2 NJ'!F87<0.5),"-",IFERROR('Tabel 2 NJ'!F87/'Tabel 1 NJ'!E85*100,"-")) -> - | G87: =IF(OR('Tabel 1 NJ'!E85<5,'Tabel 2 NJ'!G87<0.5),"-",IFERROR('Tabel 2 NJ'!G87/'Tabel 1 NJ'!E85*100,"-")) -> - | I87: =IF(OR('Tabel 1 NJ'!G85<5,'Tabel 2 NJ'!I87<0.5),"-",IFERROR('Tabel 2 NJ'!I87/'Tabel 1 NJ'!G85*100,"-")) -> - | J87: =IF(OR('Tabel 1 NJ'!G85<5,'Tabel 2 NJ'!J87<0.5),"-",IFERROR('Tabel 2 NJ'!J87/'Tabel 1 NJ'!G85*100,"-")) -> -
A88: Jurist | C88: =IF(OR('Tabel 1 NJ'!C86<5,'Tabel 2 NJ'!C88<0.5),"-",IFERROR('Tabel 2 NJ'!C88/'Tabel 1 NJ'!C86*100,"-")) -> - | D88: =IF(OR('Tabel 1 NJ'!C86<5,'Tabel 2 NJ'!D88<0.5),"-",IFERROR('Tabel 2 NJ'!D88/'Tabel 1 NJ'!C86*100,"-")) -> - | F88: =IF(OR('Tabel 1 NJ'!E86<5,'Tabel 2 NJ'!F88<0.5),"-",IFERROR('Tabel 2 NJ'!F88/'Tabel 1 NJ'!E86*100,"-")) -> - | G88: =IF(OR('Tabel 1 NJ'!E86<5,'Tabel 2 NJ'!G88<0.5),"-",IFERROR('Tabel 2 NJ'!G88/'Tabel 1 NJ'!E86*100,"-")) -> - | I88: =IF(OR('Tabel 1 NJ'!G86<5,'Tabel 2 NJ'!I88<0.5),"-",IFERROR('Tabel 2 NJ'!I88/'Tabel 1 NJ'!G86*100,"-")) -> - | J88: =IF(OR('Tabel 1 NJ'!G86<5,'Tabel 2 NJ'!J88<0.5),"-",IFERROR('Tabel 2 NJ'!J88/'Tabel 1 NJ'!G86*100,"-")) -> -
A89: Økonom | C89: =IF(OR('Tabel 1 NJ'!C87<5,'Tabel 2 NJ'!C89<0.5),"-",IFERROR('Tabel 2 NJ'!C89/'Tabel 1 NJ'!C87*100,"-")) -> - | D89: =IF(OR('Tabel 1 NJ'!C87<5,'Tabel 2 NJ'!D89<0.5),"-",IFERROR('Tabel 2 NJ'!D89/'Tabel 1 NJ'!C87*100,"-")) -> - | F89: =IF(OR('Tabel 1 NJ'!E87<5,'Tabel 2 NJ'!F89<0.5),"-",IFERROR('Tabel 2 NJ'!F89/'Tabel 1 NJ'!E87*100,"-")) -> - | G89: =IF(OR('Tabel 1 NJ'!E87<5,'Tabel 2 NJ'!G89<0.5),"-",IFERROR('Tabel 2 NJ'!G89/'Tabel 1 NJ'!E87*100,"-")) -> - | I89: =IF(OR('Tabel 1 NJ'!G87<5,'Tabel 2 NJ'!I89<0.5),"-",IFERROR('Tabel 2 NJ'!I89/'Tabel 1 NJ'!G87*100,"-")) -> - | J89: =IF(OR('Tabel 1 NJ'!G87<5,'Tabel 2 NJ'!J89<0.5),"-",IFERROR('Tabel 2 NJ'!J89/'Tabel 1 NJ'!G87*100,"-")) -> -
A90: Samf. Adm. | C90: =IF(OR('Tabel 1 NJ'!C88<5,'Tabel 2 NJ'!C90<0.5),"-",IFERROR('Tabel 2 NJ'!C90/'Tabel 1 NJ'!C88*100,"-")) -> - | D90: =IF(OR('Tabel 1 NJ'!C88<5,'Tabel 2 NJ'!D90<0.5),"-",IFERROR('Tabel 2 NJ'!D90/'Tabel 1 NJ'!C88*100,"-")) -> - | F90: =IF(OR('Tabel 1 NJ'!E88<5,'Tabel 2 NJ'!F90<0.5),"-",IFERROR('Tabel 2 NJ'!F90/'Tabel 1 NJ'!E88*100,"-")) -> - | G90: =IF(OR('Tabel 1 NJ'!E88<5,'Tabel 2 NJ'!G90<0.5),"-",IFERROR('Tabel 2 NJ'!G90/'Tabel 1 NJ'!E88*100,"-")) -> - | I90: =IF(OR('Tabel 1 NJ'!G88<5,'Tabel 2 NJ'!I90<0.5),"-",IFERROR('Tabel 2 NJ'!I90/'Tabel 1 NJ'!G88*100,"-")) -> - | J90: =IF(OR('Tabel 1 NJ'!G88<5,'Tabel 2 NJ'!J90<0.5),"-",IFERROR('Tabel 2 NJ'!J90/'Tabel 1 NJ'!G88*100,"-")) -> -
A91: Cand. Merc. | C91: =IF(OR('Tabel 1 NJ'!C89<5,'Tabel 2 NJ'!C91<0.5),"-",IFERROR('Tabel 2 NJ'!C91/'Tabel 1 NJ'!C89*100,"-")) -> - | D91: =IF(OR('Tabel 1 NJ'!C89<5,'Tabel 2 NJ'!D91<0.5),"-",IFERROR('Tabel 2 NJ'!D91/'Tabel 1 NJ'!C89*100,"-")) -> - | F91: =IF(OR('Tabel 1 NJ'!E89<5,'Tabel 2 NJ'!F91<0.5),"-",IFERROR('Tabel 2 NJ'!F91/'Tabel 1 NJ'!E89*100,"-")) -> 7.692307692 | G91: =IF(OR('Tabel 1 NJ'!E89<5,'Tabel 2 NJ'!G91<0.5),"-",IFERROR('Tabel 2 NJ'!G91/'Tabel 1 NJ'!E89*100,"-")) -> - | I91: =IF(OR('Tabel 1 NJ'!G89<5,'Tabel 2 NJ'!I91<0.5),"-",IFERROR('Tabel 2 NJ'!I91/'Tabel 1 NJ'!G89*100,"-")) -> 5 | J91: =IF(OR('Tabel 1 NJ'!G89<5,'Tabel 2 NJ'!J91<0.5),"-",IFERROR('Tabel 2 NJ'!J91/'Tabel 1 NJ'!G89*100,"-")) -> -
A92: HA | C92: =IF(OR('Tabel 1 NJ'!C90<5,'Tabel 2 NJ'!C92<0.5),"-",IFERROR('Tabel 2 NJ'!C92/'Tabel 1 NJ'!C90*100,"-")) -> - | D92: =IF(OR('Tabel 1 NJ'!C90<5,'Tabel 2 NJ'!D92<0.5),"-",IFERROR('Tabel 2 NJ'!D92/'Tabel 1 NJ'!C90*100,"-")) -> - | F92: =IF(OR('Tabel 1 NJ'!E90<5,'Tabel 2 NJ'!F92<0.5),"-",IFERROR('Tabel 2 NJ'!F92/'Tabel 1 NJ'!E90*100,"-")) -> - | G92: =IF(OR('Tabel 1 NJ'!E90<5,'Tabel 2 NJ'!G92<0.5),"-",IFERROR('Tabel 2 NJ'!G92/'Tabel 1 NJ'!E90*100,"-")) -> - | I92: =IF(OR('Tabel 1 NJ'!G90<5,'Tabel 2 NJ'!I92<0.5),"-",IFERROR('Tabel 2 NJ'!I92/'Tabel 1 NJ'!G90*100,"-")) -> - | J92: =IF(OR('Tabel 1 NJ'!G90<5,'Tabel 2 NJ'!J92<0.5),"-",IFERROR('Tabel 2 NJ'!J92/'Tabel 1 NJ'!G90*100,"-")) -> -
A93: HD | C93: =IF(OR('Tabel 1 NJ'!C91<5,'Tabel 2 NJ'!C93<0.5),"-",IFERROR('Tabel 2 NJ'!C93/'Tabel 1 NJ'!C91*100,"-")) -> - | D93: =IF(OR('Tabel 1 NJ'!C91<5,'Tabel 2 NJ'!D93<0.5),"-",IFERROR('Tabel 2 NJ'!D93/'Tabel 1 NJ'!C91*100,"-")) -> - | F93: =IF(OR('Tabel 1 NJ'!E91<5,'Tabel 2 NJ'!F93<0.5),"-",IFERROR('Tabel 2 NJ'!F93/'Tabel 1 NJ'!E91*100,"-")) -> - | G93: =IF(OR('Tabel 1 NJ'!E91<5,'Tabel 2 NJ'!G93<0.5),"-",IFERROR('Tabel 2 NJ'!G93/'Tabel 1 NJ'!E91*100,"-")) -> - | I93: =IF(OR('Tabel 1 NJ'!G91<5,'Tabel 2 NJ'!I93<0.5),"-",IFERROR('Tabel 2 NJ'!I93/'Tabel 1 NJ'!G91*100,"-")) -> - | J93: =IF(OR('Tabel 1 NJ'!G91<5,'Tabel 2 NJ'!J93<0.5),"-",IFERROR('Tabel 2 NJ'!J93/'Tabel 1 NJ'!G91*100,"-")) -> -
A94: Komm. og Sprog | C94: =IF(OR('Tabel 1 NJ'!C92<5,'Tabel 2 NJ'!C94<0.5),"-",IFERROR('Tabel 2 NJ'!C94/'Tabel 1 NJ'!C92*100,"-")) -> - | D94: =IF(OR('Tabel 1 NJ'!C92<5,'Tabel 2 NJ'!D94<0.5),"-",IFERROR('Tabel 2 NJ'!D94/'Tabel 1 NJ'!C92*100,"-")) -> - | F94: =IF(OR('Tabel 1 NJ'!E92<5,'Tabel 2 NJ'!F94<0.5),"-",IFERROR('Tabel 2 NJ'!F94/'Tabel 1 NJ'!E92*100,"-")) -> - | G94: =IF(OR('Tabel 1 NJ'!E92<5,'Tabel 2 NJ'!G94<0.5),"-",IFERROR('Tabel 2 NJ'!G94/'Tabel 1 NJ'!E92*100,"-")) -> - | I94: =IF(OR('Tabel 1 NJ'!G92<5,'Tabel 2 NJ'!I94<0.5),"-",IFERROR('Tabel 2 NJ'!I94/'Tabel 1 NJ'!G92*100,"-")) -> - | J94: =IF(OR('Tabel 1 NJ'!G92<5,'Tabel 2 NJ'!J94<0.5),"-",IFERROR('Tabel 2 NJ'!J94/'Tabel 1 NJ'!G92*100,"-")) -> -
A95: Bygningskonst. | C95: =IF(OR('Tabel 1 NJ'!C93<5,'Tabel 2 NJ'!C95<0.5),"-",IFERROR('Tabel 2 NJ'!C95/'Tabel 1 NJ'!C93*100,"-")) -> - | D95: =IF(OR('Tabel 1 NJ'!C93<5,'Tabel 2 NJ'!D95<0.5),"-",IFERROR('Tabel 2 NJ'!D95/'Tabel 1 NJ'!C93*100,"-")) -> - | F95: =IF(OR('Tabel 1 NJ'!E93<5,'Tabel 2 NJ'!F95<0.5),"-",IFERROR('Tabel 2 NJ'!F95/'Tabel 1 NJ'!E93*100,"-")) -> - | G95: =IF(OR('Tabel 1 NJ'!E93<5,'Tabel 2 NJ'!G95<0.5),"-",IFERROR('Tabel 2 NJ'!G95/'Tabel 1 NJ'!E93*100,"-")) -> - | I95: =IF(OR('Tabel 1 NJ'!G93<5,'Tabel 2 NJ'!I95<0.5),"-",IFERROR('Tabel 2 NJ'!I95/'Tabel 1 NJ'!G93*100,"-")) -> - | J95: =IF(OR('Tabel 1 NJ'!G93<5,'Tabel 2 NJ'!J95<0.5),"-",IFERROR('Tabel 2 NJ'!J95/'Tabel 1 NJ'!G93*100,"-")) -> -
A96: Cand. IT. | C96: =IF(OR('Tabel 1 NJ'!C94<5,'Tabel 2 NJ'!C96<0.5),"-",IFERROR('Tabel 2 NJ'!C96/'Tabel 1 NJ'!C94*100,"-")) -> - | D96: =IF(OR('Tabel 1 NJ'!C94<5,'Tabel 2 NJ'!D96<0.5),"-",IFERROR('Tabel 2 NJ'!D96/'Tabel 1 NJ'!C94*100,"-")) -> - | F96: =IF(OR('Tabel 1 NJ'!E94<5,'Tabel 2 NJ'!F96<0.5),"-",IFERROR('Tabel 2 NJ'!F96/'Tabel 1 NJ'!E94*100,"-")) -> - | G96: =IF(OR('Tabel 1 NJ'!E94<5,'Tabel 2 NJ'!G96<0.5),"-",IFERROR('Tabel 2 NJ'!G96/'Tabel 1 NJ'!E94*100,"-")) -> - | I96: =IF(OR('Tabel 1 NJ'!G94<5,'Tabel 2 NJ'!I96<0.5),"-",IFERROR('Tabel 2 NJ'!I96/'Tabel 1 NJ'!G94*100,"-")) -> - | J96: =IF(OR('Tabel 1 NJ'!G94<5,'Tabel 2 NJ'!J96<0.5),"-",IFERROR('Tabel 2 NJ'!J96/'Tabel 1 NJ'!G94*100,"-")) -> -
A97: Bac. Samf. | C97: =IF(OR('Tabel 1 NJ'!C95<5,'Tabel 2 NJ'!C97<0.5),"-",IFERROR('Tabel 2 NJ'!C97/'Tabel 1 NJ'!C95*100,"-")) -> - | D97: =IF(OR('Tabel 1 NJ'!C95<5,'Tabel 2 NJ'!D97<0.5),"-",IFERROR('Tabel 2 NJ'!D97/'Tabel 1 NJ'!C95*100,"-")) -> - | F97: =IF(OR('Tabel 1 NJ'!E95<5,'Tabel 2 NJ'!F97<0.5),"-",IFERROR('Tabel 2 NJ'!F97/'Tabel 1 NJ'!E95*100,"-")) -> - | G97: =IF(OR('Tabel 1 NJ'!E95<5,'Tabel 2 NJ'!G97<0.5),"-",IFERROR('Tabel 2 NJ'!G97/'Tabel 1 NJ'!E95*100,"-")) -> - | I97: =IF(OR('Tabel 1 NJ'!G95<5,'Tabel 2 NJ'!I97<0.5),"-",IFERROR('Tabel 2 NJ'!I97/'Tabel 1 NJ'!G95*100,"-")) -> - | J97: =IF(OR('Tabel 1 NJ'!G95<5,'Tabel 2 NJ'!J97<0.5),"-",IFERROR('Tabel 2 NJ'!J97/'Tabel 1 NJ'!G95*100,"-")) -> -
A98: Bac. Hum. | C98: =IF(OR('Tabel 1 NJ'!C96<5,'Tabel 2 NJ'!C98<0.5),"-",IFERROR('Tabel 2 NJ'!C98/'Tabel 1 NJ'!C96*100,"-")) -> - | D98: =IF(OR('Tabel 1 NJ'!C96<5,'Tabel 2 NJ'!D98<0.5),"-",IFERROR('Tabel 2 NJ'!D98/'Tabel 1 NJ'!C96*100,"-")) -> - | F98: =IF(OR('Tabel 1 NJ'!E96<5,'Tabel 2 NJ'!F98<0.5),"-",IFERROR('Tabel 2 NJ'!F98/'Tabel 1 NJ'!E96*100,"-")) -> - | G98: =IF(OR('Tabel 1 NJ'!E96<5,'Tabel 2 NJ'!G98<0.5),"-",IFERROR('Tabel 2 NJ'!G98/'Tabel 1 NJ'!E96*100,"-")) -> - | I98: =IF(OR('Tabel 1 NJ'!G96<5,'Tabel 2 NJ'!I98<0.5),"-",IFERROR('Tabel 2 NJ'!I98/'Tabel 1 NJ'!G96*100,"-")) -> - | J98: =IF(OR('Tabel 1 NJ'!G96<5,'Tabel 2 NJ'!J98<0.5),"-",IFERROR('Tabel 2 NJ'!J98/'Tabel 1 NJ'!G96*100,"-")) -> -
A99: Bac. Nat. | C99: =IF(OR('Tabel 1 NJ'!C97<5,'Tabel 2 NJ'!C99<0.5),"-",IFERROR('Tabel 2 NJ'!C99/'Tabel 1 NJ'!C97*100,"-")) -> - | D99: =IF(OR('Tabel 1 NJ'!C97<5,'Tabel 2 NJ'!D99<0.5),"-",IFERROR('Tabel 2 NJ'!D99/'Tabel 1 NJ'!C97*100,"-")) -> - | F99: =IF(OR('Tabel 1 NJ'!E97<5,'Tabel 2 NJ'!F99<0.5),"-",IFERROR('Tabel 2 NJ'!F99/'Tabel 1 NJ'!E97*100,"-")) -> - | G99: =IF(OR('Tabel 1 NJ'!E97<5,'Tabel 2 NJ'!G99<0.5),"-",IFERROR('Tabel 2 NJ'!G99/'Tabel 1 NJ'!E97*100,"-")) -> - | I99: =IF(OR('Tabel 1 NJ'!G97<5,'Tabel 2 NJ'!I99<0.5),"-",IFERROR('Tabel 2 NJ'!I99/'Tabel 1 NJ'!G97*100,"-")) -> - | J99: =IF(OR('Tabel 1 NJ'!G97<5,'Tabel 2 NJ'!J99<0.5),"-",IFERROR('Tabel 2 NJ'!J99/'Tabel 1 NJ'!G97*100,"-")) -> -
A100: Andre | C100: =IF(OR('Tabel 1 NJ'!C98<5,'Tabel 2 NJ'!C100<0.5),"-",IFERROR('Tabel 2 NJ'!C100/'Tabel 1 NJ'!C98*100,"-")) -> - | D100: =IF(OR('Tabel 1 NJ'!C98<5,'Tabel 2 NJ'!D100<0.5),"-",IFERROR('Tabel 2 NJ'!D100/'Tabel 1 NJ'!C98*100,"-")) -> - | F100: =IF(OR('Tabel 1 NJ'!E98<5,'Tabel 2 NJ'!F100<0.5),"-",IFERROR('Tabel 2 NJ'!F100/'Tabel 1 NJ'!E98*100,"-")) -> - | G100: =IF(OR('Tabel 1 NJ'!E98<5,'Tabel 2 NJ'!G100<0.5),"-",IFERROR('Tabel 2 NJ'!G100/'Tabel 1 NJ'!E98*100,"-")) -> - | I100: =IF(OR('Tabel 1 NJ'!G98<5,'Tabel 2 NJ'!I100<0.5),"-",IFERROR('Tabel 2 NJ'!I100/'Tabel 1 NJ'!G98*100,"-")) -> - | J100: =IF(OR('Tabel 1 NJ'!G98<5,'Tabel 2 NJ'!J100<0.5),"-",IFERROR('Tabel 2 NJ'!J100/'Tabel 1 NJ'!G98*100,"-")) -> -
A102: Total | C102: =IF(OR('Tabel 1 NJ'!C100<5,'Tabel 2 NJ'!C102<0.5),"-",IFERROR('Tabel 2 NJ'!C102/'Tabel 1 NJ'!C100*100,"-")) -> 0.7751937984 | D102: =IF(OR('Tabel 1 NJ'!C100<5,'Tabel 2 NJ'!D102<0.5),"-",IFERROR('Tabel 2 NJ'!D102/'Tabel 1 NJ'!C100*100,"-")) -> 0.7750487488 | F102: =IF(OR('Tabel 1 NJ'!E100<5,'Tabel 2 NJ'!F102<0.5),"-",IFERROR('Tabel 2 NJ'!F102/'Tabel 1 NJ'!E100*100,"-")) -> 2.255639098 | G102: =IF(OR('Tabel 1 NJ'!E100<5,'Tabel 2 NJ'!G102<0.5),"-",IFERROR('Tabel 2 NJ'!G102/'Tabel 1 NJ'!E100*100,"-")) -> 1.648854876 | I102: =IF(OR('Tabel 1 NJ'!G100<5,'Tabel 2 NJ'!I102<0.5),"-",IFERROR('Tabel 2 NJ'!I102/'Tabel 1 NJ'!G100*100,"-")) -> 1.526717557 | J102: =IF(OR('Tabel 1 NJ'!G100<5,'Tabel 2 NJ'!J102<0.5),"-",IFERROR('Tabel 2 NJ'!J102/'Tabel 1 NJ'!G100*100,"-")) -> 1.218622088
A104: Ingeniører i alt | C104: =IF(OR('Tabel 1 NJ'!C102<5,'Tabel 2 NJ'!C104<0.5),"-",IFERROR('Tabel 2 NJ'!C104/'Tabel 1 NJ'!C102*100,"-")) -> - | D104: =IF(OR('Tabel 1 NJ'!C102<5,'Tabel 2 NJ'!D104<0.5),"-",IFERROR('Tabel 2 NJ'!D104/'Tabel 1 NJ'!C102*100,"-")) -> - | F104: =IF(OR('Tabel 1 NJ'!E102<5,'Tabel 2 NJ'!F104<0.5),"-",IFERROR('Tabel 2 NJ'!F104/'Tabel 1 NJ'!E102*100,"-")) -> - | G104: =IF(OR('Tabel 1 NJ'!E102<5,'Tabel 2 NJ'!G104<0.5),"-",IFERROR('Tabel 2 NJ'!G104/'Tabel 1 NJ'!E102*100,"-")) -> - | I104: =IF(OR('Tabel 1 NJ'!G102<5,'Tabel 2 NJ'!I104<0.5),"-",IFERROR('Tabel 2 NJ'!I104/'Tabel 1 NJ'!G102*100,"-")) -> - | J104: =IF(OR('Tabel 1 NJ'!G102<5,'Tabel 2 NJ'!J104<0.5),"-",IFERROR('Tabel 2 NJ'!J104/'Tabel 1 NJ'!G102*100,"-")) -> -
A105: Magistre i alt | C105: =IF(OR('Tabel 1 NJ'!C103<5,'Tabel 2 NJ'!C105<0.5),"-",IFERROR('Tabel 2 NJ'!C105/'Tabel 1 NJ'!C103*100,"-")) -> 3.448275862 | D105: =IF(OR('Tabel 1 NJ'!C103<5,'Tabel 2 NJ'!D105<0.5),"-",IFERROR('Tabel 2 NJ'!D105/'Tabel 1 NJ'!C103*100,"-")) -> 3.447630641 | F105: =IF(OR('Tabel 1 NJ'!E103<5,'Tabel 2 NJ'!F105<0.5),"-",IFERROR('Tabel 2 NJ'!F105/'Tabel 1 NJ'!E103*100,"-")) -> 5.128205128 | G105: =IF(OR('Tabel 1 NJ'!E103<5,'Tabel 2 NJ'!G105<0.5),"-",IFERROR('Tabel 2 NJ'!G105/'Tabel 1 NJ'!E103*100,"-")) -> 4.834579961 | I105: =IF(OR('Tabel 1 NJ'!G103<5,'Tabel 2 NJ'!I105<0.5),"-",IFERROR('Tabel 2 NJ'!I105/'Tabel 1 NJ'!G103*100,"-")) -> 4.411764706 | J105: =IF(OR('Tabel 1 NJ'!G103<5,'Tabel 2 NJ'!J105<0.5),"-",IFERROR('Tabel 2 NJ'!J105/'Tabel 1 NJ'!G103*100,"-")) -> 4.243086869
A106: DJØF'ere i alt | C106: =IF(OR('Tabel 1 NJ'!C104<5,'Tabel 2 NJ'!C106<0.5),"-",IFERROR('Tabel 2 NJ'!C106/'Tabel 1 NJ'!C104*100,"-")) -> - | D106: =IF(OR('Tabel 1 NJ'!C104<5,'Tabel 2 NJ'!D106<0.5),"-",IFERROR('Tabel 2 NJ'!D106/'Tabel 1 NJ'!C104*100,"-")) -> - | F106: =IF(OR('Tabel 1 NJ'!E104<5,'Tabel 2 NJ'!F106<0.5),"-",IFERROR('Tabel 2 NJ'!F106/'Tabel 1 NJ'!E104*100,"-")) -> 3.846153846 | G106: =IF(OR('Tabel 1 NJ'!E104<5,'Tabel 2 NJ'!G106<0.5),"-",IFERROR('Tabel 2 NJ'!G106/'Tabel 1 NJ'!E104*100,"-")) -> - | I106: =IF(OR('Tabel 1 NJ'!G104<5,'Tabel 2 NJ'!I106<0.5),"-",IFERROR('Tabel 2 NJ'!I106/'Tabel 1 NJ'!G104*100,"-")) -> 2.173913043 | J106: =IF(OR('Tabel 1 NJ'!G104<5,'Tabel 2 NJ'!J106<0.5),"-",IFERROR('Tabel 2 NJ'!J106/'Tabel 1 NJ'!G104*100,"-")) -> -
A111: Thisted
C113: Mænd | F113: Kvinder | I113: I alt
C114: Ledigheds- berørte | D114: Gns. brutto- ledighed | F114: Ledigheds- berørte | G114: Gns. brutto- ledighed | I114: Ledigheds- berørte | J114: Gns. brutto- ledighed
A117: Civ. ing. | C117: =IF(OR('Tabel 1 NJ'!C115<5,'Tabel 2 NJ'!C117<0.5),"-",IFERROR('Tabel 2 NJ'!C117/'Tabel 1 NJ'!C115*100,"-")) -> 2.325581395 | D117: =IF(OR('Tabel 1 NJ'!C115<5,'Tabel 2 NJ'!D117<0.5),"-",IFERROR('Tabel 2 NJ'!D117/'Tabel 1 NJ'!C115*100,"-")) -> 1.895799216 | F117: =IF(OR('Tabel 1 NJ'!E115<5,'Tabel 2 NJ'!F117<0.5),"-",IFERROR('Tabel 2 NJ'!F117/'Tabel 1 NJ'!E115*100,"-")) -> 8.333333333 | G117: =IF(OR('Tabel 1 NJ'!E115<5,'Tabel 2 NJ'!G117<0.5),"-",IFERROR('Tabel 2 NJ'!G117/'Tabel 1 NJ'!E115*100,"-")) -> 6.793280526 | I117: =IF(OR('Tabel 1 NJ'!G115<5,'Tabel 2 NJ'!I117<0.5),"-",IFERROR('Tabel 2 NJ'!I117/'Tabel 1 NJ'!G115*100,"-")) -> 3.636363636 | J117: =IF(OR('Tabel 1 NJ'!G115<5,'Tabel 2 NJ'!J117<0.5),"-",IFERROR('Tabel 2 NJ'!J117/'Tabel 1 NJ'!G115*100,"-")) -> 2.964340593
A118: Diplom ing. | C118: =IF(OR('Tabel 1 NJ'!C116<5,'Tabel 2 NJ'!C118<0.5),"-",IFERROR('Tabel 2 NJ'!C118/'Tabel 1 NJ'!C116*100,"-")) -> 5.555555556 | D118: =IF(OR('Tabel 1 NJ'!C116<5,'Tabel 2 NJ'!D118<0.5),"-",IFERROR('Tabel 2 NJ'!D118/'Tabel 1 NJ'!C116*100,"-")) -> 4.099184321 | F118: =IF(OR('Tabel 1 NJ'!E116<5,'Tabel 2 NJ'!F118<0.5),"-",IFERROR('Tabel 2 NJ'!F118/'Tabel 1 NJ'!E116*100,"-")) -> - | G118: =IF(OR('Tabel 1 NJ'!E116<5,'Tabel 2 NJ'!G118<0.5),"-",IFERROR('Tabel 2 NJ'!G118/'Tabel 1 NJ'!E116*100,"-")) -> - | I118: =IF(OR('Tabel 1 NJ'!G116<5,'Tabel 2 NJ'!I118<0.5),"-",IFERROR('Tabel 2 NJ'!I118/'Tabel 1 NJ'!G116*100,"-")) -> 4.838709677 | J118: =IF(OR('Tabel 1 NJ'!G116<5,'Tabel 2 NJ'!J118<0.5),"-",IFERROR('Tabel 2 NJ'!J118/'Tabel 1 NJ'!G116*100,"-")) -> 3.570257312
A119: Cand. Scient. Tek. | C119: =IF(OR('Tabel 1 NJ'!C117<5,'Tabel 2 NJ'!C119<0.5),"-",IFERROR('Tabel 2 NJ'!C119/'Tabel 1 NJ'!C117*100,"-")) -> - | D119: =IF(OR('Tabel 1 NJ'!C117<5,'Tabel 2 NJ'!D119<0.5),"-",IFERROR('Tabel 2 NJ'!D119/'Tabel 1 NJ'!C117*100,"-")) -> - | F119: =IF(OR('Tabel 1 NJ'!E117<5,'Tabel 2 NJ'!F119<0.5),"-",IFERROR('Tabel 2 NJ'!F119/'Tabel 1 NJ'!E117*100,"-")) -> - | G119: =IF(OR('Tabel 1 NJ'!E117<5,'Tabel 2 NJ'!G119<0.5),"-",IFERROR('Tabel 2 NJ'!G119/'Tabel 1 NJ'!E117*100,"-")) -> - | I119: =IF(OR('Tabel 1 NJ'!G117<5,'Tabel 2 NJ'!I119<0.5),"-",IFERROR('Tabel 2 NJ'!I119/'Tabel 1 NJ'!G117*100,"-")) -> - | J119: =IF(OR('Tabel 1 NJ'!G117<5,'Tabel 2 NJ'!J119<0.5),"-",IFERROR('Tabel 2 NJ'!J119/'Tabel 1 NJ'!G117*100,"-")) -> -
A120: MA. Hum. | C120: =IF(OR('Tabel 1 NJ'!C118<5,'Tabel 2 NJ'!C120<0.5),"-",IFERROR('Tabel 2 NJ'!C120/'Tabel 1 NJ'!C118*100,"-")) -> 4.761904762 | D120: =IF(OR('Tabel 1 NJ'!C118<5,'Tabel 2 NJ'!D120<0.5),"-",IFERROR('Tabel 2 NJ'!D120/'Tabel 1 NJ'!C118*100,"-")) -> 3.763071997 | F120: =IF(OR('Tabel 1 NJ'!E118<5,'Tabel 2 NJ'!F120<0.5),"-",IFERROR('Tabel 2 NJ'!F120/'Tabel 1 NJ'!E118*100,"-")) -> 8.510638298 | G120: =IF(OR('Tabel 1 NJ'!E118<5,'Tabel 2 NJ'!G120<0.5),"-",IFERROR('Tabel 2 NJ'!G120/'Tabel 1 NJ'!E118*100,"-")) -> 6.570889031 | I120: =IF(OR('Tabel 1 NJ'!G118<5,'Tabel 2 NJ'!I120<0.5),"-",IFERROR('Tabel 2 NJ'!I120/'Tabel 1 NJ'!G118*100,"-")) -> 7.352941176 | J120: =IF(OR('Tabel 1 NJ'!G118<5,'Tabel 2 NJ'!J120<0.5),"-",IFERROR('Tabel 2 NJ'!J120/'Tabel 1 NJ'!G118*100,"-")) -> 5.703769065
A121: MA. Nat. | C121: =IF(OR('Tabel 1 NJ'!C119<5,'Tabel 2 NJ'!C121<0.5),"-",IFERROR('Tabel 2 NJ'!C121/'Tabel 1 NJ'!C119*100,"-")) -> - | D121: =IF(OR('Tabel 1 NJ'!C119<5,'Tabel 2 NJ'!D121<0.5),"-",IFERROR('Tabel 2 NJ'!D121/'Tabel 1 NJ'!C119*100,"-")) -> - | F121: =IF(OR('Tabel 1 NJ'!E119<5,'Tabel 2 NJ'!F121<0.5),"-",IFERROR('Tabel 2 NJ'!F121/'Tabel 1 NJ'!E119*100,"-")) -> - | G121: =IF(OR('Tabel 1 NJ'!E119<5,'Tabel 2 NJ'!G121<0.5),"-",IFERROR('Tabel 2 NJ'!G121/'Tabel 1 NJ'!E119*100,"-")) -> - | I121: =IF(OR('Tabel 1 NJ'!G119<5,'Tabel 2 NJ'!I121<0.5),"-",IFERROR('Tabel 2 NJ'!I121/'Tabel 1 NJ'!G119*100,"-")) -> - | J121: =IF(OR('Tabel 1 NJ'!G119<5,'Tabel 2 NJ'!J121<0.5),"-",IFERROR('Tabel 2 NJ'!J121/'Tabel 1 NJ'!G119*100,"-")) -> -
A122: MA. Ph.d. | C122: =IF(OR('Tabel 1 NJ'!C120<5,'Tabel 2 NJ'!C122<0.5),"-",IFERROR('Tabel 2 NJ'!C122/'Tabel 1 NJ'!C120*100,"-")) -> - | D122: =IF(OR('Tabel 1 NJ'!C120<5,'Tabel 2 NJ'!D122<0.5),"-",IFERROR('Tabel 2 NJ'!D122/'Tabel 1 NJ'!C120*100,"-")) -> - | F122: =IF(OR('Tabel 1 NJ'!E120<5,'Tabel 2 NJ'!F122<0.5),"-",IFERROR('Tabel 2 NJ'!F122/'Tabel 1 NJ'!E120*100,"-")) -> - | G122: =IF(OR('Tabel 1 NJ'!E120<5,'Tabel 2 NJ'!G122<0.5),"-",IFERROR('Tabel 2 NJ'!G122/'Tabel 1 NJ'!E120*100,"-")) -> - | I122: =IF(OR('Tabel 1 NJ'!G120<5,'Tabel 2 NJ'!I122<0.5),"-",IFERROR('Tabel 2 NJ'!I122/'Tabel 1 NJ'!G120*100,"-")) -> - | J122: =IF(OR('Tabel 1 NJ'!G120<5,'Tabel 2 NJ'!J122<0.5),"-",IFERROR('Tabel 2 NJ'!J122/'Tabel 1 NJ'!G120*100,"-")) -> -
A123: MA. Samf. | C123: =IF(OR('Tabel 1 NJ'!C121<5,'Tabel 2 NJ'!C123<0.5),"-",IFERROR('Tabel 2 NJ'!C123/'Tabel 1 NJ'!C121*100,"-")) -> - | D123: =IF(OR('Tabel 1 NJ'!C121<5,'Tabel 2 NJ'!D123<0.5),"-",IFERROR('Tabel 2 NJ'!D123/'Tabel 1 NJ'!C121*100,"-")) -> - | F123: =IF(OR('Tabel 1 NJ'!E121<5,'Tabel 2 NJ'!F123<0.5),"-",IFERROR('Tabel 2 NJ'!F123/'Tabel 1 NJ'!E121*100,"-")) -> 10 | G123: =IF(OR('Tabel 1 NJ'!E121<5,'Tabel 2 NJ'!G123<0.5),"-",IFERROR('Tabel 2 NJ'!G123/'Tabel 1 NJ'!E121*100,"-")) -> - | I123: =IF(OR('Tabel 1 NJ'!G121<5,'Tabel 2 NJ'!I123<0.5),"-",IFERROR('Tabel 2 NJ'!I123/'Tabel 1 NJ'!G121*100,"-")) -> 8.333333333 | J123: =IF(OR('Tabel 1 NJ'!G121<5,'Tabel 2 NJ'!J123<0.5),"-",IFERROR('Tabel 2 NJ'!J123/'Tabel 1 NJ'!G121*100,"-")) -> -
A124: Øvrige Mag. | C124: =IF(OR('Tabel 1 NJ'!C122<5,'Tabel 2 NJ'!C124<0.5),"-",IFERROR('Tabel 2 NJ'!C124/'Tabel 1 NJ'!C122*100,"-")) -> - | D124: =IF(OR('Tabel 1 NJ'!C122<5,'Tabel 2 NJ'!D124<0.5),"-",IFERROR('Tabel 2 NJ'!D124/'Tabel 1 NJ'!C122*100,"-")) -> - | F124: =IF(OR('Tabel 1 NJ'!E122<5,'Tabel 2 NJ'!F124<0.5),"-",IFERROR('Tabel 2 NJ'!F124/'Tabel 1 NJ'!E122*100,"-")) -> - | G124: =IF(OR('Tabel 1 NJ'!E122<5,'Tabel 2 NJ'!G124<0.5),"-",IFERROR('Tabel 2 NJ'!G124/'Tabel 1 NJ'!E122*100,"-")) -> - | I124: =IF(OR('Tabel 1 NJ'!G122<5,'Tabel 2 NJ'!I124<0.5),"-",IFERROR('Tabel 2 NJ'!I124/'Tabel 1 NJ'!G122*100,"-")) -> - | J124: =IF(OR('Tabel 1 NJ'!G122<5,'Tabel 2 NJ'!J124<0.5),"-",IFERROR('Tabel 2 NJ'!J124/'Tabel 1 NJ'!G122*100,"-")) -> -
A125: Agronom | C125: =IF(OR('Tabel 1 NJ'!C123<5,'Tabel 2 NJ'!C125<0.5),"-",IFERROR('Tabel 2 NJ'!C125/'Tabel 1 NJ'!C123*100,"-")) -> - | D125: =IF(OR('Tabel 1 NJ'!C123<5,'Tabel 2 NJ'!D125<0.5),"-",IFERROR('Tabel 2 NJ'!D125/'Tabel 1 NJ'!C123*100,"-")) -> - | F125: =IF(OR('Tabel 1 NJ'!E123<5,'Tabel 2 NJ'!F125<0.5),"-",IFERROR('Tabel 2 NJ'!F125/'Tabel 1 NJ'!E123*100,"-")) -> - | G125: =IF(OR('Tabel 1 NJ'!E123<5,'Tabel 2 NJ'!G125<0.5),"-",IFERROR('Tabel 2 NJ'!G125/'Tabel 1 NJ'!E123*100,"-")) -> - | I125: =IF(OR('Tabel 1 NJ'!G123<5,'Tabel 2 NJ'!I125<0.5),"-",IFERROR('Tabel 2 NJ'!I125/'Tabel 1 NJ'!G123*100,"-")) -> - | J125: =IF(OR('Tabel 1 NJ'!G123<5,'Tabel 2 NJ'!J125<0.5),"-",IFERROR('Tabel 2 NJ'!J125/'Tabel 1 NJ'!G123*100,"-")) -> -
A126: Landsk. Arkt. | C126: =IF(OR('Tabel 1 NJ'!C124<5,'Tabel 2 NJ'!C126<0.5),"-",IFERROR('Tabel 2 NJ'!C126/'Tabel 1 NJ'!C124*100,"-")) -> - | D126: =IF(OR('Tabel 1 NJ'!C124<5,'Tabel 2 NJ'!D126<0.5),"-",IFERROR('Tabel 2 NJ'!D126/'Tabel 1 NJ'!C124*100,"-")) -> - | F126: =IF(OR('Tabel 1 NJ'!E124<5,'Tabel 2 NJ'!F126<0.5),"-",IFERROR('Tabel 2 NJ'!F126/'Tabel 1 NJ'!E124*100,"-")) -> - | G126: =IF(OR('Tabel 1 NJ'!E124<5,'Tabel 2 NJ'!G126<0.5),"-",IFERROR('Tabel 2 NJ'!G126/'Tabel 1 NJ'!E124*100,"-")) -> - | I126: =IF(OR('Tabel 1 NJ'!G124<5,'Tabel 2 NJ'!I126<0.5),"-",IFERROR('Tabel 2 NJ'!I126/'Tabel 1 NJ'!G124*100,"-")) -> - | J126: =IF(OR('Tabel 1 NJ'!G124<5,'Tabel 2 NJ'!J126<0.5),"-",IFERROR('Tabel 2 NJ'!J126/'Tabel 1 NJ'!G124*100,"-")) -> -
A127: Hortonom | C127: =IF(OR('Tabel 1 NJ'!C125<5,'Tabel 2 NJ'!C127<0.5),"-",IFERROR('Tabel 2 NJ'!C127/'Tabel 1 NJ'!C125*100,"-")) -> - | D127: =IF(OR('Tabel 1 NJ'!C125<5,'Tabel 2 NJ'!D127<0.5),"-",IFERROR('Tabel 2 NJ'!D127/'Tabel 1 NJ'!C125*100,"-")) -> - | F127: =IF(OR('Tabel 1 NJ'!E125<5,'Tabel 2 NJ'!F127<0.5),"-",IFERROR('Tabel 2 NJ'!F127/'Tabel 1 NJ'!E125*100,"-")) -> - | G127: =IF(OR('Tabel 1 NJ'!E125<5,'Tabel 2 NJ'!G127<0.5),"-",IFERROR('Tabel 2 NJ'!G127/'Tabel 1 NJ'!E125*100,"-")) -> - | I127: =IF(OR('Tabel 1 NJ'!G125<5,'Tabel 2 NJ'!I127<0.5),"-",IFERROR('Tabel 2 NJ'!I127/'Tabel 1 NJ'!G125*100,"-")) -> - | J127: =IF(OR('Tabel 1 NJ'!G125<5,'Tabel 2 NJ'!J127<0.5),"-",IFERROR('Tabel 2 NJ'!J127/'Tabel 1 NJ'!G125*100,"-")) -> -
A128: Forstkand. | C128: =IF(OR('Tabel 1 NJ'!C126<5,'Tabel 2 NJ'!C128<0.5),"-",IFERROR('Tabel 2 NJ'!C128/'Tabel 1 NJ'!C126*100,"-")) -> - | D128: =IF(OR('Tabel 1 NJ'!C126<5,'Tabel 2 NJ'!D128<0.5),"-",IFERROR('Tabel 2 NJ'!D128/'Tabel 1 NJ'!C126*100,"-")) -> - | F128: =IF(OR('Tabel 1 NJ'!E126<5,'Tabel 2 NJ'!F128<0.5),"-",IFERROR('Tabel 2 NJ'!F128/'Tabel 1 NJ'!E126*100,"-")) -> - | G128: =IF(OR('Tabel 1 NJ'!E126<5,'Tabel 2 NJ'!G128<0.5),"-",IFERROR('Tabel 2 NJ'!G128/'Tabel 1 NJ'!E126*100,"-")) -> - | I128: =IF(OR('Tabel 1 NJ'!G126<5,'Tabel 2 NJ'!I128<0.5),"-",IFERROR('Tabel 2 NJ'!I128/'Tabel 1 NJ'!G126*100,"-")) -> - | J128: =IF(OR('Tabel 1 NJ'!G126<5,'Tabel 2 NJ'!J128<0.5),"-",IFERROR('Tabel 2 NJ'!J128/'Tabel 1 NJ'!G126*100,"-")) -> -
A129: Jordbrugsakad. | C129: =IF(OR('Tabel 1 NJ'!C127<5,'Tabel 2 NJ'!C129<0.5),"-",IFERROR('Tabel 2 NJ'!C129/'Tabel 1 NJ'!C127*100,"-")) -> - | D129: =IF(OR('Tabel 1 NJ'!C127<5,'Tabel 2 NJ'!D129<0.5),"-",IFERROR('Tabel 2 NJ'!D129/'Tabel 1 NJ'!C127*100,"-")) -> - | F129: =IF(OR('Tabel 1 NJ'!E127<5,'Tabel 2 NJ'!F129<0.5),"-",IFERROR('Tabel 2 NJ'!F129/'Tabel 1 NJ'!E127*100,"-")) -> - | G129: =IF(OR('Tabel 1 NJ'!E127<5,'Tabel 2 NJ'!G129<0.5),"-",IFERROR('Tabel 2 NJ'!G129/'Tabel 1 NJ'!E127*100,"-")) -> - | I129: =IF(OR('Tabel 1 NJ'!G127<5,'Tabel 2 NJ'!I129<0.5),"-",IFERROR('Tabel 2 NJ'!I129/'Tabel 1 NJ'!G127*100,"-")) -> - | J129: =IF(OR('Tabel 1 NJ'!G127<5,'Tabel 2 NJ'!J129<0.5),"-",IFERROR('Tabel 2 NJ'!J129/'Tabel 1 NJ'!G127*100,"-")) -> -
A130: Mejeriing. | C130: =IF(OR('Tabel 1 NJ'!C128<5,'Tabel 2 NJ'!C130<0.5),"-",IFERROR('Tabel 2 NJ'!C130/'Tabel 1 NJ'!C128*100,"-")) -> - | D130: =IF(OR('Tabel 1 NJ'!C128<5,'Tabel 2 NJ'!D130<0.5),"-",IFERROR('Tabel 2 NJ'!D130/'Tabel 1 NJ'!C128*100,"-")) -> - | F130: =IF(OR('Tabel 1 NJ'!E128<5,'Tabel 2 NJ'!F130<0.5),"-",IFERROR('Tabel 2 NJ'!F130/'Tabel 1 NJ'!E128*100,"-")) -> - | G130: =IF(OR('Tabel 1 NJ'!E128<5,'Tabel 2 NJ'!G130<0.5),"-",IFERROR('Tabel 2 NJ'!G130/'Tabel 1 NJ'!E128*100,"-")) -> - | I130: =IF(OR('Tabel 1 NJ'!G128<5,'Tabel 2 NJ'!I130<0.5),"-",IFERROR('Tabel 2 NJ'!I130/'Tabel 1 NJ'!G128*100,"-")) -> - | J130: =IF(OR('Tabel 1 NJ'!G128<5,'Tabel 2 NJ'!J130<0.5),"-",IFERROR('Tabel 2 NJ'!J130/'Tabel 1 NJ'!G128*100,"-")) -> -
A131: Levn.m.kand. | C131: =IF(OR('Tabel 1 NJ'!C129<5,'Tabel 2 NJ'!C131<0.5),"-",IFERROR('Tabel 2 NJ'!C131/'Tabel 1 NJ'!C129*100,"-")) -> - | D131: =IF(OR('Tabel 1 NJ'!C129<5,'Tabel 2 NJ'!D131<0.5),"-",IFERROR('Tabel 2 NJ'!D131/'Tabel 1 NJ'!C129*100,"-")) -> - | F131: =IF(OR('Tabel 1 NJ'!E129<5,'Tabel 2 NJ'!F131<0.5),"-",IFERROR('Tabel 2 NJ'!F131/'Tabel 1 NJ'!E129*100,"-")) -> - | G131: =IF(OR('Tabel 1 NJ'!E129<5,'Tabel 2 NJ'!G131<0.5),"-",IFERROR('Tabel 2 NJ'!G131/'Tabel 1 NJ'!E129*100,"-")) -> - | I131: =IF(OR('Tabel 1 NJ'!G129<5,'Tabel 2 NJ'!I131<0.5),"-",IFERROR('Tabel 2 NJ'!I131/'Tabel 1 NJ'!G129*100,"-")) -> - | J131: =IF(OR('Tabel 1 NJ'!G129<5,'Tabel 2 NJ'!J131<0.5),"-",IFERROR('Tabel 2 NJ'!J131/'Tabel 1 NJ'!G129*100,"-")) -> -
A132: Dyrlæge | C132: =IF(OR('Tabel 1 NJ'!C130<5,'Tabel 2 NJ'!C132<0.5),"-",IFERROR('Tabel 2 NJ'!C132/'Tabel 1 NJ'!C130*100,"-")) -> - | D132: =IF(OR('Tabel 1 NJ'!C130<5,'Tabel 2 NJ'!D132<0.5),"-",IFERROR('Tabel 2 NJ'!D132/'Tabel 1 NJ'!C130*100,"-")) -> - | F132: =IF(OR('Tabel 1 NJ'!E130<5,'Tabel 2 NJ'!F132<0.5),"-",IFERROR('Tabel 2 NJ'!F132/'Tabel 1 NJ'!E130*100,"-")) -> - | G132: =IF(OR('Tabel 1 NJ'!E130<5,'Tabel 2 NJ'!G132<0.5),"-",IFERROR('Tabel 2 NJ'!G132/'Tabel 1 NJ'!E130*100,"-")) -> - | I132: =IF(OR('Tabel 1 NJ'!G130<5,'Tabel 2 NJ'!I132<0.5),"-",IFERROR('Tabel 2 NJ'!I132/'Tabel 1 NJ'!G130*100,"-")) -> - | J132: =IF(OR('Tabel 1 NJ'!G130<5,'Tabel 2 NJ'!J132<0.5),"-",IFERROR('Tabel 2 NJ'!J132/'Tabel 1 NJ'!G130*100,"-")) -> -
A133: Farmaceut | C133: =IF(OR('Tabel 1 NJ'!C131<5,'Tabel 2 NJ'!C133<0.5),"-",IFERROR('Tabel 2 NJ'!C133/'Tabel 1 NJ'!C131*100,"-")) -> - | D133: =IF(OR('Tabel 1 NJ'!C131<5,'Tabel 2 NJ'!D133<0.5),"-",IFERROR('Tabel 2 NJ'!D133/'Tabel 1 NJ'!C131*100,"-")) -> - | F133: =IF(OR('Tabel 1 NJ'!E131<5,'Tabel 2 NJ'!F133<0.5),"-",IFERROR('Tabel 2 NJ'!F133/'Tabel 1 NJ'!E131*100,"-")) -> - | G133: =IF(OR('Tabel 1 NJ'!E131<5,'Tabel 2 NJ'!G133<0.5),"-",IFERROR('Tabel 2 NJ'!G133/'Tabel 1 NJ'!E131*100,"-")) -> - | I133: =IF(OR('Tabel 1 NJ'!G131<5,'Tabel 2 NJ'!I133<0.5),"-",IFERROR('Tabel 2 NJ'!I133/'Tabel 1 NJ'!G131*100,"-")) -> - | J133: =IF(OR('Tabel 1 NJ'!G131<5,'Tabel 2 NJ'!J133<0.5),"-",IFERROR('Tabel 2 NJ'!J133/'Tabel 1 NJ'!G131*100,"-")) -> -
A134: Læge | C134: =IF(OR('Tabel 1 NJ'!C132<5,'Tabel 2 NJ'!C134<0.5),"-",IFERROR('Tabel 2 NJ'!C134/'Tabel 1 NJ'!C132*100,"-")) -> 7.692307692 | D134: =IF(OR('Tabel 1 NJ'!C132<5,'Tabel 2 NJ'!D134<0.5),"-",IFERROR('Tabel 2 NJ'!D134/'Tabel 1 NJ'!C132*100,"-")) -> 7.690868353 | F134: =IF(OR('Tabel 1 NJ'!E132<5,'Tabel 2 NJ'!F134<0.5),"-",IFERROR('Tabel 2 NJ'!F134/'Tabel 1 NJ'!E132*100,"-")) -> - | G134: =IF(OR('Tabel 1 NJ'!E132<5,'Tabel 2 NJ'!G134<0.5),"-",IFERROR('Tabel 2 NJ'!G134/'Tabel 1 NJ'!E132*100,"-")) -> - | I134: =IF(OR('Tabel 1 NJ'!G132<5,'Tabel 2 NJ'!I134<0.5),"-",IFERROR('Tabel 2 NJ'!I134/'Tabel 1 NJ'!G132*100,"-")) -> 2.702702703 | J134: =IF(OR('Tabel 1 NJ'!G132<5,'Tabel 2 NJ'!J134<0.5),"-",IFERROR('Tabel 2 NJ'!J134/'Tabel 1 NJ'!G132*100,"-")) -> 2.702196989
A135: Tandlæge | C135: =IF(OR('Tabel 1 NJ'!C133<5,'Tabel 2 NJ'!C135<0.5),"-",IFERROR('Tabel 2 NJ'!C135/'Tabel 1 NJ'!C133*100,"-")) -> - | D135: =IF(OR('Tabel 1 NJ'!C133<5,'Tabel 2 NJ'!D135<0.5),"-",IFERROR('Tabel 2 NJ'!D135/'Tabel 1 NJ'!C133*100,"-")) -> - | F135: =IF(OR('Tabel 1 NJ'!E133<5,'Tabel 2 NJ'!F135<0.5),"-",IFERROR('Tabel 2 NJ'!F135/'Tabel 1 NJ'!E133*100,"-")) -> - | G135: =IF(OR('Tabel 1 NJ'!E133<5,'Tabel 2 NJ'!G135<0.5),"-",IFERROR('Tabel 2 NJ'!G135/'Tabel 1 NJ'!E133*100,"-")) -> - | I135: =IF(OR('Tabel 1 NJ'!G133<5,'Tabel 2 NJ'!I135<0.5),"-",IFERROR('Tabel 2 NJ'!I135/'Tabel 1 NJ'!G133*100,"-")) -> - | J135: =IF(OR('Tabel 1 NJ'!G133<5,'Tabel 2 NJ'!J135<0.5),"-",IFERROR('Tabel 2 NJ'!J135/'Tabel 1 NJ'!G133*100,"-")) -> -
A136: Arkitekt | C136: =IF(OR('Tabel 1 NJ'!C134<5,'Tabel 2 NJ'!C136<0.5),"-",IFERROR('Tabel 2 NJ'!C136/'Tabel 1 NJ'!C134*100,"-")) -> - | D136: =IF(OR('Tabel 1 NJ'!C134<5,'Tabel 2 NJ'!D136<0.5),"-",IFERROR('Tabel 2 NJ'!D136/'Tabel 1 NJ'!C134*100,"-")) -> - | F136: =IF(OR('Tabel 1 NJ'!E134<5,'Tabel 2 NJ'!F136<0.5),"-",IFERROR('Tabel 2 NJ'!F136/'Tabel 1 NJ'!E134*100,"-")) -> - | G136: =IF(OR('Tabel 1 NJ'!E134<5,'Tabel 2 NJ'!G136<0.5),"-",IFERROR('Tabel 2 NJ'!G136/'Tabel 1 NJ'!E134*100,"-")) -> - | I136: =IF(OR('Tabel 1 NJ'!G134<5,'Tabel 2 NJ'!I136<0.5),"-",IFERROR('Tabel 2 NJ'!I136/'Tabel 1 NJ'!G134*100,"-")) -> - | J136: =IF(OR('Tabel 1 NJ'!G134<5,'Tabel 2 NJ'!J136<0.5),"-",IFERROR('Tabel 2 NJ'!J136/'Tabel 1 NJ'!G134*100,"-")) -> -
A137: Landinspek. | C137: =IF(OR('Tabel 1 NJ'!C135<5,'Tabel 2 NJ'!C137<0.5),"-",IFERROR('Tabel 2 NJ'!C137/'Tabel 1 NJ'!C135*100,"-")) -> - | D137: =IF(OR('Tabel 1 NJ'!C135<5,'Tabel 2 NJ'!D137<0.5),"-",IFERROR('Tabel 2 NJ'!D137/'Tabel 1 NJ'!C135*100,"-")) -> - | F137: =IF(OR('Tabel 1 NJ'!E135<5,'Tabel 2 NJ'!F137<0.5),"-",IFERROR('Tabel 2 NJ'!F137/'Tabel 1 NJ'!E135*100,"-")) -> - | G137: =IF(OR('Tabel 1 NJ'!E135<5,'Tabel 2 NJ'!G137<0.5),"-",IFERROR('Tabel 2 NJ'!G137/'Tabel 1 NJ'!E135*100,"-")) -> - | I137: =IF(OR('Tabel 1 NJ'!G135<5,'Tabel 2 NJ'!I137<0.5),"-",IFERROR('Tabel 2 NJ'!I137/'Tabel 1 NJ'!G135*100,"-")) -> - | J137: =IF(OR('Tabel 1 NJ'!G135<5,'Tabel 2 NJ'!J137<0.5),"-",IFERROR('Tabel 2 NJ'!J137/'Tabel 1 NJ'!G135*100,"-")) -> -
A138: Bibliotekar | C138: =IF(OR('Tabel 1 NJ'!C136<5,'Tabel 2 NJ'!C138<0.5),"-",IFERROR('Tabel 2 NJ'!C138/'Tabel 1 NJ'!C136*100,"-")) -> - | D138: =IF(OR('Tabel 1 NJ'!C136<5,'Tabel 2 NJ'!D138<0.5),"-",IFERROR('Tabel 2 NJ'!D138/'Tabel 1 NJ'!C136*100,"-")) -> - | F138: =IF(OR('Tabel 1 NJ'!E136<5,'Tabel 2 NJ'!F138<0.5),"-",IFERROR('Tabel 2 NJ'!F138/'Tabel 1 NJ'!E136*100,"-")) -> 11.11111111 | G138: =IF(OR('Tabel 1 NJ'!E136<5,'Tabel 2 NJ'!G138<0.5),"-",IFERROR('Tabel 2 NJ'!G138/'Tabel 1 NJ'!E136*100,"-")) -> 10.08336972 | I138: =IF(OR('Tabel 1 NJ'!G136<5,'Tabel 2 NJ'!I138<0.5),"-",IFERROR('Tabel 2 NJ'!I138/'Tabel 1 NJ'!G136*100,"-")) -> 8.333333333 | J138: =IF(OR('Tabel 1 NJ'!G136<5,'Tabel 2 NJ'!J138<0.5),"-",IFERROR('Tabel 2 NJ'!J138/'Tabel 1 NJ'!G136*100,"-")) -> 7.562527287
A139: Musikudd. | C139: =IF(OR('Tabel 1 NJ'!C137<5,'Tabel 2 NJ'!C139<0.5),"-",IFERROR('Tabel 2 NJ'!C139/'Tabel 1 NJ'!C137*100,"-")) -> - | D139: =IF(OR('Tabel 1 NJ'!C137<5,'Tabel 2 NJ'!D139<0.5),"-",IFERROR('Tabel 2 NJ'!D139/'Tabel 1 NJ'!C137*100,"-")) -> - | F139: =IF(OR('Tabel 1 NJ'!E137<5,'Tabel 2 NJ'!F139<0.5),"-",IFERROR('Tabel 2 NJ'!F139/'Tabel 1 NJ'!E137*100,"-")) -> - | G139: =IF(OR('Tabel 1 NJ'!E137<5,'Tabel 2 NJ'!G139<0.5),"-",IFERROR('Tabel 2 NJ'!G139/'Tabel 1 NJ'!E137*100,"-")) -> - | I139: =IF(OR('Tabel 1 NJ'!G137<5,'Tabel 2 NJ'!I139<0.5),"-",IFERROR('Tabel 2 NJ'!I139/'Tabel 1 NJ'!G137*100,"-")) -> - | J139: =IF(OR('Tabel 1 NJ'!G137<5,'Tabel 2 NJ'!J139<0.5),"-",IFERROR('Tabel 2 NJ'!J139/'Tabel 1 NJ'!G137*100,"-")) -> -
A140: Teolog | C140: =IF(OR('Tabel 1 NJ'!C138<5,'Tabel 2 NJ'!C140<0.5),"-",IFERROR('Tabel 2 NJ'!C140/'Tabel 1 NJ'!C138*100,"-")) -> - | D140: =IF(OR('Tabel 1 NJ'!C138<5,'Tabel 2 NJ'!D140<0.5),"-",IFERROR('Tabel 2 NJ'!D140/'Tabel 1 NJ'!C138*100,"-")) -> - | F140: =IF(OR('Tabel 1 NJ'!E138<5,'Tabel 2 NJ'!F140<0.5),"-",IFERROR('Tabel 2 NJ'!F140/'Tabel 1 NJ'!E138*100,"-")) -> - | G140: =IF(OR('Tabel 1 NJ'!E138<5,'Tabel 2 NJ'!G140<0.5),"-",IFERROR('Tabel 2 NJ'!G140/'Tabel 1 NJ'!E138*100,"-")) -> - | I140: =IF(OR('Tabel 1 NJ'!G138<5,'Tabel 2 NJ'!I140<0.5),"-",IFERROR('Tabel 2 NJ'!I140/'Tabel 1 NJ'!G138*100,"-")) -> - | J140: =IF(OR('Tabel 1 NJ'!G138<5,'Tabel 2 NJ'!J140<0.5),"-",IFERROR('Tabel 2 NJ'!J140/'Tabel 1 NJ'!G138*100,"-")) -> -
A141: Psykolog | C141: =IF(OR('Tabel 1 NJ'!C139<5,'Tabel 2 NJ'!C141<0.5),"-",IFERROR('Tabel 2 NJ'!C141/'Tabel 1 NJ'!C139*100,"-")) -> - | D141: =IF(OR('Tabel 1 NJ'!C139<5,'Tabel 2 NJ'!D141<0.5),"-",IFERROR('Tabel 2 NJ'!D141/'Tabel 1 NJ'!C139*100,"-")) -> - | F141: =IF(OR('Tabel 1 NJ'!E139<5,'Tabel 2 NJ'!F141<0.5),"-",IFERROR('Tabel 2 NJ'!F141/'Tabel 1 NJ'!E139*100,"-")) -> 5.555555556 | G141: =IF(OR('Tabel 1 NJ'!E139<5,'Tabel 2 NJ'!G141<0.5),"-",IFERROR('Tabel 2 NJ'!G141/'Tabel 1 NJ'!E139*100,"-")) -> - | I141: =IF(OR('Tabel 1 NJ'!G139<5,'Tabel 2 NJ'!I141<0.5),"-",IFERROR('Tabel 2 NJ'!I141/'Tabel 1 NJ'!G139*100,"-")) -> 4.761904762 | J141: =IF(OR('Tabel 1 NJ'!G139<5,'Tabel 2 NJ'!J141<0.5),"-",IFERROR('Tabel 2 NJ'!J141/'Tabel 1 NJ'!G139*100,"-")) -> -
A142: Jurist | C142: =IF(OR('Tabel 1 NJ'!C140<5,'Tabel 2 NJ'!C142<0.5),"-",IFERROR('Tabel 2 NJ'!C142/'Tabel 1 NJ'!C140*100,"-")) -> - | D142: =IF(OR('Tabel 1 NJ'!C140<5,'Tabel 2 NJ'!D142<0.5),"-",IFERROR('Tabel 2 NJ'!D142/'Tabel 1 NJ'!C140*100,"-")) -> - | F142: =IF(OR('Tabel 1 NJ'!E140<5,'Tabel 2 NJ'!F142<0.5),"-",IFERROR('Tabel 2 NJ'!F142/'Tabel 1 NJ'!E140*100,"-")) -> 6.666666667 | G142: =IF(OR('Tabel 1 NJ'!E140<5,'Tabel 2 NJ'!G142<0.5),"-",IFERROR('Tabel 2 NJ'!G142/'Tabel 1 NJ'!E140*100,"-")) -> 6.665419239 | I142: =IF(OR('Tabel 1 NJ'!G140<5,'Tabel 2 NJ'!I142<0.5),"-",IFERROR('Tabel 2 NJ'!I142/'Tabel 1 NJ'!G140*100,"-")) -> 5.263157895 | J142: =IF(OR('Tabel 1 NJ'!G140<5,'Tabel 2 NJ'!J142<0.5),"-",IFERROR('Tabel 2 NJ'!J142/'Tabel 1 NJ'!G140*100,"-")) -> 5.262173084
A143: Økonom | C143: =IF(OR('Tabel 1 NJ'!C141<5,'Tabel 2 NJ'!C143<0.5),"-",IFERROR('Tabel 2 NJ'!C143/'Tabel 1 NJ'!C141*100,"-")) -> - | D143: =IF(OR('Tabel 1 NJ'!C141<5,'Tabel 2 NJ'!D143<0.5),"-",IFERROR('Tabel 2 NJ'!D143/'Tabel 1 NJ'!C141*100,"-")) -> - | F143: =IF(OR('Tabel 1 NJ'!E141<5,'Tabel 2 NJ'!F143<0.5),"-",IFERROR('Tabel 2 NJ'!F143/'Tabel 1 NJ'!E141*100,"-")) -> - | G143: =IF(OR('Tabel 1 NJ'!E141<5,'Tabel 2 NJ'!G143<0.5),"-",IFERROR('Tabel 2 NJ'!G143/'Tabel 1 NJ'!E141*100,"-")) -> - | I143: =IF(OR('Tabel 1 NJ'!G141<5,'Tabel 2 NJ'!I143<0.5),"-",IFERROR('Tabel 2 NJ'!I143/'Tabel 1 NJ'!G141*100,"-")) -> - | J143: =IF(OR('Tabel 1 NJ'!G141<5,'Tabel 2 NJ'!J143<0.5),"-",IFERROR('Tabel 2 NJ'!J143/'Tabel 1 NJ'!G141*100,"-")) -> -
A144: Samf. Adm. | C144: =IF(OR('Tabel 1 NJ'!C142<5,'Tabel 2 NJ'!C144<0.5),"-",IFERROR('Tabel 2 NJ'!C144/'Tabel 1 NJ'!C142*100,"-")) -> - | D144: =IF(OR('Tabel 1 NJ'!C142<5,'Tabel 2 NJ'!D144<0.5),"-",IFERROR('Tabel 2 NJ'!D144/'Tabel 1 NJ'!C142*100,"-")) -> - | F144: =IF(OR('Tabel 1 NJ'!E142<5,'Tabel 2 NJ'!F144<0.5),"-",IFERROR('Tabel 2 NJ'!F144/'Tabel 1 NJ'!E142*100,"-")) -> 8.695652174 | G144: =IF(OR('Tabel 1 NJ'!E142<5,'Tabel 2 NJ'!G144<0.5),"-",IFERROR('Tabel 2 NJ'!G144/'Tabel 1 NJ'!E142*100,"-")) -> 5.141569426 | I144: =IF(OR('Tabel 1 NJ'!G142<5,'Tabel 2 NJ'!I144<0.5),"-",IFERROR('Tabel 2 NJ'!I144/'Tabel 1 NJ'!G142*100,"-")) -> 5 | J144: =IF(OR('Tabel 1 NJ'!G142<5,'Tabel 2 NJ'!J144<0.5),"-",IFERROR('Tabel 2 NJ'!J144/'Tabel 1 NJ'!G142*100,"-")) -> 2.95640242
A145: Cand. Merc. | C145: =IF(OR('Tabel 1 NJ'!C143<5,'Tabel 2 NJ'!C145<0.5),"-",IFERROR('Tabel 2 NJ'!C145/'Tabel 1 NJ'!C143*100,"-")) -> - | D145: =IF(OR('Tabel 1 NJ'!C143<5,'Tabel 2 NJ'!D145<0.5),"-",IFERROR('Tabel 2 NJ'!D145/'Tabel 1 NJ'!C143*100,"-")) -> - | F145: =IF(OR('Tabel 1 NJ'!E143<5,'Tabel 2 NJ'!F145<0.5),"-",IFERROR('Tabel 2 NJ'!F145/'Tabel 1 NJ'!E143*100,"-")) -> 5.555555556 | G145: =IF(OR('Tabel 1 NJ'!E143<5,'Tabel 2 NJ'!G145<0.5),"-",IFERROR('Tabel 2 NJ'!G145/'Tabel 1 NJ'!E143*100,"-")) -> - | I145: =IF(OR('Tabel 1 NJ'!G143<5,'Tabel 2 NJ'!I145<0.5),"-",IFERROR('Tabel 2 NJ'!I145/'Tabel 1 NJ'!G143*100,"-")) -> 2.380952381 | J145: =IF(OR('Tabel 1 NJ'!G143<5,'Tabel 2 NJ'!J145<0.5),"-",IFERROR('Tabel 2 NJ'!J145/'Tabel 1 NJ'!G143*100,"-")) -> -
A146: HA | C146: =IF(OR('Tabel 1 NJ'!C144<5,'Tabel 2 NJ'!C146<0.5),"-",IFERROR('Tabel 2 NJ'!C146/'Tabel 1 NJ'!C144*100,"-")) -> - | D146: =IF(OR('Tabel 1 NJ'!C144<5,'Tabel 2 NJ'!D146<0.5),"-",IFERROR('Tabel 2 NJ'!D146/'Tabel 1 NJ'!C144*100,"-")) -> - | F146: =IF(OR('Tabel 1 NJ'!E144<5,'Tabel 2 NJ'!F146<0.5),"-",IFERROR('Tabel 2 NJ'!F146/'Tabel 1 NJ'!E144*100,"-")) -> - | G146: =IF(OR('Tabel 1 NJ'!E144<5,'Tabel 2 NJ'!G146<0.5),"-",IFERROR('Tabel 2 NJ'!G146/'Tabel 1 NJ'!E144*100,"-")) -> - | I146: =IF(OR('Tabel 1 NJ'!G144<5,'Tabel 2 NJ'!I146<0.5),"-",IFERROR('Tabel 2 NJ'!I146/'Tabel 1 NJ'!G144*100,"-")) -> - | J146: =IF(OR('Tabel 1 NJ'!G144<5,'Tabel 2 NJ'!J146<0.5),"-",IFERROR('Tabel 2 NJ'!J146/'Tabel 1 NJ'!G144*100,"-")) -> -
A147: HD | C147: =IF(OR('Tabel 1 NJ'!C145<5,'Tabel 2 NJ'!C147<0.5),"-",IFERROR('Tabel 2 NJ'!C147/'Tabel 1 NJ'!C145*100,"-")) -> - | D147: =IF(OR('Tabel 1 NJ'!C145<5,'Tabel 2 NJ'!D147<0.5),"-",IFERROR('Tabel 2 NJ'!D147/'Tabel 1 NJ'!C145*100,"-")) -> - | F147: =IF(OR('Tabel 1 NJ'!E145<5,'Tabel 2 NJ'!F147<0.5),"-",IFERROR('Tabel 2 NJ'!F147/'Tabel 1 NJ'!E145*100,"-")) -> 20 | G147: =IF(OR('Tabel 1 NJ'!E145<5,'Tabel 2 NJ'!G147<0.5),"-",IFERROR('Tabel 2 NJ'!G147/'Tabel 1 NJ'!E145*100,"-")) -> 19.0731616 | I147: =IF(OR('Tabel 1 NJ'!G145<5,'Tabel 2 NJ'!I147<0.5),"-",IFERROR('Tabel 2 NJ'!I147/'Tabel 1 NJ'!G145*100,"-")) -> 6.25 | J147: =IF(OR('Tabel 1 NJ'!G145<5,'Tabel 2 NJ'!J147<0.5),"-",IFERROR('Tabel 2 NJ'!J147/'Tabel 1 NJ'!G145*100,"-")) -> 5.960363001
A148: Komm. og Sprog | C148: =IF(OR('Tabel 1 NJ'!C146<5,'Tabel 2 NJ'!C148<0.5),"-",IFERROR('Tabel 2 NJ'!C148/'Tabel 1 NJ'!C146*100,"-")) -> - | D148: =IF(OR('Tabel 1 NJ'!C146<5,'Tabel 2 NJ'!D148<0.5),"-",IFERROR('Tabel 2 NJ'!D148/'Tabel 1 NJ'!C146*100,"-")) -> - | F148: =IF(OR('Tabel 1 NJ'!E146<5,'Tabel 2 NJ'!F148<0.5),"-",IFERROR('Tabel 2 NJ'!F148/'Tabel 1 NJ'!E146*100,"-")) -> 20 | G148: =IF(OR('Tabel 1 NJ'!E146<5,'Tabel 2 NJ'!G148<0.5),"-",IFERROR('Tabel 2 NJ'!G148/'Tabel 1 NJ'!E146*100,"-")) -> 12.6114888 | I148: =IF(OR('Tabel 1 NJ'!G146<5,'Tabel 2 NJ'!I148<0.5),"-",IFERROR('Tabel 2 NJ'!I148/'Tabel 1 NJ'!G146*100,"-")) -> 20 | J148: =IF(OR('Tabel 1 NJ'!G146<5,'Tabel 2 NJ'!J148<0.5),"-",IFERROR('Tabel 2 NJ'!J148/'Tabel 1 NJ'!G146*100,"-")) -> 12.6114888
A149: Bygningskonst. | C149: =IF(OR('Tabel 1 NJ'!C147<5,'Tabel 2 NJ'!C149<0.5),"-",IFERROR('Tabel 2 NJ'!C149/'Tabel 1 NJ'!C147*100,"-")) -> - | D149: =IF(OR('Tabel 1 NJ'!C147<5,'Tabel 2 NJ'!D149<0.5),"-",IFERROR('Tabel 2 NJ'!D149/'Tabel 1 NJ'!C147*100,"-")) -> - | F149: =IF(OR('Tabel 1 NJ'!E147<5,'Tabel 2 NJ'!F149<0.5),"-",IFERROR('Tabel 2 NJ'!F149/'Tabel 1 NJ'!E147*100,"-")) -> - | G149: =IF(OR('Tabel 1 NJ'!E147<5,'Tabel 2 NJ'!G149<0.5),"-",IFERROR('Tabel 2 NJ'!G149/'Tabel 1 NJ'!E147*100,"-")) -> - | I149: =IF(OR('Tabel 1 NJ'!G147<5,'Tabel 2 NJ'!I149<0.5),"-",IFERROR('Tabel 2 NJ'!I149/'Tabel 1 NJ'!G147*100,"-")) -> - | J149: =IF(OR('Tabel 1 NJ'!G147<5,'Tabel 2 NJ'!J149<0.5),"-",IFERROR('Tabel 2 NJ'!J149/'Tabel 1 NJ'!G147*100,"-")) -> -
A150: Cand. IT. | C150: =IF(OR('Tabel 1 NJ'!C148<5,'Tabel 2 NJ'!C150<0.5),"-",IFERROR('Tabel 2 NJ'!C150/'Tabel 1 NJ'!C148*100,"-")) -> - | D150: =IF(OR('Tabel 1 NJ'!C148<5,'Tabel 2 NJ'!D150<0.5),"-",IFERROR('Tabel 2 NJ'!D150/'Tabel 1 NJ'!C148*100,"-")) -> - | F150: =IF(OR('Tabel 1 NJ'!E148<5,'Tabel 2 NJ'!F150<0.5),"-",IFERROR('Tabel 2 NJ'!F150/'Tabel 1 NJ'!E148*100,"-")) -> - | G150: =IF(OR('Tabel 1 NJ'!E148<5,'Tabel 2 NJ'!G150<0.5),"-",IFERROR('Tabel 2 NJ'!G150/'Tabel 1 NJ'!E148*100,"-")) -> - | I150: =IF(OR('Tabel 1 NJ'!G148<5,'Tabel 2 NJ'!I150<0.5),"-",IFERROR('Tabel 2 NJ'!I150/'Tabel 1 NJ'!G148*100,"-")) -> 18.18181818 | J150: =IF(OR('Tabel 1 NJ'!G148<5,'Tabel 2 NJ'!J150<0.5),"-",IFERROR('Tabel 2 NJ'!J150/'Tabel 1 NJ'!G148*100,"-")) -> 11.17581352
A151: Bac. Samf. | C151: =IF(OR('Tabel 1 NJ'!C149<5,'Tabel 2 NJ'!C151<0.5),"-",IFERROR('Tabel 2 NJ'!C151/'Tabel 1 NJ'!C149*100,"-")) -> - | D151: =IF(OR('Tabel 1 NJ'!C149<5,'Tabel 2 NJ'!D151<0.5),"-",IFERROR('Tabel 2 NJ'!D151/'Tabel 1 NJ'!C149*100,"-")) -> - | F151: =IF(OR('Tabel 1 NJ'!E149<5,'Tabel 2 NJ'!F151<0.5),"-",IFERROR('Tabel 2 NJ'!F151/'Tabel 1 NJ'!E149*100,"-")) -> - | G151: =IF(OR('Tabel 1 NJ'!E149<5,'Tabel 2 NJ'!G151<0.5),"-",IFERROR('Tabel 2 NJ'!G151/'Tabel 1 NJ'!E149*100,"-")) -> - | I151: =IF(OR('Tabel 1 NJ'!G149<5,'Tabel 2 NJ'!I151<0.5),"-",IFERROR('Tabel 2 NJ'!I151/'Tabel 1 NJ'!G149*100,"-")) -> - | J151: =IF(OR('Tabel 1 NJ'!G149<5,'Tabel 2 NJ'!J151<0.5),"-",IFERROR('Tabel 2 NJ'!J151/'Tabel 1 NJ'!G149*100,"-")) -> -
A152: Bac. Hum. | C152: =IF(OR('Tabel 1 NJ'!C150<5,'Tabel 2 NJ'!C152<0.5),"-",IFERROR('Tabel 2 NJ'!C152/'Tabel 1 NJ'!C150*100,"-")) -> - | D152: =IF(OR('Tabel 1 NJ'!C150<5,'Tabel 2 NJ'!D152<0.5),"-",IFERROR('Tabel 2 NJ'!D152/'Tabel 1 NJ'!C150*100,"-")) -> - | F152: =IF(OR('Tabel 1 NJ'!E150<5,'Tabel 2 NJ'!F152<0.5),"-",IFERROR('Tabel 2 NJ'!F152/'Tabel 1 NJ'!E150*100,"-")) -> 22.22222222 | G152: =IF(OR('Tabel 1 NJ'!E150<5,'Tabel 2 NJ'!G152<0.5),"-",IFERROR('Tabel 2 NJ'!G152/'Tabel 1 NJ'!E150*100,"-")) -> 19.89646354 | I152: =IF(OR('Tabel 1 NJ'!G150<5,'Tabel 2 NJ'!I152<0.5),"-",IFERROR('Tabel 2 NJ'!I152/'Tabel 1 NJ'!G150*100,"-")) -> 14.28571429 | J152: =IF(OR('Tabel 1 NJ'!G150<5,'Tabel 2 NJ'!J152<0.5),"-",IFERROR('Tabel 2 NJ'!J152/'Tabel 1 NJ'!G150*100,"-")) -> 12.79058371
A153: Bac. Nat. | C153: =IF(OR('Tabel 1 NJ'!C151<5,'Tabel 2 NJ'!C153<0.5),"-",IFERROR('Tabel 2 NJ'!C153/'Tabel 1 NJ'!C151*100,"-")) -> - | D153: =IF(OR('Tabel 1 NJ'!C151<5,'Tabel 2 NJ'!D153<0.5),"-",IFERROR('Tabel 2 NJ'!D153/'Tabel 1 NJ'!C151*100,"-")) -> - | F153: =IF(OR('Tabel 1 NJ'!E151<5,'Tabel 2 NJ'!F153<0.5),"-",IFERROR('Tabel 2 NJ'!F153/'Tabel 1 NJ'!E151*100,"-")) -> - | G153: =IF(OR('Tabel 1 NJ'!E151<5,'Tabel 2 NJ'!G153<0.5),"-",IFERROR('Tabel 2 NJ'!G153/'Tabel 1 NJ'!E151*100,"-")) -> - | I153: =IF(OR('Tabel 1 NJ'!G151<5,'Tabel 2 NJ'!I153<0.5),"-",IFERROR('Tabel 2 NJ'!I153/'Tabel 1 NJ'!G151*100,"-")) -> - | J153: =IF(OR('Tabel 1 NJ'!G151<5,'Tabel 2 NJ'!J153<0.5),"-",IFERROR('Tabel 2 NJ'!J153/'Tabel 1 NJ'!G151*100,"-")) -> -
A154: Andre | C154: =IF(OR('Tabel 1 NJ'!C152<5,'Tabel 2 NJ'!C154<0.5),"-",IFERROR('Tabel 2 NJ'!C154/'Tabel 1 NJ'!C152*100,"-")) -> - | D154: =IF(OR('Tabel 1 NJ'!C152<5,'Tabel 2 NJ'!D154<0.5),"-",IFERROR('Tabel 2 NJ'!D154/'Tabel 1 NJ'!C152*100,"-")) -> - | F154: =IF(OR('Tabel 1 NJ'!E152<5,'Tabel 2 NJ'!F154<0.5),"-",IFERROR('Tabel 2 NJ'!F154/'Tabel 1 NJ'!E152*100,"-")) -> 5 | G154: =IF(OR('Tabel 1 NJ'!E152<5,'Tabel 2 NJ'!G154<0.5),"-",IFERROR('Tabel 2 NJ'!G154/'Tabel 1 NJ'!E152*100,"-")) -> 4.905507391 | I154: =IF(OR('Tabel 1 NJ'!G152<5,'Tabel 2 NJ'!I154<0.5),"-",IFERROR('Tabel 2 NJ'!I154/'Tabel 1 NJ'!G152*100,"-")) -> 2.702702703 | J154: =IF(OR('Tabel 1 NJ'!G152<5,'Tabel 2 NJ'!J154<0.5),"-",IFERROR('Tabel 2 NJ'!J154/'Tabel 1 NJ'!G152*100,"-")) -> 2.651625617
A156: Total | C156: =IF(OR('Tabel 1 NJ'!C154<5,'Tabel 2 NJ'!C156<0.5),"-",IFERROR('Tabel 2 NJ'!C156/'Tabel 1 NJ'!C154*100,"-")) -> 1.88172043 | D156: =IF(OR('Tabel 1 NJ'!C154<5,'Tabel 2 NJ'!D156<0.5),"-",IFERROR('Tabel 2 NJ'!D156/'Tabel 1 NJ'!C154*100,"-")) -> 1.507810839 | F156: =IF(OR('Tabel 1 NJ'!E154<5,'Tabel 2 NJ'!F156<0.5),"-",IFERROR('Tabel 2 NJ'!F156/'Tabel 1 NJ'!E154*100,"-")) -> 6.188118812 | G156: =IF(OR('Tabel 1 NJ'!E154<5,'Tabel 2 NJ'!G156<0.5),"-",IFERROR('Tabel 2 NJ'!G156/'Tabel 1 NJ'!E154*100,"-")) -> 4.569165206 | I156: =IF(OR('Tabel 1 NJ'!G154<5,'Tabel 2 NJ'!I156<0.5),"-",IFERROR('Tabel 2 NJ'!I156/'Tabel 1 NJ'!G154*100,"-")) -> 4.12371134 | J156: =IF(OR('Tabel 1 NJ'!G154<5,'Tabel 2 NJ'!J156<0.5),"-",IFERROR('Tabel 2 NJ'!J156/'Tabel 1 NJ'!G154*100,"-")) -> 3.101608731
A158: Ingeniører i alt | C158: =IF(OR('Tabel 1 NJ'!C156<5,'Tabel 2 NJ'!C158<0.5),"-",IFERROR('Tabel 2 NJ'!C158/'Tabel 1 NJ'!C156*100,"-")) -> 4.12371134 | D158: =IF(OR('Tabel 1 NJ'!C156<5,'Tabel 2 NJ'!D158<0.5),"-",IFERROR('Tabel 2 NJ'!D158/'Tabel 1 NJ'!C156*100,"-")) -> 3.122425976 | F158: =IF(OR('Tabel 1 NJ'!E156<5,'Tabel 2 NJ'!F158<0.5),"-",IFERROR('Tabel 2 NJ'!F158/'Tabel 1 NJ'!E156*100,"-")) -> 5 | G158: =IF(OR('Tabel 1 NJ'!E156<5,'Tabel 2 NJ'!G158<0.5),"-",IFERROR('Tabel 2 NJ'!G158/'Tabel 1 NJ'!E156*100,"-")) -> 4.075968315 | I158: =IF(OR('Tabel 1 NJ'!G156<5,'Tabel 2 NJ'!I158<0.5),"-",IFERROR('Tabel 2 NJ'!I158/'Tabel 1 NJ'!G156*100,"-")) -> 4.273504274 | J158: =IF(OR('Tabel 1 NJ'!G156<5,'Tabel 2 NJ'!J158<0.5),"-",IFERROR('Tabel 2 NJ'!J158/'Tabel 1 NJ'!G156*100,"-")) -> 3.285424666
A159: Magistre i alt | C159: =IF(OR('Tabel 1 NJ'!C157<5,'Tabel 2 NJ'!C159<0.5),"-",IFERROR('Tabel 2 NJ'!C159/'Tabel 1 NJ'!C157*100,"-")) -> 3.03030303 | D159: =IF(OR('Tabel 1 NJ'!C157<5,'Tabel 2 NJ'!D159<0.5),"-",IFERROR('Tabel 2 NJ'!D159/'Tabel 1 NJ'!C157*100,"-")) -> 2.39468218 | F159: =IF(OR('Tabel 1 NJ'!E157<5,'Tabel 2 NJ'!F159<0.5),"-",IFERROR('Tabel 2 NJ'!F159/'Tabel 1 NJ'!E157*100,"-")) -> 6.923076923 | G159: =IF(OR('Tabel 1 NJ'!E157<5,'Tabel 2 NJ'!G159<0.5),"-",IFERROR('Tabel 2 NJ'!G159/'Tabel 1 NJ'!E157*100,"-")) -> 5.065513916 | I159: =IF(OR('Tabel 1 NJ'!G157<5,'Tabel 2 NJ'!I159<0.5),"-",IFERROR('Tabel 2 NJ'!I159/'Tabel 1 NJ'!G157*100,"-")) -> 5.612244898 | J159: =IF(OR('Tabel 1 NJ'!G157<5,'Tabel 2 NJ'!J159<0.5),"-",IFERROR('Tabel 2 NJ'!J159/'Tabel 1 NJ'!G157*100,"-")) -> 4.166152209
A160: DJØF'ere i alt | C160: =IF(OR('Tabel 1 NJ'!C158<5,'Tabel 2 NJ'!C160<0.5),"-",IFERROR('Tabel 2 NJ'!C160/'Tabel 1 NJ'!C158*100,"-")) -> - | D160: =IF(OR('Tabel 1 NJ'!C158<5,'Tabel 2 NJ'!D160<0.5),"-",IFERROR('Tabel 2 NJ'!D160/'Tabel 1 NJ'!C158*100,"-")) -> - | F160: =IF(OR('Tabel 1 NJ'!E158<5,'Tabel 2 NJ'!F160<0.5),"-",IFERROR('Tabel 2 NJ'!F160/'Tabel 1 NJ'!E158*100,"-")) -> 5.714285714 | G160: =IF(OR('Tabel 1 NJ'!E158<5,'Tabel 2 NJ'!G160<0.5),"-",IFERROR('Tabel 2 NJ'!G160/'Tabel 1 NJ'!E158*100,"-")) -> 3.820691253 | I160: =IF(OR('Tabel 1 NJ'!G158<5,'Tabel 2 NJ'!I160<0.5),"-",IFERROR('Tabel 2 NJ'!I160/'Tabel 1 NJ'!G158*100,"-")) -> 3.174603175 | J160: =IF(OR('Tabel 1 NJ'!G158<5,'Tabel 2 NJ'!J160<0.5),"-",IFERROR('Tabel 2 NJ'!J160/'Tabel 1 NJ'!G158*100,"-")) -> 2.122606252
A165: Brønderslev
C167: Mænd | F167: Kvinder | I167: I alt
C168: Ledigheds- berørte | D168: Gns. brutto- ledighed | F168: Ledigheds- berørte | G168: Gns. brutto- ledighed | I168: Ledigheds- berørte | J168: Gns. brutto- ledighed
A171: Civ. ing. | C171: =IF(OR('Tabel 1 NJ'!C169<5,'Tabel 2 NJ'!C171<0.5),"-",IFERROR('Tabel 2 NJ'!C171/'Tabel 1 NJ'!C169*100,"-")) -> 0.8547008547 | D171: =IF(OR('Tabel 1 NJ'!C169<5,'Tabel 2 NJ'!D171<0.5),"-",IFERROR('Tabel 2 NJ'!D171/'Tabel 1 NJ'!C169*100,"-")) -> 0.6535665489 | F171: =IF(OR('Tabel 1 NJ'!E169<5,'Tabel 2 NJ'!F171<0.5),"-",IFERROR('Tabel 2 NJ'!F171/'Tabel 1 NJ'!E169*100,"-")) -> 4.545454545 | G171: =IF(OR('Tabel 1 NJ'!E169<5,'Tabel 2 NJ'!G171<0.5),"-",IFERROR('Tabel 2 NJ'!G171/'Tabel 1 NJ'!E169*100,"-")) -> 4.020117598 | I171: =IF(OR('Tabel 1 NJ'!G169<5,'Tabel 2 NJ'!I171<0.5),"-",IFERROR('Tabel 2 NJ'!I171/'Tabel 1 NJ'!G169*100,"-")) -> 1.863354037 | J171: =IF(OR('Tabel 1 NJ'!G169<5,'Tabel 2 NJ'!J171<0.5),"-",IFERROR('Tabel 2 NJ'!J171/'Tabel 1 NJ'!G169*100,"-")) -> 1.573617767
A172: Diplom ing. | C172: =IF(OR('Tabel 1 NJ'!C170<5,'Tabel 2 NJ'!C172<0.5),"-",IFERROR('Tabel 2 NJ'!C172/'Tabel 1 NJ'!C170*100,"-")) -> 1.449275362 | D172: =IF(OR('Tabel 1 NJ'!C170<5,'Tabel 2 NJ'!D172<0.5),"-",IFERROR('Tabel 2 NJ'!D172/'Tabel 1 NJ'!C170*100,"-")) -> 1.449004182 | F172: =IF(OR('Tabel 1 NJ'!E170<5,'Tabel 2 NJ'!F172<0.5),"-",IFERROR('Tabel 2 NJ'!F172/'Tabel 1 NJ'!E170*100,"-")) -> - | G172: =IF(OR('Tabel 1 NJ'!E170<5,'Tabel 2 NJ'!G172<0.5),"-",IFERROR('Tabel 2 NJ'!G172/'Tabel 1 NJ'!E170*100,"-")) -> - | I172: =IF(OR('Tabel 1 NJ'!G170<5,'Tabel 2 NJ'!I172<0.5),"-",IFERROR('Tabel 2 NJ'!I172/'Tabel 1 NJ'!G170*100,"-")) -> 1.234567901 | J172: =IF(OR('Tabel 1 NJ'!G170<5,'Tabel 2 NJ'!J172<0.5),"-",IFERROR('Tabel 2 NJ'!J172/'Tabel 1 NJ'!G170*100,"-")) -> 1.234336896
A173: Cand. Scient. Tek. | C173: =IF(OR('Tabel 1 NJ'!C171<5,'Tabel 2 NJ'!C173<0.5),"-",IFERROR('Tabel 2 NJ'!C173/'Tabel 1 NJ'!C171*100,"-")) -> 2.777777778 | D173: =IF(OR('Tabel 1 NJ'!C171<5,'Tabel 2 NJ'!D173<0.5),"-",IFERROR('Tabel 2 NJ'!D173/'Tabel 1 NJ'!C171*100,"-")) -> 2.777258016 | F173: =IF(OR('Tabel 1 NJ'!E171<5,'Tabel 2 NJ'!F173<0.5),"-",IFERROR('Tabel 2 NJ'!F173/'Tabel 1 NJ'!E171*100,"-")) -> 4.545454545 | G173: =IF(OR('Tabel 1 NJ'!E171<5,'Tabel 2 NJ'!G173<0.5),"-",IFERROR('Tabel 2 NJ'!G173/'Tabel 1 NJ'!E171*100,"-")) -> 3.49563117 | I173: =IF(OR('Tabel 1 NJ'!G171<5,'Tabel 2 NJ'!I173<0.5),"-",IFERROR('Tabel 2 NJ'!I173/'Tabel 1 NJ'!G171*100,"-")) -> 3.448275862 | J173: =IF(OR('Tabel 1 NJ'!G171<5,'Tabel 2 NJ'!J173<0.5),"-",IFERROR('Tabel 2 NJ'!J173/'Tabel 1 NJ'!G171*100,"-")) -> 3.049744385
A174: MA. Hum. | C174: =IF(OR('Tabel 1 NJ'!C172<5,'Tabel 2 NJ'!C174<0.5),"-",IFERROR('Tabel 2 NJ'!C174/'Tabel 1 NJ'!C172*100,"-")) -> 17.5 | D174: =IF(OR('Tabel 1 NJ'!C172<5,'Tabel 2 NJ'!D174<0.5),"-",IFERROR('Tabel 2 NJ'!D174/'Tabel 1 NJ'!C172*100,"-")) -> 17.04453315 | F174: =IF(OR('Tabel 1 NJ'!E172<5,'Tabel 2 NJ'!F174<0.5),"-",IFERROR('Tabel 2 NJ'!F174/'Tabel 1 NJ'!E172*100,"-")) -> 6.818181818 | G174: =IF(OR('Tabel 1 NJ'!E172<5,'Tabel 2 NJ'!G174<0.5),"-",IFERROR('Tabel 2 NJ'!G174/'Tabel 1 NJ'!E172*100,"-")) -> 5.943707013 | I174: =IF(OR('Tabel 1 NJ'!G172<5,'Tabel 2 NJ'!I174<0.5),"-",IFERROR('Tabel 2 NJ'!I174/'Tabel 1 NJ'!G172*100,"-")) -> 10.15625 | J174: =IF(OR('Tabel 1 NJ'!G172<5,'Tabel 2 NJ'!J174<0.5),"-",IFERROR('Tabel 2 NJ'!J174/'Tabel 1 NJ'!G172*100,"-")) -> 9.412715181
A175: MA. Nat. | C175: =IF(OR('Tabel 1 NJ'!C173<5,'Tabel 2 NJ'!C175<0.5),"-",IFERROR('Tabel 2 NJ'!C175/'Tabel 1 NJ'!C173*100,"-")) -> - | D175: =IF(OR('Tabel 1 NJ'!C173<5,'Tabel 2 NJ'!D175<0.5),"-",IFERROR('Tabel 2 NJ'!D175/'Tabel 1 NJ'!C173*100,"-")) -> - | F175: =IF(OR('Tabel 1 NJ'!E173<5,'Tabel 2 NJ'!F175<0.5),"-",IFERROR('Tabel 2 NJ'!F175/'Tabel 1 NJ'!E173*100,"-")) -> - | G175: =IF(OR('Tabel 1 NJ'!E173<5,'Tabel 2 NJ'!G175<0.5),"-",IFERROR('Tabel 2 NJ'!G175/'Tabel 1 NJ'!E173*100,"-")) -> - | I175: =IF(OR('Tabel 1 NJ'!G173<5,'Tabel 2 NJ'!I175<0.5),"-",IFERROR('Tabel 2 NJ'!I175/'Tabel 1 NJ'!G173*100,"-")) -> - | J175: =IF(OR('Tabel 1 NJ'!G173<5,'Tabel 2 NJ'!J175<0.5),"-",IFERROR('Tabel 2 NJ'!J175/'Tabel 1 NJ'!G173*100,"-")) -> -
A176: MA. Ph.d. | C176: =IF(OR('Tabel 1 NJ'!C174<5,'Tabel 2 NJ'!C176<0.5),"-",IFERROR('Tabel 2 NJ'!C176/'Tabel 1 NJ'!C174*100,"-")) -> - | D176: =IF(OR('Tabel 1 NJ'!C174<5,'Tabel 2 NJ'!D176<0.5),"-",IFERROR('Tabel 2 NJ'!D176/'Tabel 1 NJ'!C174*100,"-")) -> - | F176: =IF(OR('Tabel 1 NJ'!E174<5,'Tabel 2 NJ'!F176<0.5),"-",IFERROR('Tabel 2 NJ'!F176/'Tabel 1 NJ'!E174*100,"-")) -> - | G176: =IF(OR('Tabel 1 NJ'!E174<5,'Tabel 2 NJ'!G176<0.5),"-",IFERROR('Tabel 2 NJ'!G176/'Tabel 1 NJ'!E174*100,"-")) -> - | I176: =IF(OR('Tabel 1 NJ'!G174<5,'Tabel 2 NJ'!I176<0.5),"-",IFERROR('Tabel 2 NJ'!I176/'Tabel 1 NJ'!G174*100,"-")) -> - | J176: =IF(OR('Tabel 1 NJ'!G174<5,'Tabel 2 NJ'!J176<0.5),"-",IFERROR('Tabel 2 NJ'!J176/'Tabel 1 NJ'!G174*100,"-")) -> -
A177: MA. Samf. | C177: =IF(OR('Tabel 1 NJ'!C175<5,'Tabel 2 NJ'!C177<0.5),"-",IFERROR('Tabel 2 NJ'!C177/'Tabel 1 NJ'!C175*100,"-")) -> - | D177: =IF(OR('Tabel 1 NJ'!C175<5,'Tabel 2 NJ'!D177<0.5),"-",IFERROR('Tabel 2 NJ'!D177/'Tabel 1 NJ'!C175*100,"-")) -> - | F177: =IF(OR('Tabel 1 NJ'!E175<5,'Tabel 2 NJ'!F177<0.5),"-",IFERROR('Tabel 2 NJ'!F177/'Tabel 1 NJ'!E175*100,"-")) -> 16.66666667 | G177: =IF(OR('Tabel 1 NJ'!E175<5,'Tabel 2 NJ'!G177<0.5),"-",IFERROR('Tabel 2 NJ'!G177/'Tabel 1 NJ'!E175*100,"-")) -> 16.6635481 | I177: =IF(OR('Tabel 1 NJ'!G175<5,'Tabel 2 NJ'!I177<0.5),"-",IFERROR('Tabel 2 NJ'!I177/'Tabel 1 NJ'!G175*100,"-")) -> 12.5 | J177: =IF(OR('Tabel 1 NJ'!G175<5,'Tabel 2 NJ'!J177<0.5),"-",IFERROR('Tabel 2 NJ'!J177/'Tabel 1 NJ'!G175*100,"-")) -> 12.49766107
A178: Øvrige Mag. | C178: =IF(OR('Tabel 1 NJ'!C176<5,'Tabel 2 NJ'!C178<0.5),"-",IFERROR('Tabel 2 NJ'!C178/'Tabel 1 NJ'!C176*100,"-")) -> - | D178: =IF(OR('Tabel 1 NJ'!C176<5,'Tabel 2 NJ'!D178<0.5),"-",IFERROR('Tabel 2 NJ'!D178/'Tabel 1 NJ'!C176*100,"-")) -> - | F178: =IF(OR('Tabel 1 NJ'!E176<5,'Tabel 2 NJ'!F178<0.5),"-",IFERROR('Tabel 2 NJ'!F178/'Tabel 1 NJ'!E176*100,"-")) -> 11.11111111 | G178: =IF(OR('Tabel 1 NJ'!E176<5,'Tabel 2 NJ'!G178<0.5),"-",IFERROR('Tabel 2 NJ'!G178/'Tabel 1 NJ'!E176*100,"-")) -> 11.10903207 | I178: =IF(OR('Tabel 1 NJ'!G176<5,'Tabel 2 NJ'!I178<0.5),"-",IFERROR('Tabel 2 NJ'!I178/'Tabel 1 NJ'!G176*100,"-")) -> 8.333333333 | J178: =IF(OR('Tabel 1 NJ'!G176<5,'Tabel 2 NJ'!J178<0.5),"-",IFERROR('Tabel 2 NJ'!J178/'Tabel 1 NJ'!G176*100,"-")) -> 8.331774049
A179: Agronom | C179: =IF(OR('Tabel 1 NJ'!C177<5,'Tabel 2 NJ'!C179<0.5),"-",IFERROR('Tabel 2 NJ'!C179/'Tabel 1 NJ'!C177*100,"-")) -> - | D179: =IF(OR('Tabel 1 NJ'!C177<5,'Tabel 2 NJ'!D179<0.5),"-",IFERROR('Tabel 2 NJ'!D179/'Tabel 1 NJ'!C177*100,"-")) -> - | F179: =IF(OR('Tabel 1 NJ'!E177<5,'Tabel 2 NJ'!F179<0.5),"-",IFERROR('Tabel 2 NJ'!F179/'Tabel 1 NJ'!E177*100,"-")) -> - | G179: =IF(OR('Tabel 1 NJ'!E177<5,'Tabel 2 NJ'!G179<0.5),"-",IFERROR('Tabel 2 NJ'!G179/'Tabel 1 NJ'!E177*100,"-")) -> - | I179: =IF(OR('Tabel 1 NJ'!G177<5,'Tabel 2 NJ'!I179<0.5),"-",IFERROR('Tabel 2 NJ'!I179/'Tabel 1 NJ'!G177*100,"-")) -> - | J179: =IF(OR('Tabel 1 NJ'!G177<5,'Tabel 2 NJ'!J179<0.5),"-",IFERROR('Tabel 2 NJ'!J179/'Tabel 1 NJ'!G177*100,"-")) -> -
A180: Landsk. Arkt. | C180: =IF(OR('Tabel 1 NJ'!C178<5,'Tabel 2 NJ'!C180<0.5),"-",IFERROR('Tabel 2 NJ'!C180/'Tabel 1 NJ'!C178*100,"-")) -> - | D180: =IF(OR('Tabel 1 NJ'!C178<5,'Tabel 2 NJ'!D180<0.5),"-",IFERROR('Tabel 2 NJ'!D180/'Tabel 1 NJ'!C178*100,"-")) -> - | F180: =IF(OR('Tabel 1 NJ'!E178<5,'Tabel 2 NJ'!F180<0.5),"-",IFERROR('Tabel 2 NJ'!F180/'Tabel 1 NJ'!E178*100,"-")) -> - | G180: =IF(OR('Tabel 1 NJ'!E178<5,'Tabel 2 NJ'!G180<0.5),"-",IFERROR('Tabel 2 NJ'!G180/'Tabel 1 NJ'!E178*100,"-")) -> - | I180: =IF(OR('Tabel 1 NJ'!G178<5,'Tabel 2 NJ'!I180<0.5),"-",IFERROR('Tabel 2 NJ'!I180/'Tabel 1 NJ'!G178*100,"-")) -> - | J180: =IF(OR('Tabel 1 NJ'!G178<5,'Tabel 2 NJ'!J180<0.5),"-",IFERROR('Tabel 2 NJ'!J180/'Tabel 1 NJ'!G178*100,"-")) -> -
A181: Hortonom | C181: =IF(OR('Tabel 1 NJ'!C179<5,'Tabel 2 NJ'!C181<0.5),"-",IFERROR('Tabel 2 NJ'!C181/'Tabel 1 NJ'!C179*100,"-")) -> - | D181: =IF(OR('Tabel 1 NJ'!C179<5,'Tabel 2 NJ'!D181<0.5),"-",IFERROR('Tabel 2 NJ'!D181/'Tabel 1 NJ'!C179*100,"-")) -> - | F181: =IF(OR('Tabel 1 NJ'!E179<5,'Tabel 2 NJ'!F181<0.5),"-",IFERROR('Tabel 2 NJ'!F181/'Tabel 1 NJ'!E179*100,"-")) -> - | G181: =IF(OR('Tabel 1 NJ'!E179<5,'Tabel 2 NJ'!G181<0.5),"-",IFERROR('Tabel 2 NJ'!G181/'Tabel 1 NJ'!E179*100,"-")) -> - | I181: =IF(OR('Tabel 1 NJ'!G179<5,'Tabel 2 NJ'!I181<0.5),"-",IFERROR('Tabel 2 NJ'!I181/'Tabel 1 NJ'!G179*100,"-")) -> - | J181: =IF(OR('Tabel 1 NJ'!G179<5,'Tabel 2 NJ'!J181<0.5),"-",IFERROR('Tabel 2 NJ'!J181/'Tabel 1 NJ'!G179*100,"-")) -> -
A182: Forstkand. | C182: =IF(OR('Tabel 1 NJ'!C180<5,'Tabel 2 NJ'!C182<0.5),"-",IFERROR('Tabel 2 NJ'!C182/'Tabel 1 NJ'!C180*100,"-")) -> - | D182: =IF(OR('Tabel 1 NJ'!C180<5,'Tabel 2 NJ'!D182<0.5),"-",IFERROR('Tabel 2 NJ'!D182/'Tabel 1 NJ'!C180*100,"-")) -> - | F182: =IF(OR('Tabel 1 NJ'!E180<5,'Tabel 2 NJ'!F182<0.5),"-",IFERROR('Tabel 2 NJ'!F182/'Tabel 1 NJ'!E180*100,"-")) -> - | G182: =IF(OR('Tabel 1 NJ'!E180<5,'Tabel 2 NJ'!G182<0.5),"-",IFERROR('Tabel 2 NJ'!G182/'Tabel 1 NJ'!E180*100,"-")) -> - | I182: =IF(OR('Tabel 1 NJ'!G180<5,'Tabel 2 NJ'!I182<0.5),"-",IFERROR('Tabel 2 NJ'!I182/'Tabel 1 NJ'!G180*100,"-")) -> - | J182: =IF(OR('Tabel 1 NJ'!G180<5,'Tabel 2 NJ'!J182<0.5),"-",IFERROR('Tabel 2 NJ'!J182/'Tabel 1 NJ'!G180*100,"-")) -> -
A183: Jordbrugsakad. | C183: =IF(OR('Tabel 1 NJ'!C181<5,'Tabel 2 NJ'!C183<0.5),"-",IFERROR('Tabel 2 NJ'!C183/'Tabel 1 NJ'!C181*100,"-")) -> - | D183: =IF(OR('Tabel 1 NJ'!C181<5,'Tabel 2 NJ'!D183<0.5),"-",IFERROR('Tabel 2 NJ'!D183/'Tabel 1 NJ'!C181*100,"-")) -> - | F183: =IF(OR('Tabel 1 NJ'!E181<5,'Tabel 2 NJ'!F183<0.5),"-",IFERROR('Tabel 2 NJ'!F183/'Tabel 1 NJ'!E181*100,"-")) -> - | G183: =IF(OR('Tabel 1 NJ'!E181<5,'Tabel 2 NJ'!G183<0.5),"-",IFERROR('Tabel 2 NJ'!G183/'Tabel 1 NJ'!E181*100,"-")) -> - | I183: =IF(OR('Tabel 1 NJ'!G181<5,'Tabel 2 NJ'!I183<0.5),"-",IFERROR('Tabel 2 NJ'!I183/'Tabel 1 NJ'!G181*100,"-")) -> - | J183: =IF(OR('Tabel 1 NJ'!G181<5,'Tabel 2 NJ'!J183<0.5),"-",IFERROR('Tabel 2 NJ'!J183/'Tabel 1 NJ'!G181*100,"-")) -> -
A184: Mejeriing. | C184: =IF(OR('Tabel 1 NJ'!C182<5,'Tabel 2 NJ'!C184<0.5),"-",IFERROR('Tabel 2 NJ'!C184/'Tabel 1 NJ'!C182*100,"-")) -> - | D184: =IF(OR('Tabel 1 NJ'!C182<5,'Tabel 2 NJ'!D184<0.5),"-",IFERROR('Tabel 2 NJ'!D184/'Tabel 1 NJ'!C182*100,"-")) -> - | F184: =IF(OR('Tabel 1 NJ'!E182<5,'Tabel 2 NJ'!F184<0.5),"-",IFERROR('Tabel 2 NJ'!F184/'Tabel 1 NJ'!E182*100,"-")) -> - | G184: =IF(OR('Tabel 1 NJ'!E182<5,'Tabel 2 NJ'!G184<0.5),"-",IFERROR('Tabel 2 NJ'!G184/'Tabel 1 NJ'!E182*100,"-")) -> - | I184: =IF(OR('Tabel 1 NJ'!G182<5,'Tabel 2 NJ'!I184<0.5),"-",IFERROR('Tabel 2 NJ'!I184/'Tabel 1 NJ'!G182*100,"-")) -> - | J184: =IF(OR('Tabel 1 NJ'!G182<5,'Tabel 2 NJ'!J184<0.5),"-",IFERROR('Tabel 2 NJ'!J184/'Tabel 1 NJ'!G182*100,"-")) -> -
A185: Levn.m.kand. | C185: =IF(OR('Tabel 1 NJ'!C183<5,'Tabel 2 NJ'!C185<0.5),"-",IFERROR('Tabel 2 NJ'!C185/'Tabel 1 NJ'!C183*100,"-")) -> - | D185: =IF(OR('Tabel 1 NJ'!C183<5,'Tabel 2 NJ'!D185<0.5),"-",IFERROR('Tabel 2 NJ'!D185/'Tabel 1 NJ'!C183*100,"-")) -> - | F185: =IF(OR('Tabel 1 NJ'!E183<5,'Tabel 2 NJ'!F185<0.5),"-",IFERROR('Tabel 2 NJ'!F185/'Tabel 1 NJ'!E183*100,"-")) -> - | G185: =IF(OR('Tabel 1 NJ'!E183<5,'Tabel 2 NJ'!G185<0.5),"-",IFERROR('Tabel 2 NJ'!G185/'Tabel 1 NJ'!E183*100,"-")) -> - | I185: =IF(OR('Tabel 1 NJ'!G183<5,'Tabel 2 NJ'!I185<0.5),"-",IFERROR('Tabel 2 NJ'!I185/'Tabel 1 NJ'!G183*100,"-")) -> - | J185: =IF(OR('Tabel 1 NJ'!G183<5,'Tabel 2 NJ'!J185<0.5),"-",IFERROR('Tabel 2 NJ'!J185/'Tabel 1 NJ'!G183*100,"-")) -> -
A186: Dyrlæge | C186: =IF(OR('Tabel 1 NJ'!C184<5,'Tabel 2 NJ'!C186<0.5),"-",IFERROR('Tabel 2 NJ'!C186/'Tabel 1 NJ'!C184*100,"-")) -> - | D186: =IF(OR('Tabel 1 NJ'!C184<5,'Tabel 2 NJ'!D186<0.5),"-",IFERROR('Tabel 2 NJ'!D186/'Tabel 1 NJ'!C184*100,"-")) -> - | F186: =IF(OR('Tabel 1 NJ'!E184<5,'Tabel 2 NJ'!F186<0.5),"-",IFERROR('Tabel 2 NJ'!F186/'Tabel 1 NJ'!E184*100,"-")) -> - | G186: =IF(OR('Tabel 1 NJ'!E184<5,'Tabel 2 NJ'!G186<0.5),"-",IFERROR('Tabel 2 NJ'!G186/'Tabel 1 NJ'!E184*100,"-")) -> - | I186: =IF(OR('Tabel 1 NJ'!G184<5,'Tabel 2 NJ'!I186<0.5),"-",IFERROR('Tabel 2 NJ'!I186/'Tabel 1 NJ'!G184*100,"-")) -> - | J186: =IF(OR('Tabel 1 NJ'!G184<5,'Tabel 2 NJ'!J186<0.5),"-",IFERROR('Tabel 2 NJ'!J186/'Tabel 1 NJ'!G184*100,"-")) -> -
A187: Farmaceut | C187: =IF(OR('Tabel 1 NJ'!C185<5,'Tabel 2 NJ'!C187<0.5),"-",IFERROR('Tabel 2 NJ'!C187/'Tabel 1 NJ'!C185*100,"-")) -> - | D187: =IF(OR('Tabel 1 NJ'!C185<5,'Tabel 2 NJ'!D187<0.5),"-",IFERROR('Tabel 2 NJ'!D187/'Tabel 1 NJ'!C185*100,"-")) -> - | F187: =IF(OR('Tabel 1 NJ'!E185<5,'Tabel 2 NJ'!F187<0.5),"-",IFERROR('Tabel 2 NJ'!F187/'Tabel 1 NJ'!E185*100,"-")) -> - | G187: =IF(OR('Tabel 1 NJ'!E185<5,'Tabel 2 NJ'!G187<0.5),"-",IFERROR('Tabel 2 NJ'!G187/'Tabel 1 NJ'!E185*100,"-")) -> - | I187: =IF(OR('Tabel 1 NJ'!G185<5,'Tabel 2 NJ'!I187<0.5),"-",IFERROR('Tabel 2 NJ'!I187/'Tabel 1 NJ'!G185*100,"-")) -> - | J187: =IF(OR('Tabel 1 NJ'!G185<5,'Tabel 2 NJ'!J187<0.5),"-",IFERROR('Tabel 2 NJ'!J187/'Tabel 1 NJ'!G185*100,"-")) -> -
A188: Læge | C188: =IF(OR('Tabel 1 NJ'!C186<5,'Tabel 2 NJ'!C188<0.5),"-",IFERROR('Tabel 2 NJ'!C188/'Tabel 1 NJ'!C186*100,"-")) -> - | D188: =IF(OR('Tabel 1 NJ'!C186<5,'Tabel 2 NJ'!D188<0.5),"-",IFERROR('Tabel 2 NJ'!D188/'Tabel 1 NJ'!C186*100,"-")) -> - | F188: =IF(OR('Tabel 1 NJ'!E186<5,'Tabel 2 NJ'!F188<0.5),"-",IFERROR('Tabel 2 NJ'!F188/'Tabel 1 NJ'!E186*100,"-")) -> 5.555555556 | G188: =IF(OR('Tabel 1 NJ'!E186<5,'Tabel 2 NJ'!G188<0.5),"-",IFERROR('Tabel 2 NJ'!G188/'Tabel 1 NJ'!E186*100,"-")) -> 5.554516033 | I188: =IF(OR('Tabel 1 NJ'!G186<5,'Tabel 2 NJ'!I188<0.5),"-",IFERROR('Tabel 2 NJ'!I188/'Tabel 1 NJ'!G186*100,"-")) -> 3.846153846 | J188: =IF(OR('Tabel 1 NJ'!G186<5,'Tabel 2 NJ'!J188<0.5),"-",IFERROR('Tabel 2 NJ'!J188/'Tabel 1 NJ'!G186*100,"-")) -> 3.845434177
A189: Tandlæge | C189: =IF(OR('Tabel 1 NJ'!C187<5,'Tabel 2 NJ'!C189<0.5),"-",IFERROR('Tabel 2 NJ'!C189/'Tabel 1 NJ'!C187*100,"-")) -> - | D189: =IF(OR('Tabel 1 NJ'!C187<5,'Tabel 2 NJ'!D189<0.5),"-",IFERROR('Tabel 2 NJ'!D189/'Tabel 1 NJ'!C187*100,"-")) -> - | F189: =IF(OR('Tabel 1 NJ'!E187<5,'Tabel 2 NJ'!F189<0.5),"-",IFERROR('Tabel 2 NJ'!F189/'Tabel 1 NJ'!E187*100,"-")) -> - | G189: =IF(OR('Tabel 1 NJ'!E187<5,'Tabel 2 NJ'!G189<0.5),"-",IFERROR('Tabel 2 NJ'!G189/'Tabel 1 NJ'!E187*100,"-")) -> - | I189: =IF(OR('Tabel 1 NJ'!G187<5,'Tabel 2 NJ'!I189<0.5),"-",IFERROR('Tabel 2 NJ'!I189/'Tabel 1 NJ'!G187*100,"-")) -> - | J189: =IF(OR('Tabel 1 NJ'!G187<5,'Tabel 2 NJ'!J189<0.5),"-",IFERROR('Tabel 2 NJ'!J189/'Tabel 1 NJ'!G187*100,"-")) -> -
A190: Arkitekt | C190: =IF(OR('Tabel 1 NJ'!C188<5,'Tabel 2 NJ'!C190<0.5),"-",IFERROR('Tabel 2 NJ'!C190/'Tabel 1 NJ'!C188*100,"-")) -> - | D190: =IF(OR('Tabel 1 NJ'!C188<5,'Tabel 2 NJ'!D190<0.5),"-",IFERROR('Tabel 2 NJ'!D190/'Tabel 1 NJ'!C188*100,"-")) -> - | F190: =IF(OR('Tabel 1 NJ'!E188<5,'Tabel 2 NJ'!F190<0.5),"-",IFERROR('Tabel 2 NJ'!F190/'Tabel 1 NJ'!E188*100,"-")) -> - | G190: =IF(OR('Tabel 1 NJ'!E188<5,'Tabel 2 NJ'!G190<0.5),"-",IFERROR('Tabel 2 NJ'!G190/'Tabel 1 NJ'!E188*100,"-")) -> - | I190: =IF(OR('Tabel 1 NJ'!G188<5,'Tabel 2 NJ'!I190<0.5),"-",IFERROR('Tabel 2 NJ'!I190/'Tabel 1 NJ'!G188*100,"-")) -> - | J190: =IF(OR('Tabel 1 NJ'!G188<5,'Tabel 2 NJ'!J190<0.5),"-",IFERROR('Tabel 2 NJ'!J190/'Tabel 1 NJ'!G188*100,"-")) -> -
A191: Landinspek. | C191: =IF(OR('Tabel 1 NJ'!C189<5,'Tabel 2 NJ'!C191<0.5),"-",IFERROR('Tabel 2 NJ'!C191/'Tabel 1 NJ'!C189*100,"-")) -> - | D191: =IF(OR('Tabel 1 NJ'!C189<5,'Tabel 2 NJ'!D191<0.5),"-",IFERROR('Tabel 2 NJ'!D191/'Tabel 1 NJ'!C189*100,"-")) -> - | F191: =IF(OR('Tabel 1 NJ'!E189<5,'Tabel 2 NJ'!F191<0.5),"-",IFERROR('Tabel 2 NJ'!F191/'Tabel 1 NJ'!E189*100,"-")) -> - | G191: =IF(OR('Tabel 1 NJ'!E189<5,'Tabel 2 NJ'!G191<0.5),"-",IFERROR('Tabel 2 NJ'!G191/'Tabel 1 NJ'!E189*100,"-")) -> - | I191: =IF(OR('Tabel 1 NJ'!G189<5,'Tabel 2 NJ'!I191<0.5),"-",IFERROR('Tabel 2 NJ'!I191/'Tabel 1 NJ'!G189*100,"-")) -> - | J191: =IF(OR('Tabel 1 NJ'!G189<5,'Tabel 2 NJ'!J191<0.5),"-",IFERROR('Tabel 2 NJ'!J191/'Tabel 1 NJ'!G189*100,"-")) -> -
A192: Bibliotekar | C192: =IF(OR('Tabel 1 NJ'!C190<5,'Tabel 2 NJ'!C192<0.5),"-",IFERROR('Tabel 2 NJ'!C192/'Tabel 1 NJ'!C190*100,"-")) -> - | D192: =IF(OR('Tabel 1 NJ'!C190<5,'Tabel 2 NJ'!D192<0.5),"-",IFERROR('Tabel 2 NJ'!D192/'Tabel 1 NJ'!C190*100,"-")) -> - | F192: =IF(OR('Tabel 1 NJ'!E190<5,'Tabel 2 NJ'!F192<0.5),"-",IFERROR('Tabel 2 NJ'!F192/'Tabel 1 NJ'!E190*100,"-")) -> - | G192: =IF(OR('Tabel 1 NJ'!E190<5,'Tabel 2 NJ'!G192<0.5),"-",IFERROR('Tabel 2 NJ'!G192/'Tabel 1 NJ'!E190*100,"-")) -> - | I192: =IF(OR('Tabel 1 NJ'!G190<5,'Tabel 2 NJ'!I192<0.5),"-",IFERROR('Tabel 2 NJ'!I192/'Tabel 1 NJ'!G190*100,"-")) -> - | J192: =IF(OR('Tabel 1 NJ'!G190<5,'Tabel 2 NJ'!J192<0.5),"-",IFERROR('Tabel 2 NJ'!J192/'Tabel 1 NJ'!G190*100,"-")) -> -
A193: Musikudd. | C193: =IF(OR('Tabel 1 NJ'!C191<5,'Tabel 2 NJ'!C193<0.5),"-",IFERROR('Tabel 2 NJ'!C193/'Tabel 1 NJ'!C191*100,"-")) -> - | D193: =IF(OR('Tabel 1 NJ'!C191<5,'Tabel 2 NJ'!D193<0.5),"-",IFERROR('Tabel 2 NJ'!D193/'Tabel 1 NJ'!C191*100,"-")) -> - | F193: =IF(OR('Tabel 1 NJ'!E191<5,'Tabel 2 NJ'!F193<0.5),"-",IFERROR('Tabel 2 NJ'!F193/'Tabel 1 NJ'!E191*100,"-")) -> - | G193: =IF(OR('Tabel 1 NJ'!E191<5,'Tabel 2 NJ'!G193<0.5),"-",IFERROR('Tabel 2 NJ'!G193/'Tabel 1 NJ'!E191*100,"-")) -> - | I193: =IF(OR('Tabel 1 NJ'!G191<5,'Tabel 2 NJ'!I193<0.5),"-",IFERROR('Tabel 2 NJ'!I193/'Tabel 1 NJ'!G191*100,"-")) -> - | J193: =IF(OR('Tabel 1 NJ'!G191<5,'Tabel 2 NJ'!J193<0.5),"-",IFERROR('Tabel 2 NJ'!J193/'Tabel 1 NJ'!G191*100,"-")) -> -
A194: Teolog | C194: =IF(OR('Tabel 1 NJ'!C192<5,'Tabel 2 NJ'!C194<0.5),"-",IFERROR('Tabel 2 NJ'!C194/'Tabel 1 NJ'!C192*100,"-")) -> - | D194: =IF(OR('Tabel 1 NJ'!C192<5,'Tabel 2 NJ'!D194<0.5),"-",IFERROR('Tabel 2 NJ'!D194/'Tabel 1 NJ'!C192*100,"-")) -> - | F194: =IF(OR('Tabel 1 NJ'!E192<5,'Tabel 2 NJ'!F194<0.5),"-",IFERROR('Tabel 2 NJ'!F194/'Tabel 1 NJ'!E192*100,"-")) -> - | G194: =IF(OR('Tabel 1 NJ'!E192<5,'Tabel 2 NJ'!G194<0.5),"-",IFERROR('Tabel 2 NJ'!G194/'Tabel 1 NJ'!E192*100,"-")) -> - | I194: =IF(OR('Tabel 1 NJ'!G192<5,'Tabel 2 NJ'!I194<0.5),"-",IFERROR('Tabel 2 NJ'!I194/'Tabel 1 NJ'!G192*100,"-")) -> - | J194: =IF(OR('Tabel 1 NJ'!G192<5,'Tabel 2 NJ'!J194<0.5),"-",IFERROR('Tabel 2 NJ'!J194/'Tabel 1 NJ'!G192*100,"-")) -> -
A195: Psykolog | C195: =IF(OR('Tabel 1 NJ'!C193<5,'Tabel 2 NJ'!C195<0.5),"-",IFERROR('Tabel 2 NJ'!C195/'Tabel 1 NJ'!C193*100,"-")) -> - | D195: =IF(OR('Tabel 1 NJ'!C193<5,'Tabel 2 NJ'!D195<0.5),"-",IFERROR('Tabel 2 NJ'!D195/'Tabel 1 NJ'!C193*100,"-")) -> - | F195: =IF(OR('Tabel 1 NJ'!E193<5,'Tabel 2 NJ'!F195<0.5),"-",IFERROR('Tabel 2 NJ'!F195/'Tabel 1 NJ'!E193*100,"-")) -> 4.166666667 | G195: =IF(OR('Tabel 1 NJ'!E193<5,'Tabel 2 NJ'!G195<0.5),"-",IFERROR('Tabel 2 NJ'!G195/'Tabel 1 NJ'!E193*100,"-")) -> 4.165887025 | I195: =IF(OR('Tabel 1 NJ'!G193<5,'Tabel 2 NJ'!I195<0.5),"-",IFERROR('Tabel 2 NJ'!I195/'Tabel 1 NJ'!G193*100,"-")) -> 3.846153846 | J195: =IF(OR('Tabel 1 NJ'!G193<5,'Tabel 2 NJ'!J195<0.5),"-",IFERROR('Tabel 2 NJ'!J195/'Tabel 1 NJ'!G193*100,"-")) -> 3.845434177
A196: Jurist | C196: =IF(OR('Tabel 1 NJ'!C194<5,'Tabel 2 NJ'!C196<0.5),"-",IFERROR('Tabel 2 NJ'!C196/'Tabel 1 NJ'!C194*100,"-")) -> - | D196: =IF(OR('Tabel 1 NJ'!C194<5,'Tabel 2 NJ'!D196<0.5),"-",IFERROR('Tabel 2 NJ'!D196/'Tabel 1 NJ'!C194*100,"-")) -> - | F196: =IF(OR('Tabel 1 NJ'!E194<5,'Tabel 2 NJ'!F196<0.5),"-",IFERROR('Tabel 2 NJ'!F196/'Tabel 1 NJ'!E194*100,"-")) -> - | G196: =IF(OR('Tabel 1 NJ'!E194<5,'Tabel 2 NJ'!G196<0.5),"-",IFERROR('Tabel 2 NJ'!G196/'Tabel 1 NJ'!E194*100,"-")) -> - | I196: =IF(OR('Tabel 1 NJ'!G194<5,'Tabel 2 NJ'!I196<0.5),"-",IFERROR('Tabel 2 NJ'!I196/'Tabel 1 NJ'!G194*100,"-")) -> - | J196: =IF(OR('Tabel 1 NJ'!G194<5,'Tabel 2 NJ'!J196<0.5),"-",IFERROR('Tabel 2 NJ'!J196/'Tabel 1 NJ'!G194*100,"-")) -> -
A197: Økonom | C197: =IF(OR('Tabel 1 NJ'!C195<5,'Tabel 2 NJ'!C197<0.5),"-",IFERROR('Tabel 2 NJ'!C197/'Tabel 1 NJ'!C195*100,"-")) -> - | D197: =IF(OR('Tabel 1 NJ'!C195<5,'Tabel 2 NJ'!D197<0.5),"-",IFERROR('Tabel 2 NJ'!D197/'Tabel 1 NJ'!C195*100,"-")) -> - | F197: =IF(OR('Tabel 1 NJ'!E195<5,'Tabel 2 NJ'!F197<0.5),"-",IFERROR('Tabel 2 NJ'!F197/'Tabel 1 NJ'!E195*100,"-")) -> - | G197: =IF(OR('Tabel 1 NJ'!E195<5,'Tabel 2 NJ'!G197<0.5),"-",IFERROR('Tabel 2 NJ'!G197/'Tabel 1 NJ'!E195*100,"-")) -> - | I197: =IF(OR('Tabel 1 NJ'!G195<5,'Tabel 2 NJ'!I197<0.5),"-",IFERROR('Tabel 2 NJ'!I197/'Tabel 1 NJ'!G195*100,"-")) -> - | J197: =IF(OR('Tabel 1 NJ'!G195<5,'Tabel 2 NJ'!J197<0.5),"-",IFERROR('Tabel 2 NJ'!J197/'Tabel 1 NJ'!G195*100,"-")) -> -
A198: Samf. Adm. | C198: =IF(OR('Tabel 1 NJ'!C196<5,'Tabel 2 NJ'!C198<0.5),"-",IFERROR('Tabel 2 NJ'!C198/'Tabel 1 NJ'!C196*100,"-")) -> 4.166666667 | D198: =IF(OR('Tabel 1 NJ'!C196<5,'Tabel 2 NJ'!D198<0.5),"-",IFERROR('Tabel 2 NJ'!D198/'Tabel 1 NJ'!C196*100,"-")) -> 4.165887025 | F198: =IF(OR('Tabel 1 NJ'!E196<5,'Tabel 2 NJ'!F198<0.5),"-",IFERROR('Tabel 2 NJ'!F198/'Tabel 1 NJ'!E196*100,"-")) -> 9.523809524 | G198: =IF(OR('Tabel 1 NJ'!E196<5,'Tabel 2 NJ'!G198<0.5),"-",IFERROR('Tabel 2 NJ'!G198/'Tabel 1 NJ'!E196*100,"-")) -> 9.522027485 | I198: =IF(OR('Tabel 1 NJ'!G196<5,'Tabel 2 NJ'!I198<0.5),"-",IFERROR('Tabel 2 NJ'!I198/'Tabel 1 NJ'!G196*100,"-")) -> 6.666666667 | J198: =IF(OR('Tabel 1 NJ'!G196<5,'Tabel 2 NJ'!J198<0.5),"-",IFERROR('Tabel 2 NJ'!J198/'Tabel 1 NJ'!G196*100,"-")) -> 6.665419239
A199: Cand. Merc. | C199: =IF(OR('Tabel 1 NJ'!C197<5,'Tabel 2 NJ'!C199<0.5),"-",IFERROR('Tabel 2 NJ'!C199/'Tabel 1 NJ'!C197*100,"-")) -> 2.040816327 | D199: =IF(OR('Tabel 1 NJ'!C197<5,'Tabel 2 NJ'!D199<0.5),"-",IFERROR('Tabel 2 NJ'!D199/'Tabel 1 NJ'!C197*100,"-")) -> 2.040434461 | F199: =IF(OR('Tabel 1 NJ'!E197<5,'Tabel 2 NJ'!F199<0.5),"-",IFERROR('Tabel 2 NJ'!F199/'Tabel 1 NJ'!E197*100,"-")) -> 5.882352941 | G199: =IF(OR('Tabel 1 NJ'!E197<5,'Tabel 2 NJ'!G199<0.5),"-",IFERROR('Tabel 2 NJ'!G199/'Tabel 1 NJ'!E197*100,"-")) -> 5.080208345 | I199: =IF(OR('Tabel 1 NJ'!G197<5,'Tabel 2 NJ'!I199<0.5),"-",IFERROR('Tabel 2 NJ'!I199/'Tabel 1 NJ'!G197*100,"-")) -> 4 | J199: =IF(OR('Tabel 1 NJ'!G197<5,'Tabel 2 NJ'!J199<0.5),"-",IFERROR('Tabel 2 NJ'!J199/'Tabel 1 NJ'!G197*100,"-")) -> 3.590719142
A200: HA | C200: =IF(OR('Tabel 1 NJ'!C198<5,'Tabel 2 NJ'!C200<0.5),"-",IFERROR('Tabel 2 NJ'!C200/'Tabel 1 NJ'!C198*100,"-")) -> - | D200: =IF(OR('Tabel 1 NJ'!C198<5,'Tabel 2 NJ'!D200<0.5),"-",IFERROR('Tabel 2 NJ'!D200/'Tabel 1 NJ'!C198*100,"-")) -> - | F200: =IF(OR('Tabel 1 NJ'!E198<5,'Tabel 2 NJ'!F200<0.5),"-",IFERROR('Tabel 2 NJ'!F200/'Tabel 1 NJ'!E198*100,"-")) -> - | G200: =IF(OR('Tabel 1 NJ'!E198<5,'Tabel 2 NJ'!G200<0.5),"-",IFERROR('Tabel 2 NJ'!G200/'Tabel 1 NJ'!E198*100,"-")) -> - | I200: =IF(OR('Tabel 1 NJ'!G198<5,'Tabel 2 NJ'!I200<0.5),"-",IFERROR('Tabel 2 NJ'!I200/'Tabel 1 NJ'!G198*100,"-")) -> - | J200: =IF(OR('Tabel 1 NJ'!G198<5,'Tabel 2 NJ'!J200<0.5),"-",IFERROR('Tabel 2 NJ'!J200/'Tabel 1 NJ'!G198*100,"-")) -> -
A201: HD | C201: =IF(OR('Tabel 1 NJ'!C199<5,'Tabel 2 NJ'!C201<0.5),"-",IFERROR('Tabel 2 NJ'!C201/'Tabel 1 NJ'!C199*100,"-")) -> - | D201: =IF(OR('Tabel 1 NJ'!C199<5,'Tabel 2 NJ'!D201<0.5),"-",IFERROR('Tabel 2 NJ'!D201/'Tabel 1 NJ'!C199*100,"-")) -> - | F201: =IF(OR('Tabel 1 NJ'!E199<5,'Tabel 2 NJ'!F201<0.5),"-",IFERROR('Tabel 2 NJ'!F201/'Tabel 1 NJ'!E199*100,"-")) -> 14.28571429 | G201: =IF(OR('Tabel 1 NJ'!E199<5,'Tabel 2 NJ'!G201<0.5),"-",IFERROR('Tabel 2 NJ'!G201/'Tabel 1 NJ'!E199*100,"-")) -> 14.28304123 | I201: =IF(OR('Tabel 1 NJ'!G199<5,'Tabel 2 NJ'!I201<0.5),"-",IFERROR('Tabel 2 NJ'!I201/'Tabel 1 NJ'!G199*100,"-")) -> 5.263157895 | J201: =IF(OR('Tabel 1 NJ'!G199<5,'Tabel 2 NJ'!J201<0.5),"-",IFERROR('Tabel 2 NJ'!J201/'Tabel 1 NJ'!G199*100,"-")) -> 5.262173084
A202: Komm. og Sprog | C202: =IF(OR('Tabel 1 NJ'!C200<5,'Tabel 2 NJ'!C202<0.5),"-",IFERROR('Tabel 2 NJ'!C202/'Tabel 1 NJ'!C200*100,"-")) -> - | D202: =IF(OR('Tabel 1 NJ'!C200<5,'Tabel 2 NJ'!D202<0.5),"-",IFERROR('Tabel 2 NJ'!D202/'Tabel 1 NJ'!C200*100,"-")) -> - | F202: =IF(OR('Tabel 1 NJ'!E200<5,'Tabel 2 NJ'!F202<0.5),"-",IFERROR('Tabel 2 NJ'!F202/'Tabel 1 NJ'!E200*100,"-")) -> - | G202: =IF(OR('Tabel 1 NJ'!E200<5,'Tabel 2 NJ'!G202<0.5),"-",IFERROR('Tabel 2 NJ'!G202/'Tabel 1 NJ'!E200*100,"-")) -> - | I202: =IF(OR('Tabel 1 NJ'!G200<5,'Tabel 2 NJ'!I202<0.5),"-",IFERROR('Tabel 2 NJ'!I202/'Tabel 1 NJ'!G200*100,"-")) -> - | J202: =IF(OR('Tabel 1 NJ'!G200<5,'Tabel 2 NJ'!J202<0.5),"-",IFERROR('Tabel 2 NJ'!J202/'Tabel 1 NJ'!G200*100,"-")) -> -
A203: Bygningskonst. | C203: =IF(OR('Tabel 1 NJ'!C201<5,'Tabel 2 NJ'!C203<0.5),"-",IFERROR('Tabel 2 NJ'!C203/'Tabel 1 NJ'!C201*100,"-")) -> - | D203: =IF(OR('Tabel 1 NJ'!C201<5,'Tabel 2 NJ'!D203<0.5),"-",IFERROR('Tabel 2 NJ'!D203/'Tabel 1 NJ'!C201*100,"-")) -> - | F203: =IF(OR('Tabel 1 NJ'!E201<5,'Tabel 2 NJ'!F203<0.5),"-",IFERROR('Tabel 2 NJ'!F203/'Tabel 1 NJ'!E201*100,"-")) -> - | G203: =IF(OR('Tabel 1 NJ'!E201<5,'Tabel 2 NJ'!G203<0.5),"-",IFERROR('Tabel 2 NJ'!G203/'Tabel 1 NJ'!E201*100,"-")) -> - | I203: =IF(OR('Tabel 1 NJ'!G201<5,'Tabel 2 NJ'!I203<0.5),"-",IFERROR('Tabel 2 NJ'!I203/'Tabel 1 NJ'!G201*100,"-")) -> - | J203: =IF(OR('Tabel 1 NJ'!G201<5,'Tabel 2 NJ'!J203<0.5),"-",IFERROR('Tabel 2 NJ'!J203/'Tabel 1 NJ'!G201*100,"-")) -> -
A204: Cand. IT. | C204: =IF(OR('Tabel 1 NJ'!C202<5,'Tabel 2 NJ'!C204<0.5),"-",IFERROR('Tabel 2 NJ'!C204/'Tabel 1 NJ'!C202*100,"-")) -> - | D204: =IF(OR('Tabel 1 NJ'!C202<5,'Tabel 2 NJ'!D204<0.5),"-",IFERROR('Tabel 2 NJ'!D204/'Tabel 1 NJ'!C202*100,"-")) -> - | F204: =IF(OR('Tabel 1 NJ'!E202<5,'Tabel 2 NJ'!F204<0.5),"-",IFERROR('Tabel 2 NJ'!F204/'Tabel 1 NJ'!E202*100,"-")) -> 16.66666667 | G204: =IF(OR('Tabel 1 NJ'!E202<5,'Tabel 2 NJ'!G204<0.5),"-",IFERROR('Tabel 2 NJ'!G204/'Tabel 1 NJ'!E202*100,"-")) -> 15.89430134 | I204: =IF(OR('Tabel 1 NJ'!G202<5,'Tabel 2 NJ'!I204<0.5),"-",IFERROR('Tabel 2 NJ'!I204/'Tabel 1 NJ'!G202*100,"-")) -> 9.090909091 | J204: =IF(OR('Tabel 1 NJ'!G202<5,'Tabel 2 NJ'!J204<0.5),"-",IFERROR('Tabel 2 NJ'!J204/'Tabel 1 NJ'!G202*100,"-")) -> 8.669618911
A205: Bac. Samf. | C205: =IF(OR('Tabel 1 NJ'!C203<5,'Tabel 2 NJ'!C205<0.5),"-",IFERROR('Tabel 2 NJ'!C205/'Tabel 1 NJ'!C203*100,"-")) -> - | D205: =IF(OR('Tabel 1 NJ'!C203<5,'Tabel 2 NJ'!D205<0.5),"-",IFERROR('Tabel 2 NJ'!D205/'Tabel 1 NJ'!C203*100,"-")) -> - | F205: =IF(OR('Tabel 1 NJ'!E203<5,'Tabel 2 NJ'!F205<0.5),"-",IFERROR('Tabel 2 NJ'!F205/'Tabel 1 NJ'!E203*100,"-")) -> - | G205: =IF(OR('Tabel 1 NJ'!E203<5,'Tabel 2 NJ'!G205<0.5),"-",IFERROR('Tabel 2 NJ'!G205/'Tabel 1 NJ'!E203*100,"-")) -> - | I205: =IF(OR('Tabel 1 NJ'!G203<5,'Tabel 2 NJ'!I205<0.5),"-",IFERROR('Tabel 2 NJ'!I205/'Tabel 1 NJ'!G203*100,"-")) -> - | J205: =IF(OR('Tabel 1 NJ'!G203<5,'Tabel 2 NJ'!J205<0.5),"-",IFERROR('Tabel 2 NJ'!J205/'Tabel 1 NJ'!G203*100,"-")) -> -
A206: Bac. Hum. | C206: =IF(OR('Tabel 1 NJ'!C204<5,'Tabel 2 NJ'!C206<0.5),"-",IFERROR('Tabel 2 NJ'!C206/'Tabel 1 NJ'!C204*100,"-")) -> - | D206: =IF(OR('Tabel 1 NJ'!C204<5,'Tabel 2 NJ'!D206<0.5),"-",IFERROR('Tabel 2 NJ'!D206/'Tabel 1 NJ'!C204*100,"-")) -> - | F206: =IF(OR('Tabel 1 NJ'!E204<5,'Tabel 2 NJ'!F206<0.5),"-",IFERROR('Tabel 2 NJ'!F206/'Tabel 1 NJ'!E204*100,"-")) -> - | G206: =IF(OR('Tabel 1 NJ'!E204<5,'Tabel 2 NJ'!G206<0.5),"-",IFERROR('Tabel 2 NJ'!G206/'Tabel 1 NJ'!E204*100,"-")) -> - | I206: =IF(OR('Tabel 1 NJ'!G204<5,'Tabel 2 NJ'!I206<0.5),"-",IFERROR('Tabel 2 NJ'!I206/'Tabel 1 NJ'!G204*100,"-")) -> - | J206: =IF(OR('Tabel 1 NJ'!G204<5,'Tabel 2 NJ'!J206<0.5),"-",IFERROR('Tabel 2 NJ'!J206/'Tabel 1 NJ'!G204*100,"-")) -> -
A207: Bac. Nat. | C207: =IF(OR('Tabel 1 NJ'!C205<5,'Tabel 2 NJ'!C207<0.5),"-",IFERROR('Tabel 2 NJ'!C207/'Tabel 1 NJ'!C205*100,"-")) -> - | D207: =IF(OR('Tabel 1 NJ'!C205<5,'Tabel 2 NJ'!D207<0.5),"-",IFERROR('Tabel 2 NJ'!D207/'Tabel 1 NJ'!C205*100,"-")) -> - | F207: =IF(OR('Tabel 1 NJ'!E205<5,'Tabel 2 NJ'!F207<0.5),"-",IFERROR('Tabel 2 NJ'!F207/'Tabel 1 NJ'!E205*100,"-")) -> - | G207: =IF(OR('Tabel 1 NJ'!E205<5,'Tabel 2 NJ'!G207<0.5),"-",IFERROR('Tabel 2 NJ'!G207/'Tabel 1 NJ'!E205*100,"-")) -> - | I207: =IF(OR('Tabel 1 NJ'!G205<5,'Tabel 2 NJ'!I207<0.5),"-",IFERROR('Tabel 2 NJ'!I207/'Tabel 1 NJ'!G205*100,"-")) -> - | J207: =IF(OR('Tabel 1 NJ'!G205<5,'Tabel 2 NJ'!J207<0.5),"-",IFERROR('Tabel 2 NJ'!J207/'Tabel 1 NJ'!G205*100,"-")) -> -
A208: Andre | C208: =IF(OR('Tabel 1 NJ'!C206<5,'Tabel 2 NJ'!C208<0.5),"-",IFERROR('Tabel 2 NJ'!C208/'Tabel 1 NJ'!C206*100,"-")) -> - | D208: =IF(OR('Tabel 1 NJ'!C206<5,'Tabel 2 NJ'!D208<0.5),"-",IFERROR('Tabel 2 NJ'!D208/'Tabel 1 NJ'!C206*100,"-")) -> - | F208: =IF(OR('Tabel 1 NJ'!E206<5,'Tabel 2 NJ'!F208<0.5),"-",IFERROR('Tabel 2 NJ'!F208/'Tabel 1 NJ'!E206*100,"-")) -> 3.846153846 | G208: =IF(OR('Tabel 1 NJ'!E206<5,'Tabel 2 NJ'!G208<0.5),"-",IFERROR('Tabel 2 NJ'!G208/'Tabel 1 NJ'!E206*100,"-")) -> 3.845434177 | I208: =IF(OR('Tabel 1 NJ'!G206<5,'Tabel 2 NJ'!I208<0.5),"-",IFERROR('Tabel 2 NJ'!I208/'Tabel 1 NJ'!G206*100,"-")) -> 1.785714286 | J208: =IF(OR('Tabel 1 NJ'!G206<5,'Tabel 2 NJ'!J208<0.5),"-",IFERROR('Tabel 2 NJ'!J208/'Tabel 1 NJ'!G206*100,"-")) -> 1.785380153
A210: Total | C210: =IF(OR('Tabel 1 NJ'!C208<5,'Tabel 2 NJ'!C210<0.5),"-",IFERROR('Tabel 2 NJ'!C210/'Tabel 1 NJ'!C208*100,"-")) -> 2.429906542 | D210: =IF(OR('Tabel 1 NJ'!C208<5,'Tabel 2 NJ'!D210<0.5),"-",IFERROR('Tabel 2 NJ'!D210/'Tabel 1 NJ'!C208*100,"-")) -> 2.351691692 | F210: =IF(OR('Tabel 1 NJ'!E208<5,'Tabel 2 NJ'!F210<0.5),"-",IFERROR('Tabel 2 NJ'!F210/'Tabel 1 NJ'!E208*100,"-")) -> 4.4397463 | G210: =IF(OR('Tabel 1 NJ'!E208<5,'Tabel 2 NJ'!G210<0.5),"-",IFERROR('Tabel 2 NJ'!G210/'Tabel 1 NJ'!E208*100,"-")) -> 4.082752684 | I210: =IF(OR('Tabel 1 NJ'!G208<5,'Tabel 2 NJ'!I210<0.5),"-",IFERROR('Tabel 2 NJ'!I210/'Tabel 1 NJ'!G208*100,"-")) -> 3.373015873 | J210: =IF(OR('Tabel 1 NJ'!G208<5,'Tabel 2 NJ'!J210<0.5),"-",IFERROR('Tabel 2 NJ'!J210/'Tabel 1 NJ'!G208*100,"-")) -> 3.163985193
A212: Ingeniører i alt | C212: =IF(OR('Tabel 1 NJ'!C210<5,'Tabel 2 NJ'!C212<0.5),"-",IFERROR('Tabel 2 NJ'!C212/'Tabel 1 NJ'!C210*100,"-")) -> 1.075268817 | D212: =IF(OR('Tabel 1 NJ'!C210<5,'Tabel 2 NJ'!D212<0.5),"-",IFERROR('Tabel 2 NJ'!D212/'Tabel 1 NJ'!C210*100,"-")) -> 0.9486482517 | F212: =IF(OR('Tabel 1 NJ'!E210<5,'Tabel 2 NJ'!F212<0.5),"-",IFERROR('Tabel 2 NJ'!F212/'Tabel 1 NJ'!E210*100,"-")) -> 3.571428571 | G212: =IF(OR('Tabel 1 NJ'!E210<5,'Tabel 2 NJ'!G212<0.5),"-",IFERROR('Tabel 2 NJ'!G212/'Tabel 1 NJ'!E210*100,"-")) -> 3.158663827 | I212: =IF(OR('Tabel 1 NJ'!G210<5,'Tabel 2 NJ'!I212<0.5),"-",IFERROR('Tabel 2 NJ'!I212/'Tabel 1 NJ'!G210*100,"-")) -> 1.652892562 | J212: =IF(OR('Tabel 1 NJ'!G210<5,'Tabel 2 NJ'!J212<0.5),"-",IFERROR('Tabel 2 NJ'!J212/'Tabel 1 NJ'!G210*100,"-")) -> 1.460056815
A213: Magistre i alt | C213: =IF(OR('Tabel 1 NJ'!C211<5,'Tabel 2 NJ'!C213<0.5),"-",IFERROR('Tabel 2 NJ'!C213/'Tabel 1 NJ'!C211*100,"-")) -> 11.11111111 | D213: =IF(OR('Tabel 1 NJ'!C211<5,'Tabel 2 NJ'!D213<0.5),"-",IFERROR('Tabel 2 NJ'!D213/'Tabel 1 NJ'!C211*100,"-")) -> 10.82192581 | F213: =IF(OR('Tabel 1 NJ'!E211<5,'Tabel 2 NJ'!F213<0.5),"-",IFERROR('Tabel 2 NJ'!F213/'Tabel 1 NJ'!E211*100,"-")) -> 6.896551724 | G213: =IF(OR('Tabel 1 NJ'!E211<5,'Tabel 2 NJ'!G213<0.5),"-",IFERROR('Tabel 2 NJ'!G213/'Tabel 1 NJ'!E211*100,"-")) -> 6.232834434 | I213: =IF(OR('Tabel 1 NJ'!G211<5,'Tabel 2 NJ'!I213<0.5),"-",IFERROR('Tabel 2 NJ'!I213/'Tabel 1 NJ'!G211*100,"-")) -> 8.379888268 | J213: =IF(OR('Tabel 1 NJ'!G211<5,'Tabel 2 NJ'!J213<0.5),"-",IFERROR('Tabel 2 NJ'!J213/'Tabel 1 NJ'!G211*100,"-")) -> 7.847989499
A214: DJØF'ere i alt | C214: =IF(OR('Tabel 1 NJ'!C212<5,'Tabel 2 NJ'!C214<0.5),"-",IFERROR('Tabel 2 NJ'!C214/'Tabel 1 NJ'!C212*100,"-")) -> 2.083333333 | D214: =IF(OR('Tabel 1 NJ'!C212<5,'Tabel 2 NJ'!D214<0.5),"-",IFERROR('Tabel 2 NJ'!D214/'Tabel 1 NJ'!C212*100,"-")) -> 2.082943512 | F214: =IF(OR('Tabel 1 NJ'!E212<5,'Tabel 2 NJ'!F214<0.5),"-",IFERROR('Tabel 2 NJ'!F214/'Tabel 1 NJ'!E212*100,"-")) -> 4.424778761 | G214: =IF(OR('Tabel 1 NJ'!E212<5,'Tabel 2 NJ'!G214<0.5),"-",IFERROR('Tabel 2 NJ'!G214/'Tabel 1 NJ'!E212*100,"-")) -> 4.062417724 | I214: =IF(OR('Tabel 1 NJ'!G212<5,'Tabel 2 NJ'!I214<0.5),"-",IFERROR('Tabel 2 NJ'!I214/'Tabel 1 NJ'!G212*100,"-")) -> 3.349282297 | J214: =IF(OR('Tabel 1 NJ'!G212<5,'Tabel 2 NJ'!J214<0.5),"-",IFERROR('Tabel 2 NJ'!J214/'Tabel 1 NJ'!G212*100,"-")) -> 3.15318555
A219: Frederikshavn
C221: Mænd | F221: Kvinder | I221: I alt
C222: Ledigheds- berørte | D222: Gns. brutto- ledighed | F222: Ledigheds- berørte | G222: Gns. brutto- ledighed | I222: Ledigheds- berørte | J222: Gns. brutto- ledighed
A225: Civ. ing. | C225: =IF(OR('Tabel 1 NJ'!C223<5,'Tabel 2 NJ'!C225<0.5),"-",IFERROR('Tabel 2 NJ'!C225/'Tabel 1 NJ'!C223*100,"-")) -> - | D225: =IF(OR('Tabel 1 NJ'!C223<5,'Tabel 2 NJ'!D225<0.5),"-",IFERROR('Tabel 2 NJ'!D225/'Tabel 1 NJ'!C223*100,"-")) -> - | F225: =IF(OR('Tabel 1 NJ'!E223<5,'Tabel 2 NJ'!F225<0.5),"-",IFERROR('Tabel 2 NJ'!F225/'Tabel 1 NJ'!E223*100,"-")) -> - | G225: =IF(OR('Tabel 1 NJ'!E223<5,'Tabel 2 NJ'!G225<0.5),"-",IFERROR('Tabel 2 NJ'!G225/'Tabel 1 NJ'!E223*100,"-")) -> - | I225: =IF(OR('Tabel 1 NJ'!G223<5,'Tabel 2 NJ'!I225<0.5),"-",IFERROR('Tabel 2 NJ'!I225/'Tabel 1 NJ'!G223*100,"-")) -> - | J225: =IF(OR('Tabel 1 NJ'!G223<5,'Tabel 2 NJ'!J225<0.5),"-",IFERROR('Tabel 2 NJ'!J225/'Tabel 1 NJ'!G223*100,"-")) -> -
A226: Diplom ing. | C226: =IF(OR('Tabel 1 NJ'!C224<5,'Tabel 2 NJ'!C226<0.5),"-",IFERROR('Tabel 2 NJ'!C226/'Tabel 1 NJ'!C224*100,"-")) -> 1.587301587 | D226: =IF(OR('Tabel 1 NJ'!C224<5,'Tabel 2 NJ'!D226<0.5),"-",IFERROR('Tabel 2 NJ'!D226/'Tabel 1 NJ'!C224*100,"-")) -> 1.220696599 | F226: =IF(OR('Tabel 1 NJ'!E224<5,'Tabel 2 NJ'!F226<0.5),"-",IFERROR('Tabel 2 NJ'!F226/'Tabel 1 NJ'!E224*100,"-")) -> - | G226: =IF(OR('Tabel 1 NJ'!E224<5,'Tabel 2 NJ'!G226<0.5),"-",IFERROR('Tabel 2 NJ'!G226/'Tabel 1 NJ'!E224*100,"-")) -> - | I226: =IF(OR('Tabel 1 NJ'!G224<5,'Tabel 2 NJ'!I226<0.5),"-",IFERROR('Tabel 2 NJ'!I226/'Tabel 1 NJ'!G224*100,"-")) -> 1.282051282 | J226: =IF(OR('Tabel 1 NJ'!G224<5,'Tabel 2 NJ'!J226<0.5),"-",IFERROR('Tabel 2 NJ'!J226/'Tabel 1 NJ'!G224*100,"-")) -> 0.985947253
A227: Cand. Scient. Tek. | C227: =IF(OR('Tabel 1 NJ'!C225<5,'Tabel 2 NJ'!C227<0.5),"-",IFERROR('Tabel 2 NJ'!C227/'Tabel 1 NJ'!C225*100,"-")) -> - | D227: =IF(OR('Tabel 1 NJ'!C225<5,'Tabel 2 NJ'!D227<0.5),"-",IFERROR('Tabel 2 NJ'!D227/'Tabel 1 NJ'!C225*100,"-")) -> - | F227: =IF(OR('Tabel 1 NJ'!E225<5,'Tabel 2 NJ'!F227<0.5),"-",IFERROR('Tabel 2 NJ'!F227/'Tabel 1 NJ'!E225*100,"-")) -> - | G227: =IF(OR('Tabel 1 NJ'!E225<5,'Tabel 2 NJ'!G227<0.5),"-",IFERROR('Tabel 2 NJ'!G227/'Tabel 1 NJ'!E225*100,"-")) -> - | I227: =IF(OR('Tabel 1 NJ'!G225<5,'Tabel 2 NJ'!I227<0.5),"-",IFERROR('Tabel 2 NJ'!I227/'Tabel 1 NJ'!G225*100,"-")) -> - | J227: =IF(OR('Tabel 1 NJ'!G225<5,'Tabel 2 NJ'!J227<0.5),"-",IFERROR('Tabel 2 NJ'!J227/'Tabel 1 NJ'!G225*100,"-")) -> -
A228: MA. Hum. | C228: =IF(OR('Tabel 1 NJ'!C226<5,'Tabel 2 NJ'!C228<0.5),"-",IFERROR('Tabel 2 NJ'!C228/'Tabel 1 NJ'!C226*100,"-")) -> 14.28571429 | D228: =IF(OR('Tabel 1 NJ'!C226<5,'Tabel 2 NJ'!D228<0.5),"-",IFERROR('Tabel 2 NJ'!D228/'Tabel 1 NJ'!C226*100,"-")) -> 13.24054851 | F228: =IF(OR('Tabel 1 NJ'!E226<5,'Tabel 2 NJ'!F228<0.5),"-",IFERROR('Tabel 2 NJ'!F228/'Tabel 1 NJ'!E226*100,"-")) -> 7.070707071 | G228: =IF(OR('Tabel 1 NJ'!E226<5,'Tabel 2 NJ'!G228<0.5),"-",IFERROR('Tabel 2 NJ'!G228/'Tabel 1 NJ'!E226*100,"-")) -> 5.043889906 | I228: =IF(OR('Tabel 1 NJ'!G226<5,'Tabel 2 NJ'!I228<0.5),"-",IFERROR('Tabel 2 NJ'!I228/'Tabel 1 NJ'!G226*100,"-")) -> 8.661417323 | J228: =IF(OR('Tabel 1 NJ'!G226<5,'Tabel 2 NJ'!J228<0.5),"-",IFERROR('Tabel 2 NJ'!J228/'Tabel 1 NJ'!G226*100,"-")) -> 6.851027237
A229: MA. Nat. | C229: =IF(OR('Tabel 1 NJ'!C227<5,'Tabel 2 NJ'!C229<0.5),"-",IFERROR('Tabel 2 NJ'!C229/'Tabel 1 NJ'!C227*100,"-")) -> - | D229: =IF(OR('Tabel 1 NJ'!C227<5,'Tabel 2 NJ'!D229<0.5),"-",IFERROR('Tabel 2 NJ'!D229/'Tabel 1 NJ'!C227*100,"-")) -> - | F229: =IF(OR('Tabel 1 NJ'!E227<5,'Tabel 2 NJ'!F229<0.5),"-",IFERROR('Tabel 2 NJ'!F229/'Tabel 1 NJ'!E227*100,"-")) -> - | G229: =IF(OR('Tabel 1 NJ'!E227<5,'Tabel 2 NJ'!G229<0.5),"-",IFERROR('Tabel 2 NJ'!G229/'Tabel 1 NJ'!E227*100,"-")) -> - | I229: =IF(OR('Tabel 1 NJ'!G227<5,'Tabel 2 NJ'!I229<0.5),"-",IFERROR('Tabel 2 NJ'!I229/'Tabel 1 NJ'!G227*100,"-")) -> - | J229: =IF(OR('Tabel 1 NJ'!G227<5,'Tabel 2 NJ'!J229<0.5),"-",IFERROR('Tabel 2 NJ'!J229/'Tabel 1 NJ'!G227*100,"-")) -> -
A230: MA. Ph.d. | C230: =IF(OR('Tabel 1 NJ'!C228<5,'Tabel 2 NJ'!C230<0.5),"-",IFERROR('Tabel 2 NJ'!C230/'Tabel 1 NJ'!C228*100,"-")) -> - | D230: =IF(OR('Tabel 1 NJ'!C228<5,'Tabel 2 NJ'!D230<0.5),"-",IFERROR('Tabel 2 NJ'!D230/'Tabel 1 NJ'!C228*100,"-")) -> - | F230: =IF(OR('Tabel 1 NJ'!E228<5,'Tabel 2 NJ'!F230<0.5),"-",IFERROR('Tabel 2 NJ'!F230/'Tabel 1 NJ'!E228*100,"-")) -> - | G230: =IF(OR('Tabel 1 NJ'!E228<5,'Tabel 2 NJ'!G230<0.5),"-",IFERROR('Tabel 2 NJ'!G230/'Tabel 1 NJ'!E228*100,"-")) -> - | I230: =IF(OR('Tabel 1 NJ'!G228<5,'Tabel 2 NJ'!I230<0.5),"-",IFERROR('Tabel 2 NJ'!I230/'Tabel 1 NJ'!G228*100,"-")) -> - | J230: =IF(OR('Tabel 1 NJ'!G228<5,'Tabel 2 NJ'!J230<0.5),"-",IFERROR('Tabel 2 NJ'!J230/'Tabel 1 NJ'!G228*100,"-")) -> -
A231: MA. Samf. | C231: =IF(OR('Tabel 1 NJ'!C229<5,'Tabel 2 NJ'!C231<0.5),"-",IFERROR('Tabel 2 NJ'!C231/'Tabel 1 NJ'!C229*100,"-")) -> - | D231: =IF(OR('Tabel 1 NJ'!C229<5,'Tabel 2 NJ'!D231<0.5),"-",IFERROR('Tabel 2 NJ'!D231/'Tabel 1 NJ'!C229*100,"-")) -> - | F231: =IF(OR('Tabel 1 NJ'!E229<5,'Tabel 2 NJ'!F231<0.5),"-",IFERROR('Tabel 2 NJ'!F231/'Tabel 1 NJ'!E229*100,"-")) -> 40 | G231: =IF(OR('Tabel 1 NJ'!E229<5,'Tabel 2 NJ'!G231<0.5),"-",IFERROR('Tabel 2 NJ'!G231/'Tabel 1 NJ'!E229*100,"-")) -> 25.99638246 | I231: =IF(OR('Tabel 1 NJ'!G229<5,'Tabel 2 NJ'!I231<0.5),"-",IFERROR('Tabel 2 NJ'!I231/'Tabel 1 NJ'!G229*100,"-")) -> 20 | J231: =IF(OR('Tabel 1 NJ'!G229<5,'Tabel 2 NJ'!J231<0.5),"-",IFERROR('Tabel 2 NJ'!J231/'Tabel 1 NJ'!G229*100,"-")) -> 12.99819123
A232: Øvrige Mag. | C232: =IF(OR('Tabel 1 NJ'!C230<5,'Tabel 2 NJ'!C232<0.5),"-",IFERROR('Tabel 2 NJ'!C232/'Tabel 1 NJ'!C230*100,"-")) -> 20 | D232: =IF(OR('Tabel 1 NJ'!C230<5,'Tabel 2 NJ'!D232<0.5),"-",IFERROR('Tabel 2 NJ'!D232/'Tabel 1 NJ'!C230*100,"-")) -> 19.99625772 | F232: =IF(OR('Tabel 1 NJ'!E230<5,'Tabel 2 NJ'!F232<0.5),"-",IFERROR('Tabel 2 NJ'!F232/'Tabel 1 NJ'!E230*100,"-")) -> 16.66666667 | G232: =IF(OR('Tabel 1 NJ'!E230<5,'Tabel 2 NJ'!G232<0.5),"-",IFERROR('Tabel 2 NJ'!G232/'Tabel 1 NJ'!E230*100,"-")) -> 16.6635481 | I232: =IF(OR('Tabel 1 NJ'!G230<5,'Tabel 2 NJ'!I232<0.5),"-",IFERROR('Tabel 2 NJ'!I232/'Tabel 1 NJ'!G230*100,"-")) -> 18.18181818 | J232: =IF(OR('Tabel 1 NJ'!G230<5,'Tabel 2 NJ'!J232<0.5),"-",IFERROR('Tabel 2 NJ'!J232/'Tabel 1 NJ'!G230*100,"-")) -> 18.17841611
A233: Agronom | C233: =IF(OR('Tabel 1 NJ'!C231<5,'Tabel 2 NJ'!C233<0.5),"-",IFERROR('Tabel 2 NJ'!C233/'Tabel 1 NJ'!C231*100,"-")) -> - | D233: =IF(OR('Tabel 1 NJ'!C231<5,'Tabel 2 NJ'!D233<0.5),"-",IFERROR('Tabel 2 NJ'!D233/'Tabel 1 NJ'!C231*100,"-")) -> - | F233: =IF(OR('Tabel 1 NJ'!E231<5,'Tabel 2 NJ'!F233<0.5),"-",IFERROR('Tabel 2 NJ'!F233/'Tabel 1 NJ'!E231*100,"-")) -> - | G233: =IF(OR('Tabel 1 NJ'!E231<5,'Tabel 2 NJ'!G233<0.5),"-",IFERROR('Tabel 2 NJ'!G233/'Tabel 1 NJ'!E231*100,"-")) -> - | I233: =IF(OR('Tabel 1 NJ'!G231<5,'Tabel 2 NJ'!I233<0.5),"-",IFERROR('Tabel 2 NJ'!I233/'Tabel 1 NJ'!G231*100,"-")) -> - | J233: =IF(OR('Tabel 1 NJ'!G231<5,'Tabel 2 NJ'!J233<0.5),"-",IFERROR('Tabel 2 NJ'!J233/'Tabel 1 NJ'!G231*100,"-")) -> -
A234: Landsk. Arkt. | C234: =IF(OR('Tabel 1 NJ'!C232<5,'Tabel 2 NJ'!C234<0.5),"-",IFERROR('Tabel 2 NJ'!C234/'Tabel 1 NJ'!C232*100,"-")) -> - | D234: =IF(OR('Tabel 1 NJ'!C232<5,'Tabel 2 NJ'!D234<0.5),"-",IFERROR('Tabel 2 NJ'!D234/'Tabel 1 NJ'!C232*100,"-")) -> - | F234: =IF(OR('Tabel 1 NJ'!E232<5,'Tabel 2 NJ'!F234<0.5),"-",IFERROR('Tabel 2 NJ'!F234/'Tabel 1 NJ'!E232*100,"-")) -> - | G234: =IF(OR('Tabel 1 NJ'!E232<5,'Tabel 2 NJ'!G234<0.5),"-",IFERROR('Tabel 2 NJ'!G234/'Tabel 1 NJ'!E232*100,"-")) -> - | I234: =IF(OR('Tabel 1 NJ'!G232<5,'Tabel 2 NJ'!I234<0.5),"-",IFERROR('Tabel 2 NJ'!I234/'Tabel 1 NJ'!G232*100,"-")) -> - | J234: =IF(OR('Tabel 1 NJ'!G232<5,'Tabel 2 NJ'!J234<0.5),"-",IFERROR('Tabel 2 NJ'!J234/'Tabel 1 NJ'!G232*100,"-")) -> -
A235: Hortonom | C235: =IF(OR('Tabel 1 NJ'!C233<5,'Tabel 2 NJ'!C235<0.5),"-",IFERROR('Tabel 2 NJ'!C235/'Tabel 1 NJ'!C233*100,"-")) -> - | D235: =IF(OR('Tabel 1 NJ'!C233<5,'Tabel 2 NJ'!D235<0.5),"-",IFERROR('Tabel 2 NJ'!D235/'Tabel 1 NJ'!C233*100,"-")) -> - | F235: =IF(OR('Tabel 1 NJ'!E233<5,'Tabel 2 NJ'!F235<0.5),"-",IFERROR('Tabel 2 NJ'!F235/'Tabel 1 NJ'!E233*100,"-")) -> - | G235: =IF(OR('Tabel 1 NJ'!E233<5,'Tabel 2 NJ'!G235<0.5),"-",IFERROR('Tabel 2 NJ'!G235/'Tabel 1 NJ'!E233*100,"-")) -> - | I235: =IF(OR('Tabel 1 NJ'!G233<5,'Tabel 2 NJ'!I235<0.5),"-",IFERROR('Tabel 2 NJ'!I235/'Tabel 1 NJ'!G233*100,"-")) -> - | J235: =IF(OR('Tabel 1 NJ'!G233<5,'Tabel 2 NJ'!J235<0.5),"-",IFERROR('Tabel 2 NJ'!J235/'Tabel 1 NJ'!G233*100,"-")) -> -
A236: Forstkand. | C236: =IF(OR('Tabel 1 NJ'!C234<5,'Tabel 2 NJ'!C236<0.5),"-",IFERROR('Tabel 2 NJ'!C236/'Tabel 1 NJ'!C234*100,"-")) -> - | D236: =IF(OR('Tabel 1 NJ'!C234<5,'Tabel 2 NJ'!D236<0.5),"-",IFERROR('Tabel 2 NJ'!D236/'Tabel 1 NJ'!C234*100,"-")) -> - | F236: =IF(OR('Tabel 1 NJ'!E234<5,'Tabel 2 NJ'!F236<0.5),"-",IFERROR('Tabel 2 NJ'!F236/'Tabel 1 NJ'!E234*100,"-")) -> - | G236: =IF(OR('Tabel 1 NJ'!E234<5,'Tabel 2 NJ'!G236<0.5),"-",IFERROR('Tabel 2 NJ'!G236/'Tabel 1 NJ'!E234*100,"-")) -> - | I236: =IF(OR('Tabel 1 NJ'!G234<5,'Tabel 2 NJ'!I236<0.5),"-",IFERROR('Tabel 2 NJ'!I236/'Tabel 1 NJ'!G234*100,"-")) -> - | J236: =IF(OR('Tabel 1 NJ'!G234<5,'Tabel 2 NJ'!J236<0.5),"-",IFERROR('Tabel 2 NJ'!J236/'Tabel 1 NJ'!G234*100,"-")) -> -
A237: Jordbrugsakad. | C237: =IF(OR('Tabel 1 NJ'!C235<5,'Tabel 2 NJ'!C237<0.5),"-",IFERROR('Tabel 2 NJ'!C237/'Tabel 1 NJ'!C235*100,"-")) -> - | D237: =IF(OR('Tabel 1 NJ'!C235<5,'Tabel 2 NJ'!D237<0.5),"-",IFERROR('Tabel 2 NJ'!D237/'Tabel 1 NJ'!C235*100,"-")) -> - | F237: =IF(OR('Tabel 1 NJ'!E235<5,'Tabel 2 NJ'!F237<0.5),"-",IFERROR('Tabel 2 NJ'!F237/'Tabel 1 NJ'!E235*100,"-")) -> - | G237: =IF(OR('Tabel 1 NJ'!E235<5,'Tabel 2 NJ'!G237<0.5),"-",IFERROR('Tabel 2 NJ'!G237/'Tabel 1 NJ'!E235*100,"-")) -> - | I237: =IF(OR('Tabel 1 NJ'!G235<5,'Tabel 2 NJ'!I237<0.5),"-",IFERROR('Tabel 2 NJ'!I237/'Tabel 1 NJ'!G235*100,"-")) -> - | J237: =IF(OR('Tabel 1 NJ'!G235<5,'Tabel 2 NJ'!J237<0.5),"-",IFERROR('Tabel 2 NJ'!J237/'Tabel 1 NJ'!G235*100,"-")) -> -
A238: Mejeriing. | C238: =IF(OR('Tabel 1 NJ'!C236<5,'Tabel 2 NJ'!C238<0.5),"-",IFERROR('Tabel 2 NJ'!C238/'Tabel 1 NJ'!C236*100,"-")) -> - | D238: =IF(OR('Tabel 1 NJ'!C236<5,'Tabel 2 NJ'!D238<0.5),"-",IFERROR('Tabel 2 NJ'!D238/'Tabel 1 NJ'!C236*100,"-")) -> - | F238: =IF(OR('Tabel 1 NJ'!E236<5,'Tabel 2 NJ'!F238<0.5),"-",IFERROR('Tabel 2 NJ'!F238/'Tabel 1 NJ'!E236*100,"-")) -> - | G238: =IF(OR('Tabel 1 NJ'!E236<5,'Tabel 2 NJ'!G238<0.5),"-",IFERROR('Tabel 2 NJ'!G238/'Tabel 1 NJ'!E236*100,"-")) -> - | I238: =IF(OR('Tabel 1 NJ'!G236<5,'Tabel 2 NJ'!I238<0.5),"-",IFERROR('Tabel 2 NJ'!I238/'Tabel 1 NJ'!G236*100,"-")) -> - | J238: =IF(OR('Tabel 1 NJ'!G236<5,'Tabel 2 NJ'!J238<0.5),"-",IFERROR('Tabel 2 NJ'!J238/'Tabel 1 NJ'!G236*100,"-")) -> -
A239: Levn.m.kand. | C239: =IF(OR('Tabel 1 NJ'!C237<5,'Tabel 2 NJ'!C239<0.5),"-",IFERROR('Tabel 2 NJ'!C239/'Tabel 1 NJ'!C237*100,"-")) -> - | D239: =IF(OR('Tabel 1 NJ'!C237<5,'Tabel 2 NJ'!D239<0.5),"-",IFERROR('Tabel 2 NJ'!D239/'Tabel 1 NJ'!C237*100,"-")) -> - | F239: =IF(OR('Tabel 1 NJ'!E237<5,'Tabel 2 NJ'!F239<0.5),"-",IFERROR('Tabel 2 NJ'!F239/'Tabel 1 NJ'!E237*100,"-")) -> - | G239: =IF(OR('Tabel 1 NJ'!E237<5,'Tabel 2 NJ'!G239<0.5),"-",IFERROR('Tabel 2 NJ'!G239/'Tabel 1 NJ'!E237*100,"-")) -> - | I239: =IF(OR('Tabel 1 NJ'!G237<5,'Tabel 2 NJ'!I239<0.5),"-",IFERROR('Tabel 2 NJ'!I239/'Tabel 1 NJ'!G237*100,"-")) -> - | J239: =IF(OR('Tabel 1 NJ'!G237<5,'Tabel 2 NJ'!J239<0.5),"-",IFERROR('Tabel 2 NJ'!J239/'Tabel 1 NJ'!G237*100,"-")) -> -
A240: Dyrlæge | C240: =IF(OR('Tabel 1 NJ'!C238<5,'Tabel 2 NJ'!C240<0.5),"-",IFERROR('Tabel 2 NJ'!C240/'Tabel 1 NJ'!C238*100,"-")) -> - | D240: =IF(OR('Tabel 1 NJ'!C238<5,'Tabel 2 NJ'!D240<0.5),"-",IFERROR('Tabel 2 NJ'!D240/'Tabel 1 NJ'!C238*100,"-")) -> - | F240: =IF(OR('Tabel 1 NJ'!E238<5,'Tabel 2 NJ'!F240<0.5),"-",IFERROR('Tabel 2 NJ'!F240/'Tabel 1 NJ'!E238*100,"-")) -> - | G240: =IF(OR('Tabel 1 NJ'!E238<5,'Tabel 2 NJ'!G240<0.5),"-",IFERROR('Tabel 2 NJ'!G240/'Tabel 1 NJ'!E238*100,"-")) -> - | I240: =IF(OR('Tabel 1 NJ'!G238<5,'Tabel 2 NJ'!I240<0.5),"-",IFERROR('Tabel 2 NJ'!I240/'Tabel 1 NJ'!G238*100,"-")) -> - | J240: =IF(OR('Tabel 1 NJ'!G238<5,'Tabel 2 NJ'!J240<0.5),"-",IFERROR('Tabel 2 NJ'!J240/'Tabel 1 NJ'!G238*100,"-")) -> -
... 341 more rows

Sheet Tabel 4F NJ
A1: Tabel 4. Antal forsikrede - aldersfordelt
A3: Nordjylland
C5: Under 30 år | D5: 30 - 39 år | E5: 40 - 49 år | F5: 50 - 59 år | G5: Over 60 år | I5: I alt
A7: Civ. ing. | C7: 946 | D7: 1206 | E7: 1024 | F7: 789 | G7: 203 | I7: 4168
A8: Diplom ing. | C8: 122 | D8: 167 | E8: 329 | F8: 595 | G8: 241 | I8: 1454
A9: Cand. Scient. Tek. | C9: 590 | D9: 724 | E9: 221 | F9: 75 | G9: 15 | I9: 1625
A10: MA. Hum. | C10: 507 | D10: 1029 | E10: 982 | F10: 447 | G10: 173 | I10: 3138
A11: MA. Nat. | C11: 56 | D11: 190 | E11: 234 | F11: 151 | G11: 62 | I11: 693
A12: MA. Ph.d. | C12: 1 | D12: 20 | E12: 39 | F12: 25 | G12: 10 | I12: 95
A13: MA. Samf. | C13: 141 | D13: 188 | E13: 42 | F13: 12 | G13: 5 | I13: 388
A14: Øvrige Mag. | C14: 64 | D14: 47 | E14: 54 | F14: 55 | G14: 39 | I14: 259
A15: Agronom | C15: 2 | D15: 10 | E15: 35 | F15: 57 | G15: 26 | I15: 130
A16: Landsk. Arkt. | C16: 1 | D16: 8 | E16: 4 | F16: 2 | G16: 0 | I16: 15
A17: Hortonom | C17: 0 | D17: 0 | E17: 0 | F17: 3 | G17: 0 | I17: 3
A18: Forstkand. | C18: 0 | D18: 2 | E18: 9 | F18: 7 | G18: 4 | I18: 22
A19: Jordbrugsakad. | C19: 3 | D19: 20 | E19: 48 | F19: 69 | G19: 30 | I19: 170
A20: Mejeriing. | C20: 0 | D20: 2 | E20: 2 | F20: 8 | G20: 6 | I20: 18
A21: Levn.m.kand. | C21: 1 | D21: 3 | E21: 2 | F21: 0 | G21: 0 | I21: 6
A22: Dyrlæge | C22: 22 | D22: 65 | E22: 48 | F22: 49 | G22: 10 | I22: 194
A23: Farmaceut | C23: 18 | D23: 47 | E23: 31 | F23: 14 | G23: 12 | I23: 122
A24: Læge | C24: 219 | D24: 341 | E24: 167 | F24: 88 | G24: 53 | I24: 868
A25: Tandlæge | C25: 23 | D25: 33 | E25: 25 | F25: 23 | G25: 17 | I25: 121
A26: Arkitekt | C26: 14 | D26: 34 | E26: 39 | F26: 23 | G26: 25 | I26: 135
A27: Landinspek. | C27: 19 | D27: 48 | E27: 68 | F27: 79 | G27: 21 | I27: 235
A28: Bibliotekar | C28: 7 | D28: 65 | E28: 107 | F28: 78 | G28: 52 | I28: 309
A29: Musikudd. | C29: 0 | D29: 14 | E29: 20 | F29: 36 | G29: 29 | I29: 99
A30: Teolog | C30: 4 | D30: 27 | E30: 41 | F30: 58 | G30: 32 | I30: 162
A31: Psykolog | C31: 206 | D31: 299 | E31: 162 | F31: 62 | G31: 31 | I31: 760
A32: Jurist | C32: 204 | D32: 253 | E32: 127 | F32: 92 | G32: 31 | I32: 707
A33: Økonom | C33: 120 | D33: 161 | E33: 75 | F33: 96 | G33: 17 | I33: 469
A34: Samf. Adm. | C34: 291 | D34: 647 | E34: 382 | F34: 188 | G34: 48 | I34: 1556
A35: Cand. Merc. | C35: 627 | D35: 760 | E35: 448 | F35: 371 | G35: 49 | I35: 2255
A36: HA | C36: 155 | D36: 79 | E36: 54 | F36: 137 | G36: 34 | I36: 459
A37: HD | C37: 53 | D37: 60 | E37: 59 | F37: 109 | G37: 53 | I37: 334
A38: Komm. og Sprog | C38: 59 | D38: 95 | E38: 107 | F38: 77 | G38: 35 | I38: 373
A39: Bygningskonst. | C39: 169 | D39: 395 | E39: 255 | F39: 86 | G39: 27 | I39: 932
A40: Cand. IT. | C40: 205 | D40: 302 | E40: 63 | F40: 4 | G40: 2 | I40: 576
A41: Bac. Samf. | C41: 13 | D41: 15 | E41: 19 | F41: 15 | G41: 2 | I41: 64
A42: Bac. Hum. | C42: 144 | D42: 61 | E42: 61 | F42: 45 | G42: 15 | I42: 326
A43: Bac. Nat. | C43: 140 | D43: 99 | E43: 41 | F43: 19 | G43: 5 | I43: 304
A44: Andre | C44: 210 | D44: 438 | E44: 285 | F44: 200 | G44: 119 | I44: 1252
A46: Total | C46: 5353 | D46: 7934 | E46: 5661 | F46: 4175 | G46: 1503 | I46: 24626
A48: Ingeniører i alt | C48: 1068 | D48: 1373 | E48: 1353 | F48: 1384 | G48: 444 | I48: 5622
A49: Magistre i alt | C49: 769 | D49: 1474 | E49: 1351 | F49: 690 | G49: 289 | I49: 4573
A50: DJØF'ere i alt | C50: 1397 | D50: 1900 | E50: 1086 | F50: 884 | G50: 179 | I50: 5446
A57: Morsø
C59: Under 30 år | D59: 30 - 39 år | E59: 40 - 49 år | F59: 50 - 59 år | G59: Over 60 år | I59: I alt
A61: Civ. ing. | C61: 2 | D61: 11 | E61: 6 | F61: 6 | G61: 0 | I61: 25
A62: Diplom ing. | C62: 0 | D62: 5 | E62: 6 | F62: 12 | G62: 2 | I62: 25
A63: Cand. Scient. Tek. | C63: 3 | D63: 1 | E63: 0 | F63: 2 | G63: 2 | I63: 8
A64: MA. Hum. | C64: 4 | D64: 11 | E64: 8 | F64: 11 | G64: 4 | I64: 38
A65: MA. Nat. | C65: 0 | D65: 6 | E65: 7 | F65: 4 | G65: 2 | I65: 19
A66: MA. Ph.d. | C66: 0 | D66: 2 | E66: 2 | F66: 0 | G66: 0 | I66: 4
A67: MA. Samf. | C67: 1 | D67: 2 | E67: 0 | F67: 0 | G67: 0 | I67: 3
A68: Øvrige Mag. | C68: 3 | D68: 0 | E68: 0 | F68: 0 | G68: 1 | I68: 4
A69: Agronom | C69: 0 | D69: 0 | E69: 0 | F69: 1 | G69: 2 | I69: 3
A70: Landsk. Arkt. | C70: 0 | D70: 2 | E70: 0 | F70: 0 | G70: 0 | I70: 2
A71: Hortonom | C71: 0 | D71: 0 | E71: 0 | F71: 0 | G71: 0 | I71: 0
A72: Forstkand. | C72: 0 | D72: 0 | E72: 0 | F72: 0 | G72: 0 | I72: 0
A73: Jordbrugsakad. | C73: 0 | D73: 2 | E73: 0 | F73: 1 | G73: 2 | I73: 5
A74: Mejeriing. | C74: 0 | D74: 0 | E74: 0 | F74: 0 | G74: 0 | I74: 0
A75: Levn.m.kand. | C75: 1 | D75: 0 | E75: 0 | F75: 0 | G75: 0 | I75: 1
A76: Dyrlæge | C76: 1 | D76: 1 | E76: 1 | F76: 2 | G76: 0 | I76: 5
A77: Farmaceut | C77: 0 | D77: 0 | E77: 0 | F77: 0 | G77: 0 | I77: 0
A78: Læge | C78: 1 | D78: 2 | E78: 0 | F78: 0 | G78: 1 | I78: 4
A79: Tandlæge | C79: 1 | D79: 0 | E79: 0 | F79: 1 | G79: 1 | I79: 3
A80: Arkitekt | C80: 0 | D80: 1 | E80: 0 | F80: 2 | G80: 0 | I80: 3
A81: Landinspek. | C81: 0 | D81: 1 | E81: 0 | F81: 0 | G81: 1 | I81: 2
A82: Bibliotekar | C82: 0 | D82: 2 | E82: 6 | F82: 0 | G82: 0 | I82: 8
A83: Musikudd. | C83: 0 | D83: 0 | E83: 0 | F83: 0 | G83: 0 | I83: 0
A84: Teolog | C84: 0 | D84: 0 | E84: 0 | F84: 2 | G84: 3 | I84: 5
A85: Psykolog | C85: 2 | D85: 0 | E85: 2 | F85: 0 | G85: 0 | I85: 4
A86: Jurist | C86: 4 | D86: 0 | E86: 3 | F86: 0 | G86: 2 | I86: 9
A87: Økonom | C87: 0 | D87: 0 | E87: 0 | F87: 2 | G87: 0 | I87: 2
A88: Samf. Adm. | C88: 0 | D88: 2 | E88: 5 | F88: 0 | G88: 0 | I88: 7
A89: Cand. Merc. | C89: 3 | D89: 5 | E89: 6 | F89: 6 | G89: 0 | I89: 20
A90: HA | C90: 2 | D90: 0 | E90: 0 | F90: 6 | G90: 0 | I90: 8
A91: HD | C91: 0 | D91: 2 | E91: 1 | F91: 2 | G91: 2 | I91: 7
A92: Komm. og Sprog | C92: 1 | D92: 0 | E92: 2 | F92: 1 | G92: 3 | I92: 7
A93: Bygningskonst. | C93: 2 | D93: 6 | E93: 4 | F93: 1 | G93: 1 | I93: 14
A94: Cand. IT. | C94: 0 | D94: 0 | E94: 0 | F94: 0 | G94: 0 | I94: 0
A95: Bac. Samf. | C95: 0 | D95: 0 | E95: 0 | F95: 0 | G95: 0 | I95: 0
A96: Bac. Hum. | C96: 3 | D96: 2 | E96: 1 | F96: 0 | G96: 0 | I96: 6
A97: Bac. Nat. | C97: 0 | D97: 1 | E97: 0 | F97: 0 | G97: 0 | I97: 1
A98: Andre | C98: 3 | D98: 1 | E98: 4 | F98: 5 | G98: 2 | I98: 15
A100: Total | C100: 37 | D100: 66 | E100: 64 | F100: 66 | G100: 29 | I100: 262
A102: Ingeniører i alt | C102: 2 | D102: 16 | E102: 12 | F102: 18 | G102: 2 | I102: 50
A103: Magistre i alt | C103: 8 | D103: 21 | E103: 17 | F103: 15 | G103: 7 | I103: 68
A104: DJØF'ere i alt | C104: 9 | D104: 7 | E104: 14 | F104: 14 | G104: 2 | I104: 46
A111: Thisted
C113: Under 30 år | D113: 30 - 39 år | E113: 40 - 49 år | F113: 50 - 59 år | G113: Over 60 år | I113: I alt
A115: Civ. ing. | C115: 10 | D115: 20 | E115: 14 | F115: 3 | G115: 8 | I115: 55
A116: Diplom ing. | C116: 3 | D116: 6 | E116: 12 | F116: 28 | G116: 13 | I116: 62
A117: Cand. Scient. Tek. | C117: 6 | D117: 24 | E117: 7 | F117: 1 | G117: 0 | I117: 38
A118: MA. Hum. | C118: 7 | D118: 49 | E118: 45 | F118: 25 | G118: 10 | I118: 136
A119: MA. Nat. | C119: 0 | D119: 9 | E119: 11 | F119: 8 | G119: 5 | I119: 33
A120: MA. Ph.d. | C120: 0 | D120: 0 | E120: 0 | F120: 1 | G120: 1 | I120: 2
A121: MA. Samf. | C121: 1 | D121: 10 | E121: 0 | F121: 1 | G121: 0 | I121: 12
A122: Øvrige Mag. | C122: 2 | D122: 1 | E122: 4 | F122: 2 | G122: 4 | I122: 13
A123: Agronom | C123: 0 | D123: 1 | E123: 2 | F123: 6 | G123: 0 | I123: 9
A124: Landsk. Arkt. | C124: 0 | D124: 1 | E124: 0 | F124: 0 | G124: 0 | I124: 1
A125: Hortonom | C125: 0 | D125: 0 | E125: 0 | F125: 0 | G125: 0 | I125: 0
A126: Forstkand. | C126: 0 | D126: 0 | E126: 2 | F126: 0 | G126: 1 | I126: 3
A127: Jordbrugsakad. | C127: 0 | D127: 2 | E127: 4 | F127: 6 | G127: 1 | I127: 13
A128: Mejeriing. | C128: 0 | D128: 0 | E128: 0 | F128: 1 | G128: 3 | I128: 4
A129: Levn.m.kand. | C129: 0 | D129: 0 | E129: 0 | F129: 0 | G129: 0 | I129: 0
A130: Dyrlæge | C130: 4 | D130: 9 | E130: 3 | F130: 2 | G130: 0 | I130: 18
A131: Farmaceut | C131: 2 | D131: 2 | E131: 1 | F131: 1 | G131: 2 | I131: 8
A132: Læge | C132: 13 | D132: 12 | E132: 6 | F132: 5 | G132: 1 | I132: 37
A133: Tandlæge | C133: 2 | D133: 2 | E133: 0 | F133: 2 | G133: 0 | I133: 6
A134: Arkitekt | C134: 1 | D134: 3 | E134: 5 | F134: 3 | G134: 1 | I134: 13
A135: Landinspek. | C135: 0 | D135: 0 | E135: 1 | F135: 3 | G135: 2 | I135: 6
A136: Bibliotekar | C136: 0 | D136: 4 | E136: 3 | F136: 1 | G136: 4 | I136: 12
A137: Musikudd. | C137: 0 | D137: 0 | E137: 0 | F137: 2 | G137: 2 | I137: 4
A138: Teolog | C138: 0 | D138: 2 | E138: 3 | F138: 5 | G138: 6 | I138: 16
A139: Psykolog | C139: 5 | D139: 5 | E139: 9 | F139: 2 | G139: 0 | I139: 21
A140: Jurist | C140: 4 | D140: 8 | E140: 3 | F140: 3 | G140: 1 | I140: 19
A141: Økonom | C141: 1 | D141: 4 | E141: 2 | F141: 6 | G141: 0 | I141: 13
A142: Samf. Adm. | C142: 8 | D142: 17 | E142: 8 | F142: 4 | G142: 3 | I142: 40
A143: Cand. Merc. | C143: 4 | D143: 14 | E143: 9 | F143: 14 | G143: 1 | I143: 42
A144: HA | C144: 0 | D144: 3 | E144: 2 | F144: 7 | G144: 0 | I144: 12
A145: HD | C145: 2 | D145: 2 | E145: 2 | F145: 6 | G145: 4 | I145: 16
A146: Komm. og Sprog | C146: 1 | D146: 3 | E146: 4 | F146: 2 | G146: 0 | I146: 10
A147: Bygningskonst. | C147: 4 | D147: 21 | E147: 11 | F147: 3 | G147: 4 | I147: 43
A148: Cand. IT. | C148: 2 | D148: 8 | E148: 0 | F148: 0 | G148: 1 | I148: 11
A149: Bac. Samf. | C149: 0 | D149: 0 | E149: 0 | F149: 3 | G149: 0 | I149: 3
A150: Bac. Hum. | C150: 5 | D150: 3 | E150: 2 | F150: 2 | G150: 2 | I150: 14
A151: Bac. Nat. | C151: 1 | D151: 4 | E151: 1 | F151: 1 | G151: 0 | I151: 7
A152: Andre | C152: 2 | D152: 10 | E152: 11 | F152: 7 | G152: 7 | I152: 37
A154: Total | C154: 90 | D154: 257 | E154: 183 | F154: 160 | G154: 86 | I154: 776
A156: Ingeniører i alt | C156: 13 | D156: 26 | E156: 26 | F156: 31 | G156: 21 | I156: 117
A157: Magistre i alt | C157: 10 | D157: 69 | E157: 60 | F157: 37 | G157: 20 | I157: 196
A158: DJØF'ere i alt | C158: 17 | D158: 46 | E158: 24 | F158: 34 | G158: 5 | I158: 126
A165: Brønderslev
C167: Under 30 år | D167: 30 - 39 år | E167: 40 - 49 år | F167: 50 - 59 år | G167: Over 60 år | I167: I alt
A169: Civ. ing. | C169: 18 | D169: 43 | E169: 60 | F169: 32 | G169: 8 | I169: 161
A170: Diplom ing. | C170: 8 | D170: 4 | E170: 20 | F170: 38 | G170: 11 | I170: 81
A171: Cand. Scient. Tek. | C171: 16 | D171: 29 | E171: 8 | F171: 5 | G171: 0 | I171: 58
A172: MA. Hum. | C172: 17 | D172: 44 | E172: 46 | F172: 12 | G172: 9 | I172: 128
A173: MA. Nat. | C173: 4 | D173: 6 | E173: 8 | F173: 9 | G173: 3 | I173: 30
A174: MA. Ph.d. | C174: 0 | D174: 0 | E174: 1 | F174: 0 | G174: 0 | I174: 1
A175: MA. Samf. | C175: 0 | D175: 6 | E175: 0 | F175: 2 | G175: 0 | I175: 8
A176: Øvrige Mag. | C176: 1 | D176: 0 | E176: 4 | F176: 6 | G176: 1 | I176: 12
A177: Agronom | C177: 0 | D177: 1 | E177: 3 | F177: 5 | G177: 1 | I177: 10
A178: Landsk. Arkt. | C178: 0 | D178: 0 | E178: 1 | F178: 0 | G178: 0 | I178: 1
A179: Hortonom | C179: 0 | D179: 0 | E179: 0 | F179: 0 | G179: 0 | I179: 0
A180: Forstkand. | C180: 0 | D180: 1 | E180: 0 | F180: 0 | G180: 0 | I180: 1
A181: Jordbrugsakad. | C181: 0 | D181: 2 | E181: 4 | F181: 5 | G181: 1 | I181: 12
A182: Mejeriing. | C182: 0 | D182: 0 | E182: 0 | F182: 1 | G182: 0 | I182: 1
A183: Levn.m.kand. | C183: 0 | D183: 0 | E183: 0 | F183: 0 | G183: 0 | I183: 0
A184: Dyrlæge | C184: 3 | D184: 5 | E184: 6 | F184: 5 | G184: 0 | I184: 19
A185: Farmaceut | C185: 1 | D185: 2 | E185: 1 | F185: 1 | G185: 0 | I185: 5
A186: Læge | C186: 4 | D186: 5 | E186: 6 | F186: 5 | G186: 6 | I186: 26
A187: Tandlæge | C187: 0 | D187: 2 | E187: 2 | F187: 0 | G187: 1 | I187: 5
A188: Arkitekt | C188: 0 | D188: 0 | E188: 0 | F188: 0 | G188: 1 | I188: 1
A189: Landinspek. | C189: 0 | D189: 4 | E189: 3 | F189: 4 | G189: 0 | I189: 11
A190: Bibliotekar | C190: 0 | D190: 4 | E190: 2 | F190: 5 | G190: 5 | I190: 16
A191: Musikudd. | C191: 0 | D191: 0 | E191: 0 | F191: 2 | G191: 4 | I191: 6
A192: Teolog | C192: 0 | D192: 2 | E192: 2 | F192: 1 | G192: 1 | I192: 6
A193: Psykolog | C193: 4 | D193: 13 | E193: 6 | F193: 3 | G193: 0 | I193: 26
A194: Jurist | C194: 3 | D194: 18 | E194: 3 | F194: 5 | G194: 1 | I194: 30
A195: Økonom | C195: 1 | D195: 7 | E195: 2 | F195: 7 | G195: 0 | I195: 17
A196: Samf. Adm. | C196: 5 | D196: 22 | E196: 10 | F196: 7 | G196: 1 | I196: 45
A197: Cand. Merc. | C197: 22 | D197: 34 | E197: 17 | F197: 25 | G197: 2 | I197: 100
A198: HA | C198: 1 | D198: 3 | E198: 6 | F198: 7 | G198: 0 | I198: 17
A199: HD | C199: 1 | D199: 2 | E199: 3 | F199: 8 | G199: 5 | I199: 19
A200: Komm. og Sprog | C200: 3 | D200: 6 | E200: 4 | F200: 9 | G200: 1 | I200: 23
A201: Bygningskonst. | C201: 11 | D201: 18 | E201: 20 | F201: 5 | G201: 0 | I201: 54
A202: Cand. IT. | C202: 2 | D202: 8 | E202: 1 | F202: 0 | G202: 0 | I202: 11
A203: Bac. Samf. | C203: 0 | D203: 0 | E203: 1 | F203: 0 | G203: 0 | I203: 1
A204: Bac. Hum. | C204: 3 | D204: 6 | E204: 6 | F204: 2 | G204: 1 | I204: 18
A205: Bac. Nat. | C205: 1 | D205: 1 | E205: 2 | F205: 0 | G205: 0 | I205: 4
A206: Andre | C206: 7 | D206: 18 | E206: 14 | F206: 9 | G206: 8 | I206: 56
A208: Total | C208: 136 | D208: 314 | E208: 268 | F208: 220 | G208: 70 | I208: 1008
A210: Ingeniører i alt | C210: 26 | D210: 47 | E210: 80 | F210: 70 | G210: 19 | I210: 242
A211: Magistre i alt | C211: 22 | D211: 56 | E211: 59 | F211: 29 | G211: 13 | I211: 179
A212: DJØF'ere i alt | C212: 32 | D212: 84 | E212: 38 | F212: 51 | G212: 4 | I212: 209
A219: Frederikshavn
C221: Under 30 år | D221: 30 - 39 år | E221: 40 - 49 år | F221: 50 - 59 år | G221: Over 60 år | I221: I alt
A223: Civ. ing. | C223: 9 | D223: 27 | E223: 21 | F223: 21 | G223: 9 | I223: 87
A224: Diplom ing. | C224: 0 | D224: 6 | E224: 16 | F224: 42 | G224: 14 | I224: 78
A225: Cand. Scient. Tek. | C225: 6 | D225: 10 | E225: 7 | F225: 3 | G225: 0 | I225: 26
A226: MA. Hum. | C226: 11 | D226: 44 | E226: 42 | F226: 23 | G226: 7 | I226: 127
A227: MA. Nat. | C227: 0 | D227: 4 | E227: 8 | F227: 4 | G227: 2 | I227: 18
A228: MA. Ph.d. | C228: 1 | D228: 0 | E228: 2 | F228: 1 | G228: 0 | I228: 4
A229: MA. Samf. | C229: 4 | D229: 5 | E229: 1 | F229: 0 | G229: 0 | I229: 10
A230: Øvrige Mag. | C230: 1 | D230: 2 | E230: 3 | F230: 2 | G230: 3 | I230: 11
A231: Agronom | C231: 0 | D231: 0 | E231: 3 | F231: 2 | G231: 2 | I231: 7
A232: Landsk. Arkt. | C232: 0 | D232: 1 | E232: 0 | F232: 0 | G232: 0 | I232: 1
A233: Hortonom | C233: 0 | D233: 0 | E233: 0 | F233: 0 | G233: 0 | I233: 0
A234: Forstkand. | C234: 0 | D234: 0 | E234: 2 | F234: 1 | G234: 0 | I234: 3
A235: Jordbrugsakad. | C235: 0 | D235: 1 | E235: 5 | F235: 3 | G235: 2 | I235: 11
A236: Mejeriing. | C236: 0 | D236: 0 | E236: 1 | F236: 0 | G236: 0 | I236: 1
A237: Levn.m.kand. | C237: 0 | D237: 0 | E237: 0 | F237: 0 | G237: 0 | I237: 0
A238: Dyrlæge | C238: 2 | D238: 5 | E238: 5 | F238: 5 | G238: 3 | I238: 20
A239: Farmaceut | C239: 0 | D239: 2 | E239: 2 | F239: 1 | G239: 3 | I239: 8
A240: Læge | C240: 5 | D240: 6 | E240: 3 | F240: 4 | G240: 2 | I240: 20
A241: Tandlæge | C241: 6 | D241: 3 | E241: 0 | F241: 2 | G241: 1 | I241: 12
A242: Arkitekt | C242: 0 | D242: 3 | E242: 1 | F242: 2 | G242: 1 | I242: 7
A243: Landinspek. | C243: 0 | D243: 1 | E243: 6 | F243: 4 | G243: 1 | I243: 12
... 329 more rows

Sheet Tabel 4 NJ
A1: Tabel 4. Ledighedsberørte - aldersfordelt
A3: Nordjylland
C5: Under 30 år | D5: 30 - 39 år | E5: 40 - 49 år | F5: 50 - 59 år | G5: Over 60 år | I5: I alt
A7: Civ. ing. | C7: 116 | D7: 21 | E7: 8 | F7: 9 | G7: 7 | I7: 161
A8: Diplom ing. | C8: 9 | D8: 2 | E8: 0 | F8: 10 | G8: 11 | I8: 32
A9: Cand. Scient. Tek | C9: 118 | D9: 30 | E9: 6 | F9: 2 | G9: 0 | I9: 156
A10: MA. Hum. | C10: 144 | D10: 117 | E10: 39 | F10: 31 | G10: 12 | I10: 343
A11: MA. Nat. | C11: 9 | D11: 4 | E11: 6 | F11: 2 | G11: 2 | I11: 23
A12: MA. Ph.d. | C12: 0 | D12: 0 | E12: 1 | F12: 3 | G12: 0 | I12: 4
A13: MA. Samf. | C13: 35 | D13: 29 | E13: 2 | F13: 0 | G13: 0 | I13: 66
A14: Øvrige Mag. | C14: 15 | D14: 9 | E14: 4 | F14: 1 | G14: 2 | I14: 31
A15: Agronom | C15: 1 | D15: 0 | E15: 1 | F15: 0 | G15: 0 | I15: 2
A16: Landsk. Arkt. | C16: 1 | D16: 0 | E16: 0 | F16: 0 | G16: 0 | I16: 1
A17: Hortonom | C17: 0 | D17: 0 | E17: 0 | F17: 0 | G17: 0 | I17: 0
A18: Forstkand. | C18: 0 | D18: 0 | E18: 0 | F18: 0 | G18: 0 | I18: 0
A19: Jordbrugsakad. | C19: 2 | D19: 0 | E19: 1 | F19: 0 | G19: 0 | I19: 3
A20: Mejeriing. | C20: 0 | D20: 0 | E20: 0 | F20: 0 | G20: 1 | I20: 1
A21: Levn.m.kand. | C21: 0 | D21: 0 | E21: 0 | F21: 0 | G21: 0 | I21: 0
A22: Dyrlæge | C22: 0 | D22: 0 | E22: 0 | F22: 0 | G22: 0 | I22: 0
A23: Farmaceut | C23: 3 | D23: 2 | E23: 2 | F23: 0 | G23: 1 | I23: 8
A24: Læge | C24: 12 | D24: 7 | E24: 2 | F24: 0 | G24: 0 | I24: 21
A25: Tandlæge | C25: 0 | D25: 0 | E25: 0 | F25: 0 | G25: 1 | I25: 1
A26: Arkitekt | C26: 6 | D26: 1 | E26: 1 | F26: 2 | G26: 1 | I26: 11
A27: Landinspek. | C27: 1 | D27: 0 | E27: 0 | F27: 1 | G27: 2 | I27: 4
A28: Bibliotekar | C28: 2 | D28: 6 | E28: 3 | F28: 5 | G28: 1 | I28: 17
A29: Musikudd. | C29: 0 | D29: 1 | E29: 0 | F29: 0 | G29: 0 | I29: 1
A30: Teolog | C30: 0 | D30: 2 | E30: 0 | F30: 0 | G30: 0 | I30: 2
A31: Psykolog | C31: 38 | D31: 19 | E31: 4 | F31: 3 | G31: 1 | I31: 65
A32: Jurist | C32: 11 | D32: 6 | E32: 2 | F32: 0 | G32: 0 | I32: 19
A33: Økonom | C33: 8 | D33: 4 | E33: 2 | F33: 1 | G33: 0 | I33: 15
A34: Samf. Adm. | C34: 67 | D34: 45 | E34: 8 | F34: 7 | G34: 5 | I34: 132
A35: Cand. Merc. | C35: 96 | D35: 36 | E35: 7 | F35: 5 | G35: 2 | I35: 146
A36: HA | C36: 25 | D36: 2 | E36: 0 | F36: 4 | G36: 2 | I36: 33
A37: HD | C37: 10 | D37: 6 | E37: 1 | F37: 3 | G37: 3 | I37: 23
A38: Komm. og Sprog | C38: 16 | D38: 10 | E38: 6 | F38: 4 | G38: 3 | I38: 39
A39: Bygningskonst. | C39: 12 | D39: 7 | E39: 5 | F39: 2 | G39: 0 | I39: 26
A40: Cand. IT. | C40: 40 | D40: 30 | E40: 5 | F40: 0 | G40: 0 | I40: 75
A41: Bac. Samf. | C41: 2 | D41: 1 | E41: 3 | F41: 0 | G41: 0 | I41: 6
A42: Bac. Hum. | C42: 39 | D42: 9 | E42: 5 | F42: 7 | G42: 1 | I42: 61
A43: Bac. Nat. | C43: 28 | D43: 7 | E43: 1 | F43: 0 | G43: 0 | I43: 36
A44: Andre | C44: 49 | D44: 23 | E44: 17 | F44: 7 | G44: 5 | I44: 101
A46: Total | C46: 913 | D46: 436 | E46: 141 | F46: 109 | G46: 63 | I46: 1662
A48: Ingeniører i alt | C48: 125 | D48: 23 | E48: 8 | F48: 19 | G48: 18 | I48: 193
A49: Magistre i alt | C49: 203 | D49: 159 | E49: 52 | F49: 37 | G49: 16 | I49: 467
A50: DJØF'ere i alt | C50: 207 | D50: 93 | E50: 19 | F50: 17 | G50: 9 | I50: 345
A57: Morsø
C59: Under 30 år | D59: 30 - 39 år | E59: 40 - 49 år | F59: 50 - 59 år | G59: Over 60 år | I59: I alt
A61: Civ. ing. | C61: 0 | D61: 0 | E61: 0 | F61: 0 | G61: 0 | I61: 0
A62: Diplom ing. | C62: 0 | D62: 0 | E62: 0 | F62: 0 | G62: 0 | I62: 0
A63: Cand. Scient. Tek | C63: 0 | D63: 0 | E63: 0 | F63: 0 | G63: 0 | I63: 0
A64: MA. Hum. | C64: 0 | D64: 0 | E64: 0 | F64: 1 | G64: 1 | I64: 2
A65: MA. Nat. | C65: 0 | D65: 0 | E65: 0 | F65: 0 | G65: 0 | I65: 0
A66: MA. Ph.d. | C66: 0 | D66: 0 | E66: 0 | F66: 0 | G66: 0 | I66: 0
A67: MA. Samf. | C67: 0 | D67: 0 | E67: 0 | F67: 0 | G67: 0 | I67: 0
A68: Øvrige Mag. | C68: 1 | D68: 0 | E68: 0 | F68: 0 | G68: 0 | I68: 1
A69: Agronom | C69: 0 | D69: 0 | E69: 0 | F69: 0 | G69: 0 | I69: 0
A70: Landsk. Arkt. | C70: 0 | D70: 0 | E70: 0 | F70: 0 | G70: 0 | I70: 0
A71: Hortonom | C71: 0 | D71: 0 | E71: 0 | F71: 0 | G71: 0 | I71: 0
A72: Forstkand. | C72: 0 | D72: 0 | E72: 0 | F72: 0 | G72: 0 | I72: 0
A73: Jordbrugsakad. | C73: 0 | D73: 0 | E73: 0 | F73: 0 | G73: 0 | I73: 0
A74: Mejeriing. | C74: 0 | D74: 0 | E74: 0 | F74: 0 | G74: 0 | I74: 0
A75: Levn.m.kand. | C75: 0 | D75: 0 | E75: 0 | F75: 0 | G75: 0 | I75: 0
A76: Dyrlæge | C76: 0 | D76: 0 | E76: 0 | F76: 0 | G76: 0 | I76: 0
A77: Farmaceut | C77: 0 | D77: 0 | E77: 0 | F77: 0 | G77: 0 | I77: 0
A78: Læge | C78: 0 | D78: 0 | E78: 0 | F78: 0 | G78: 0 | I78: 0
A79: Tandlæge | C79: 0 | D79: 0 | E79: 0 | F79: 0 | G79: 0 | I79: 0
A80: Arkitekt | C80: 0 | D80: 0 | E80: 0 | F80: 0 | G80: 0 | I80: 0
A81: Landinspek. | C81: 0 | D81: 0 | E81: 0 | F81: 0 | G81: 0 | I81: 0
A82: Bibliotekar | C82: 0 | D82: 0 | E82: 0 | F82: 0 | G82: 0 | I82: 0
A83: Musikudd. | C83: 0 | D83: 0 | E83: 0 | F83: 0 | G83: 0 | I83: 0
A84: Teolog | C84: 0 | D84: 0 | E84: 0 | F84: 0 | G84: 0 | I84: 0
A85: Psykolog | C85: 0 | D85: 0 | E85: 0 | F85: 0 | G85: 0 | I85: 0
A86: Jurist | C86: 0 | D86: 0 | E86: 0 | F86: 0 | G86: 0 | I86: 0
A87: Økonom | C87: 0 | D87: 0 | E87: 0 | F87: 0 | G87: 0 | I87: 0
A88: Samf. Adm. | C88: 0 | D88: 0 | E88: 0 | F88: 0 | G88: 0 | I88: 0
A89: Cand. Merc. | C89: 0 | D89: 0 | E89: 1 | F89: 0 | G89: 0 | I89: 1
A90: HA | C90: 0 | D90: 0 | E90: 0 | F90: 0 | G90: 0 | I90: 0
A91: HD | C91: 0 | D91: 0 | E91: 0 | F91: 0 | G91: 0 | I91: 0
A92: Komm. og Sprog | C92: 0 | D92: 0 | E92: 0 | F92: 0 | G92: 0 | I92: 0
A93: Bygningskonst. | C93: 0 | D93: 0 | E93: 0 | F93: 0 | G93: 0 | I93: 0
A94: Cand. IT. | C94: 0 | D94: 0 | E94: 0 | F94: 0 | G94: 0 | I94: 0
A95: Bac. Samf. | C95: 0 | D95: 0 | E95: 0 | F95: 0 | G95: 0 | I95: 0
A96: Bac. Hum. | C96: 0 | D96: 0 | E96: 0 | F96: 0 | G96: 0 | I96: 0
A97: Bac. Nat. | C97: 0 | D97: 0 | E97: 0 | F97: 0 | G97: 0 | I97: 0
A98: Andre | C98: 0 | D98: 0 | E98: 0 | F98: 0 | G98: 0 | I98: 0
A100: Total | C100: 1 | D100: 0 | E100: 1 | F100: 1 | G100: 1 | I100: 4
A102: Ingeniører i alt | C102: 0 | D102: 0 | E102: 0 | F102: 0 | G102: 0 | I102: 0
A103: Magistre i alt | C103: 1 | D103: 0 | E103: 0 | F103: 1 | G103: 1 | I103: 3
A104: DJØF'ere i alt | C104: 0 | D104: 0 | E104: 1 | F104: 0 | G104: 0 | I104: 1
A111: Thisted
C113: Under 30 år | D113: 30 - 39 år | E113: 40 - 49 år | F113: 50 - 59 år | G113: Over 60 år | I113: I alt
A115: Civ. ing. | C115: 1 | D115: 0 | E115: 1 | F115: 0 | G115: 0 | I115: 2
A116: Diplom ing. | C116: 0 | D116: 0 | E116: 0 | F116: 1 | G116: 2 | I116: 3
A117: Cand. Scient. Tek | C117: 0 | D117: 0 | E117: 0 | F117: 0 | G117: 0 | I117: 0
A118: MA. Hum. | C118: 2 | D118: 3 | E118: 2 | F118: 3 | G118: 0 | I118: 10
A119: MA. Nat. | C119: 0 | D119: 0 | E119: 0 | F119: 0 | G119: 0 | I119: 0
A120: MA. Ph.d. | C120: 0 | D120: 0 | E120: 0 | F120: 0 | G120: 0 | I120: 0
A121: MA. Samf. | C121: 0 | D121: 1 | E121: 0 | F121: 0 | G121: 0 | I121: 1
A122: Øvrige Mag. | C122: 0 | D122: 0 | E122: 0 | F122: 0 | G122: 0 | I122: 0
A123: Agronom | C123: 0 | D123: 0 | E123: 0 | F123: 0 | G123: 0 | I123: 0
A124: Landsk. Arkt. | C124: 0 | D124: 0 | E124: 0 | F124: 0 | G124: 0 | I124: 0
A125: Hortonom | C125: 0 | D125: 0 | E125: 0 | F125: 0 | G125: 0 | I125: 0
A126: Forstkand. | C126: 0 | D126: 0 | E126: 0 | F126: 0 | G126: 0 | I126: 0
A127: Jordbrugsakad. | C127: 0 | D127: 0 | E127: 0 | F127: 0 | G127: 0 | I127: 0
A128: Mejeriing. | C128: 0 | D128: 0 | E128: 0 | F128: 0 | G128: 1 | I128: 1
A129: Levn.m.kand. | C129: 0 | D129: 0 | E129: 0 | F129: 0 | G129: 0 | I129: 0
A130: Dyrlæge | C130: 0 | D130: 0 | E130: 0 | F130: 0 | G130: 0 | I130: 0
A131: Farmaceut | C131: 0 | D131: 0 | E131: 0 | F131: 0 | G131: 0 | I131: 0
A132: Læge | C132: 1 | D132: 0 | E132: 0 | F132: 0 | G132: 0 | I132: 1
A133: Tandlæge | C133: 0 | D133: 0 | E133: 0 | F133: 0 | G133: 0 | I133: 0
A134: Arkitekt | C134: 0 | D134: 0 | E134: 0 | F134: 0 | G134: 0 | I134: 0
A135: Landinspek. | C135: 0 | D135: 0 | E135: 0 | F135: 0 | G135: 0 | I135: 0
A136: Bibliotekar | C136: 0 | D136: 1 | E136: 0 | F136: 0 | G136: 0 | I136: 1
A137: Musikudd. | C137: 0 | D137: 0 | E137: 0 | F137: 0 | G137: 0 | I137: 0
A138: Teolog | C138: 0 | D138: 0 | E138: 0 | F138: 0 | G138: 0 | I138: 0
A139: Psykolog | C139: 0 | D139: 0 | E139: 1 | F139: 0 | G139: 0 | I139: 1
A140: Jurist | C140: 0 | D140: 1 | E140: 0 | F140: 0 | G140: 0 | I140: 1
A141: Økonom | C141: 0 | D141: 0 | E141: 0 | F141: 0 | G141: 0 | I141: 0
A142: Samf. Adm. | C142: 0 | D142: 1 | E142: 0 | F142: 0 | G142: 1 | I142: 2
A143: Cand. Merc. | C143: 0 | D143: 1 | E143: 0 | F143: 0 | G143: 0 | I143: 1
A144: HA | C144: 0 | D144: 0 | E144: 0 | F144: 0 | G144: 0 | I144: 0
A145: HD | C145: 0 | D145: 1 | E145: 0 | F145: 0 | G145: 0 | I145: 1
A146: Komm. og Sprog | C146: 1 | D146: 1 | E146: 0 | F146: 0 | G146: 0 | I146: 2
A147: Bygningskonst. | C147: 0 | D147: 0 | E147: 0 | F147: 0 | G147: 0 | I147: 0
A148: Cand. IT. | C148: 0 | D148: 2 | E148: 0 | F148: 0 | G148: 0 | I148: 2
A149: Bac. Samf. | C149: 0 | D149: 0 | E149: 0 | F149: 0 | G149: 0 | I149: 0
A150: Bac. Hum. | C150: 2 | D150: 0 | E150: 0 | F150: 0 | G150: 0 | I150: 2
A151: Bac. Nat. | C151: 0 | D151: 0 | E151: 0 | F151: 0 | G151: 0 | I151: 0
A152: Andre | C152: 0 | D152: 0 | E152: 1 | F152: 0 | G152: 0 | I152: 1
A154: Total | C154: 7 | D154: 12 | E154: 5 | F154: 4 | G154: 4 | I154: 32
A156: Ingeniører i alt | C156: 1 | D156: 0 | E156: 1 | F156: 1 | G156: 2 | I156: 5
A157: Magistre i alt | C157: 2 | D157: 4 | E157: 2 | F157: 3 | G157: 0 | I157: 11
A158: DJØF'ere i alt | C158: 0 | D158: 3 | E158: 0 | F158: 0 | G158: 1 | I158: 4
A165: Brønderslev
C167: Under 30 år | D167: 30 - 39 år | E167: 40 - 49 år | F167: 50 - 59 år | G167: Over 60 år | I167: I alt
A169: Civ. ing. | C169: 0 | D169: 3 | E169: 0 | F169: 0 | G169: 0 | I169: 3
A170: Diplom ing. | C170: 1 | D170: 0 | E170: 0 | F170: 0 | G170: 0 | I170: 1
A171: Cand. Scient. Tek | C171: 0 | D171: 2 | E171: 0 | F171: 0 | G171: 0 | I171: 2
A172: MA. Hum. | C172: 2 | D172: 6 | E172: 3 | F172: 2 | G172: 0 | I172: 13
A173: MA. Nat. | C173: 0 | D173: 0 | E173: 0 | F173: 0 | G173: 0 | I173: 0
A174: MA. Ph.d. | C174: 0 | D174: 0 | E174: 0 | F174: 0 | G174: 0 | I174: 0
A175: MA. Samf. | C175: 0 | D175: 1 | E175: 0 | F175: 0 | G175: 0 | I175: 1
A176: Øvrige Mag. | C176: 0 | D176: 0 | E176: 1 | F176: 0 | G176: 0 | I176: 1
A177: Agronom | C177: 0 | D177: 0 | E177: 0 | F177: 0 | G177: 0 | I177: 0
A178: Landsk. Arkt. | C178: 0 | D178: 0 | E178: 0 | F178: 0 | G178: 0 | I178: 0
A179: Hortonom | C179: 0 | D179: 0 | E179: 0 | F179: 0 | G179: 0 | I179: 0
A180: Forstkand. | C180: 0 | D180: 0 | E180: 0 | F180: 0 | G180: 0 | I180: 0
A181: Jordbrugsakad. | C181: 0 | D181: 0 | E181: 0 | F181: 0 | G181: 0 | I181: 0
A182: Mejeriing. | C182: 0 | D182: 0 | E182: 0 | F182: 0 | G182: 0 | I182: 0
A183: Levn.m.kand. | C183: 0 | D183: 0 | E183: 0 | F183: 0 | G183: 0 | I183: 0
A184: Dyrlæge | C184: 0 | D184: 0 | E184: 0 | F184: 0 | G184: 0 | I184: 0
A185: Farmaceut | C185: 0 | D185: 0 | E185: 0 | F185: 0 | G185: 0 | I185: 0
A186: Læge | C186: 1 | D186: 0 | E186: 0 | F186: 0 | G186: 0 | I186: 1
A187: Tandlæge | C187: 0 | D187: 0 | E187: 0 | F187: 0 | G187: 0 | I187: 0
A188: Arkitekt | C188: 0 | D188: 0 | E188: 0 | F188: 0 | G188: 0 | I188: 0
A189: Landinspek. | C189: 0 | D189: 0 | E189: 0 | F189: 0 | G189: 0 | I189: 0
A190: Bibliotekar | C190: 0 | D190: 0 | E190: 0 | F190: 0 | G190: 0 | I190: 0
A191: Musikudd. | C191: 0 | D191: 0 | E191: 0 | F191: 0 | G191: 0 | I191: 0
A192: Teolog | C192: 0 | D192: 0 | E192: 0 | F192: 0 | G192: 0 | I192: 0
A193: Psykolog | C193: 0 | D193: 1 | E193: 0 | F193: 0 | G193: 0 | I193: 1
A194: Jurist | C194: 0 | D194: 0 | E194: 0 | F194: 0 | G194: 0 | I194: 0
A195: Økonom | C195: 0 | D195: 0 | E195: 0 | F195: 0 | G195: 0 | I195: 0
A196: Samf. Adm. | C196: 1 | D196: 2 | E196: 0 | F196: 0 | G196: 0 | I196: 3
A197: Cand. Merc. | C197: 1 | D197: 2 | E197: 0 | F197: 1 | G197: 0 | I197: 4
A198: HA | C198: 0 | D198: 0 | E198: 0 | F198: 0 | G198: 0 | I198: 0
A199: HD | C199: 1 | D199: 0 | E199: 0 | F199: 0 | G199: 0 | I199: 1
A200: Komm. og Sprog | C200: 0 | D200: 0 | E200: 0 | F200: 0 | G200: 0 | I200: 0
A201: Bygningskonst. | C201: 0 | D201: 0 | E201: 0 | F201: 0 | G201: 0 | I201: 0
A202: Cand. IT. | C202: 0 | D202: 1 | E202: 0 | F202: 0 | G202: 0 | I202: 1
A203: Bac. Samf. | C203: 0 | D203: 0 | E203: 0 | F203: 0 | G203: 0 | I203: 0
A204: Bac. Hum. | C204: 0 | D204: 0 | E204: 0 | F204: 0 | G204: 0 | I204: 0
A205: Bac. Nat. | C205: 1 | D205: 0 | E205: 0 | F205: 0 | G205: 0 | I205: 1
A206: Andre | C206: 1 | D206: 0 | E206: 0 | F206: 0 | G206: 0 | I206: 1
A208: Total | C208: 9 | D208: 18 | E208: 4 | F208: 3 | G208: 0 | I208: 34
A210: Ingeniører i alt | C210: 1 | D210: 3 | E210: 0 | F210: 0 | G210: 0 | I210: 4
A211: Magistre i alt | C211: 2 | D211: 7 | E211: 4 | F211: 2 | G211: 0 | I211: 15
A212: DJØF'ere i alt | C212: 2 | D212: 4 | E212: 0 | F212: 1 | G212: 0 | I212: 7
A219: Frederikshavn
C221: Under 30 år | D221: 30 - 39 år | E221: 40 - 49 år | F221: 50 - 59 år | G221: Over 60 år | I221: I alt
A223: Civ. ing. | C223: 0 | D223: 0 | E223: 0 | F223: 0 | G223: 0 | I223: 0
A224: Diplom ing. | C224: 0 | D224: 0 | E224: 0 | F224: 1 | G224: 0 | I224: 1
A225: Cand. Scient. Tek | C225: 0 | D225: 0 | E225: 0 | F225: 0 | G225: 0 | I225: 0
A226: MA. Hum. | C226: 1 | D226: 2 | E226: 3 | F226: 4 | G226: 1 | I226: 11
A227: MA. Nat. | C227: 0 | D227: 0 | E227: 0 | F227: 0 | G227: 0 | I227: 0
A228: MA. Ph.d. | C228: 0 | D228: 0 | E228: 0 | F228: 0 | G228: 0 | I228: 0
A229: MA. Samf. | C229: 1 | D229: 1 | E229: 0 | F229: 0 | G229: 0 | I229: 2
A230: Øvrige Mag. | C230: 0 | D230: 1 | E230: 1 | F230: 0 | G230: 0 | I230: 2
A231: Agronom | C231: 0 | D231: 0 | E231: 0 | F231: 0 | G231: 0 | I231: 0
A232: Landsk. Arkt. | C232: 0 | D232: 0 | E232: 0 | F232: 0 | G232: 0 | I232: 0
A233: Hortonom | C233: 0 | D233: 0 | E233: 0 | F233: 0 | G233: 0 | I233: 0
A234: Forstkand. | C234: 0 | D234: 0 | E234: 0 | F234: 0 | G234: 0 | I234: 0
A235: Jordbrugsakad. | C235: 0 | D235: 0 | E235: 0 | F235: 0 | G235: 0 | I235: 0
A236: Mejeriing. | C236: 0 | D236: 0 | E236: 0 | F236: 0 | G236: 0 | I236: 0
A237: Levn.m.kand. | C237: 0 | D237: 0 | E237: 0 | F237: 0 | G237: 0 | I237: 0
A238: Dyrlæge | C238: 0 | D238: 0 | E238: 0 | F238: 0 | G238: 0 | I238: 0
A239: Farmaceut | C239: 0 | D239: 1 | E239: 0 | F239: 0 | G239: 0 | I239: 1
A240: Læge | C240: 0 | D240: 0 | E240: 0 | F240: 0 | G240: 0 | I240: 0
A241: Tandlæge | C241: 0 | D241: 0 | E241: 0 | F241: 0 | G241: 0 | I241: 0
A242: Arkitekt | C242: 0 | D242: 0 | E242: 0 | F242: 0 | G242: 0 | I242: 0
A243: Landinspek. | C243: 0 | D243: 0 | E243: 0 | F243: 0 | G243: 0 | I243: 0
... 329 more rows

Sheet Tabel 4(Br) NJ
A1: Tabel 4. Ledighedsberørte - aldersfordelt
A3: Nordjylland
C5: Under 30 år | D5: 30 - 39 år | E5: 40 - 49 år | F5: 50 - 59 år | G5: Over 60 år | I5: I alt
A7: Civ. ing. | C7: 108.7569388 | D7: 18.4488243 | E7: 6.916360007 | F7: 7.657955467 | G7: 5.705108214 | I7: 147.4851868
A8: Diplom ing. | C8: 7.460861972 | D8: 1.999625772 | E8: 0 | F8: 8.889166095 | G8: 10.0137217 | I8: 28.36337554
A9: Cand. Scient. Tek | C9: 110.0093557 | D9: 26.95191168 | E9: 5.932763675 | F9: 1.491922909 | G9: 0 | I9: 144.385954
A10: MA. Hum. | C10: 121.5368303 | D10: 103.2414395 | E10: 32.74745837 | F10: 24.17139649 | G10: 10.62246616 | I10: 292.3195908
A11: MA. Nat. | C11: 7.299943866 | D11: 3.213372419 | E11: 5.30655523 | F11: 1.861161355 | G11: 1.263020021 | I11: 18.94405289
A12: MA. Ph.d. | C12: 0 | D12: 0 | E12: 0.9998128859 | F12: 2.860974241 | G12: 0 | I12: 3.860787127
A13: MA. Samf. | C13: 30.68171895 | D13: 23.12418138 | E13: 1.58423252 | F13: 0 | G13: 0 | I13: 55.39013285
A14: Øvrige Mag. | C14: 12.48674609 | D14: 8.142580927 | E14: 3.47221356 | F14: 0.9998128859 | G14: 1.831223102 | I14: 26.93257656
A15: Agronom | C15: 0.9998128859 | D15: 0 | E15: 0.9998128859 | F15: 0 | G15: 0 | I15: 1.999625772
A16: Landsk. Arkt. | C16: 0.8002245369 | D16: 0 | E16: 0 | F16: 0 | G16: 0 | I16: 0.8002245369
A17: Hortonom | C17: 0 | D17: 0 | E17: 0 | F17: 0 | G17: 0 | I17: 0
A18: Forstkand. | C18: 0 | D18: 0 | E18: 0 | F18: 0 | G18: 0 | I18: 0
A19: Jordbrugsakad. | C19: 1.800037423 | D19: 0 | E19: 0.9998128859 | F19: 0 | G19: 0 | I19: 2.799850309
A20: Mejeriing. | C20: 0 | D20: 0 | E20: 0 | F20: 0 | G20: 0.7690388574 | I20: 0.7690388574
A21: Levn.m.kand. | C21: 0 | D21: 0 | E21: 0 | F21: 0 | G21: 0 | I21: 0
A22: Dyrlæge | C22: 0 | D22: 0 | E22: 0 | F22: 0 | G22: 0 | I22: 0
A23: Farmaceut | C23: 2.234765796 | D23: 1.768851743 | E23: 1.90731616 | F23: 0 | G23: 0.9075032745 | I23: 6.818436974
A24: Læge | C24: 11.21312293 | D24: 6.075594087 | E24: 1.685274122 | F24: 0 | G24: 0 | I24: 18.97399114
A25: Tandlæge | C25: 0 | D25: 0 | E25: 0 | F25: 0 | G25: 0.9910808957 | I25: 0.9910808957
A26: Arkitekt | C26: 5.568514938 | D26: 0.9536580802 | E26: 0.9312043909 | F26: 1.999625772 | G26: 0.9998128859 | I26: 10.45281607
A27: Landinspek. | C27: 0.9998128859 | D27: 0 | E27: 0 | F27: 0.7690388574 | G27: 1.999625772 | I27: 3.768477515
A28: Bibliotekar | C28: 1.921661573 | D28: 5.230462172 | E28: 2.452441839 | F28: 4.140210815 | G28: 0.9998128859 | I28: 14.74458928
A29: Musikudd. | C29: 0 | D29: 0.9998128859 | E29: 0 | F29: 0 | G29: 0 | I29: 0.9998128859
A30: Teolog | C30: 0 | D30: 1.883615044 | E30: 0 | F30: 0 | G30: 0 | I30: 1.883615044
A31: Psykolog | C31: 32.95266014 | D31: 15.83920664 | E31: 3.167217614 | F31: 2.625210503 | G31: 0.9998128859 | I31: 55.58410778
A32: Jurist | C32: 9.649472962 | D32: 4.568078338 | E32: 1.19503524 | F32: 0 | G32: 0 | I32: 15.41258654
A33: Økonom | C33: 7.134659764 | D33: 3.999251544 | E33: 1.90731616 | F33: 0.9998128859 | G33: 0 | I33: 14.04104035
A34: Samf. Adm. | C34: 61.87425934 | D34: 37.24443336 | E34: 6.263955592 | F34: 5.92839768 | G34: 3.786565209 | I34: 115.0976112
A35: Cand. Merc. | C35: 85.73754132 | D35: 30.13285099 | E35: 5.410715399 | F35: 3.993014408 | G35: 1.999625772 | I35: 127.2737479
A36: HA | C36: 22.09193538 | D36: 1.999625772 | E36: 0 | F36: 3.076155429 | G36: 1.999625772 | I36: 29.16734236
A37: HD | C37: 8.277926776 | D37: 5.14501341 | E37: 0.5382648288 | F37: 2.953283852 | G37: 2.673860163 | I37: 19.58834903
A38: Komm. og Sprog | C38: 14.00798353 | D38: 8.277926776 | E38: 4.977234454 | F38: 3.860163413 | G38: 2.768664629 | I38: 33.89197281
A39: Bygningskonst. | C39: 9.259402482 | D39: 6.861535583 | E39: 3.221355953 | F39: 1.046154806 | G39: 0 | I39: 20.38844882
A40: Cand. IT. | C40: 35.62776773 | D40: 24.16578307 | E40: 3.235826109 | F40: 0 | G40: 0 | I40: 63.02937691
A41: Bac. Samf. | C41: 1.337865652 | D41: 0.8151936631 | E41: 2.999438658 | F41: 0 | G41: 0 | I41: 5.152497973
A42: Bac. Hum. | C42: 32.60774652 | D42: 6.677477702 | E42: 4.988461299 | F42: 4.479511009 | G42: 0.9998128859 | I42: 49.75300942
A43: Bac. Nat. | C43: 25.58348406 | D43: 6.175388262 | E43: 0.7690388574 | F43: 0 | G43: 0 | I43: 32.52791118
A44: Andre | C44: 44.28927836 | D44: 19.90644296 | E44: 14.6946922 | F44: 5.138776274 | G44: 4.243747271 | I44: 88.27293707
A46: Total | C46: 812.4022953 | D46: 373.8421381 | E46: 118.303998 | F46: 88.94174515 | G46: 55.57412836 | I46: 1449.064305
A48: Ingeniører i alt | C48: 116.2178008 | D48: 20.44845007 | E48: 6.916360007 | F48: 16.54712156 | G48: 15.71882991 | I48: 175.8485623
A49: Magistre i alt | C49: 172.0052392 | D49: 137.7215743 | E49: 44.11027256 | F49: 29.89334498 | G49: 13.71670929 | I49: 397.4471403
A50: DJØF'ere i alt | C50: 186.4878688 | D50: 77.94424 | E50: 14.77702239 | F50: 13.9973804 | G50: 7.785816753 | I50: 300.9923283
A57: Morsø
C59: Under 30 år | D59: 30 - 39 år | E59: 40 - 49 år | F59: 50 - 59 år | G59: Over 60 år | I59: I alt
A61: Civ. ing. | C61: 0 | D61: 0 | E61: 0 | F61: 0 | G61: 0 | I61: 0
A62: Diplom ing. | C62: 0 | D62: 0 | E62: 0 | F62: 0 | G62: 0 | I62: 0
A63: Cand. Scient. Tek | C63: 0 | D63: 0 | E63: 0 | F63: 0 | G63: 0 | I63: 0
A64: MA. Hum. | C64: 0 | D64: 0 | E64: 0 | F64: 0.9998128859 | G64: 0.9998128859 | I64: 1.999625772
A65: MA. Nat. | C65: 0 | D65: 0 | E65: 0 | F65: 0 | G65: 0 | I65: 0
A66: MA. Ph.d. | C66: 0 | D66: 0 | E66: 0 | F66: 0 | G66: 0 | I66: 0
A67: MA. Samf. | C67: 0 | D67: 0 | E67: 0 | F67: 0 | G67: 0 | I67: 0
A68: Øvrige Mag. | C68: 0.8856732988 | D68: 0 | E68: 0 | F68: 0 | G68: 0 | I68: 0.8856732988
A69: Agronom | C69: 0 | D69: 0 | E69: 0 | F69: 0 | G69: 0 | I69: 0
A70: Landsk. Arkt. | C70: 0 | D70: 0 | E70: 0 | F70: 0 | G70: 0 | I70: 0
A71: Hortonom | C71: 0 | D71: 0 | E71: 0 | F71: 0 | G71: 0 | I71: 0
A72: Forstkand. | C72: 0 | D72: 0 | E72: 0 | F72: 0 | G72: 0 | I72: 0
A73: Jordbrugsakad. | C73: 0 | D73: 0 | E73: 0 | F73: 0 | G73: 0 | I73: 0
A74: Mejeriing. | C74: 0 | D74: 0 | E74: 0 | F74: 0 | G74: 0 | I74: 0
A75: Levn.m.kand. | C75: 0 | D75: 0 | E75: 0 | F75: 0 | G75: 0 | I75: 0
A76: Dyrlæge | C76: 0 | D76: 0 | E76: 0 | F76: 0 | G76: 0 | I76: 0
A77: Farmaceut | C77: 0 | D77: 0 | E77: 0 | F77: 0 | G77: 0 | I77: 0
A78: Læge | C78: 0 | D78: 0 | E78: 0 | F78: 0 | G78: 0 | I78: 0
A79: Tandlæge | C79: 0 | D79: 0 | E79: 0 | F79: 0 | G79: 0 | I79: 0
A80: Arkitekt | C80: 0 | D80: 0 | E80: 0 | F80: 0 | G80: 0 | I80: 0
A81: Landinspek. | C81: 0 | D81: 0 | E81: 0 | F81: 0 | G81: 0 | I81: 0
A82: Bibliotekar | C82: 0 | D82: 0 | E82: 0 | F82: 0 | G82: 0 | I82: 0
A83: Musikudd. | C83: 0 | D83: 0 | E83: 0 | F83: 0 | G83: 0 | I83: 0
A84: Teolog | C84: 0 | D84: 0 | E84: 0 | F84: 0 | G84: 0 | I84: 0
A85: Psykolog | C85: 0 | D85: 0 | E85: 0 | F85: 0 | G85: 0 | I85: 0
A86: Jurist | C86: 0 | D86: 0 | E86: 0 | F86: 0 | G86: 0 | I86: 0
A87: Økonom | C87: 0 | D87: 0 | E87: 0 | F87: 0 | G87: 0 | I87: 0
A88: Samf. Adm. | C88: 0 | D88: 0 | E88: 0 | F88: 0 | G88: 0 | I88: 0
A89: Cand. Merc. | C89: 0 | D89: 0 | E89: 0.3074908002 | F89: 0 | G89: 0 | I89: 0.3074908002
A90: HA | C90: 0 | D90: 0 | E90: 0 | F90: 0 | G90: 0 | I90: 0
A91: HD | C91: 0 | D91: 0 | E91: 0 | F91: 0 | G91: 0 | I91: 0
A92: Komm. og Sprog | C92: 0 | D92: 0 | E92: 0 | F92: 0 | G92: 0 | I92: 0
A93: Bygningskonst. | C93: 0 | D93: 0 | E93: 0 | F93: 0 | G93: 0 | I93: 0
A94: Cand. IT. | C94: 0 | D94: 0 | E94: 0 | F94: 0 | G94: 0 | I94: 0
A95: Bac. Samf. | C95: 0 | D95: 0 | E95: 0 | F95: 0 | G95: 0 | I95: 0
A96: Bac. Hum. | C96: 0 | D96: 0 | E96: 0 | F96: 0 | G96: 0 | I96: 0
A97: Bac. Nat. | C97: 0 | D97: 0 | E97: 0 | F97: 0 | G97: 0 | I97: 0
A98: Andre | C98: 0 | D98: 0 | E98: 0 | F98: 0 | G98: 0 | I98: 0
A100: Total | C100: 0.8856732988 | D100: 0 | E100: 0.3074908002 | F100: 0.9998128859 | G100: 0.9998128859 | I100: 3.192789871
A102: Ingeniører i alt | C102: 0 | D102: 0 | E102: 0 | F102: 0 | G102: 0 | I102: 0
A103: Magistre i alt | C103: 0.8856732988 | D103: 0 | E103: 0 | F103: 0.9998128859 | G103: 0.9998128859 | I103: 2.885299071
A104: DJØF'ere i alt | C104: 0 | D104: 0 | E104: 0.3074908002 | F104: 0 | G104: 0 | I104: 0.3074908002
A111: Thisted
C113: Under 30 år | D113: 30 - 39 år | E113: 40 - 49 år | F113: 50 - 59 år | G113: Over 60 år | I113: I alt
A115: Civ. ing. | C115: 0.8151936631 | D115: 0 | E115: 0.8151936631 | F115: 0 | G115: 0 | I115: 1.630387326
A116: Diplom ing. | C116: 0 | D116: 0 | E116: 0 | F116: 0.2139337616 | G116: 1.999625772 | I116: 2.213559533
A117: Cand. Scient. Tek | C117: 0 | D117: 0 | E117: 0 | F117: 0 | G117: 0 | I117: 0
A118: MA. Hum. | C118: 1.399613298 | D118: 2.580303125 | E118: 1.28547371 | F118: 2.491735795 | G118: 0 | I118: 7.757125928
A119: MA. Nat. | C119: 0 | D119: 0 | E119: 0 | F119: 0 | G119: 0 | I119: 0
A120: MA. Ph.d. | C120: 0 | D120: 0 | E120: 0 | F120: 0 | G120: 0 | I120: 0
A121: MA. Samf. | C121: 0 | D121: 0.4085324019 | E121: 0 | F121: 0 | G121: 0 | I121: 0.4085324019
A122: Øvrige Mag. | C122: 0 | D122: 0 | E122: 0 | F122: 0 | G122: 0 | I122: 0
A123: Agronom | C123: 0 | D123: 0 | E123: 0 | F123: 0 | G123: 0 | I123: 0
A124: Landsk. Arkt. | C124: 0 | D124: 0 | E124: 0 | F124: 0 | G124: 0 | I124: 0
A125: Hortonom | C125: 0 | D125: 0 | E125: 0 | F125: 0 | G125: 0 | I125: 0
A126: Forstkand. | C126: 0 | D126: 0 | E126: 0 | F126: 0 | G126: 0 | I126: 0
A127: Jordbrugsakad. | C127: 0 | D127: 0 | E127: 0 | F127: 0 | G127: 0 | I127: 0
A128: Mejeriing. | C128: 0 | D128: 0 | E128: 0 | F128: 0 | G128: 0.7690388574 | I128: 0.7690388574
A129: Levn.m.kand. | C129: 0 | D129: 0 | E129: 0 | F129: 0 | G129: 0 | I129: 0
A130: Dyrlæge | C130: 0 | D130: 0 | E130: 0 | F130: 0 | G130: 0 | I130: 0
A131: Farmaceut | C131: 0 | D131: 0 | E131: 0 | F131: 0 | G131: 0 | I131: 0
A132: Læge | C132: 0.9998128859 | D132: 0 | E132: 0 | F132: 0 | G132: 0 | I132: 0.9998128859
A133: Tandlæge | C133: 0 | D133: 0 | E133: 0 | F133: 0 | G133: 0 | I133: 0
A134: Arkitekt | C134: 0 | D134: 0 | E134: 0 | F134: 0 | G134: 0 | I134: 0
A135: Landinspek. | C135: 0 | D135: 0 | E135: 0 | F135: 0 | G135: 0 | I135: 0
A136: Bibliotekar | C136: 0 | D136: 0.9075032745 | E136: 0 | F136: 0 | G136: 0 | I136: 0.9075032745
A137: Musikudd. | C137: 0 | D137: 0 | E137: 0 | F137: 0 | G137: 0 | I137: 0
A138: Teolog | C138: 0 | D138: 0 | E138: 0 | F138: 0 | G138: 0 | I138: 0
A139: Psykolog | C139: 0 | D139: 0 | E139: 0.4921100231 | F139: 0 | G139: 0 | I139: 0.4921100231
A140: Jurist | C140: 0 | D140: 0.9998128859 | E140: 0 | F140: 0 | G140: 0 | I140: 0.9998128859
A141: Økonom | C141: 0 | D141: 0 | E141: 0 | F141: 0 | G141: 0 | I141: 0
A142: Samf. Adm. | C142: 0 | D142: 0.4135221106 | E142: 0 | F142: 0 | G142: 0.7690388574 | I142: 1.182560968
A143: Cand. Merc. | C143: 0 | D143: 0.4921100231 | E143: 0 | F143: 0 | G143: 0 | I143: 0.4921100231
A144: HA | C144: 0 | D144: 0 | E144: 0 | F144: 0 | G144: 0 | I144: 0
A145: HD | C145: 0 | D145: 0.9536580802 | E145: 0 | F145: 0 | G145: 0 | I145: 0.9536580802
A146: Komm. og Sprog | C146: 0.9536580802 | D146: 0.3074908002 | E146: 0 | F146: 0 | G146: 0 | I146: 1.26114888
A147: Bygningskonst. | C147: 0 | D147: 0 | E147: 0 | F147: 0 | G147: 0 | I147: 0
A148: Cand. IT. | C148: 0 | D148: 1.229339487 | E148: 0 | F148: 0 | G148: 0 | I148: 1.229339487
A149: Bac. Samf. | C149: 0 | D149: 0 | E149: 0 | F149: 0 | G149: 0 | I149: 0
A150: Bac. Hum. | C150: 1.790681719 | D150: 0 | E150: 0 | F150: 0 | G150: 0 | I150: 1.790681719
A151: Bac. Nat. | C151: 0 | D151: 0 | E151: 0 | F151: 0 | G151: 0 | I151: 0
A152: Andre | C152: 0 | D152: 0 | E152: 0.9811014782 | F152: 0 | G152: 0 | I152: 0.9811014782
A154: Total | C154: 5.958959646 | D154: 8.292272189 | E154: 3.573878875 | F154: 2.705669557 | G154: 3.537703487 | I154: 24.06848375
A156: Ingeniører i alt | C156: 0.8151936631 | D156: 0 | E156: 0.8151936631 | F156: 0.2139337616 | G156: 1.999625772 | I156: 3.84394686
A157: Magistre i alt | C157: 1.399613298 | D157: 2.988835527 | E157: 1.28547371 | F157: 2.491735795 | G157: 0 | I157: 8.16565833
A158: DJØF'ere i alt | C158: 0 | D158: 1.90544502 | E158: 0 | F158: 0 | G158: 0.7690388574 | I158: 2.674483877
A165: Brønderslev
C167: Under 30 år | D167: 30 - 39 år | E167: 40 - 49 år | F167: 50 - 59 år | G167: Over 60 år | I167: I alt
A169: Civ. ing. | C169: 0 | D169: 2.533524606 | E169: 0 | F169: 0 | G169: 0 | I169: 2.533524606
A170: Diplom ing. | C170: 0.9998128859 | D170: 0 | E170: 0 | F170: 0 | G170: 0 | I170: 0.9998128859
A171: Cand. Scient. Tek | C171: 0 | D171: 1.768851743 | E171: 0 | F171: 0 | G171: 0 | I171: 1.768851743
A172: MA. Hum. | C172: 1.7439032 | D172: 5.393875133 | E172: 2.910871328 | F172: 1.999625772 | G172: 0 | I172: 12.04827543
A173: MA. Nat. | C173: 0 | D173: 0 | E173: 0 | F173: 0 | G173: 0 | I173: 0
A174: MA. Ph.d. | C174: 0 | D174: 0 | E174: 0 | F174: 0 | G174: 0 | I174: 0
A175: MA. Samf. | C175: 0 | D175: 0.9998128859 | E175: 0 | F175: 0 | G175: 0 | I175: 0.9998128859
A176: Øvrige Mag. | C176: 0 | D176: 0 | E176: 0.9998128859 | F176: 0 | G176: 0 | I176: 0.9998128859
A177: Agronom | C177: 0 | D177: 0 | E177: 0 | F177: 0 | G177: 0 | I177: 0
A178: Landsk. Arkt. | C178: 0 | D178: 0 | E178: 0 | F178: 0 | G178: 0 | I178: 0
A179: Hortonom | C179: 0 | D179: 0 | E179: 0 | F179: 0 | G179: 0 | I179: 0
A180: Forstkand. | C180: 0 | D180: 0 | E180: 0 | F180: 0 | G180: 0 | I180: 0
A181: Jordbrugsakad. | C181: 0 | D181: 0 | E181: 0 | F181: 0 | G181: 0 | I181: 0
A182: Mejeriing. | C182: 0 | D182: 0 | E182: 0 | F182: 0 | G182: 0 | I182: 0
A183: Levn.m.kand. | C183: 0 | D183: 0 | E183: 0 | F183: 0 | G183: 0 | I183: 0
A184: Dyrlæge | C184: 0 | D184: 0 | E184: 0 | F184: 0 | G184: 0 | I184: 0
A185: Farmaceut | C185: 0 | D185: 0 | E185: 0 | F185: 0 | G185: 0 | I185: 0
A186: Læge | C186: 0.9998128859 | D186: 0 | E186: 0 | F186: 0 | G186: 0 | I186: 0.9998128859
A187: Tandlæge | C187: 0 | D187: 0 | E187: 0 | F187: 0 | G187: 0 | I187: 0
A188: Arkitekt | C188: 0 | D188: 0 | E188: 0 | F188: 0 | G188: 0 | I188: 0
A189: Landinspek. | C189: 0 | D189: 0 | E189: 0 | F189: 0 | G189: 0 | I189: 0
A190: Bibliotekar | C190: 0 | D190: 0 | E190: 0 | F190: 0 | G190: 0 | I190: 0
A191: Musikudd. | C191: 0 | D191: 0 | E191: 0 | F191: 0 | G191: 0 | I191: 0
A192: Teolog | C192: 0 | D192: 0 | E192: 0 | F192: 0 | G192: 0 | I192: 0
A193: Psykolog | C193: 0 | D193: 0.9998128859 | E193: 0 | F193: 0 | G193: 0 | I193: 0.9998128859
A194: Jurist | C194: 0 | D194: 0 | E194: 0 | F194: 0 | G194: 0 | I194: 0
A195: Økonom | C195: 0 | D195: 0 | E195: 0 | F195: 0 | G195: 0 | I195: 0
A196: Samf. Adm. | C196: 0.9998128859 | D196: 1.999625772 | E196: 0 | F196: 0 | G196: 0 | I196: 2.999438658
A197: Cand. Merc. | C197: 0.8220545126 | D197: 1.768851743 | E197: 0 | F197: 0.9998128859 | G197: 0 | I197: 3.590719142
A198: HA | C198: 0 | D198: 0 | E198: 0 | F198: 0 | G198: 0 | I198: 0
A199: HD | C199: 0.9998128859 | D199: 0 | E199: 0 | F199: 0 | G199: 0 | I199: 0.9998128859
A200: Komm. og Sprog | C200: 0 | D200: 0 | E200: 0 | F200: 0 | G200: 0 | I200: 0
A201: Bygningskonst. | C201: 0 | D201: 0 | E201: 0 | F201: 0 | G201: 0 | I201: 0
A202: Cand. IT. | C202: 0 | D202: 0.9536580802 | E202: 0 | F202: 0 | G202: 0 | I202: 0.9536580802
A203: Bac. Samf. | C203: 0 | D203: 0 | E203: 0 | F203: 0 | G203: 0 | I203: 0
A204: Bac. Hum. | C204: 0 | D204: 0 | E204: 0 | F204: 0 | G204: 0 | I204: 0
A205: Bac. Nat. | C205: 0.9998128859 | D205: 0 | E205: 0 | F205: 0 | G205: 0 | I205: 0.9998128859
A206: Andre | C206: 0.9998128859 | D206: 0 | E206: 0 | F206: 0 | G206: 0 | I206: 0.9998128859
A208: Total | C208: 8.564835028 | D208: 16.41801285 | E208: 3.910684214 | F208: 2.999438658 | G208: 0 | I208: 31.89297075
A210: Ingeniører i alt | C210: 0.9998128859 | D210: 2.533524606 | E210: 0 | F210: 0 | G210: 0 | I210: 3.533337491
A211: Magistre i alt | C211: 1.7439032 | D211: 6.393688018 | E211: 3.910684214 | F211: 1.999625772 | G211: 0 | I211: 14.0479012
A212: DJØF'ere i alt | C212: 1.821867398 | D212: 3.768477515 | E212: 0 | F212: 0.9998128859 | G212: 0 | I212: 6.5901578
A219: Frederikshavn
C221: Under 30 år | D221: 30 - 39 år | E221: 40 - 49 år | F221: 50 - 59 år | G221: Over 60 år | I221: I alt
A223: Civ. ing. | C223: 0 | D223: 0 | E223: 0 | F223: 0 | G223: 0 | I223: 0
A224: Diplom ing. | C224: 0 | D224: 0 | E224: 0 | F224: 0.7690388574 | G224: 0 | I224: 0.7690388574
A225: Cand. Scient. Tek | C225: 0 | D225: 0 | E225: 0 | F225: 0 | G225: 0 | I225: 0
A226: MA. Hum. | C226: 0.9998128859 | D226: 1.934135845 | E226: 2.201085262 | F226: 2.842886546 | G226: 0.7228840516 | I226: 8.700804591
A227: MA. Nat. | C227: 0 | D227: 0 | E227: 0 | F227: 0 | G227: 0 | I227: 0
A228: MA. Ph.d. | C228: 0 | D228: 0 | E228: 0 | F228: 0 | G228: 0 | I228: 0
A229: MA. Samf. | C229: 0.3000062371 | D229: 0.9998128859 | E229: 0 | F229: 0 | G229: 0 | I229: 1.299819123
A230: Øvrige Mag. | C230: 0 | D230: 0.9998128859 | E230: 0.9998128859 | F230: 0 | G230: 0 | I230: 1.999625772
A231: Agronom | C231: 0 | D231: 0 | E231: 0 | F231: 0 | G231: 0 | I231: 0
A232: Landsk. Arkt. | C232: 0 | D232: 0 | E232: 0 | F232: 0 | G232: 0 | I232: 0
A233: Hortonom | C233: 0 | D233: 0 | E233: 0 | F233: 0 | G233: 0 | I233: 0
A234: Forstkand. | C234: 0 | D234: 0 | E234: 0 | F234: 0 | G234: 0 | I234: 0
A235: Jordbrugsakad. | C235: 0 | D235: 0 | E235: 0 | F235: 0 | G235: 0 | I235: 0
A236: Mejeriing. | C236: 0 | D236: 0 | E236: 0 | F236: 0 | G236: 0 | I236: 0
A237: Levn.m.kand. | C237: 0 | D237: 0 | E237: 0 | F237: 0 | G237: 0 | I237: 0
A238: Dyrlæge | C238: 0 | D238: 0 | E238: 0 | F238: 0 | G238: 0 | I238: 0
A239: Farmaceut | C239: 0 | D239: 0.9998128859 | E239: 0 | F239: 0 | G239: 0 | I239: 0.9998128859
A240: Læge | C240: 0 | D240: 0 | E240: 0 | F240: 0 | G240: 0 | I240: 0
A241: Tandlæge | C241: 0 | D241: 0 | E241: 0 | F241: 0 | G241: 0 | I241: 0
A242: Arkitekt | C242: 0 | D242: 0 | E242: 0 | F242: 0 | G242: 0 | I242: 0
A243: Landinspek. | C243: 0 | D243: 0 | E243: 0 | F243: 0 | G243: 0 | I243: 0
... 329 more rows

Sheet Tabel 4P NJ
A1: Tabel 4. Ledighedsberørte - aldersfordelt
A3: Nordjylland
C5: Under 30 år | D5: 30 - 39 år | E5: 40 - 49 år | F5: 50 - 59 år | G5: Over 60 år | I5: I alt
A7: Civ. ing. | C7: =IF(OR('Tabel 4F NJ'!C7<5,'Tabel 4 NJ'!C7<0.5),"-",IFERROR('Tabel 4 NJ'!C7/'Tabel 4F NJ'!C7*100,"-")) -> 12.26215645 | D7: =IF(OR('Tabel 4F NJ'!D7<5,'Tabel 4 NJ'!D7<0.5),"-",IFERROR('Tabel 4 NJ'!D7/'Tabel 4F NJ'!D7*100,"-")) -> 1.741293532 | E7: =IF(OR('Tabel 4F NJ'!E7<5,'Tabel 4 NJ'!E7<0.5),"-",IFERROR('Tabel 4 NJ'!E7/'Tabel 4F NJ'!E7*100,"-")) -> 0.78125 | F7: =IF(OR('Tabel 4F NJ'!F7<5,'Tabel 4 NJ'!F7<0.5),"-",IFERROR('Tabel 4 NJ'!F7/'Tabel 4F NJ'!F7*100,"-")) -> 1.140684411 | G7: =IF(OR('Tabel 4F NJ'!G7<5,'Tabel 4 NJ'!G7<0.5),"-",IFERROR('Tabel 4 NJ'!G7/'Tabel 4F NJ'!G7*100,"-")) -> 3.448275862 | I7: =IF(OR('Tabel 4F NJ'!I7<5,'Tabel 4 NJ'!I7<0.5),"-",IFERROR('Tabel 4 NJ'!I7/'Tabel 4F NJ'!I7*100,"-")) -> 3.862763916
A8: Diplom ing. | C8: =IF(OR('Tabel 4F NJ'!C8<5,'Tabel 4 NJ'!C8<0.5),"-",IFERROR('Tabel 4 NJ'!C8/'Tabel 4F NJ'!C8*100,"-")) -> 7.37704918 | D8: =IF(OR('Tabel 4F NJ'!D8<5,'Tabel 4 NJ'!D8<0.5),"-",IFERROR('Tabel 4 NJ'!D8/'Tabel 4F NJ'!D8*100,"-")) -> 1.19760479 | E8: =IF(OR('Tabel 4F NJ'!E8<5,'Tabel 4 NJ'!E8<0.5),"-",IFERROR('Tabel 4 NJ'!E8/'Tabel 4F NJ'!E8*100,"-")) -> - | F8: =IF(OR('Tabel 4F NJ'!F8<5,'Tabel 4 NJ'!F8<0.5),"-",IFERROR('Tabel 4 NJ'!F8/'Tabel 4F NJ'!F8*100,"-")) -> 1.680672269 | G8: =IF(OR('Tabel 4F NJ'!G8<5,'Tabel 4 NJ'!G8<0.5),"-",IFERROR('Tabel 4 NJ'!G8/'Tabel 4F NJ'!G8*100,"-")) -> 4.564315353 | I8: =IF(OR('Tabel 4F NJ'!I8<5,'Tabel 4 NJ'!I8<0.5),"-",IFERROR('Tabel 4 NJ'!I8/'Tabel 4F NJ'!I8*100,"-")) -> 2.200825309
A9: Cand. Scient. Tek | C9: =IF(OR('Tabel 4F NJ'!C9<5,'Tabel 4 NJ'!C9<0.5),"-",IFERROR('Tabel 4 NJ'!C9/'Tabel 4F NJ'!C9*100,"-")) -> 20 | D9: =IF(OR('Tabel 4F NJ'!D9<5,'Tabel 4 NJ'!D9<0.5),"-",IFERROR('Tabel 4 NJ'!D9/'Tabel 4F NJ'!D9*100,"-")) -> 4.143646409 | E9: =IF(OR('Tabel 4F NJ'!E9<5,'Tabel 4 NJ'!E9<0.5),"-",IFERROR('Tabel 4 NJ'!E9/'Tabel 4F NJ'!E9*100,"-")) -> 2.714932127 | F9: =IF(OR('Tabel 4F NJ'!F9<5,'Tabel 4 NJ'!F9<0.5),"-",IFERROR('Tabel 4 NJ'!F9/'Tabel 4F NJ'!F9*100,"-")) -> 2.666666667 | G9: =IF(OR('Tabel 4F NJ'!G9<5,'Tabel 4 NJ'!G9<0.5),"-",IFERROR('Tabel 4 NJ'!G9/'Tabel 4F NJ'!G9*100,"-")) -> - | I9: =IF(OR('Tabel 4F NJ'!I9<5,'Tabel 4 NJ'!I9<0.5),"-",IFERROR('Tabel 4 NJ'!I9/'Tabel 4F NJ'!I9*100,"-")) -> 9.6
A10: MA. Hum. | C10: =IF(OR('Tabel 4F NJ'!C10<5,'Tabel 4 NJ'!C10<0.5),"-",IFERROR('Tabel 4 NJ'!C10/'Tabel 4F NJ'!C10*100,"-")) -> 28.40236686 | D10: =IF(OR('Tabel 4F NJ'!D10<5,'Tabel 4 NJ'!D10<0.5),"-",IFERROR('Tabel 4 NJ'!D10/'Tabel 4F NJ'!D10*100,"-")) -> 11.37026239 | E10: =IF(OR('Tabel 4F NJ'!E10<5,'Tabel 4 NJ'!E10<0.5),"-",IFERROR('Tabel 4 NJ'!E10/'Tabel 4F NJ'!E10*100,"-")) -> 3.971486762 | F10: =IF(OR('Tabel 4F NJ'!F10<5,'Tabel 4 NJ'!F10<0.5),"-",IFERROR('Tabel 4 NJ'!F10/'Tabel 4F NJ'!F10*100,"-")) -> 6.935123043 | G10: =IF(OR('Tabel 4F NJ'!G10<5,'Tabel 4 NJ'!G10<0.5),"-",IFERROR('Tabel 4 NJ'!G10/'Tabel 4F NJ'!G10*100,"-")) -> 6.936416185 | I10: =IF(OR('Tabel 4F NJ'!I10<5,'Tabel 4 NJ'!I10<0.5),"-",IFERROR('Tabel 4 NJ'!I10/'Tabel 4F NJ'!I10*100,"-")) -> 10.930529
A11: MA. Nat. | C11: =IF(OR('Tabel 4F NJ'!C11<5,'Tabel 4 NJ'!C11<0.5),"-",IFERROR('Tabel 4 NJ'!C11/'Tabel 4F NJ'!C11*100,"-")) -> 16.07142857 | D11: =IF(OR('Tabel 4F NJ'!D11<5,'Tabel 4 NJ'!D11<0.5),"-",IFERROR('Tabel 4 NJ'!D11/'Tabel 4F NJ'!D11*100,"-")) -> 2.105263158 | E11: =IF(OR('Tabel 4F NJ'!E11<5,'Tabel 4 NJ'!E11<0.5),"-",IFERROR('Tabel 4 NJ'!E11/'Tabel 4F NJ'!E11*100,"-")) -> 2.564102564 | F11: =IF(OR('Tabel 4F NJ'!F11<5,'Tabel 4 NJ'!F11<0.5),"-",IFERROR('Tabel 4 NJ'!F11/'Tabel 4F NJ'!F11*100,"-")) -> 1.324503311 | G11: =IF(OR('Tabel 4F NJ'!G11<5,'Tabel 4 NJ'!G11<0.5),"-",IFERROR('Tabel 4 NJ'!G11/'Tabel 4F NJ'!G11*100,"-")) -> 3.225806452 | I11: =IF(OR('Tabel 4F NJ'!I11<5,'Tabel 4 NJ'!I11<0.5),"-",IFERROR('Tabel 4 NJ'!I11/'Tabel 4F NJ'!I11*100,"-")) -> 3.318903319
A12: MA. Ph.d. | C12: =IF(OR('Tabel 4F NJ'!C12<5,'Tabel 4 NJ'!C12<0.5),"-",IFERROR('Tabel 4 NJ'!C12/'Tabel 4F NJ'!C12*100,"-")) -> - | D12: =IF(OR('Tabel 4F NJ'!D12<5,'Tabel 4 NJ'!D12<0.5),"-",IFERROR('Tabel 4 NJ'!D12/'Tabel 4F NJ'!D12*100,"-")) -> - | E12: =IF(OR('Tabel 4F NJ'!E12<5,'Tabel 4 NJ'!E12<0.5),"-",IFERROR('Tabel 4 NJ'!E12/'Tabel 4F NJ'!E12*100,"-")) -> 2.564102564 | F12: =IF(OR('Tabel 4F NJ'!F12<5,'Tabel 4 NJ'!F12<0.5),"-",IFERROR('Tabel 4 NJ'!F12/'Tabel 4F NJ'!F12*100,"-")) -> 12 | G12: =IF(OR('Tabel 4F NJ'!G12<5,'Tabel 4 NJ'!G12<0.5),"-",IFERROR('Tabel 4 NJ'!G12/'Tabel 4F NJ'!G12*100,"-")) -> - | I12: =IF(OR('Tabel 4F NJ'!I12<5,'Tabel 4 NJ'!I12<0.5),"-",IFERROR('Tabel 4 NJ'!I12/'Tabel 4F NJ'!I12*100,"-")) -> 4.210526316
A13: MA. Samf. | C13: =IF(OR('Tabel 4F NJ'!C13<5,'Tabel 4 NJ'!C13<0.5),"-",IFERROR('Tabel 4 NJ'!C13/'Tabel 4F NJ'!C13*100,"-")) -> 24.82269504 | D13: =IF(OR('Tabel 4F NJ'!D13<5,'Tabel 4 NJ'!D13<0.5),"-",IFERROR('Tabel 4 NJ'!D13/'Tabel 4F NJ'!D13*100,"-")) -> 15.42553191 | E13: =IF(OR('Tabel 4F NJ'!E13<5,'Tabel 4 NJ'!E13<0.5),"-",IFERROR('Tabel 4 NJ'!E13/'Tabel 4F NJ'!E13*100,"-")) -> 4.761904762 | F13: =IF(OR('Tabel 4F NJ'!F13<5,'Tabel 4 NJ'!F13<0.5),"-",IFERROR('Tabel 4 NJ'!F13/'Tabel 4F NJ'!F13*100,"-")) -> - | G13: =IF(OR('Tabel 4F NJ'!G13<5,'Tabel 4 NJ'!G13<0.5),"-",IFERROR('Tabel 4 NJ'!G13/'Tabel 4F NJ'!G13*100,"-")) -> - | I13: =IF(OR('Tabel 4F NJ'!I13<5,'Tabel 4 NJ'!I13<0.5),"-",IFERROR('Tabel 4 NJ'!I13/'Tabel 4F NJ'!I13*100,"-")) -> 17.01030928
A14: Øvrige Mag. | C14: =IF(OR('Tabel 4F NJ'!C14<5,'Tabel 4 NJ'!C14<0.5),"-",IFERROR('Tabel 4 NJ'!C14/'Tabel 4F NJ'!C14*100,"-")) -> 23.4375 | D14: =IF(OR('Tabel 4F NJ'!D14<5,'Tabel 4 NJ'!D14<0.5),"-",IFERROR('Tabel 4 NJ'!D14/'Tabel 4F NJ'!D14*100,"-")) -> 19.14893617 | E14: =IF(OR('Tabel 4F NJ'!E14<5,'Tabel 4 NJ'!E14<0.5),"-",IFERROR('Tabel 4 NJ'!E14/'Tabel 4F NJ'!E14*100,"-")) -> 7.407407407 | F14: =IF(OR('Tabel 4F NJ'!F14<5,'Tabel 4 NJ'!F14<0.5),"-",IFERROR('Tabel 4 NJ'!F14/'Tabel 4F NJ'!F14*100,"-")) -> 1.818181818 | G14: =IF(OR('Tabel 4F NJ'!G14<5,'Tabel 4 NJ'!G14<0.5),"-",IFERROR('Tabel 4 NJ'!G14/'Tabel 4F NJ'!G14*100,"-")) -> 5.128205128 | I14: =IF(OR('Tabel 4F NJ'!I14<5,'Tabel 4 NJ'!I14<0.5),"-",IFERROR('Tabel 4 NJ'!I14/'Tabel 4F NJ'!I14*100,"-")) -> 11.96911197
A15: Agronom | C15: =IF(OR('Tabel 4F NJ'!C15<5,'Tabel 4 NJ'!C15<0.5),"-",IFERROR('Tabel 4 NJ'!C15/'Tabel 4F NJ'!C15*100,"-")) -> - | D15: =IF(OR('Tabel 4F NJ'!D15<5,'Tabel 4 NJ'!D15<0.5),"-",IFERROR('Tabel 4 NJ'!D15/'Tabel 4F NJ'!D15*100,"-")) -> - | E15: =IF(OR('Tabel 4F NJ'!E15<5,'Tabel 4 NJ'!E15<0.5),"-",IFERROR('Tabel 4 NJ'!E15/'Tabel 4F NJ'!E15*100,"-")) -> 2.857142857 | F15: =IF(OR('Tabel 4F NJ'!F15<5,'Tabel 4 NJ'!F15<0.5),"-",IFERROR('Tabel 4 NJ'!F15/'Tabel 4F NJ'!F15*100,"-")) -> - | G15: =IF(OR('Tabel 4F NJ'!G15<5,'Tabel 4 NJ'!G15<0.5),"-",IFERROR('Tabel 4 NJ'!G15/'Tabel 4F NJ'!G15*100,"-")) -> - | I15: =IF(OR('Tabel 4F NJ'!I15<5,'Tabel 4 NJ'!I15<0.5),"-",IFERROR('Tabel 4 NJ'!I15/'Tabel 4F NJ'!I15*100,"-")) -> 1.538461538
A16: Landsk. Arkt. | C16: =IF(OR('Tabel 4F NJ'!C16<5,'Tabel 4 NJ'!C16<0.5),"-",IFERROR('Tabel 4 NJ'!C16/'Tabel 4F NJ'!C16*100,"-")) -> - | D16: =IF(OR('Tabel 4F NJ'!D16<5,'Tabel 4 NJ'!D16<0.5),"-",IFERROR('Tabel 4 NJ'!D16/'Tabel 4F NJ'!D16*100,"-")) -> - | E16: =IF(OR('Tabel 4F NJ'!E16<5,'Tabel 4 NJ'!E16<0.5),"-",IFERROR('Tabel 4 NJ'!E16/'Tabel 4F NJ'!E16*100,"-")) -> - | F16: =IF(OR('Tabel 4F NJ'!F16<5,'Tabel 4 NJ'!F16<0.5),"-",IFERROR('Tabel 4 NJ'!F16/'Tabel 4F NJ'!F16*100,"-")) -> - | G16: =IF(OR('Tabel 4F NJ'!G16<5,'Tabel 4 NJ'!G16<0.5),"-",IFERROR('Tabel 4 NJ'!G16/'Tabel 4F NJ'!G16*100,"-")) -> - | I16: =IF(OR('Tabel 4F NJ'!I16<5,'Tabel 4 NJ'!I16<0.5),"-",IFERROR('Tabel 4 NJ'!I16/'Tabel 4F NJ'!I16*100,"-")) -> 6.666666667
A17: Hortonom | C17: =IF(OR('Tabel 4F NJ'!C17<5,'Tabel 4 NJ'!C17<0.5),"-",IFERROR('Tabel 4 NJ'!C17/'Tabel 4F NJ'!C17*100,"-")) -> - | D17: =IF(OR('Tabel 4F NJ'!D17<5,'Tabel 4 NJ'!D17<0.5),"-",IFERROR('Tabel 4 NJ'!D17/'Tabel 4F NJ'!D17*100,"-")) -> - | E17: =IF(OR('Tabel 4F NJ'!E17<5,'Tabel 4 NJ'!E17<0.5),"-",IFERROR('Tabel 4 NJ'!E17/'Tabel 4F NJ'!E17*100,"-")) -> - | F17: =IF(OR('Tabel 4F NJ'!F17<5,'Tabel 4 NJ'!F17<0.5),"-",IFERROR('Tabel 4 NJ'!F17/'Tabel 4F NJ'!F17*100,"-")) -> - | G17: =IF(OR('Tabel 4F NJ'!G17<5,'Tabel 4 NJ'!G17<0.5),"-",IFERROR('Tabel 4 NJ'!G17/'Tabel 4F NJ'!G17*100,"-")) -> - | I17: =IF(OR('Tabel 4F NJ'!I17<5,'Tabel 4 NJ'!I17<0.5),"-",IFERROR('Tabel 4 NJ'!I17/'Tabel 4F NJ'!I17*100,"-")) -> -
A18: Forstkand. | C18: =IF(OR('Tabel 4F NJ'!C18<5,'Tabel 4 NJ'!C18<0.5),"-",IFERROR('Tabel 4 NJ'!C18/'Tabel 4F NJ'!C18*100,"-")) -> - | D18: =IF(OR('Tabel 4F NJ'!D18<5,'Tabel 4 NJ'!D18<0.5),"-",IFERROR('Tabel 4 NJ'!D18/'Tabel 4F NJ'!D18*100,"-")) -> - | E18: =IF(OR('Tabel 4F NJ'!E18<5,'Tabel 4 NJ'!E18<0.5),"-",IFERROR('Tabel 4 NJ'!E18/'Tabel 4F NJ'!E18*100,"-")) -> - | F18: =IF(OR('Tabel 4F NJ'!F18<5,'Tabel 4 NJ'!F18<0.5),"-",IFERROR('Tabel 4 NJ'!F18/'Tabel 4F NJ'!F18*100,"-")) -> - | G18: =IF(OR('Tabel 4F NJ'!G18<5,'Tabel 4 NJ'!G18<0.5),"-",IFERROR('Tabel 4 NJ'!G18/'Tabel 4F NJ'!G18*100,"-")) -> - | I18: =IF(OR('Tabel 4F NJ'!I18<5,'Tabel 4 NJ'!I18<0.5),"-",IFERROR('Tabel 4 NJ'!I18/'Tabel 4F NJ'!I18*100,"-")) -> -
A19: Jordbrugsakad. | C19: =IF(OR('Tabel 4F NJ'!C19<5,'Tabel 4 NJ'!C19<0.5),"-",IFERROR('Tabel 4 NJ'!C19/'Tabel 4F NJ'!C19*100,"-")) -> - | D19: =IF(OR('Tabel 4F NJ'!D19<5,'Tabel 4 NJ'!D19<0.5),"-",IFERROR('Tabel 4 NJ'!D19/'Tabel 4F NJ'!D19*100,"-")) -> - | E19: =IF(OR('Tabel 4F NJ'!E19<5,'Tabel 4 NJ'!E19<0.5),"-",IFERROR('Tabel 4 NJ'!E19/'Tabel 4F NJ'!E19*100,"-")) -> 2.083333333 | F19: =IF(OR('Tabel 4F NJ'!F19<5,'Tabel 4 NJ'!F19<0.5),"-",IFERROR('Tabel 4 NJ'!F19/'Tabel 4F NJ'!F19*100,"-")) -> - | G19: =IF(OR('Tabel 4F NJ'!G19<5,'Tabel 4 NJ'!G19<0.5),"-",IFERROR('Tabel 4 NJ'!G19/'Tabel 4F NJ'!G19*100,"-")) -> - | I19: =IF(OR('Tabel 4F NJ'!I19<5,'Tabel 4 NJ'!I19<0.5),"-",IFERROR('Tabel 4 NJ'!I19/'Tabel 4F NJ'!I19*100,"-")) -> 1.764705882
A20: Mejeriing. | C20: =IF(OR('Tabel 4F NJ'!C20<5,'Tabel 4 NJ'!C20<0.5),"-",IFERROR('Tabel 4 NJ'!C20/'Tabel 4F NJ'!C20*100,"-")) -> - | D20: =IF(OR('Tabel 4F NJ'!D20<5,'Tabel 4 NJ'!D20<0.5),"-",IFERROR('Tabel 4 NJ'!D20/'Tabel 4F NJ'!D20*100,"-")) -> - | E20: =IF(OR('Tabel 4F NJ'!E20<5,'Tabel 4 NJ'!E20<0.5),"-",IFERROR('Tabel 4 NJ'!E20/'Tabel 4F NJ'!E20*100,"-")) -> - | F20: =IF(OR('Tabel 4F NJ'!F20<5,'Tabel 4 NJ'!F20<0.5),"-",IFERROR('Tabel 4 NJ'!F20/'Tabel 4F NJ'!F20*100,"-")) -> - | G20: =IF(OR('Tabel 4F NJ'!G20<5,'Tabel 4 NJ'!G20<0.5),"-",IFERROR('Tabel 4 NJ'!G20/'Tabel 4F NJ'!G20*100,"-")) -> 16.66666667 | I20: =IF(OR('Tabel 4F NJ'!I20<5,'Tabel 4 NJ'!I20<0.5),"-",IFERROR('Tabel 4 NJ'!I20/'Tabel 4F NJ'!I20*100,"-")) -> 5.555555556
A21: Levn.m.kand. | C21: =IF(OR('Tabel 4F NJ'!C21<5,'Tabel 4 NJ'!C21<0.5),"-",IFERROR('Tabel 4 NJ'!C21/'Tabel 4F NJ'!C21*100,"-")) -> - | D21: =IF(OR('Tabel 4F NJ'!D21<5,'Tabel 4 NJ'!D21<0.5),"-",IFERROR('Tabel 4 NJ'!D21/'Tabel 4F NJ'!D21*100,"-")) -> - | E21: =IF(OR('Tabel 4F NJ'!E21<5,'Tabel 4 NJ'!E21<0.5),"-",IFERROR('Tabel 4 NJ'!E21/'Tabel 4F NJ'!E21*100,"-")) -> - | F21: =IF(OR('Tabel 4F NJ'!F21<5,'Tabel 4 NJ'!F21<0.5),"-",IFERROR('Tabel 4 NJ'!F21/'Tabel 4F NJ'!F21*100,"-")) -> - | G21: =IF(OR('Tabel 4F NJ'!G21<5,'Tabel 4 NJ'!G21<0.5),"-",IFERROR('Tabel 4 NJ'!G21/'Tabel 4F NJ'!G21*100,"-")) -> - | I21: =IF(OR('Tabel 4F NJ'!I21<5,'Tabel 4 NJ'!I21<0.5),"-",IFERROR('Tabel 4 NJ'!I21/'Tabel 4F NJ'!I21*100,"-")) -> -
A22: Dyrlæge | C22: =IF(OR('Tabel 4F NJ'!C22<5,'Tabel 4 NJ'!C22<0.5),"-",IFERROR('Tabel 4 NJ'!C22/'Tabel 4F NJ'!C22*100,"-")) -> - | D22: =IF(OR('Tabel 4F NJ'!D22<5,'Tabel 4 NJ'!D22<0.5),"-",IFERROR('Tabel 4 NJ'!D22/'Tabel 4F NJ'!D22*100,"-")) -> - | E22: =IF(OR('Tabel 4F NJ'!E22<5,'Tabel 4 NJ'!E22<0.5),"-",IFERROR('Tabel 4 NJ'!E22/'Tabel 4F NJ'!E22*100,"-")) -> - | F22: =IF(OR('Tabel 4F NJ'!F22<5,'Tabel 4 NJ'!F22<0.5),"-",IFERROR('Tabel 4 NJ'!F22/'Tabel 4F NJ'!F22*100,"-")) -> - | G22: =IF(OR('Tabel 4F NJ'!G22<5,'Tabel 4 NJ'!G22<0.5),"-",IFERROR('Tabel 4 NJ'!G22/'Tabel 4F NJ'!G22*100,"-")) -> - | I22: =IF(OR('Tabel 4F NJ'!I22<5,'Tabel 4 NJ'!I22<0.5),"-",IFERROR('Tabel 4 NJ'!I22/'Tabel 4F NJ'!I22*100,"-")) -> -
A23: Farmaceut | C23: =IF(OR('Tabel 4F NJ'!C23<5,'Tabel 4 NJ'!C23<0.5),"-",IFERROR('Tabel 4 NJ'!C23/'Tabel 4F NJ'!C23*100,"-")) -> 16.66666667 | D23: =IF(OR('Tabel 4F NJ'!D23<5,'Tabel 4 NJ'!D23<0.5),"-",IFERROR('Tabel 4 NJ'!D23/'Tabel 4F NJ'!D23*100,"-")) -> 4.255319149 | E23: =IF(OR('Tabel 4F NJ'!E23<5,'Tabel 4 NJ'!E23<0.5),"-",IFERROR('Tabel 4 NJ'!E23/'Tabel 4F NJ'!E23*100,"-")) -> 6.451612903 | F23: =IF(OR('Tabel 4F NJ'!F23<5,'Tabel 4 NJ'!F23<0.5),"-",IFERROR('Tabel 4 NJ'!F23/'Tabel 4F NJ'!F23*100,"-")) -> - | G23: =IF(OR('Tabel 4F NJ'!G23<5,'Tabel 4 NJ'!G23<0.5),"-",IFERROR('Tabel 4 NJ'!G23/'Tabel 4F NJ'!G23*100,"-")) -> 8.333333333 | I23: =IF(OR('Tabel 4F NJ'!I23<5,'Tabel 4 NJ'!I23<0.5),"-",IFERROR('Tabel 4 NJ'!I23/'Tabel 4F NJ'!I23*100,"-")) -> 6.557377049
A24: Læge | C24: =IF(OR('Tabel 4F NJ'!C24<5,'Tabel 4 NJ'!C24<0.5),"-",IFERROR('Tabel 4 NJ'!C24/'Tabel 4F NJ'!C24*100,"-")) -> 5.479452055 | D24: =IF(OR('Tabel 4F NJ'!D24<5,'Tabel 4 NJ'!D24<0.5),"-",IFERROR('Tabel 4 NJ'!D24/'Tabel 4F NJ'!D24*100,"-")) -> 2.052785924 | E24: =IF(OR('Tabel 4F NJ'!E24<5,'Tabel 4 NJ'!E24<0.5),"-",IFERROR('Tabel 4 NJ'!E24/'Tabel 4F NJ'!E24*100,"-")) -> 1.19760479 | F24: =IF(OR('Tabel 4F NJ'!F24<5,'Tabel 4 NJ'!F24<0.5),"-",IFERROR('Tabel 4 NJ'!F24/'Tabel 4F NJ'!F24*100,"-")) -> - | G24: =IF(OR('Tabel 4F NJ'!G24<5,'Tabel 4 NJ'!G24<0.5),"-",IFERROR('Tabel 4 NJ'!G24/'Tabel 4F NJ'!G24*100,"-")) -> - | I24: =IF(OR('Tabel 4F NJ'!I24<5,'Tabel 4 NJ'!I24<0.5),"-",IFERROR('Tabel 4 NJ'!I24/'Tabel 4F NJ'!I24*100,"-")) -> 2.419354839
A25: Tandlæge | C25: =IF(OR('Tabel 4F NJ'!C25<5,'Tabel 4 NJ'!C25<0.5),"-",IFERROR('Tabel 4 NJ'!C25/'Tabel 4F NJ'!C25*100,"-")) -> - | D25: =IF(OR('Tabel 4F NJ'!D25<5,'Tabel 4 NJ'!D25<0.5),"-",IFERROR('Tabel 4 NJ'!D25/'Tabel 4F NJ'!D25*100,"-")) -> - | E25: =IF(OR('Tabel 4F NJ'!E25<5,'Tabel 4 NJ'!E25<0.5),"-",IFERROR('Tabel 4 NJ'!E25/'Tabel 4F NJ'!E25*100,"-")) -> - | F25: =IF(OR('Tabel 4F NJ'!F25<5,'Tabel 4 NJ'!F25<0.5),"-",IFERROR('Tabel 4 NJ'!F25/'Tabel 4F NJ'!F25*100,"-")) -> - | G25: =IF(OR('Tabel 4F NJ'!G25<5,'Tabel 4 NJ'!G25<0.5),"-",IFERROR('Tabel 4 NJ'!G25/'Tabel 4F NJ'!G25*100,"-")) -> 5.882352941 | I25: =IF(OR('Tabel 4F NJ'!I25<5,'Tabel 4 NJ'!I25<0.5),"-",IFERROR('Tabel 4 NJ'!I25/'Tabel 4F NJ'!I25*100,"-")) -> 0.826446281
A26: Arkitekt | C26: =IF(OR('Tabel 4F NJ'!C26<5,'Tabel 4 NJ'!C26<0.5),"-",IFERROR('Tabel 4 NJ'!C26/'Tabel 4F NJ'!C26*100,"-")) -> 42.85714286 | D26: =IF(OR('Tabel 4F NJ'!D26<5,'Tabel 4 NJ'!D26<0.5),"-",IFERROR('Tabel 4 NJ'!D26/'Tabel 4F NJ'!D26*100,"-")) -> 2.941176471 | E26: =IF(OR('Tabel 4F NJ'!E26<5,'Tabel 4 NJ'!E26<0.5),"-",IFERROR('Tabel 4 NJ'!E26/'Tabel 4F NJ'!E26*100,"-")) -> 2.564102564 | F26: =IF(OR('Tabel 4F NJ'!F26<5,'Tabel 4 NJ'!F26<0.5),"-",IFERROR('Tabel 4 NJ'!F26/'Tabel 4F NJ'!F26*100,"-")) -> 8.695652174 | G26: =IF(OR('Tabel 4F NJ'!G26<5,'Tabel 4 NJ'!G26<0.5),"-",IFERROR('Tabel 4 NJ'!G26/'Tabel 4F NJ'!G26*100,"-")) -> 4 | I26: =IF(OR('Tabel 4F NJ'!I26<5,'Tabel 4 NJ'!I26<0.5),"-",IFERROR('Tabel 4 NJ'!I26/'Tabel 4F NJ'!I26*100,"-")) -> 8.148148148
A27: Landinspek. | C27: =IF(OR('Tabel 4F NJ'!C27<5,'Tabel 4 NJ'!C27<0.5),"-",IFERROR('Tabel 4 NJ'!C27/'Tabel 4F NJ'!C27*100,"-")) -> 5.263157895 | D27: =IF(OR('Tabel 4F NJ'!D27<5,'Tabel 4 NJ'!D27<0.5),"-",IFERROR('Tabel 4 NJ'!D27/'Tabel 4F NJ'!D27*100,"-")) -> - | E27: =IF(OR('Tabel 4F NJ'!E27<5,'Tabel 4 NJ'!E27<0.5),"-",IFERROR('Tabel 4 NJ'!E27/'Tabel 4F NJ'!E27*100,"-")) -> - | F27: =IF(OR('Tabel 4F NJ'!F27<5,'Tabel 4 NJ'!F27<0.5),"-",IFERROR('Tabel 4 NJ'!F27/'Tabel 4F NJ'!F27*100,"-")) -> 1.265822785 | G27: =IF(OR('Tabel 4F NJ'!G27<5,'Tabel 4 NJ'!G27<0.5),"-",IFERROR('Tabel 4 NJ'!G27/'Tabel 4F NJ'!G27*100,"-")) -> 9.523809524 | I27: =IF(OR('Tabel 4F NJ'!I27<5,'Tabel 4 NJ'!I27<0.5),"-",IFERROR('Tabel 4 NJ'!I27/'Tabel 4F NJ'!I27*100,"-")) -> 1.70212766
A28: Bibliotekar | C28: =IF(OR('Tabel 4F NJ'!C28<5,'Tabel 4 NJ'!C28<0.5),"-",IFERROR('Tabel 4 NJ'!C28/'Tabel 4F NJ'!C28*100,"-")) -> 28.57142857 | D28: =IF(OR('Tabel 4F NJ'!D28<5,'Tabel 4 NJ'!D28<0.5),"-",IFERROR('Tabel 4 NJ'!D28/'Tabel 4F NJ'!D28*100,"-")) -> 9.230769231 | E28: =IF(OR('Tabel 4F NJ'!E28<5,'Tabel 4 NJ'!E28<0.5),"-",IFERROR('Tabel 4 NJ'!E28/'Tabel 4F NJ'!E28*100,"-")) -> 2.803738318 | F28: =IF(OR('Tabel 4F NJ'!F28<5,'Tabel 4 NJ'!F28<0.5),"-",IFERROR('Tabel 4 NJ'!F28/'Tabel 4F NJ'!F28*100,"-")) -> 6.41025641 | G28: =IF(OR('Tabel 4F NJ'!G28<5,'Tabel 4 NJ'!G28<0.5),"-",IFERROR('Tabel 4 NJ'!G28/'Tabel 4F NJ'!G28*100,"-")) -> 1.923076923 | I28: =IF(OR('Tabel 4F NJ'!I28<5,'Tabel 4 NJ'!I28<0.5),"-",IFERROR('Tabel 4 NJ'!I28/'Tabel 4F NJ'!I28*100,"-")) -> 5.501618123
A29: Musikudd. | C29: =IF(OR('Tabel 4F NJ'!C29<5,'Tabel 4 NJ'!C29<0.5),"-",IFERROR('Tabel 4 NJ'!C29/'Tabel 4F NJ'!C29*100,"-")) -> - | D29: =IF(OR('Tabel 4F NJ'!D29<5,'Tabel 4 NJ'!D29<0.5),"-",IFERROR('Tabel 4 NJ'!D29/'Tabel 4F NJ'!D29*100,"-")) -> 7.142857143 | E29: =IF(OR('Tabel 4F NJ'!E29<5,'Tabel 4 NJ'!E29<0.5),"-",IFERROR('Tabel 4 NJ'!E29/'Tabel 4F NJ'!E29*100,"-")) -> - | F29: =IF(OR('Tabel 4F NJ'!F29<5,'Tabel 4 NJ'!F29<0.5),"-",IFERROR('Tabel 4 NJ'!F29/'Tabel 4F NJ'!F29*100,"-")) -> - | G29: =IF(OR('Tabel 4F NJ'!G29<5,'Tabel 4 NJ'!G29<0.5),"-",IFERROR('Tabel 4 NJ'!G29/'Tabel 4F NJ'!G29*100,"-")) -> - | I29: =IF(OR('Tabel 4F NJ'!I29<5,'Tabel 4 NJ'!I29<0.5),"-",IFERROR('Tabel 4 NJ'!I29/'Tabel 4F NJ'!I29*100,"-")) -> 1.01010101
A30: Teolog | C30: =IF(OR('Tabel 4F NJ'!C30<5,'Tabel 4 NJ'!C30<0.5),"-",IFERROR('Tabel 4 NJ'!C30/'Tabel 4F NJ'!C30*100,"-")) -> - | D30: =IF(OR('Tabel 4F NJ'!D30<5,'Tabel 4 NJ'!D30<0.5),"-",IFERROR('Tabel 4 NJ'!D30/'Tabel 4F NJ'!D30*100,"-")) -> 7.407407407 | E30: =IF(OR('Tabel 4F NJ'!E30<5,'Tabel 4 NJ'!E30<0.5),"-",IFERROR('Tabel 4 NJ'!E30/'Tabel 4F NJ'!E30*100,"-")) -> - | F30: =IF(OR('Tabel 4F NJ'!F30<5,'Tabel 4 NJ'!F30<0.5),"-",IFERROR('Tabel 4 NJ'!F30/'Tabel 4F NJ'!F30*100,"-")) -> - | G30: =IF(OR('Tabel 4F NJ'!G30<5,'Tabel 4 NJ'!G30<0.5),"-",IFERROR('Tabel 4 NJ'!G30/'Tabel 4F NJ'!G30*100,"-")) -> - | I30: =IF(OR('Tabel 4F NJ'!I30<5,'Tabel 4 NJ'!I30<0.5),"-",IFERROR('Tabel 4 NJ'!I30/'Tabel 4F NJ'!I30*100,"-")) -> 1.234567901
A31: Psykolog | C31: =IF(OR('Tabel 4F NJ'!C31<5,'Tabel 4 NJ'!C31<0.5),"-",IFERROR('Tabel 4 NJ'!C31/'Tabel 4F NJ'!C31*100,"-")) -> 18.44660194 | D31: =IF(OR('Tabel 4F NJ'!D31<5,'Tabel 4 NJ'!D31<0.5),"-",IFERROR('Tabel 4 NJ'!D31/'Tabel 4F NJ'!D31*100,"-")) -> 6.35451505 | E31: =IF(OR('Tabel 4F NJ'!E31<5,'Tabel 4 NJ'!E31<0.5),"-",IFERROR('Tabel 4 NJ'!E31/'Tabel 4F NJ'!E31*100,"-")) -> 2.469135802 | F31: =IF(OR('Tabel 4F NJ'!F31<5,'Tabel 4 NJ'!F31<0.5),"-",IFERROR('Tabel 4 NJ'!F31/'Tabel 4F NJ'!F31*100,"-")) -> 4.838709677 | G31: =IF(OR('Tabel 4F NJ'!G31<5,'Tabel 4 NJ'!G31<0.5),"-",IFERROR('Tabel 4 NJ'!G31/'Tabel 4F NJ'!G31*100,"-")) -> 3.225806452 | I31: =IF(OR('Tabel 4F NJ'!I31<5,'Tabel 4 NJ'!I31<0.5),"-",IFERROR('Tabel 4 NJ'!I31/'Tabel 4F NJ'!I31*100,"-")) -> 8.552631579
A32: Jurist | C32: =IF(OR('Tabel 4F NJ'!C32<5,'Tabel 4 NJ'!C32<0.5),"-",IFERROR('Tabel 4 NJ'!C32/'Tabel 4F NJ'!C32*100,"-")) -> 5.392156863 | D32: =IF(OR('Tabel 4F NJ'!D32<5,'Tabel 4 NJ'!D32<0.5),"-",IFERROR('Tabel 4 NJ'!D32/'Tabel 4F NJ'!D32*100,"-")) -> 2.371541502 | E32: =IF(OR('Tabel 4F NJ'!E32<5,'Tabel 4 NJ'!E32<0.5),"-",IFERROR('Tabel 4 NJ'!E32/'Tabel 4F NJ'!E32*100,"-")) -> 1.57480315 | F32: =IF(OR('Tabel 4F NJ'!F32<5,'Tabel 4 NJ'!F32<0.5),"-",IFERROR('Tabel 4 NJ'!F32/'Tabel 4F NJ'!F32*100,"-")) -> - | G32: =IF(OR('Tabel 4F NJ'!G32<5,'Tabel 4 NJ'!G32<0.5),"-",IFERROR('Tabel 4 NJ'!G32/'Tabel 4F NJ'!G32*100,"-")) -> - | I32: =IF(OR('Tabel 4F NJ'!I32<5,'Tabel 4 NJ'!I32<0.5),"-",IFERROR('Tabel 4 NJ'!I32/'Tabel 4F NJ'!I32*100,"-")) -> 2.687411598
A33: Økonom | C33: =IF(OR('Tabel 4F NJ'!C33<5,'Tabel 4 NJ'!C33<0.5),"-",IFERROR('Tabel 4 NJ'!C33/'Tabel 4F NJ'!C33*100,"-")) -> 6.666666667 | D33: =IF(OR('Tabel 4F NJ'!D33<5,'Tabel 4 NJ'!D33<0.5),"-",IFERROR('Tabel 4 NJ'!D33/'Tabel 4F NJ'!D33*100,"-")) -> 2.48447205 | E33: =IF(OR('Tabel 4F NJ'!E33<5,'Tabel 4 NJ'!E33<0.5),"-",IFERROR('Tabel 4 NJ'!E33/'Tabel 4F NJ'!E33*100,"-")) -> 2.666666667 | F33: =IF(OR('Tabel 4F NJ'!F33<5,'Tabel 4 NJ'!F33<0.5),"-",IFERROR('Tabel 4 NJ'!F33/'Tabel 4F NJ'!F33*100,"-")) -> 1.041666667 | G33: =IF(OR('Tabel 4F NJ'!G33<5,'Tabel 4 NJ'!G33<0.5),"-",IFERROR('Tabel 4 NJ'!G33/'Tabel 4F NJ'!G33*100,"-")) -> - | I33: =IF(OR('Tabel 4F NJ'!I33<5,'Tabel 4 NJ'!I33<0.5),"-",IFERROR('Tabel 4 NJ'!I33/'Tabel 4F NJ'!I33*100,"-")) -> 3.198294243
A34: Samf. Adm. | C34: =IF(OR('Tabel 4F NJ'!C34<5,'Tabel 4 NJ'!C34<0.5),"-",IFERROR('Tabel 4 NJ'!C34/'Tabel 4F NJ'!C34*100,"-")) -> 23.02405498 | D34: =IF(OR('Tabel 4F NJ'!D34<5,'Tabel 4 NJ'!D34<0.5),"-",IFERROR('Tabel 4 NJ'!D34/'Tabel 4F NJ'!D34*100,"-")) -> 6.955177743 | E34: =IF(OR('Tabel 4F NJ'!E34<5,'Tabel 4 NJ'!E34<0.5),"-",IFERROR('Tabel 4 NJ'!E34/'Tabel 4F NJ'!E34*100,"-")) -> 2.094240838 | F34: =IF(OR('Tabel 4F NJ'!F34<5,'Tabel 4 NJ'!F34<0.5),"-",IFERROR('Tabel 4 NJ'!F34/'Tabel 4F NJ'!F34*100,"-")) -> 3.723404255 | G34: =IF(OR('Tabel 4F NJ'!G34<5,'Tabel 4 NJ'!G34<0.5),"-",IFERROR('Tabel 4 NJ'!G34/'Tabel 4F NJ'!G34*100,"-")) -> 10.41666667 | I34: =IF(OR('Tabel 4F NJ'!I34<5,'Tabel 4 NJ'!I34<0.5),"-",IFERROR('Tabel 4 NJ'!I34/'Tabel 4F NJ'!I34*100,"-")) -> 8.483290488
A35: Cand. Merc. | C35: =IF(OR('Tabel 4F NJ'!C35<5,'Tabel 4 NJ'!C35<0.5),"-",IFERROR('Tabel 4 NJ'!C35/'Tabel 4F NJ'!C35*100,"-")) -> 15.31100478 | D35: =IF(OR('Tabel 4F NJ'!D35<5,'Tabel 4 NJ'!D35<0.5),"-",IFERROR('Tabel 4 NJ'!D35/'Tabel 4F NJ'!D35*100,"-")) -> 4.736842105 | E35: =IF(OR('Tabel 4F NJ'!E35<5,'Tabel 4 NJ'!E35<0.5),"-",IFERROR('Tabel 4 NJ'!E35/'Tabel 4F NJ'!E35*100,"-")) -> 1.5625 | F35: =IF(OR('Tabel 4F NJ'!F35<5,'Tabel 4 NJ'!F35<0.5),"-",IFERROR('Tabel 4 NJ'!F35/'Tabel 4F NJ'!F35*100,"-")) -> 1.347708895 | G35: =IF(OR('Tabel 4F NJ'!G35<5,'Tabel 4 NJ'!G35<0.5),"-",IFERROR('Tabel 4 NJ'!G35/'Tabel 4F NJ'!G35*100,"-")) -> 4.081632653 | I35: =IF(OR('Tabel 4F NJ'!I35<5,'Tabel 4 NJ'!I35<0.5),"-",IFERROR('Tabel 4 NJ'!I35/'Tabel 4F NJ'!I35*100,"-")) -> 6.474501109
A36: HA | C36: =IF(OR('Tabel 4F NJ'!C36<5,'Tabel 4 NJ'!C36<0.5),"-",IFERROR('Tabel 4 NJ'!C36/'Tabel 4F NJ'!C36*100,"-")) -> 16.12903226 | D36: =IF(OR('Tabel 4F NJ'!D36<5,'Tabel 4 NJ'!D36<0.5),"-",IFERROR('Tabel 4 NJ'!D36/'Tabel 4F NJ'!D36*100,"-")) -> 2.53164557 | E36: =IF(OR('Tabel 4F NJ'!E36<5,'Tabel 4 NJ'!E36<0.5),"-",IFERROR('Tabel 4 NJ'!E36/'Tabel 4F NJ'!E36*100,"-")) -> - | F36: =IF(OR('Tabel 4F NJ'!F36<5,'Tabel 4 NJ'!F36<0.5),"-",IFERROR('Tabel 4 NJ'!F36/'Tabel 4F NJ'!F36*100,"-")) -> 2.919708029 | G36: =IF(OR('Tabel 4F NJ'!G36<5,'Tabel 4 NJ'!G36<0.5),"-",IFERROR('Tabel 4 NJ'!G36/'Tabel 4F NJ'!G36*100,"-")) -> 5.882352941 | I36: =IF(OR('Tabel 4F NJ'!I36<5,'Tabel 4 NJ'!I36<0.5),"-",IFERROR('Tabel 4 NJ'!I36/'Tabel 4F NJ'!I36*100,"-")) -> 7.189542484
A37: HD | C37: =IF(OR('Tabel 4F NJ'!C37<5,'Tabel 4 NJ'!C37<0.5),"-",IFERROR('Tabel 4 NJ'!C37/'Tabel 4F NJ'!C37*100,"-")) -> 18.86792453 | D37: =IF(OR('Tabel 4F NJ'!D37<5,'Tabel 4 NJ'!D37<0.5),"-",IFERROR('Tabel 4 NJ'!D37/'Tabel 4F NJ'!D37*100,"-")) -> 10 | E37: =IF(OR('Tabel 4F NJ'!E37<5,'Tabel 4 NJ'!E37<0.5),"-",IFERROR('Tabel 4 NJ'!E37/'Tabel 4F NJ'!E37*100,"-")) -> 1.694915254 | F37: =IF(OR('Tabel 4F NJ'!F37<5,'Tabel 4 NJ'!F37<0.5),"-",IFERROR('Tabel 4 NJ'!F37/'Tabel 4F NJ'!F37*100,"-")) -> 2.752293578 | G37: =IF(OR('Tabel 4F NJ'!G37<5,'Tabel 4 NJ'!G37<0.5),"-",IFERROR('Tabel 4 NJ'!G37/'Tabel 4F NJ'!G37*100,"-")) -> 5.660377358 | I37: =IF(OR('Tabel 4F NJ'!I37<5,'Tabel 4 NJ'!I37<0.5),"-",IFERROR('Tabel 4 NJ'!I37/'Tabel 4F NJ'!I37*100,"-")) -> 6.886227545
A38: Komm. og Sprog | C38: =IF(OR('Tabel 4F NJ'!C38<5,'Tabel 4 NJ'!C38<0.5),"-",IFERROR('Tabel 4 NJ'!C38/'Tabel 4F NJ'!C38*100,"-")) -> 27.11864407 | D38: =IF(OR('Tabel 4F NJ'!D38<5,'Tabel 4 NJ'!D38<0.5),"-",IFERROR('Tabel 4 NJ'!D38/'Tabel 4F NJ'!D38*100,"-")) -> 10.52631579 | E38: =IF(OR('Tabel 4F NJ'!E38<5,'Tabel 4 NJ'!E38<0.5),"-",IFERROR('Tabel 4 NJ'!E38/'Tabel 4F NJ'!E38*100,"-")) -> 5.607476636 | F38: =IF(OR('Tabel 4F NJ'!F38<5,'Tabel 4 NJ'!F38<0.5),"-",IFERROR('Tabel 4 NJ'!F38/'Tabel 4F NJ'!F38*100,"-")) -> 5.194805195 | G38: =IF(OR('Tabel 4F NJ'!G38<5,'Tabel 4 NJ'!G38<0.5),"-",IFERROR('Tabel 4 NJ'!G38/'Tabel 4F NJ'!G38*100,"-")) -> 8.571428571 | I38: =IF(OR('Tabel 4F NJ'!I38<5,'Tabel 4 NJ'!I38<0.5),"-",IFERROR('Tabel 4 NJ'!I38/'Tabel 4F NJ'!I38*100,"-")) -> 10.45576408
A39: Bygningskonst. | C39: =IF(OR('Tabel 4F NJ'!C39<5,'Tabel 4 NJ'!C39<0.5),"-",IFERROR('Tabel 4 NJ'!C39/'Tabel 4F NJ'!C39*100,"-")) -> 7.100591716 | D39: =IF(OR('Tabel 4F NJ'!D39<5,'Tabel 4 NJ'!D39<0.5),"-",IFERROR('Tabel 4 NJ'!D39/'Tabel 4F NJ'!D39*100,"-")) -> 1.772151899 | E39: =IF(OR('Tabel 4F NJ'!E39<5,'Tabel 4 NJ'!E39<0.5),"-",IFERROR('Tabel 4 NJ'!E39/'Tabel 4F NJ'!E39*100,"-")) -> 1.960784314 | F39: =IF(OR('Tabel 4F NJ'!F39<5,'Tabel 4 NJ'!F39<0.5),"-",IFERROR('Tabel 4 NJ'!F39/'Tabel 4F NJ'!F39*100,"-")) -> 2.325581395 | G39: =IF(OR('Tabel 4F NJ'!G39<5,'Tabel 4 NJ'!G39<0.5),"-",IFERROR('Tabel 4 NJ'!G39/'Tabel 4F NJ'!G39*100,"-")) -> - | I39: =IF(OR('Tabel 4F NJ'!I39<5,'Tabel 4 NJ'!I39<0.5),"-",IFERROR('Tabel 4 NJ'!I39/'Tabel 4F NJ'!I39*100,"-")) -> 2.789699571
A40: Cand. IT. | C40: =IF(OR('Tabel 4F NJ'!C40<5,'Tabel 4 NJ'!C40<0.5),"-",IFERROR('Tabel 4 NJ'!C40/'Tabel 4F NJ'!C40*100,"-")) -> 19.51219512 | D40: =IF(OR('Tabel 4F NJ'!D40<5,'Tabel 4 NJ'!D40<0.5),"-",IFERROR('Tabel 4 NJ'!D40/'Tabel 4F NJ'!D40*100,"-")) -> 9.933774834 | E40: =IF(OR('Tabel 4F NJ'!E40<5,'Tabel 4 NJ'!E40<0.5),"-",IFERROR('Tabel 4 NJ'!E40/'Tabel 4F NJ'!E40*100,"-")) -> 7.936507937 | F40: =IF(OR('Tabel 4F NJ'!F40<5,'Tabel 4 NJ'!F40<0.5),"-",IFERROR('Tabel 4 NJ'!F40/'Tabel 4F NJ'!F40*100,"-")) -> - | G40: =IF(OR('Tabel 4F NJ'!G40<5,'Tabel 4 NJ'!G40<0.5),"-",IFERROR('Tabel 4 NJ'!G40/'Tabel 4F NJ'!G40*100,"-")) -> - | I40: =IF(OR('Tabel 4F NJ'!I40<5,'Tabel 4 NJ'!I40<0.5),"-",IFERROR('Tabel 4 NJ'!I40/'Tabel 4F NJ'!I40*100,"-")) -> 13.02083333
A41: Bac. Samf. | C41: =IF(OR('Tabel 4F NJ'!C41<5,'Tabel 4 NJ'!C41<0.5),"-",IFERROR('Tabel 4 NJ'!C41/'Tabel 4F NJ'!C41*100,"-")) -> 15.38461538 | D41: =IF(OR('Tabel 4F NJ'!D41<5,'Tabel 4 NJ'!D41<0.5),"-",IFERROR('Tabel 4 NJ'!D41/'Tabel 4F NJ'!D41*100,"-")) -> 6.666666667 | E41: =IF(OR('Tabel 4F NJ'!E41<5,'Tabel 4 NJ'!E41<0.5),"-",IFERROR('Tabel 4 NJ'!E41/'Tabel 4F NJ'!E41*100,"-")) -> 15.78947368 | F41: =IF(OR('Tabel 4F NJ'!F41<5,'Tabel 4 NJ'!F41<0.5),"-",IFERROR('Tabel 4 NJ'!F41/'Tabel 4F NJ'!F41*100,"-")) -> - | G41: =IF(OR('Tabel 4F NJ'!G41<5,'Tabel 4 NJ'!G41<0.5),"-",IFERROR('Tabel 4 NJ'!G41/'Tabel 4F NJ'!G41*100,"-")) -> - | I41: =IF(OR('Tabel 4F NJ'!I41<5,'Tabel 4 NJ'!I41<0.5),"-",IFERROR('Tabel 4 NJ'!I41/'Tabel 4F NJ'!I41*100,"-")) -> 9.375
A42: Bac. Hum. | C42: =IF(OR('Tabel 4F NJ'!C42<5,'Tabel 4 NJ'!C42<0.5),"-",IFERROR('Tabel 4 NJ'!C42/'Tabel 4F NJ'!C42*100,"-")) -> 27.08333333 | D42: =IF(OR('Tabel 4F NJ'!D42<5,'Tabel 4 NJ'!D42<0.5),"-",IFERROR('Tabel 4 NJ'!D42/'Tabel 4F NJ'!D42*100,"-")) -> 14.75409836 | E42: =IF(OR('Tabel 4F NJ'!E42<5,'Tabel 4 NJ'!E42<0.5),"-",IFERROR('Tabel 4 NJ'!E42/'Tabel 4F NJ'!E42*100,"-")) -> 8.196721311 | F42: =IF(OR('Tabel 4F NJ'!F42<5,'Tabel 4 NJ'!F42<0.5),"-",IFERROR('Tabel 4 NJ'!F42/'Tabel 4F NJ'!F42*100,"-")) -> 15.55555556 | G42: =IF(OR('Tabel 4F NJ'!G42<5,'Tabel 4 NJ'!G42<0.5),"-",IFERROR('Tabel 4 NJ'!G42/'Tabel 4F NJ'!G42*100,"-")) -> 6.666666667 | I42: =IF(OR('Tabel 4F NJ'!I42<5,'Tabel 4 NJ'!I42<0.5),"-",IFERROR('Tabel 4 NJ'!I42/'Tabel 4F NJ'!I42*100,"-")) -> 18.71165644
A43: Bac. Nat. | C43: =IF(OR('Tabel 4F NJ'!C43<5,'Tabel 4 NJ'!C43<0.5),"-",IFERROR('Tabel 4 NJ'!C43/'Tabel 4F NJ'!C43*100,"-")) -> 20 | D43: =IF(OR('Tabel 4F NJ'!D43<5,'Tabel 4 NJ'!D43<0.5),"-",IFERROR('Tabel 4 NJ'!D43/'Tabel 4F NJ'!D43*100,"-")) -> 7.070707071 | E43: =IF(OR('Tabel 4F NJ'!E43<5,'Tabel 4 NJ'!E43<0.5),"-",IFERROR('Tabel 4 NJ'!E43/'Tabel 4F NJ'!E43*100,"-")) -> 2.43902439 | F43: =IF(OR('Tabel 4F NJ'!F43<5,'Tabel 4 NJ'!F43<0.5),"-",IFERROR('Tabel 4 NJ'!F43/'Tabel 4F NJ'!F43*100,"-")) -> - | G43: =IF(OR('Tabel 4F NJ'!G43<5,'Tabel 4 NJ'!G43<0.5),"-",IFERROR('Tabel 4 NJ'!G43/'Tabel 4F NJ'!G43*100,"-")) -> - | I43: =IF(OR('Tabel 4F NJ'!I43<5,'Tabel 4 NJ'!I43<0.5),"-",IFERROR('Tabel 4 NJ'!I43/'Tabel 4F NJ'!I43*100,"-")) -> 11.84210526
A44: Andre | C44: =IF(OR('Tabel 4F NJ'!C44<5,'Tabel 4 NJ'!C44<0.5),"-",IFERROR('Tabel 4 NJ'!C44/'Tabel 4F NJ'!C44*100,"-")) -> 23.33333333 | D44: =IF(OR('Tabel 4F NJ'!D44<5,'Tabel 4 NJ'!D44<0.5),"-",IFERROR('Tabel 4 NJ'!D44/'Tabel 4F NJ'!D44*100,"-")) -> 5.251141553 | E44: =IF(OR('Tabel 4F NJ'!E44<5,'Tabel 4 NJ'!E44<0.5),"-",IFERROR('Tabel 4 NJ'!E44/'Tabel 4F NJ'!E44*100,"-")) -> 5.964912281 | F44: =IF(OR('Tabel 4F NJ'!F44<5,'Tabel 4 NJ'!F44<0.5),"-",IFERROR('Tabel 4 NJ'!F44/'Tabel 4F NJ'!F44*100,"-")) -> 3.5 | G44: =IF(OR('Tabel 4F NJ'!G44<5,'Tabel 4 NJ'!G44<0.5),"-",IFERROR('Tabel 4 NJ'!G44/'Tabel 4F NJ'!G44*100,"-")) -> 4.201680672 | I44: =IF(OR('Tabel 4F NJ'!I44<5,'Tabel 4 NJ'!I44<0.5),"-",IFERROR('Tabel 4 NJ'!I44/'Tabel 4F NJ'!I44*100,"-")) -> 8.067092652
A46: Total | C46: =IF(OR('Tabel 4F NJ'!C46<5,'Tabel 4 NJ'!C46<0.5),"-",IFERROR('Tabel 4 NJ'!C46/'Tabel 4F NJ'!C46*100,"-")) -> 17.05585653 | D46: =IF(OR('Tabel 4F NJ'!D46<5,'Tabel 4 NJ'!D46<0.5),"-",IFERROR('Tabel 4 NJ'!D46/'Tabel 4F NJ'!D46*100,"-")) -> 5.495336526 | E46: =IF(OR('Tabel 4F NJ'!E46<5,'Tabel 4 NJ'!E46<0.5),"-",IFERROR('Tabel 4 NJ'!E46/'Tabel 4F NJ'!E46*100,"-")) -> 2.49072602 | F46: =IF(OR('Tabel 4F NJ'!F46<5,'Tabel 4 NJ'!F46<0.5),"-",IFERROR('Tabel 4 NJ'!F46/'Tabel 4F NJ'!F46*100,"-")) -> 2.610778443 | G46: =IF(OR('Tabel 4F NJ'!G46<5,'Tabel 4 NJ'!G46<0.5),"-",IFERROR('Tabel 4 NJ'!G46/'Tabel 4F NJ'!G46*100,"-")) -> 4.191616766 | I46: =IF(OR('Tabel 4F NJ'!I46<5,'Tabel 4 NJ'!I46<0.5),"-",IFERROR('Tabel 4 NJ'!I46/'Tabel 4F NJ'!I46*100,"-")) -> 6.748964509
A48: Ingeniører i alt | C48: =IF(OR('Tabel 4F NJ'!C48<5,'Tabel 4 NJ'!C48<0.5),"-",IFERROR('Tabel 4 NJ'!C48/'Tabel 4F NJ'!C48*100,"-")) -> 11.70411985 | D48: =IF(OR('Tabel 4F NJ'!D48<5,'Tabel 4 NJ'!D48<0.5),"-",IFERROR('Tabel 4 NJ'!D48/'Tabel 4F NJ'!D48*100,"-")) -> 1.675163875 | E48: =IF(OR('Tabel 4F NJ'!E48<5,'Tabel 4 NJ'!E48<0.5),"-",IFERROR('Tabel 4 NJ'!E48/'Tabel 4F NJ'!E48*100,"-")) -> 0.5912786401 | F48: =IF(OR('Tabel 4F NJ'!F48<5,'Tabel 4 NJ'!F48<0.5),"-",IFERROR('Tabel 4 NJ'!F48/'Tabel 4F NJ'!F48*100,"-")) -> 1.37283237 | G48: =IF(OR('Tabel 4F NJ'!G48<5,'Tabel 4 NJ'!G48<0.5),"-",IFERROR('Tabel 4 NJ'!G48/'Tabel 4F NJ'!G48*100,"-")) -> 4.054054054 | I48: =IF(OR('Tabel 4F NJ'!I48<5,'Tabel 4 NJ'!I48<0.5),"-",IFERROR('Tabel 4 NJ'!I48/'Tabel 4F NJ'!I48*100,"-")) -> 3.432942014
A49: Magistre i alt | C49: =IF(OR('Tabel 4F NJ'!C49<5,'Tabel 4 NJ'!C49<0.5),"-",IFERROR('Tabel 4 NJ'!C49/'Tabel 4F NJ'!C49*100,"-")) -> 26.39791938 | D49: =IF(OR('Tabel 4F NJ'!D49<5,'Tabel 4 NJ'!D49<0.5),"-",IFERROR('Tabel 4 NJ'!D49/'Tabel 4F NJ'!D49*100,"-")) -> 10.78697422 | E49: =IF(OR('Tabel 4F NJ'!E49<5,'Tabel 4 NJ'!E49<0.5),"-",IFERROR('Tabel 4 NJ'!E49/'Tabel 4F NJ'!E49*100,"-")) -> 3.84900074 | F49: =IF(OR('Tabel 4F NJ'!F49<5,'Tabel 4 NJ'!F49<0.5),"-",IFERROR('Tabel 4 NJ'!F49/'Tabel 4F NJ'!F49*100,"-")) -> 5.362318841 | G49: =IF(OR('Tabel 4F NJ'!G49<5,'Tabel 4 NJ'!G49<0.5),"-",IFERROR('Tabel 4 NJ'!G49/'Tabel 4F NJ'!G49*100,"-")) -> 5.53633218 | I49: =IF(OR('Tabel 4F NJ'!I49<5,'Tabel 4 NJ'!I49<0.5),"-",IFERROR('Tabel 4 NJ'!I49/'Tabel 4F NJ'!I49*100,"-")) -> 10.21211459
A50: DJØF'ere i alt | C50: =IF(OR('Tabel 4F NJ'!C50<5,'Tabel 4 NJ'!C50<0.5),"-",IFERROR('Tabel 4 NJ'!C50/'Tabel 4F NJ'!C50*100,"-")) -> 14.817466 | D50: =IF(OR('Tabel 4F NJ'!D50<5,'Tabel 4 NJ'!D50<0.5),"-",IFERROR('Tabel 4 NJ'!D50/'Tabel 4F NJ'!D50*100,"-")) -> 4.894736842 | E50: =IF(OR('Tabel 4F NJ'!E50<5,'Tabel 4 NJ'!E50<0.5),"-",IFERROR('Tabel 4 NJ'!E50/'Tabel 4F NJ'!E50*100,"-")) -> 1.749539595 | F50: =IF(OR('Tabel 4F NJ'!F50<5,'Tabel 4 NJ'!F50<0.5),"-",IFERROR('Tabel 4 NJ'!F50/'Tabel 4F NJ'!F50*100,"-")) -> 1.923076923 | G50: =IF(OR('Tabel 4F NJ'!G50<5,'Tabel 4 NJ'!G50<0.5),"-",IFERROR('Tabel 4 NJ'!G50/'Tabel 4F NJ'!G50*100,"-")) -> 5.027932961 | I50: =IF(OR('Tabel 4F NJ'!I50<5,'Tabel 4 NJ'!I50<0.5),"-",IFERROR('Tabel 4 NJ'!I50/'Tabel 4F NJ'!I50*100,"-")) -> 6.334924715
A57: Morsø
C59: Under 30 år | D59: 30 - 39 år | E59: 40 - 49 år | F59: 50 - 59 år | G59: Over 60 år | I59: I alt
A61: Civ. ing. | C61: =IF(OR('Tabel 4F NJ'!C61<5,'Tabel 4 NJ'!C61<0.5),"-",IFERROR('Tabel 4 NJ'!C61/'Tabel 4F NJ'!C61*100,"-")) -> - | D61: =IF(OR('Tabel 4F NJ'!D61<5,'Tabel 4 NJ'!D61<0.5),"-",IFERROR('Tabel 4 NJ'!D61/'Tabel 4F NJ'!D61*100,"-")) -> - | E61: =IF(OR('Tabel 4F NJ'!E61<5,'Tabel 4 NJ'!E61<0.5),"-",IFERROR('Tabel 4 NJ'!E61/'Tabel 4F NJ'!E61*100,"-")) -> - | F61: =IF(OR('Tabel 4F NJ'!F61<5,'Tabel 4 NJ'!F61<0.5),"-",IFERROR('Tabel 4 NJ'!F61/'Tabel 4F NJ'!F61*100,"-")) -> - | G61: =IF(OR('Tabel 4F NJ'!G61<5,'Tabel 4 NJ'!G61<0.5),"-",IFERROR('Tabel 4 NJ'!G61/'Tabel 4F NJ'!G61*100,"-")) -> - | I61: =IF(OR('Tabel 4F NJ'!I61<5,'Tabel 4 NJ'!I61<0.5),"-",IFERROR('Tabel 4 NJ'!I61/'Tabel 4F NJ'!I61*100,"-")) -> -
A62: Diplom ing. | C62: =IF(OR('Tabel 4F NJ'!C62<5,'Tabel 4 NJ'!C62<0.5),"-",IFERROR('Tabel 4 NJ'!C62/'Tabel 4F NJ'!C62*100,"-")) -> - | D62: =IF(OR('Tabel 4F NJ'!D62<5,'Tabel 4 NJ'!D62<0.5),"-",IFERROR('Tabel 4 NJ'!D62/'Tabel 4F NJ'!D62*100,"-")) -> - | E62: =IF(OR('Tabel 4F NJ'!E62<5,'Tabel 4 NJ'!E62<0.5),"-",IFERROR('Tabel 4 NJ'!E62/'Tabel 4F NJ'!E62*100,"-")) -> - | F62: =IF(OR('Tabel 4F NJ'!F62<5,'Tabel 4 NJ'!F62<0.5),"-",IFERROR('Tabel 4 NJ'!F62/'Tabel 4F NJ'!F62*100,"-")) -> - | G62: =IF(OR('Tabel 4F NJ'!G62<5,'Tabel 4 NJ'!G62<0.5),"-",IFERROR('Tabel 4 NJ'!G62/'Tabel 4F NJ'!G62*100,"-")) -> - | I62: =IF(OR('Tabel 4F NJ'!I62<5,'Tabel 4 NJ'!I62<0.5),"-",IFERROR('Tabel 4 NJ'!I62/'Tabel 4F NJ'!I62*100,"-")) -> -
A63: Cand. Scient. Tek | C63: =IF(OR('Tabel 4F NJ'!C63<5,'Tabel 4 NJ'!C63<0.5),"-",IFERROR('Tabel 4 NJ'!C63/'Tabel 4F NJ'!C63*100,"-")) -> - | D63: =IF(OR('Tabel 4F NJ'!D63<5,'Tabel 4 NJ'!D63<0.5),"-",IFERROR('Tabel 4 NJ'!D63/'Tabel 4F NJ'!D63*100,"-")) -> - | E63: =IF(OR('Tabel 4F NJ'!E63<5,'Tabel 4 NJ'!E63<0.5),"-",IFERROR('Tabel 4 NJ'!E63/'Tabel 4F NJ'!E63*100,"-")) -> - | F63: =IF(OR('Tabel 4F NJ'!F63<5,'Tabel 4 NJ'!F63<0.5),"-",IFERROR('Tabel 4 NJ'!F63/'Tabel 4F NJ'!F63*100,"-")) -> - | G63: =IF(OR('Tabel 4F NJ'!G63<5,'Tabel 4 NJ'!G63<0.5),"-",IFERROR('Tabel 4 NJ'!G63/'Tabel 4F NJ'!G63*100,"-")) -> - | I63: =IF(OR('Tabel 4F NJ'!I63<5,'Tabel 4 NJ'!I63<0.5),"-",IFERROR('Tabel 4 NJ'!I63/'Tabel 4F NJ'!I63*100,"-")) -> -
A64: MA. Hum. | C64: =IF(OR('Tabel 4F NJ'!C64<5,'Tabel 4 NJ'!C64<0.5),"-",IFERROR('Tabel 4 NJ'!C64/'Tabel 4F NJ'!C64*100,"-")) -> - | D64: =IF(OR('Tabel 4F NJ'!D64<5,'Tabel 4 NJ'!D64<0.5),"-",IFERROR('Tabel 4 NJ'!D64/'Tabel 4F NJ'!D64*100,"-")) -> - | E64: =IF(OR('Tabel 4F NJ'!E64<5,'Tabel 4 NJ'!E64<0.5),"-",IFERROR('Tabel 4 NJ'!E64/'Tabel 4F NJ'!E64*100,"-")) -> - | F64: =IF(OR('Tabel 4F NJ'!F64<5,'Tabel 4 NJ'!F64<0.5),"-",IFERROR('Tabel 4 NJ'!F64/'Tabel 4F NJ'!F64*100,"-")) -> 9.090909091 | G64: =IF(OR('Tabel 4F NJ'!G64<5,'Tabel 4 NJ'!G64<0.5),"-",IFERROR('Tabel 4 NJ'!G64/'Tabel 4F NJ'!G64*100,"-")) -> - | I64: =IF(OR('Tabel 4F NJ'!I64<5,'Tabel 4 NJ'!I64<0.5),"-",IFERROR('Tabel 4 NJ'!I64/'Tabel 4F NJ'!I64*100,"-")) -> 5.263157895
A65: MA. Nat. | C65: =IF(OR('Tabel 4F NJ'!C65<5,'Tabel 4 NJ'!C65<0.5),"-",IFERROR('Tabel 4 NJ'!C65/'Tabel 4F NJ'!C65*100,"-")) -> - | D65: =IF(OR('Tabel 4F NJ'!D65<5,'Tabel 4 NJ'!D65<0.5),"-",IFERROR('Tabel 4 NJ'!D65/'Tabel 4F NJ'!D65*100,"-")) -> - | E65: =IF(OR('Tabel 4F NJ'!E65<5,'Tabel 4 NJ'!E65<0.5),"-",IFERROR('Tabel 4 NJ'!E65/'Tabel 4F NJ'!E65*100,"-")) -> - | F65: =IF(OR('Tabel 4F NJ'!F65<5,'Tabel 4 NJ'!F65<0.5),"-",IFERROR('Tabel 4 NJ'!F65/'Tabel 4F NJ'!F65*100,"-")) -> - | G65: =IF(OR('Tabel 4F NJ'!G65<5,'Tabel 4 NJ'!G65<0.5),"-",IFERROR('Tabel 4 NJ'!G65/'Tabel 4F NJ'!G65*100,"-")) -> - | I65: =IF(OR('Tabel 4F NJ'!I65<5,'Tabel 4 NJ'!I65<0.5),"-",IFERROR('Tabel 4 NJ'!I65/'Tabel 4F NJ'!I65*100,"-")) -> -
A66: MA. Ph.d. | C66: =IF(OR('Tabel 4F NJ'!C66<5,'Tabel 4 NJ'!C66<0.5),"-",IFERROR('Tabel 4 NJ'!C66/'Tabel 4F NJ'!C66*100,"-")) -> - | D66: =IF(OR('Tabel 4F NJ'!D66<5,'Tabel 4 NJ'!D66<0.5),"-",IFERROR('Tabel 4 NJ'!D66/'Tabel 4F NJ'!D66*100,"-")) -> - | E66: =IF(OR('Tabel 4F NJ'!E66<5,'Tabel 4 NJ'!E66<0.5),"-",IFERROR('Tabel 4 NJ'!E66/'Tabel 4F NJ'!E66*100,"-")) -> - | F66: =IF(OR('Tabel 4F NJ'!F66<5,'Tabel 4 NJ'!F66<0.5),"-",IFERROR('Tabel 4 NJ'!F66/'Tabel 4F NJ'!F66*100,"-")) -> - | G66: =IF(OR('Tabel 4F NJ'!G66<5,'Tabel 4 NJ'!G66<0.5),"-",IFERROR('Tabel 4 NJ'!G66/'Tabel 4F NJ'!G66*100,"-")) -> - | I66: =IF(OR('Tabel 4F NJ'!I66<5,'Tabel 4 NJ'!I66<0.5),"-",IFERROR('Tabel 4 NJ'!I66/'Tabel 4F NJ'!I66*100,"-")) -> -
A67: MA. Samf. | C67: =IF(OR('Tabel 4F NJ'!C67<5,'Tabel 4 NJ'!C67<0.5),"-",IFERROR('Tabel 4 NJ'!C67/'Tabel 4F NJ'!C67*100,"-")) -> - | D67: =IF(OR('Tabel 4F NJ'!D67<5,'Tabel 4 NJ'!D67<0.5),"-",IFERROR('Tabel 4 NJ'!D67/'Tabel 4F NJ'!D67*100,"-")) -> - | E67: =IF(OR('Tabel 4F NJ'!E67<5,'Tabel 4 NJ'!E67<0.5),"-",IFERROR('Tabel 4 NJ'!E67/'Tabel 4F NJ'!E67*100,"-")) -> - | F67: =IF(OR('Tabel 4F NJ'!F67<5,'Tabel 4 NJ'!F67<0.5),"-",IFERROR('Tabel 4 NJ'!F67/'Tabel 4F NJ'!F67*100,"-")) -> - | G67: =IF(OR('Tabel 4F NJ'!G67<5,'Tabel 4 NJ'!G67<0.5),"-",IFERROR('Tabel 4 NJ'!G67/'Tabel 4F NJ'!G67*100,"-")) -> - | I67: =IF(OR('Tabel 4F NJ'!I67<5,'Tabel 4 NJ'!I67<0.5),"-",IFERROR('Tabel 4 NJ'!I67/'Tabel 4F NJ'!I67*100,"-")) -> -
A68: Øvrige Mag. | C68: =IF(OR('Tabel 4F NJ'!C68<5,'Tabel 4 NJ'!C68<0.5),"-",IFERROR('Tabel 4 NJ'!C68/'Tabel 4F NJ'!C68*100,"-")) -> - | D68: =IF(OR('Tabel 4F NJ'!D68<5,'Tabel 4 NJ'!D68<0.5),"-",IFERROR('Tabel 4 NJ'!D68/'Tabel 4F NJ'!D68*100,"-")) -> - | E68: =IF(OR('Tabel 4F NJ'!E68<5,'Tabel 4 NJ'!E68<0.5),"-",IFERROR('Tabel 4 NJ'!E68/'Tabel 4F NJ'!E68*100,"-")) -> - | F68: =IF(OR('Tabel 4F NJ'!F68<5,'Tabel 4 NJ'!F68<0.5),"-",IFERROR('Tabel 4 NJ'!F68/'Tabel 4F NJ'!F68*100,"-")) -> - | G68: =IF(OR('Tabel 4F NJ'!G68<5,'Tabel 4 NJ'!G68<0.5),"-",IFERROR('Tabel 4 NJ'!G68/'Tabel 4F NJ'!G68*100,"-")) -> - | I68: =IF(OR('Tabel 4F NJ'!I68<5,'Tabel 4 NJ'!I68<0.5),"-",IFERROR('Tabel 4 NJ'!I68/'Tabel 4F NJ'!I68*100,"-")) -> -
A69: Agronom | C69: =IF(OR('Tabel 4F NJ'!C69<5,'Tabel 4 NJ'!C69<0.5),"-",IFERROR('Tabel 4 NJ'!C69/'Tabel 4F NJ'!C69*100,"-")) -> - | D69: =IF(OR('Tabel 4F NJ'!D69<5,'Tabel 4 NJ'!D69<0.5),"-",IFERROR('Tabel 4 NJ'!D69/'Tabel 4F NJ'!D69*100,"-")) -> - | E69: =IF(OR('Tabel 4F NJ'!E69<5,'Tabel 4 NJ'!E69<0.5),"-",IFERROR('Tabel 4 NJ'!E69/'Tabel 4F NJ'!E69*100,"-")) -> - | F69: =IF(OR('Tabel 4F NJ'!F69<5,'Tabel 4 NJ'!F69<0.5),"-",IFERROR('Tabel 4 NJ'!F69/'Tabel 4F NJ'!F69*100,"-")) -> - | G69: =IF(OR('Tabel 4F NJ'!G69<5,'Tabel 4 NJ'!G69<0.5),"-",IFERROR('Tabel 4 NJ'!G69/'Tabel 4F NJ'!G69*100,"-")) -> - | I69: =IF(OR('Tabel 4F NJ'!I69<5,'Tabel 4 NJ'!I69<0.5),"-",IFERROR('Tabel 4 NJ'!I69/'Tabel 4F NJ'!I69*100,"-")) -> -
A70: Landsk. Arkt. | C70: =IF(OR('Tabel 4F NJ'!C70<5,'Tabel 4 NJ'!C70<0.5),"-",IFERROR('Tabel 4 NJ'!C70/'Tabel 4F NJ'!C70*100,"-")) -> - | D70: =IF(OR('Tabel 4F NJ'!D70<5,'Tabel 4 NJ'!D70<0.5),"-",IFERROR('Tabel 4 NJ'!D70/'Tabel 4F NJ'!D70*100,"-")) -> - | E70: =IF(OR('Tabel 4F NJ'!E70<5,'Tabel 4 NJ'!E70<0.5),"-",IFERROR('Tabel 4 NJ'!E70/'Tabel 4F NJ'!E70*100,"-")) -> - | F70: =IF(OR('Tabel 4F NJ'!F70<5,'Tabel 4 NJ'!F70<0.5),"-",IFERROR('Tabel 4 NJ'!F70/'Tabel 4F NJ'!F70*100,"-")) -> - | G70: =IF(OR('Tabel 4F NJ'!G70<5,'Tabel 4 NJ'!G70<0.5),"-",IFERROR('Tabel 4 NJ'!G70/'Tabel 4F NJ'!G70*100,"-")) -> - | I70: =IF(OR('Tabel 4F NJ'!I70<5,'Tabel 4 NJ'!I70<0.5),"-",IFERROR('Tabel 4 NJ'!I70/'Tabel 4F NJ'!I70*100,"-")) -> -
A71: Hortonom | C71: =IF(OR('Tabel 4F NJ'!C71<5,'Tabel 4 NJ'!C71<0.5),"-",IFERROR('Tabel 4 NJ'!C71/'Tabel 4F NJ'!C71*100,"-")) -> - | D71: =IF(OR('Tabel 4F NJ'!D71<5,'Tabel 4 NJ'!D71<0.5),"-",IFERROR('Tabel 4 NJ'!D71/'Tabel 4F NJ'!D71*100,"-")) -> - | E71: =IF(OR('Tabel 4F NJ'!E71<5,'Tabel 4 NJ'!E71<0.5),"-",IFERROR('Tabel 4 NJ'!E71/'Tabel 4F NJ'!E71*100,"-")) -> - | F71: =IF(OR('Tabel 4F NJ'!F71<5,'Tabel 4 NJ'!F71<0.5),"-",IFERROR('Tabel 4 NJ'!F71/'Tabel 4F NJ'!F71*100,"-")) -> - | G71: =IF(OR('Tabel 4F NJ'!G71<5,'Tabel 4 NJ'!G71<0.5),"-",IFERROR('Tabel 4 NJ'!G71/'Tabel 4F NJ'!G71*100,"-")) -> - | I71: =IF(OR('Tabel 4F NJ'!I71<5,'Tabel 4 NJ'!I71<0.5),"-",IFERROR('Tabel 4 NJ'!I71/'Tabel 4F NJ'!I71*100,"-")) -> -
A72: Forstkand. | C72: =IF(OR('Tabel 4F NJ'!C72<5,'Tabel 4 NJ'!C72<0.5),"-",IFERROR('Tabel 4 NJ'!C72/'Tabel 4F NJ'!C72*100,"-")) -> - | D72: =IF(OR('Tabel 4F NJ'!D72<5,'Tabel 4 NJ'!D72<0.5),"-",IFERROR('Tabel 4 NJ'!D72/'Tabel 4F NJ'!D72*100,"-")) -> - | E72: =IF(OR('Tabel 4F NJ'!E72<5,'Tabel 4 NJ'!E72<0.5),"-",IFERROR('Tabel 4 NJ'!E72/'Tabel 4F NJ'!E72*100,"-")) -> - | F72: =IF(OR('Tabel 4F NJ'!F72<5,'Tabel 4 NJ'!F72<0.5),"-",IFERROR('Tabel 4 NJ'!F72/'Tabel 4F NJ'!F72*100,"-")) -> - | G72: =IF(OR('Tabel 4F NJ'!G72<5,'Tabel 4 NJ'!G72<0.5),"-",IFERROR('Tabel 4 NJ'!G72/'Tabel 4F NJ'!G72*100,"-")) -> - | I72: =IF(OR('Tabel 4F NJ'!I72<5,'Tabel 4 NJ'!I72<0.5),"-",IFERROR('Tabel 4 NJ'!I72/'Tabel 4F NJ'!I72*100,"-")) -> -
A73: Jordbrugsakad. | C73: =IF(OR('Tabel 4F NJ'!C73<5,'Tabel 4 NJ'!C73<0.5),"-",IFERROR('Tabel 4 NJ'!C73/'Tabel 4F NJ'!C73*100,"-")) -> - | D73: =IF(OR('Tabel 4F NJ'!D73<5,'Tabel 4 NJ'!D73<0.5),"-",IFERROR('Tabel 4 NJ'!D73/'Tabel 4F NJ'!D73*100,"-")) -> - | E73: =IF(OR('Tabel 4F NJ'!E73<5,'Tabel 4 NJ'!E73<0.5),"-",IFERROR('Tabel 4 NJ'!E73/'Tabel 4F NJ'!E73*100,"-")) -> - | F73: =IF(OR('Tabel 4F NJ'!F73<5,'Tabel 4 NJ'!F73<0.5),"-",IFERROR('Tabel 4 NJ'!F73/'Tabel 4F NJ'!F73*100,"-")) -> - | G73: =IF(OR('Tabel 4F NJ'!G73<5,'Tabel 4 NJ'!G73<0.5),"-",IFERROR('Tabel 4 NJ'!G73/'Tabel 4F NJ'!G73*100,"-")) -> - | I73: =IF(OR('Tabel 4F NJ'!I73<5,'Tabel 4 NJ'!I73<0.5),"-",IFERROR('Tabel 4 NJ'!I73/'Tabel 4F NJ'!I73*100,"-")) -> -
A74: Mejeriing. | C74: =IF(OR('Tabel 4F NJ'!C74<5,'Tabel 4 NJ'!C74<0.5),"-",IFERROR('Tabel 4 NJ'!C74/'Tabel 4F NJ'!C74*100,"-")) -> - | D74: =IF(OR('Tabel 4F NJ'!D74<5,'Tabel 4 NJ'!D74<0.5),"-",IFERROR('Tabel 4 NJ'!D74/'Tabel 4F NJ'!D74*100,"-")) -> - | E74: =IF(OR('Tabel 4F NJ'!E74<5,'Tabel 4 NJ'!E74<0.5),"-",IFERROR('Tabel 4 NJ'!E74/'Tabel 4F NJ'!E74*100,"-")) -> - | F74: =IF(OR('Tabel 4F NJ'!F74<5,'Tabel 4 NJ'!F74<0.5),"-",IFERROR('Tabel 4 NJ'!F74/'Tabel 4F NJ'!F74*100,"-")) -> - | G74: =IF(OR('Tabel 4F NJ'!G74<5,'Tabel 4 NJ'!G74<0.5),"-",IFERROR('Tabel 4 NJ'!G74/'Tabel 4F NJ'!G74*100,"-")) -> - | I74: =IF(OR('Tabel 4F NJ'!I74<5,'Tabel 4 NJ'!I74<0.5),"-",IFERROR('Tabel 4 NJ'!I74/'Tabel 4F NJ'!I74*100,"-")) -> -
A75: Levn.m.kand. | C75: =IF(OR('Tabel 4F NJ'!C75<5,'Tabel 4 NJ'!C75<0.5),"-",IFERROR('Tabel 4 NJ'!C75/'Tabel 4F NJ'!C75*100,"-")) -> - | D75: =IF(OR('Tabel 4F NJ'!D75<5,'Tabel 4 NJ'!D75<0.5),"-",IFERROR('Tabel 4 NJ'!D75/'Tabel 4F NJ'!D75*100,"-")) -> - | E75: =IF(OR('Tabel 4F NJ'!E75<5,'Tabel 4 NJ'!E75<0.5),"-",IFERROR('Tabel 4 NJ'!E75/'Tabel 4F NJ'!E75*100,"-")) -> - | F75: =IF(OR('Tabel 4F NJ'!F75<5,'Tabel 4 NJ'!F75<0.5),"-",IFERROR('Tabel 4 NJ'!F75/'Tabel 4F NJ'!F75*100,"-")) -> - | G75: =IF(OR('Tabel 4F NJ'!G75<5,'Tabel 4 NJ'!G75<0.5),"-",IFERROR('Tabel 4 NJ'!G75/'Tabel 4F NJ'!G75*100,"-")) -> - | I75: =IF(OR('Tabel 4F NJ'!I75<5,'Tabel 4 NJ'!I75<0.5),"-",IFERROR('Tabel 4 NJ'!I75/'Tabel 4F NJ'!I75*100,"-")) -> -
A76: Dyrlæge | C76: =IF(OR('Tabel 4F NJ'!C76<5,'Tabel 4 NJ'!C76<0.5),"-",IFERROR('Tabel 4 NJ'!C76/'Tabel 4F NJ'!C76*100,"-")) -> - | D76: =IF(OR('Tabel 4F NJ'!D76<5,'Tabel 4 NJ'!D76<0.5),"-",IFERROR('Tabel 4 NJ'!D76/'Tabel 4F NJ'!D76*100,"-")) -> - | E76: =IF(OR('Tabel 4F NJ'!E76<5,'Tabel 4 NJ'!E76<0.5),"-",IFERROR('Tabel 4 NJ'!E76/'Tabel 4F NJ'!E76*100,"-")) -> - | F76: =IF(OR('Tabel 4F NJ'!F76<5,'Tabel 4 NJ'!F76<0.5),"-",IFERROR('Tabel 4 NJ'!F76/'Tabel 4F NJ'!F76*100,"-")) -> - | G76: =IF(OR('Tabel 4F NJ'!G76<5,'Tabel 4 NJ'!G76<0.5),"-",IFERROR('Tabel 4 NJ'!G76/'Tabel 4F NJ'!G76*100,"-")) -> - | I76: =IF(OR('Tabel 4F NJ'!I76<5,'Tabel 4 NJ'!I76<0.5),"-",IFERROR('Tabel 4 NJ'!I76/'Tabel 4F NJ'!I76*100,"-")) -> -
A77: Farmaceut | C77: =IF(OR('Tabel 4F NJ'!C77<5,'Tabel 4 NJ'!C77<0.5),"-",IFERROR('Tabel 4 NJ'!C77/'Tabel 4F NJ'!C77*100,"-")) -> - | D77: =IF(OR('Tabel 4F NJ'!D77<5,'Tabel 4 NJ'!D77<0.5),"-",IFERROR('Tabel 4 NJ'!D77/'Tabel 4F NJ'!D77*100,"-")) -> - | E77: =IF(OR('Tabel 4F NJ'!E77<5,'Tabel 4 NJ'!E77<0.5),"-",IFERROR('Tabel 4 NJ'!E77/'Tabel 4F NJ'!E77*100,"-")) -> - | F77: =IF(OR('Tabel 4F NJ'!F77<5,'Tabel 4 NJ'!F77<0.5),"-",IFERROR('Tabel 4 NJ'!F77/'Tabel 4F NJ'!F77*100,"-")) -> - | G77: =IF(OR('Tabel 4F NJ'!G77<5,'Tabel 4 NJ'!G77<0.5),"-",IFERROR('Tabel 4 NJ'!G77/'Tabel 4F NJ'!G77*100,"-")) -> - | I77: =IF(OR('Tabel 4F NJ'!I77<5,'Tabel 4 NJ'!I77<0.5),"-",IFERROR('Tabel 4 NJ'!I77/'Tabel 4F NJ'!I77*100,"-")) -> -
A78: Læge | C78: =IF(OR('Tabel 4F NJ'!C78<5,'Tabel 4 NJ'!C78<0.5),"-",IFERROR('Tabel 4 NJ'!C78/'Tabel 4F NJ'!C78*100,"-")) -> - | D78: =IF(OR('Tabel 4F NJ'!D78<5,'Tabel 4 NJ'!D78<0.5),"-",IFERROR('Tabel 4 NJ'!D78/'Tabel 4F NJ'!D78*100,"-")) -> - | E78: =IF(OR('Tabel 4F NJ'!E78<5,'Tabel 4 NJ'!E78<0.5),"-",IFERROR('Tabel 4 NJ'!E78/'Tabel 4F NJ'!E78*100,"-")) -> - | F78: =IF(OR('Tabel 4F NJ'!F78<5,'Tabel 4 NJ'!F78<0.5),"-",IFERROR('Tabel 4 NJ'!F78/'Tabel 4F NJ'!F78*100,"-")) -> - | G78: =IF(OR('Tabel 4F NJ'!G78<5,'Tabel 4 NJ'!G78<0.5),"-",IFERROR('Tabel 4 NJ'!G78/'Tabel 4F NJ'!G78*100,"-")) -> - | I78: =IF(OR('Tabel 4F NJ'!I78<5,'Tabel 4 NJ'!I78<0.5),"-",IFERROR('Tabel 4 NJ'!I78/'Tabel 4F NJ'!I78*100,"-")) -> -
A79: Tandlæge | C79: =IF(OR('Tabel 4F NJ'!C79<5,'Tabel 4 NJ'!C79<0.5),"-",IFERROR('Tabel 4 NJ'!C79/'Tabel 4F NJ'!C79*100,"-")) -> - | D79: =IF(OR('Tabel 4F NJ'!D79<5,'Tabel 4 NJ'!D79<0.5),"-",IFERROR('Tabel 4 NJ'!D79/'Tabel 4F NJ'!D79*100,"-")) -> - | E79: =IF(OR('Tabel 4F NJ'!E79<5,'Tabel 4 NJ'!E79<0.5),"-",IFERROR('Tabel 4 NJ'!E79/'Tabel 4F NJ'!E79*100,"-")) -> - | F79: =IF(OR('Tabel 4F NJ'!F79<5,'Tabel 4 NJ'!F79<0.5),"-",IFERROR('Tabel 4 NJ'!F79/'Tabel 4F NJ'!F79*100,"-")) -> - | G79: =IF(OR('Tabel 4F NJ'!G79<5,'Tabel 4 NJ'!G79<0.5),"-",IFERROR('Tabel 4 NJ'!G79/'Tabel 4F NJ'!G79*100,"-")) -> - | I79: =IF(OR('Tabel 4F NJ'!I79<5,'Tabel 4 NJ'!I79<0.5),"-",IFERROR('Tabel 4 NJ'!I79/'Tabel 4F NJ'!I79*100,"-")) -> -
A80: Arkitekt | C80: =IF(OR('Tabel 4F NJ'!C80<5,'Tabel 4 NJ'!C80<0.5),"-",IFERROR('Tabel 4 NJ'!C80/'Tabel 4F NJ'!C80*100,"-")) -> - | D80: =IF(OR('Tabel 4F NJ'!D80<5,'Tabel 4 NJ'!D80<0.5),"-",IFERROR('Tabel 4 NJ'!D80/'Tabel 4F NJ'!D80*100,"-")) -> - | E80: =IF(OR('Tabel 4F NJ'!E80<5,'Tabel 4 NJ'!E80<0.5),"-",IFERROR('Tabel 4 NJ'!E80/'Tabel 4F NJ'!E80*100,"-")) -> - | F80: =IF(OR('Tabel 4F NJ'!F80<5,'Tabel 4 NJ'!F80<0.5),"-",IFERROR('Tabel 4 NJ'!F80/'Tabel 4F NJ'!F80*100,"-")) -> - | G80: =IF(OR('Tabel 4F NJ'!G80<5,'Tabel 4 NJ'!G80<0.5),"-",IFERROR('Tabel 4 NJ'!G80/'Tabel 4F NJ'!G80*100,"-")) -> - | I80: =IF(OR('Tabel 4F NJ'!I80<5,'Tabel 4 NJ'!I80<0.5),"-",IFERROR('Tabel 4 NJ'!I80/'Tabel 4F NJ'!I80*100,"-")) -> -
A81: Landinspek. | C81: =IF(OR('Tabel 4F NJ'!C81<5,'Tabel 4 NJ'!C81<0.5),"-",IFERROR('Tabel 4 NJ'!C81/'Tabel 4F NJ'!C81*100,"-")) -> - | D81: =IF(OR('Tabel 4F NJ'!D81<5,'Tabel 4 NJ'!D81<0.5),"-",IFERROR('Tabel 4 NJ'!D81/'Tabel 4F NJ'!D81*100,"-")) -> - | E81: =IF(OR('Tabel 4F NJ'!E81<5,'Tabel 4 NJ'!E81<0.5),"-",IFERROR('Tabel 4 NJ'!E81/'Tabel 4F NJ'!E81*100,"-")) -> - | F81: =IF(OR('Tabel 4F NJ'!F81<5,'Tabel 4 NJ'!F81<0.5),"-",IFERROR('Tabel 4 NJ'!F81/'Tabel 4F NJ'!F81*100,"-")) -> - | G81: =IF(OR('Tabel 4F NJ'!G81<5,'Tabel 4 NJ'!G81<0.5),"-",IFERROR('Tabel 4 NJ'!G81/'Tabel 4F NJ'!G81*100,"-")) -> - | I81: =IF(OR('Tabel 4F NJ'!I81<5,'Tabel 4 NJ'!I81<0.5),"-",IFERROR('Tabel 4 NJ'!I81/'Tabel 4F NJ'!I81*100,"-")) -> -
A82: Bibliotekar | C82: =IF(OR('Tabel 4F NJ'!C82<5,'Tabel 4 NJ'!C82<0.5),"-",IFERROR('Tabel 4 NJ'!C82/'Tabel 4F NJ'!C82*100,"-")) -> - | D82: =IF(OR('Tabel 4F NJ'!D82<5,'Tabel 4 NJ'!D82<0.5),"-",IFERROR('Tabel 4 NJ'!D82/'Tabel 4F NJ'!D82*100,"-")) -> - | E82: =IF(OR('Tabel 4F NJ'!E82<5,'Tabel 4 NJ'!E82<0.5),"-",IFERROR('Tabel 4 NJ'!E82/'Tabel 4F NJ'!E82*100,"-")) -> - | F82: =IF(OR('Tabel 4F NJ'!F82<5,'Tabel 4 NJ'!F82<0.5),"-",IFERROR('Tabel 4 NJ'!F82/'Tabel 4F NJ'!F82*100,"-")) -> - | G82: =IF(OR('Tabel 4F NJ'!G82<5,'Tabel 4 NJ'!G82<0.5),"-",IFERROR('Tabel 4 NJ'!G82/'Tabel 4F NJ'!G82*100,"-")) -> - | I82: =IF(OR('Tabel 4F NJ'!I82<5,'Tabel 4 NJ'!I82<0.5),"-",IFERROR('Tabel 4 NJ'!I82/'Tabel 4F NJ'!I82*100,"-")) -> -
A83: Musikudd. | C83: =IF(OR('Tabel 4F NJ'!C83<5,'Tabel 4 NJ'!C83<0.5),"-",IFERROR('Tabel 4 NJ'!C83/'Tabel 4F NJ'!C83*100,"-")) -> - | D83: =IF(OR('Tabel 4F NJ'!D83<5,'Tabel 4 NJ'!D83<0.5),"-",IFERROR('Tabel 4 NJ'!D83/'Tabel 4F NJ'!D83*100,"-")) -> - | E83: =IF(OR('Tabel 4F NJ'!E83<5,'Tabel 4 NJ'!E83<0.5),"-",IFERROR('Tabel 4 NJ'!E83/'Tabel 4F NJ'!E83*100,"-")) -> - | F83: =IF(OR('Tabel 4F NJ'!F83<5,'Tabel 4 NJ'!F83<0.5),"-",IFERROR('Tabel 4 NJ'!F83/'Tabel 4F NJ'!F83*100,"-")) -> - | G83: =IF(OR('Tabel 4F NJ'!G83<5,'Tabel 4 NJ'!G83<0.5),"-",IFERROR('Tabel 4 NJ'!G83/'Tabel 4F NJ'!G83*100,"-")) -> - | I83: =IF(OR('Tabel 4F NJ'!I83<5,'Tabel 4 NJ'!I83<0.5),"-",IFERROR('Tabel 4 NJ'!I83/'Tabel 4F NJ'!I83*100,"-")) -> -
A84: Teolog | C84: =IF(OR('Tabel 4F NJ'!C84<5,'Tabel 4 NJ'!C84<0.5),"-",IFERROR('Tabel 4 NJ'!C84/'Tabel 4F NJ'!C84*100,"-")) -> - | D84: =IF(OR('Tabel 4F NJ'!D84<5,'Tabel 4 NJ'!D84<0.5),"-",IFERROR('Tabel 4 NJ'!D84/'Tabel 4F NJ'!D84*100,"-")) -> - | E84: =IF(OR('Tabel 4F NJ'!E84<5,'Tabel 4 NJ'!E84<0.5),"-",IFERROR('Tabel 4 NJ'!E84/'Tabel 4F NJ'!E84*100,"-")) -> - | F84: =IF(OR('Tabel 4F NJ'!F84<5,'Tabel 4 NJ'!F84<0.5),"-",IFERROR('Tabel 4 NJ'!F84/'Tabel 4F NJ'!F84*100,"-")) -> - | G84: =IF(OR('Tabel 4F NJ'!G84<5,'Tabel 4 NJ'!G84<0.5),"-",IFERROR('Tabel 4 NJ'!G84/'Tabel 4F NJ'!G84*100,"-")) -> - | I84: =IF(OR('Tabel 4F NJ'!I84<5,'Tabel 4 NJ'!I84<0.5),"-",IFERROR('Tabel 4 NJ'!I84/'Tabel 4F NJ'!I84*100,"-")) -> -
A85: Psykolog | C85: =IF(OR('Tabel 4F NJ'!C85<5,'Tabel 4 NJ'!C85<0.5),"-",IFERROR('Tabel 4 NJ'!C85/'Tabel 4F NJ'!C85*100,"-")) -> - | D85: =IF(OR('Tabel 4F NJ'!D85<5,'Tabel 4 NJ'!D85<0.5),"-",IFERROR('Tabel 4 NJ'!D85/'Tabel 4F NJ'!D85*100,"-")) -> - | E85: =IF(OR('Tabel 4F NJ'!E85<5,'Tabel 4 NJ'!E85<0.5),"-",IFERROR('Tabel 4 NJ'!E85/'Tabel 4F NJ'!E85*100,"-")) -> - | F85: =IF(OR('Tabel 4F NJ'!F85<5,'Tabel 4 NJ'!F85<0.5),"-",IFERROR('Tabel 4 NJ'!F85/'Tabel 4F NJ'!F85*100,"-")) -> - | G85: =IF(OR('Tabel 4F NJ'!G85<5,'Tabel 4 NJ'!G85<0.5),"-",IFERROR('Tabel 4 NJ'!G85/'Tabel 4F NJ'!G85*100,"-")) -> - | I85: =IF(OR('Tabel 4F NJ'!I85<5,'Tabel 4 NJ'!I85<0.5),"-",IFERROR('Tabel 4 NJ'!I85/'Tabel 4F NJ'!I85*100,"-")) -> -
A86: Jurist | C86: =IF(OR('Tabel 4F NJ'!C86<5,'Tabel 4 NJ'!C86<0.5),"-",IFERROR('Tabel 4 NJ'!C86/'Tabel 4F NJ'!C86*100,"-")) -> - | D86: =IF(OR('Tabel 4F NJ'!D86<5,'Tabel 4 NJ'!D86<0.5),"-",IFERROR('Tabel 4 NJ'!D86/'Tabel 4F NJ'!D86*100,"-")) -> - | E86: =IF(OR('Tabel 4F NJ'!E86<5,'Tabel 4 NJ'!E86<0.5),"-",IFERROR('Tabel 4 NJ'!E86/'Tabel 4F NJ'!E86*100,"-")) -> - | F86: =IF(OR('Tabel 4F NJ'!F86<5,'Tabel 4 NJ'!F86<0.5),"-",IFERROR('Tabel 4 NJ'!F86/'Tabel 4F NJ'!F86*100,"-")) -> - | G86: =IF(OR('Tabel 4F NJ'!G86<5,'Tabel 4 NJ'!G86<0.5),"-",IFERROR('Tabel 4 NJ'!G86/'Tabel 4F NJ'!G86*100,"-")) -> - | I86: =IF(OR('Tabel 4F NJ'!I86<5,'Tabel 4 NJ'!I86<0.5),"-",IFERROR('Tabel 4 NJ'!I86/'Tabel 4F NJ'!I86*100,"-")) -> -
A87: Økonom | C87: =IF(OR('Tabel 4F NJ'!C87<5,'Tabel 4 NJ'!C87<0.5),"-",IFERROR('Tabel 4 NJ'!C87/'Tabel 4F NJ'!C87*100,"-")) -> - | D87: =IF(OR('Tabel 4F NJ'!D87<5,'Tabel 4 NJ'!D87<0.5),"-",IFERROR('Tabel 4 NJ'!D87/'Tabel 4F NJ'!D87*100,"-")) -> - | E87: =IF(OR('Tabel 4F NJ'!E87<5,'Tabel 4 NJ'!E87<0.5),"-",IFERROR('Tabel 4 NJ'!E87/'Tabel 4F NJ'!E87*100,"-")) -> - | F87: =IF(OR('Tabel 4F NJ'!F87<5,'Tabel 4 NJ'!F87<0.5),"-",IFERROR('Tabel 4 NJ'!F87/'Tabel 4F NJ'!F87*100,"-")) -> - | G87: =IF(OR('Tabel 4F NJ'!G87<5,'Tabel 4 NJ'!G87<0.5),"-",IFERROR('Tabel 4 NJ'!G87/'Tabel 4F NJ'!G87*100,"-")) -> - | I87: =IF(OR('Tabel 4F NJ'!I87<5,'Tabel 4 NJ'!I87<0.5),"-",IFERROR('Tabel 4 NJ'!I87/'Tabel 4F NJ'!I87*100,"-")) -> -
A88: Samf. Adm. | C88: =IF(OR('Tabel 4F NJ'!C88<5,'Tabel 4 NJ'!C88<0.5),"-",IFERROR('Tabel 4 NJ'!C88/'Tabel 4F NJ'!C88*100,"-")) -> - | D88: =IF(OR('Tabel 4F NJ'!D88<5,'Tabel 4 NJ'!D88<0.5),"-",IFERROR('Tabel 4 NJ'!D88/'Tabel 4F NJ'!D88*100,"-")) -> - | E88: =IF(OR('Tabel 4F NJ'!E88<5,'Tabel 4 NJ'!E88<0.5),"-",IFERROR('Tabel 4 NJ'!E88/'Tabel 4F NJ'!E88*100,"-")) -> - | F88: =IF(OR('Tabel 4F NJ'!F88<5,'Tabel 4 NJ'!F88<0.5),"-",IFERROR('Tabel 4 NJ'!F88/'Tabel 4F NJ'!F88*100,"-")) -> - | G88: =IF(OR('Tabel 4F NJ'!G88<5,'Tabel 4 NJ'!G88<0.5),"-",IFERROR('Tabel 4 NJ'!G88/'Tabel 4F NJ'!G88*100,"-")) -> - | I88: =IF(OR('Tabel 4F NJ'!I88<5,'Tabel 4 NJ'!I88<0.5),"-",IFERROR('Tabel 4 NJ'!I88/'Tabel 4F NJ'!I88*100,"-")) -> -
A89: Cand. Merc. | C89: =IF(OR('Tabel 4F NJ'!C89<5,'Tabel 4 NJ'!C89<0.5),"-",IFERROR('Tabel 4 NJ'!C89/'Tabel 4F NJ'!C89*100,"-")) -> - | D89: =IF(OR('Tabel 4F NJ'!D89<5,'Tabel 4 NJ'!D89<0.5),"-",IFERROR('Tabel 4 NJ'!D89/'Tabel 4F NJ'!D89*100,"-")) -> - | E89: =IF(OR('Tabel 4F NJ'!E89<5,'Tabel 4 NJ'!E89<0.5),"-",IFERROR('Tabel 4 NJ'!E89/'Tabel 4F NJ'!E89*100,"-")) -> 16.66666667 | F89: =IF(OR('Tabel 4F NJ'!F89<5,'Tabel 4 NJ'!F89<0.5),"-",IFERROR('Tabel 4 NJ'!F89/'Tabel 4F NJ'!F89*100,"-")) -> - | G89: =IF(OR('Tabel 4F NJ'!G89<5,'Tabel 4 NJ'!G89<0.5),"-",IFERROR('Tabel 4 NJ'!G89/'Tabel 4F NJ'!G89*100,"-")) -> - | I89: =IF(OR('Tabel 4F NJ'!I89<5,'Tabel 4 NJ'!I89<0.5),"-",IFERROR('Tabel 4 NJ'!I89/'Tabel 4F NJ'!I89*100,"-")) -> 5
A90: HA | C90: =IF(OR('Tabel 4F NJ'!C90<5,'Tabel 4 NJ'!C90<0.5),"-",IFERROR('Tabel 4 NJ'!C90/'Tabel 4F NJ'!C90*100,"-")) -> - | D90: =IF(OR('Tabel 4F NJ'!D90<5,'Tabel 4 NJ'!D90<0.5),"-",IFERROR('Tabel 4 NJ'!D90/'Tabel 4F NJ'!D90*100,"-")) -> - | E90: =IF(OR('Tabel 4F NJ'!E90<5,'Tabel 4 NJ'!E90<0.5),"-",IFERROR('Tabel 4 NJ'!E90/'Tabel 4F NJ'!E90*100,"-")) -> - | F90: =IF(OR('Tabel 4F NJ'!F90<5,'Tabel 4 NJ'!F90<0.5),"-",IFERROR('Tabel 4 NJ'!F90/'Tabel 4F NJ'!F90*100,"-")) -> - | G90: =IF(OR('Tabel 4F NJ'!G90<5,'Tabel 4 NJ'!G90<0.5),"-",IFERROR('Tabel 4 NJ'!G90/'Tabel 4F NJ'!G90*100,"-")) -> - | I90: =IF(OR('Tabel 4F NJ'!I90<5,'Tabel 4 NJ'!I90<0.5),"-",IFERROR('Tabel 4 NJ'!I90/'Tabel 4F NJ'!I90*100,"-")) -> -
A91: HD | C91: =IF(OR('Tabel 4F NJ'!C91<5,'Tabel 4 NJ'!C91<0.5),"-",IFERROR('Tabel 4 NJ'!C91/'Tabel 4F NJ'!C91*100,"-")) -> - | D91: =IF(OR('Tabel 4F NJ'!D91<5,'Tabel 4 NJ'!D91<0.5),"-",IFERROR('Tabel 4 NJ'!D91/'Tabel 4F NJ'!D91*100,"-")) -> - | E91: =IF(OR('Tabel 4F NJ'!E91<5,'Tabel 4 NJ'!E91<0.5),"-",IFERROR('Tabel 4 NJ'!E91/'Tabel 4F NJ'!E91*100,"-")) -> - | F91: =IF(OR('Tabel 4F NJ'!F91<5,'Tabel 4 NJ'!F91<0.5),"-",IFERROR('Tabel 4 NJ'!F91/'Tabel 4F NJ'!F91*100,"-")) -> - | G91: =IF(OR('Tabel 4F NJ'!G91<5,'Tabel 4 NJ'!G91<0.5),"-",IFERROR('Tabel 4 NJ'!G91/'Tabel 4F NJ'!G91*100,"-")) -> - | I91: =IF(OR('Tabel 4F NJ'!I91<5,'Tabel 4 NJ'!I91<0.5),"-",IFERROR('Tabel 4 NJ'!I91/'Tabel 4F NJ'!I91*100,"-")) -> -
A92: Komm. og Sprog | C92: =IF(OR('Tabel 4F NJ'!C92<5,'Tabel 4 NJ'!C92<0.5),"-",IFERROR('Tabel 4 NJ'!C92/'Tabel 4F NJ'!C92*100,"-")) -> - | D92: =IF(OR('Tabel 4F NJ'!D92<5,'Tabel 4 NJ'!D92<0.5),"-",IFERROR('Tabel 4 NJ'!D92/'Tabel 4F NJ'!D92*100,"-")) -> - | E92: =IF(OR('Tabel 4F NJ'!E92<5,'Tabel 4 NJ'!E92<0.5),"-",IFERROR('Tabel 4 NJ'!E92/'Tabel 4F NJ'!E92*100,"-")) -> - | F92: =IF(OR('Tabel 4F NJ'!F92<5,'Tabel 4 NJ'!F92<0.5),"-",IFERROR('Tabel 4 NJ'!F92/'Tabel 4F NJ'!F92*100,"-")) -> - | G92: =IF(OR('Tabel 4F NJ'!G92<5,'Tabel 4 NJ'!G92<0.5),"-",IFERROR('Tabel 4 NJ'!G92/'Tabel 4F NJ'!G92*100,"-")) -> - | I92: =IF(OR('Tabel 4F NJ'!I92<5,'Tabel 4 NJ'!I92<0.5),"-",IFERROR('Tabel 4 NJ'!I92/'Tabel 4F NJ'!I92*100,"-")) -> -
A93: Bygningskonst. | C93: =IF(OR('Tabel 4F NJ'!C93<5,'Tabel 4 NJ'!C93<0.5),"-",IFERROR('Tabel 4 NJ'!C93/'Tabel 4F NJ'!C93*100,"-")) -> - | D93: =IF(OR('Tabel 4F NJ'!D93<5,'Tabel 4 NJ'!D93<0.5),"-",IFERROR('Tabel 4 NJ'!D93/'Tabel 4F NJ'!D93*100,"-")) -> - | E93: =IF(OR('Tabel 4F NJ'!E93<5,'Tabel 4 NJ'!E93<0.5),"-",IFERROR('Tabel 4 NJ'!E93/'Tabel 4F NJ'!E93*100,"-")) -> - | F93: =IF(OR('Tabel 4F NJ'!F93<5,'Tabel 4 NJ'!F93<0.5),"-",IFERROR('Tabel 4 NJ'!F93/'Tabel 4F NJ'!F93*100,"-")) -> - | G93: =IF(OR('Tabel 4F NJ'!G93<5,'Tabel 4 NJ'!G93<0.5),"-",IFERROR('Tabel 4 NJ'!G93/'Tabel 4F NJ'!G93*100,"-")) -> - | I93: =IF(OR('Tabel 4F NJ'!I93<5,'Tabel 4 NJ'!I93<0.5),"-",IFERROR('Tabel 4 NJ'!I93/'Tabel 4F NJ'!I93*100,"-")) -> -
A94: Cand. IT. | C94: =IF(OR('Tabel 4F NJ'!C94<5,'Tabel 4 NJ'!C94<0.5),"-",IFERROR('Tabel 4 NJ'!C94/'Tabel 4F NJ'!C94*100,"-")) -> - | D94: =IF(OR('Tabel 4F NJ'!D94<5,'Tabel 4 NJ'!D94<0.5),"-",IFERROR('Tabel 4 NJ'!D94/'Tabel 4F NJ'!D94*100,"-")) -> - | E94: =IF(OR('Tabel 4F NJ'!E94<5,'Tabel 4 NJ'!E94<0.5),"-",IFERROR('Tabel 4 NJ'!E94/'Tabel 4F NJ'!E94*100,"-")) -> - | F94: =IF(OR('Tabel 4F NJ'!F94<5,'Tabel 4 NJ'!F94<0.5),"-",IFERROR('Tabel 4 NJ'!F94/'Tabel 4F NJ'!F94*100,"-")) -> - | G94: =IF(OR('Tabel 4F NJ'!G94<5,'Tabel 4 NJ'!G94<0.5),"-",IFERROR('Tabel 4 NJ'!G94/'Tabel 4F NJ'!G94*100,"-")) -> - | I94: =IF(OR('Tabel 4F NJ'!I94<5,'Tabel 4 NJ'!I94<0.5),"-",IFERROR('Tabel 4 NJ'!I94/'Tabel 4F NJ'!I94*100,"-")) -> -
A95: Bac. Samf. | C95: =IF(OR('Tabel 4F NJ'!C95<5,'Tabel 4 NJ'!C95<0.5),"-",IFERROR('Tabel 4 NJ'!C95/'Tabel 4F NJ'!C95*100,"-")) -> - | D95: =IF(OR('Tabel 4F NJ'!D95<5,'Tabel 4 NJ'!D95<0.5),"-",IFERROR('Tabel 4 NJ'!D95/'Tabel 4F NJ'!D95*100,"-")) -> - | E95: =IF(OR('Tabel 4F NJ'!E95<5,'Tabel 4 NJ'!E95<0.5),"-",IFERROR('Tabel 4 NJ'!E95/'Tabel 4F NJ'!E95*100,"-")) -> - | F95: =IF(OR('Tabel 4F NJ'!F95<5,'Tabel 4 NJ'!F95<0.5),"-",IFERROR('Tabel 4 NJ'!F95/'Tabel 4F NJ'!F95*100,"-")) -> - | G95: =IF(OR('Tabel 4F NJ'!G95<5,'Tabel 4 NJ'!G95<0.5),"-",IFERROR('Tabel 4 NJ'!G95/'Tabel 4F NJ'!G95*100,"-")) -> - | I95: =IF(OR('Tabel 4F NJ'!I95<5,'Tabel 4 NJ'!I95<0.5),"-",IFERROR('Tabel 4 NJ'!I95/'Tabel 4F NJ'!I95*100,"-")) -> -
A96: Bac. Hum. | C96: =IF(OR('Tabel 4F NJ'!C96<5,'Tabel 4 NJ'!C96<0.5),"-",IFERROR('Tabel 4 NJ'!C96/'Tabel 4F NJ'!C96*100,"-")) -> - | D96: =IF(OR('Tabel 4F NJ'!D96<5,'Tabel 4 NJ'!D96<0.5),"-",IFERROR('Tabel 4 NJ'!D96/'Tabel 4F NJ'!D96*100,"-")) -> - | E96: =IF(OR('Tabel 4F NJ'!E96<5,'Tabel 4 NJ'!E96<0.5),"-",IFERROR('Tabel 4 NJ'!E96/'Tabel 4F NJ'!E96*100,"-")) -> - | F96: =IF(OR('Tabel 4F NJ'!F96<5,'Tabel 4 NJ'!F96<0.5),"-",IFERROR('Tabel 4 NJ'!F96/'Tabel 4F NJ'!F96*100,"-")) -> - | G96: =IF(OR('Tabel 4F NJ'!G96<5,'Tabel 4 NJ'!G96<0.5),"-",IFERROR('Tabel 4 NJ'!G96/'Tabel 4F NJ'!G96*100,"-")) -> - | I96: =IF(OR('Tabel 4F NJ'!I96<5,'Tabel 4 NJ'!I96<0.5),"-",IFERROR('Tabel 4 NJ'!I96/'Tabel 4F NJ'!I96*100,"-")) -> -
A97: Bac. Nat. | C97: =IF(OR('Tabel 4F NJ'!C97<5,'Tabel 4 NJ'!C97<0.5),"-",IFERROR('Tabel 4 NJ'!C97/'Tabel 4F NJ'!C97*100,"-")) -> - | D97: =IF(OR('Tabel 4F NJ'!D97<5,'Tabel 4 NJ'!D97<0.5),"-",IFERROR('Tabel 4 NJ'!D97/'Tabel 4F NJ'!D97*100,"-")) -> - | E97: =IF(OR('Tabel 4F NJ'!E97<5,'Tabel 4 NJ'!E97<0.5),"-",IFERROR('Tabel 4 NJ'!E97/'Tabel 4F NJ'!E97*100,"-")) -> - | F97: =IF(OR('Tabel 4F NJ'!F97<5,'Tabel 4 NJ'!F97<0.5),"-",IFERROR('Tabel 4 NJ'!F97/'Tabel 4F NJ'!F97*100,"-")) -> - | G97: =IF(OR('Tabel 4F NJ'!G97<5,'Tabel 4 NJ'!G97<0.5),"-",IFERROR('Tabel 4 NJ'!G97/'Tabel 4F NJ'!G97*100,"-")) -> - | I97: =IF(OR('Tabel 4F NJ'!I97<5,'Tabel 4 NJ'!I97<0.5),"-",IFERROR('Tabel 4 NJ'!I97/'Tabel 4F NJ'!I97*100,"-")) -> -
A98: Andre | C98: =IF(OR('Tabel 4F NJ'!C98<5,'Tabel 4 NJ'!C98<0.5),"-",IFERROR('Tabel 4 NJ'!C98/'Tabel 4F NJ'!C98*100,"-")) -> - | D98: =IF(OR('Tabel 4F NJ'!D98<5,'Tabel 4 NJ'!D98<0.5),"-",IFERROR('Tabel 4 NJ'!D98/'Tabel 4F NJ'!D98*100,"-")) -> - | E98: =IF(OR('Tabel 4F NJ'!E98<5,'Tabel 4 NJ'!E98<0.5),"-",IFERROR('Tabel 4 NJ'!E98/'Tabel 4F NJ'!E98*100,"-")) -> - | F98: =IF(OR('Tabel 4F NJ'!F98<5,'Tabel 4 NJ'!F98<0.5),"-",IFERROR('Tabel 4 NJ'!F98/'Tabel 4F NJ'!F98*100,"-")) -> - | G98: =IF(OR('Tabel 4F NJ'!G98<5,'Tabel 4 NJ'!G98<0.5),"-",IFERROR('Tabel 4 NJ'!G98/'Tabel 4F NJ'!G98*100,"-")) -> - | I98: =IF(OR('Tabel 4F NJ'!I98<5,'Tabel 4 NJ'!I98<0.5),"-",IFERROR('Tabel 4 NJ'!I98/'Tabel 4F NJ'!I98*100,"-")) -> -
A100: Total | C100: =IF(OR('Tabel 4F NJ'!C100<5,'Tabel 4 NJ'!C100<0.5),"-",IFERROR('Tabel 4 NJ'!C100/'Tabel 4F NJ'!C100*100,"-")) -> 2.702702703 | D100: =IF(OR('Tabel 4F NJ'!D100<5,'Tabel 4 NJ'!D100<0.5),"-",IFERROR('Tabel 4 NJ'!D100/'Tabel 4F NJ'!D100*100,"-")) -> - | E100: =IF(OR('Tabel 4F NJ'!E100<5,'Tabel 4 NJ'!E100<0.5),"-",IFERROR('Tabel 4 NJ'!E100/'Tabel 4F NJ'!E100*100,"-")) -> 1.5625 | F100: =IF(OR('Tabel 4F NJ'!F100<5,'Tabel 4 NJ'!F100<0.5),"-",IFERROR('Tabel 4 NJ'!F100/'Tabel 4F NJ'!F100*100,"-")) -> 1.515151515 | G100: =IF(OR('Tabel 4F NJ'!G100<5,'Tabel 4 NJ'!G100<0.5),"-",IFERROR('Tabel 4 NJ'!G100/'Tabel 4F NJ'!G100*100,"-")) -> 3.448275862 | I100: =IF(OR('Tabel 4F NJ'!I100<5,'Tabel 4 NJ'!I100<0.5),"-",IFERROR('Tabel 4 NJ'!I100/'Tabel 4F NJ'!I100*100,"-")) -> 1.526717557
A102: Ingeniører i alt | C102: =IF(OR('Tabel 4F NJ'!C102<5,'Tabel 4 NJ'!C102<0.5),"-",IFERROR('Tabel 4 NJ'!C102/'Tabel 4F NJ'!C102*100,"-")) -> - | D102: =IF(OR('Tabel 4F NJ'!D102<5,'Tabel 4 NJ'!D102<0.5),"-",IFERROR('Tabel 4 NJ'!D102/'Tabel 4F NJ'!D102*100,"-")) -> - | E102: =IF(OR('Tabel 4F NJ'!E102<5,'Tabel 4 NJ'!E102<0.5),"-",IFERROR('Tabel 4 NJ'!E102/'Tabel 4F NJ'!E102*100,"-")) -> - | F102: =IF(OR('Tabel 4F NJ'!F102<5,'Tabel 4 NJ'!F102<0.5),"-",IFERROR('Tabel 4 NJ'!F102/'Tabel 4F NJ'!F102*100,"-")) -> - | G102: =IF(OR('Tabel 4F NJ'!G102<5,'Tabel 4 NJ'!G102<0.5),"-",IFERROR('Tabel 4 NJ'!G102/'Tabel 4F NJ'!G102*100,"-")) -> - | I102: =IF(OR('Tabel 4F NJ'!I102<5,'Tabel 4 NJ'!I102<0.5),"-",IFERROR('Tabel 4 NJ'!I102/'Tabel 4F NJ'!I102*100,"-")) -> -
A103: Magistre i alt | C103: =IF(OR('Tabel 4F NJ'!C103<5,'Tabel 4 NJ'!C103<0.5),"-",IFERROR('Tabel 4 NJ'!C103/'Tabel 4F NJ'!C103*100,"-")) -> 12.5 | D103: =IF(OR('Tabel 4F NJ'!D103<5,'Tabel 4 NJ'!D103<0.5),"-",IFERROR('Tabel 4 NJ'!D103/'Tabel 4F NJ'!D103*100,"-")) -> - | E103: =IF(OR('Tabel 4F NJ'!E103<5,'Tabel 4 NJ'!E103<0.5),"-",IFERROR('Tabel 4 NJ'!E103/'Tabel 4F NJ'!E103*100,"-")) -> - | F103: =IF(OR('Tabel 4F NJ'!F103<5,'Tabel 4 NJ'!F103<0.5),"-",IFERROR('Tabel 4 NJ'!F103/'Tabel 4F NJ'!F103*100,"-")) -> 6.666666667 | G103: =IF(OR('Tabel 4F NJ'!G103<5,'Tabel 4 NJ'!G103<0.5),"-",IFERROR('Tabel 4 NJ'!G103/'Tabel 4F NJ'!G103*100,"-")) -> 14.28571429 | I103: =IF(OR('Tabel 4F NJ'!I103<5,'Tabel 4 NJ'!I103<0.5),"-",IFERROR('Tabel 4 NJ'!I103/'Tabel 4F NJ'!I103*100,"-")) -> 4.411764706
A104: DJØF'ere i alt | C104: =IF(OR('Tabel 4F NJ'!C104<5,'Tabel 4 NJ'!C104<0.5),"-",IFERROR('Tabel 4 NJ'!C104/'Tabel 4F NJ'!C104*100,"-")) -> - | D104: =IF(OR('Tabel 4F NJ'!D104<5,'Tabel 4 NJ'!D104<0.5),"-",IFERROR('Tabel 4 NJ'!D104/'Tabel 4F NJ'!D104*100,"-")) -> - | E104: =IF(OR('Tabel 4F NJ'!E104<5,'Tabel 4 NJ'!E104<0.5),"-",IFERROR('Tabel 4 NJ'!E104/'Tabel 4F NJ'!E104*100,"-")) -> 7.142857143 | F104: =IF(OR('Tabel 4F NJ'!F104<5,'Tabel 4 NJ'!F104<0.5),"-",IFERROR('Tabel 4 NJ'!F104/'Tabel 4F NJ'!F104*100,"-")) -> - | G104: =IF(OR('Tabel 4F NJ'!G104<5,'Tabel 4 NJ'!G104<0.5),"-",IFERROR('Tabel 4 NJ'!G104/'Tabel 4F NJ'!G104*100,"-")) -> - | I104: =IF(OR('Tabel 4F NJ'!I104<5,'Tabel 4 NJ'!I104<0.5),"-",IFERROR('Tabel 4 NJ'!I104/'Tabel 4F NJ'!I104*100,"-")) -> 2.173913043
A111: Thisted
C113: Under 30 år | D113: 30 - 39 år | E113: 40 - 49 år | F113: 50 - 59 år | G113: Over 60 år | I113: I alt
A115: Civ. ing. | C115: =IF(OR('Tabel 4F NJ'!C115<5,'Tabel 4 NJ'!C115<0.5),"-",IFERROR('Tabel 4 NJ'!C115/'Tabel 4F NJ'!C115*100,"-")) -> 10 | D115: =IF(OR('Tabel 4F NJ'!D115<5,'Tabel 4 NJ'!D115<0.5),"-",IFERROR('Tabel 4 NJ'!D115/'Tabel 4F NJ'!D115*100,"-")) -> - | E115: =IF(OR('Tabel 4F NJ'!E115<5,'Tabel 4 NJ'!E115<0.5),"-",IFERROR('Tabel 4 NJ'!E115/'Tabel 4F NJ'!E115*100,"-")) -> 7.142857143 | F115: =IF(OR('Tabel 4F NJ'!F115<5,'Tabel 4 NJ'!F115<0.5),"-",IFERROR('Tabel 4 NJ'!F115/'Tabel 4F NJ'!F115*100,"-")) -> - | G115: =IF(OR('Tabel 4F NJ'!G115<5,'Tabel 4 NJ'!G115<0.5),"-",IFERROR('Tabel 4 NJ'!G115/'Tabel 4F NJ'!G115*100,"-")) -> - | I115: =IF(OR('Tabel 4F NJ'!I115<5,'Tabel 4 NJ'!I115<0.5),"-",IFERROR('Tabel 4 NJ'!I115/'Tabel 4F NJ'!I115*100,"-")) -> 3.636363636
A116: Diplom ing. | C116: =IF(OR('Tabel 4F NJ'!C116<5,'Tabel 4 NJ'!C116<0.5),"-",IFERROR('Tabel 4 NJ'!C116/'Tabel 4F NJ'!C116*100,"-")) -> - | D116: =IF(OR('Tabel 4F NJ'!D116<5,'Tabel 4 NJ'!D116<0.5),"-",IFERROR('Tabel 4 NJ'!D116/'Tabel 4F NJ'!D116*100,"-")) -> - | E116: =IF(OR('Tabel 4F NJ'!E116<5,'Tabel 4 NJ'!E116<0.5),"-",IFERROR('Tabel 4 NJ'!E116/'Tabel 4F NJ'!E116*100,"-")) -> - | F116: =IF(OR('Tabel 4F NJ'!F116<5,'Tabel 4 NJ'!F116<0.5),"-",IFERROR('Tabel 4 NJ'!F116/'Tabel 4F NJ'!F116*100,"-")) -> 3.571428571 | G116: =IF(OR('Tabel 4F NJ'!G116<5,'Tabel 4 NJ'!G116<0.5),"-",IFERROR('Tabel 4 NJ'!G116/'Tabel 4F NJ'!G116*100,"-")) -> 15.38461538 | I116: =IF(OR('Tabel 4F NJ'!I116<5,'Tabel 4 NJ'!I116<0.5),"-",IFERROR('Tabel 4 NJ'!I116/'Tabel 4F NJ'!I116*100,"-")) -> 4.838709677
A117: Cand. Scient. Tek | C117: =IF(OR('Tabel 4F NJ'!C117<5,'Tabel 4 NJ'!C117<0.5),"-",IFERROR('Tabel 4 NJ'!C117/'Tabel 4F NJ'!C117*100,"-")) -> - | D117: =IF(OR('Tabel 4F NJ'!D117<5,'Tabel 4 NJ'!D117<0.5),"-",IFERROR('Tabel 4 NJ'!D117/'Tabel 4F NJ'!D117*100,"-")) -> - | E117: =IF(OR('Tabel 4F NJ'!E117<5,'Tabel 4 NJ'!E117<0.5),"-",IFERROR('Tabel 4 NJ'!E117/'Tabel 4F NJ'!E117*100,"-")) -> - | F117: =IF(OR('Tabel 4F NJ'!F117<5,'Tabel 4 NJ'!F117<0.5),"-",IFERROR('Tabel 4 NJ'!F117/'Tabel 4F NJ'!F117*100,"-")) -> - | G117: =IF(OR('Tabel 4F NJ'!G117<5,'Tabel 4 NJ'!G117<0.5),"-",IFERROR('Tabel 4 NJ'!G117/'Tabel 4F NJ'!G117*100,"-")) -> - | I117: =IF(OR('Tabel 4F NJ'!I117<5,'Tabel 4 NJ'!I117<0.5),"-",IFERROR('Tabel 4 NJ'!I117/'Tabel 4F NJ'!I117*100,"-")) -> -
A118: MA. Hum. | C118: =IF(OR('Tabel 4F NJ'!C118<5,'Tabel 4 NJ'!C118<0.5),"-",IFERROR('Tabel 4 NJ'!C118/'Tabel 4F NJ'!C118*100,"-")) -> 28.57142857 | D118: =IF(OR('Tabel 4F NJ'!D118<5,'Tabel 4 NJ'!D118<0.5),"-",IFERROR('Tabel 4 NJ'!D118/'Tabel 4F NJ'!D118*100,"-")) -> 6.12244898 | E118: =IF(OR('Tabel 4F NJ'!E118<5,'Tabel 4 NJ'!E118<0.5),"-",IFERROR('Tabel 4 NJ'!E118/'Tabel 4F NJ'!E118*100,"-")) -> 4.444444444 | F118: =IF(OR('Tabel 4F NJ'!F118<5,'Tabel 4 NJ'!F118<0.5),"-",IFERROR('Tabel 4 NJ'!F118/'Tabel 4F NJ'!F118*100,"-")) -> 12 | G118: =IF(OR('Tabel 4F NJ'!G118<5,'Tabel 4 NJ'!G118<0.5),"-",IFERROR('Tabel 4 NJ'!G118/'Tabel 4F NJ'!G118*100,"-")) -> - | I118: =IF(OR('Tabel 4F NJ'!I118<5,'Tabel 4 NJ'!I118<0.5),"-",IFERROR('Tabel 4 NJ'!I118/'Tabel 4F NJ'!I118*100,"-")) -> 7.352941176
A119: MA. Nat. | C119: =IF(OR('Tabel 4F NJ'!C119<5,'Tabel 4 NJ'!C119<0.5),"-",IFERROR('Tabel 4 NJ'!C119/'Tabel 4F NJ'!C119*100,"-")) -> - | D119: =IF(OR('Tabel 4F NJ'!D119<5,'Tabel 4 NJ'!D119<0.5),"-",IFERROR('Tabel 4 NJ'!D119/'Tabel 4F NJ'!D119*100,"-")) -> - | E119: =IF(OR('Tabel 4F NJ'!E119<5,'Tabel 4 NJ'!E119<0.5),"-",IFERROR('Tabel 4 NJ'!E119/'Tabel 4F NJ'!E119*100,"-")) -> - | F119: =IF(OR('Tabel 4F NJ'!F119<5,'Tabel 4 NJ'!F119<0.5),"-",IFERROR('Tabel 4 NJ'!F119/'Tabel 4F NJ'!F119*100,"-")) -> - | G119: =IF(OR('Tabel 4F NJ'!G119<5,'Tabel 4 NJ'!G119<0.5),"-",IFERROR('Tabel 4 NJ'!G119/'Tabel 4F NJ'!G119*100,"-")) -> - | I119: =IF(OR('Tabel 4F NJ'!I119<5,'Tabel 4 NJ'!I119<0.5),"-",IFERROR('Tabel 4 NJ'!I119/'Tabel 4F NJ'!I119*100,"-")) -> -
A120: MA. Ph.d. | C120: =IF(OR('Tabel 4F NJ'!C120<5,'Tabel 4 NJ'!C120<0.5),"-",IFERROR('Tabel 4 NJ'!C120/'Tabel 4F NJ'!C120*100,"-")) -> - | D120: =IF(OR('Tabel 4F NJ'!D120<5,'Tabel 4 NJ'!D120<0.5),"-",IFERROR('Tabel 4 NJ'!D120/'Tabel 4F NJ'!D120*100,"-")) -> - | E120: =IF(OR('Tabel 4F NJ'!E120<5,'Tabel 4 NJ'!E120<0.5),"-",IFERROR('Tabel 4 NJ'!E120/'Tabel 4F NJ'!E120*100,"-")) -> - | F120: =IF(OR('Tabel 4F NJ'!F120<5,'Tabel 4 NJ'!F120<0.5),"-",IFERROR('Tabel 4 NJ'!F120/'Tabel 4F NJ'!F120*100,"-")) -> - | G120: =IF(OR('Tabel 4F NJ'!G120<5,'Tabel 4 NJ'!G120<0.5),"-",IFERROR('Tabel 4 NJ'!G120/'Tabel 4F NJ'!G120*100,"-")) -> - | I120: =IF(OR('Tabel 4F NJ'!I120<5,'Tabel 4 NJ'!I120<0.5),"-",IFERROR('Tabel 4 NJ'!I120/'Tabel 4F NJ'!I120*100,"-")) -> -
A121: MA. Samf. | C121: =IF(OR('Tabel 4F NJ'!C121<5,'Tabel 4 NJ'!C121<0.5),"-",IFERROR('Tabel 4 NJ'!C121/'Tabel 4F NJ'!C121*100,"-")) -> - | D121: =IF(OR('Tabel 4F NJ'!D121<5,'Tabel 4 NJ'!D121<0.5),"-",IFERROR('Tabel 4 NJ'!D121/'Tabel 4F NJ'!D121*100,"-")) -> 10 | E121: =IF(OR('Tabel 4F NJ'!E121<5,'Tabel 4 NJ'!E121<0.5),"-",IFERROR('Tabel 4 NJ'!E121/'Tabel 4F NJ'!E121*100,"-")) -> - | F121: =IF(OR('Tabel 4F NJ'!F121<5,'Tabel 4 NJ'!F121<0.5),"-",IFERROR('Tabel 4 NJ'!F121/'Tabel 4F NJ'!F121*100,"-")) -> - | G121: =IF(OR('Tabel 4F NJ'!G121<5,'Tabel 4 NJ'!G121<0.5),"-",IFERROR('Tabel 4 NJ'!G121/'Tabel 4F NJ'!G121*100,"-")) -> - | I121: =IF(OR('Tabel 4F NJ'!I121<5,'Tabel 4 NJ'!I121<0.5),"-",IFERROR('Tabel 4 NJ'!I121/'Tabel 4F NJ'!I121*100,"-")) -> 8.333333333
A122: Øvrige Mag. | C122: =IF(OR('Tabel 4F NJ'!C122<5,'Tabel 4 NJ'!C122<0.5),"-",IFERROR('Tabel 4 NJ'!C122/'Tabel 4F NJ'!C122*100,"-")) -> - | D122: =IF(OR('Tabel 4F NJ'!D122<5,'Tabel 4 NJ'!D122<0.5),"-",IFERROR('Tabel 4 NJ'!D122/'Tabel 4F NJ'!D122*100,"-")) -> - | E122: =IF(OR('Tabel 4F NJ'!E122<5,'Tabel 4 NJ'!E122<0.5),"-",IFERROR('Tabel 4 NJ'!E122/'Tabel 4F NJ'!E122*100,"-")) -> - | F122: =IF(OR('Tabel 4F NJ'!F122<5,'Tabel 4 NJ'!F122<0.5),"-",IFERROR('Tabel 4 NJ'!F122/'Tabel 4F NJ'!F122*100,"-")) -> - | G122: =IF(OR('Tabel 4F NJ'!G122<5,'Tabel 4 NJ'!G122<0.5),"-",IFERROR('Tabel 4 NJ'!G122/'Tabel 4F NJ'!G122*100,"-")) -> - | I122: =IF(OR('Tabel 4F NJ'!I122<5,'Tabel 4 NJ'!I122<0.5),"-",IFERROR('Tabel 4 NJ'!I122/'Tabel 4F NJ'!I122*100,"-")) -> -
A123: Agronom | C123: =IF(OR('Tabel 4F NJ'!C123<5,'Tabel 4 NJ'!C123<0.5),"-",IFERROR('Tabel 4 NJ'!C123/'Tabel 4F NJ'!C123*100,"-")) -> - | D123: =IF(OR('Tabel 4F NJ'!D123<5,'Tabel 4 NJ'!D123<0.5),"-",IFERROR('Tabel 4 NJ'!D123/'Tabel 4F NJ'!D123*100,"-")) -> - | E123: =IF(OR('Tabel 4F NJ'!E123<5,'Tabel 4 NJ'!E123<0.5),"-",IFERROR('Tabel 4 NJ'!E123/'Tabel 4F NJ'!E123*100,"-")) -> - | F123: =IF(OR('Tabel 4F NJ'!F123<5,'Tabel 4 NJ'!F123<0.5),"-",IFERROR('Tabel 4 NJ'!F123/'Tabel 4F NJ'!F123*100,"-")) -> - | G123: =IF(OR('Tabel 4F NJ'!G123<5,'Tabel 4 NJ'!G123<0.5),"-",IFERROR('Tabel 4 NJ'!G123/'Tabel 4F NJ'!G123*100,"-")) -> - | I123: =IF(OR('Tabel 4F NJ'!I123<5,'Tabel 4 NJ'!I123<0.5),"-",IFERROR('Tabel 4 NJ'!I123/'Tabel 4F NJ'!I123*100,"-")) -> -
A124: Landsk. Arkt. | C124: =IF(OR('Tabel 4F NJ'!C124<5,'Tabel 4 NJ'!C124<0.5),"-",IFERROR('Tabel 4 NJ'!C124/'Tabel 4F NJ'!C124*100,"-")) -> - | D124: =IF(OR('Tabel 4F NJ'!D124<5,'Tabel 4 NJ'!D124<0.5),"-",IFERROR('Tabel 4 NJ'!D124/'Tabel 4F NJ'!D124*100,"-")) -> - | E124: =IF(OR('Tabel 4F NJ'!E124<5,'Tabel 4 NJ'!E124<0.5),"-",IFERROR('Tabel 4 NJ'!E124/'Tabel 4F NJ'!E124*100,"-")) -> - | F124: =IF(OR('Tabel 4F NJ'!F124<5,'Tabel 4 NJ'!F124<0.5),"-",IFERROR('Tabel 4 NJ'!F124/'Tabel 4F NJ'!F124*100,"-")) -> - | G124: =IF(OR('Tabel 4F NJ'!G124<5,'Tabel 4 NJ'!G124<0.5),"-",IFERROR('Tabel 4 NJ'!G124/'Tabel 4F NJ'!G124*100,"-")) -> - | I124: =IF(OR('Tabel 4F NJ'!I124<5,'Tabel 4 NJ'!I124<0.5),"-",IFERROR('Tabel 4 NJ'!I124/'Tabel 4F NJ'!I124*100,"-")) -> -
A125: Hortonom | C125: =IF(OR('Tabel 4F NJ'!C125<5,'Tabel 4 NJ'!C125<0.5),"-",IFERROR('Tabel 4 NJ'!C125/'Tabel 4F NJ'!C125*100,"-")) -> - | D125: =IF(OR('Tabel 4F NJ'!D125<5,'Tabel 4 NJ'!D125<0.5),"-",IFERROR('Tabel 4 NJ'!D125/'Tabel 4F NJ'!D125*100,"-")) -> - | E125: =IF(OR('Tabel 4F NJ'!E125<5,'Tabel 4 NJ'!E125<0.5),"-",IFERROR('Tabel 4 NJ'!E125/'Tabel 4F NJ'!E125*100,"-")) -> - | F125: =IF(OR('Tabel 4F NJ'!F125<5,'Tabel 4 NJ'!F125<0.5),"-",IFERROR('Tabel 4 NJ'!F125/'Tabel 4F NJ'!F125*100,"-")) -> - | G125: =IF(OR('Tabel 4F NJ'!G125<5,'Tabel 4 NJ'!G125<0.5),"-",IFERROR('Tabel 4 NJ'!G125/'Tabel 4F NJ'!G125*100,"-")) -> - | I125: =IF(OR('Tabel 4F NJ'!I125<5,'Tabel 4 NJ'!I125<0.5),"-",IFERROR('Tabel 4 NJ'!I125/'Tabel 4F NJ'!I125*100,"-")) -> -
A126: Forstkand. | C126: =IF(OR('Tabel 4F NJ'!C126<5,'Tabel 4 NJ'!C126<0.5),"-",IFERROR('Tabel 4 NJ'!C126/'Tabel 4F NJ'!C126*100,"-")) -> - | D126: =IF(OR('Tabel 4F NJ'!D126<5,'Tabel 4 NJ'!D126<0.5),"-",IFERROR('Tabel 4 NJ'!D126/'Tabel 4F NJ'!D126*100,"-")) -> - | E126: =IF(OR('Tabel 4F NJ'!E126<5,'Tabel 4 NJ'!E126<0.5),"-",IFERROR('Tabel 4 NJ'!E126/'Tabel 4F NJ'!E126*100,"-")) -> - | F126: =IF(OR('Tabel 4F NJ'!F126<5,'Tabel 4 NJ'!F126<0.5),"-",IFERROR('Tabel 4 NJ'!F126/'Tabel 4F NJ'!F126*100,"-")) -> - | G126: =IF(OR('Tabel 4F NJ'!G126<5,'Tabel 4 NJ'!G126<0.5),"-",IFERROR('Tabel 4 NJ'!G126/'Tabel 4F NJ'!G126*100,"-")) -> - | I126: =IF(OR('Tabel 4F NJ'!I126<5,'Tabel 4 NJ'!I126<0.5),"-",IFERROR('Tabel 4 NJ'!I126/'Tabel 4F NJ'!I126*100,"-")) -> -
A127: Jordbrugsakad. | C127: =IF(OR('Tabel 4F NJ'!C127<5,'Tabel 4 NJ'!C127<0.5),"-",IFERROR('Tabel 4 NJ'!C127/'Tabel 4F NJ'!C127*100,"-")) -> - | D127: =IF(OR('Tabel 4F NJ'!D127<5,'Tabel 4 NJ'!D127<0.5),"-",IFERROR('Tabel 4 NJ'!D127/'Tabel 4F NJ'!D127*100,"-")) -> - | E127: =IF(OR('Tabel 4F NJ'!E127<5,'Tabel 4 NJ'!E127<0.5),"-",IFERROR('Tabel 4 NJ'!E127/'Tabel 4F NJ'!E127*100,"-")) -> - | F127: =IF(OR('Tabel 4F NJ'!F127<5,'Tabel 4 NJ'!F127<0.5),"-",IFERROR('Tabel 4 NJ'!F127/'Tabel 4F NJ'!F127*100,"-")) -> - | G127: =IF(OR('Tabel 4F NJ'!G127<5,'Tabel 4 NJ'!G127<0.5),"-",IFERROR('Tabel 4 NJ'!G127/'Tabel 4F NJ'!G127*100,"-")) -> - | I127: =IF(OR('Tabel 4F NJ'!I127<5,'Tabel 4 NJ'!I127<0.5),"-",IFERROR('Tabel 4 NJ'!I127/'Tabel 4F NJ'!I127*100,"-")) -> -
A128: Mejeriing. | C128: =IF(OR('Tabel 4F NJ'!C128<5,'Tabel 4 NJ'!C128<0.5),"-",IFERROR('Tabel 4 NJ'!C128/'Tabel 4F NJ'!C128*100,"-")) -> - | D128: =IF(OR('Tabel 4F NJ'!D128<5,'Tabel 4 NJ'!D128<0.5),"-",IFERROR('Tabel 4 NJ'!D128/'Tabel 4F NJ'!D128*100,"-")) -> - | E128: =IF(OR('Tabel 4F NJ'!E128<5,'Tabel 4 NJ'!E128<0.5),"-",IFERROR('Tabel 4 NJ'!E128/'Tabel 4F NJ'!E128*100,"-")) -> - | F128: =IF(OR('Tabel 4F NJ'!F128<5,'Tabel 4 NJ'!F128<0.5),"-",IFERROR('Tabel 4 NJ'!F128/'Tabel 4F NJ'!F128*100,"-")) -> - | G128: =IF(OR('Tabel 4F NJ'!G128<5,'Tabel 4 NJ'!G128<0.5),"-",IFERROR('Tabel 4 NJ'!G128/'Tabel 4F NJ'!G128*100,"-")) -> - | I128: =IF(OR('Tabel 4F NJ'!I128<5,'Tabel 4 NJ'!I128<0.5),"-",IFERROR('Tabel 4 NJ'!I128/'Tabel 4F NJ'!I128*100,"-")) -> -
A129: Levn.m.kand. | C129: =IF(OR('Tabel 4F NJ'!C129<5,'Tabel 4 NJ'!C129<0.5),"-",IFERROR('Tabel 4 NJ'!C129/'Tabel 4F NJ'!C129*100,"-")) -> - | D129: =IF(OR('Tabel 4F NJ'!D129<5,'Tabel 4 NJ'!D129<0.5),"-",IFERROR('Tabel 4 NJ'!D129/'Tabel 4F NJ'!D129*100,"-")) -> - | E129: =IF(OR('Tabel 4F NJ'!E129<5,'Tabel 4 NJ'!E129<0.5),"-",IFERROR('Tabel 4 NJ'!E129/'Tabel 4F NJ'!E129*100,"-")) -> - | F129: =IF(OR('Tabel 4F NJ'!F129<5,'Tabel 4 NJ'!F129<0.5),"-",IFERROR('Tabel 4 NJ'!F129/'Tabel 4F NJ'!F129*100,"-")) -> - | G129: =IF(OR('Tabel 4F NJ'!G129<5,'Tabel 4 NJ'!G129<0.5),"-",IFERROR('Tabel 4 NJ'!G129/'Tabel 4F NJ'!G129*100,"-")) -> - | I129: =IF(OR('Tabel 4F NJ'!I129<5,'Tabel 4 NJ'!I129<0.5),"-",IFERROR('Tabel 4 NJ'!I129/'Tabel 4F NJ'!I129*100,"-")) -> -
A130: Dyrlæge | C130: =IF(OR('Tabel 4F NJ'!C130<5,'Tabel 4 NJ'!C130<0.5),"-",IFERROR('Tabel 4 NJ'!C130/'Tabel 4F NJ'!C130*100,"-")) -> - | D130: =IF(OR('Tabel 4F NJ'!D130<5,'Tabel 4 NJ'!D130<0.5),"-",IFERROR('Tabel 4 NJ'!D130/'Tabel 4F NJ'!D130*100,"-")) -> - | E130: =IF(OR('Tabel 4F NJ'!E130<5,'Tabel 4 NJ'!E130<0.5),"-",IFERROR('Tabel 4 NJ'!E130/'Tabel 4F NJ'!E130*100,"-")) -> - | F130: =IF(OR('Tabel 4F NJ'!F130<5,'Tabel 4 NJ'!F130<0.5),"-",IFERROR('Tabel 4 NJ'!F130/'Tabel 4F NJ'!F130*100,"-")) -> - | G130: =IF(OR('Tabel 4F NJ'!G130<5,'Tabel 4 NJ'!G130<0.5),"-",IFERROR('Tabel 4 NJ'!G130/'Tabel 4F NJ'!G130*100,"-")) -> - | I130: =IF(OR('Tabel 4F NJ'!I130<5,'Tabel 4 NJ'!I130<0.5),"-",IFERROR('Tabel 4 NJ'!I130/'Tabel 4F NJ'!I130*100,"-")) -> -
A131: Farmaceut | C131: =IF(OR('Tabel 4F NJ'!C131<5,'Tabel 4 NJ'!C131<0.5),"-",IFERROR('Tabel 4 NJ'!C131/'Tabel 4F NJ'!C131*100,"-")) -> - | D131: =IF(OR('Tabel 4F NJ'!D131<5,'Tabel 4 NJ'!D131<0.5),"-",IFERROR('Tabel 4 NJ'!D131/'Tabel 4F NJ'!D131*100,"-")) -> - | E131: =IF(OR('Tabel 4F NJ'!E131<5,'Tabel 4 NJ'!E131<0.5),"-",IFERROR('Tabel 4 NJ'!E131/'Tabel 4F NJ'!E131*100,"-")) -> - | F131: =IF(OR('Tabel 4F NJ'!F131<5,'Tabel 4 NJ'!F131<0.5),"-",IFERROR('Tabel 4 NJ'!F131/'Tabel 4F NJ'!F131*100,"-")) -> - | G131: =IF(OR('Tabel 4F NJ'!G131<5,'Tabel 4 NJ'!G131<0.5),"-",IFERROR('Tabel 4 NJ'!G131/'Tabel 4F NJ'!G131*100,"-")) -> - | I131: =IF(OR('Tabel 4F NJ'!I131<5,'Tabel 4 NJ'!I131<0.5),"-",IFERROR('Tabel 4 NJ'!I131/'Tabel 4F NJ'!I131*100,"-")) -> -
A132: Læge | C132: =IF(OR('Tabel 4F NJ'!C132<5,'Tabel 4 NJ'!C132<0.5),"-",IFERROR('Tabel 4 NJ'!C132/'Tabel 4F NJ'!C132*100,"-")) -> 7.692307692 | D132: =IF(OR('Tabel 4F NJ'!D132<5,'Tabel 4 NJ'!D132<0.5),"-",IFERROR('Tabel 4 NJ'!D132/'Tabel 4F NJ'!D132*100,"-")) -> - | E132: =IF(OR('Tabel 4F NJ'!E132<5,'Tabel 4 NJ'!E132<0.5),"-",IFERROR('Tabel 4 NJ'!E132/'Tabel 4F NJ'!E132*100,"-")) -> - | F132: =IF(OR('Tabel 4F NJ'!F132<5,'Tabel 4 NJ'!F132<0.5),"-",IFERROR('Tabel 4 NJ'!F132/'Tabel 4F NJ'!F132*100,"-")) -> - | G132: =IF(OR('Tabel 4F NJ'!G132<5,'Tabel 4 NJ'!G132<0.5),"-",IFERROR('Tabel 4 NJ'!G132/'Tabel 4F NJ'!G132*100,"-")) -> - | I132: =IF(OR('Tabel 4F NJ'!I132<5,'Tabel 4 NJ'!I132<0.5),"-",IFERROR('Tabel 4 NJ'!I132/'Tabel 4F NJ'!I132*100,"-")) -> 2.702702703
A133: Tandlæge | C133: =IF(OR('Tabel 4F NJ'!C133<5,'Tabel 4 NJ'!C133<0.5),"-",IFERROR('Tabel 4 NJ'!C133/'Tabel 4F NJ'!C133*100,"-")) -> - | D133: =IF(OR('Tabel 4F NJ'!D133<5,'Tabel 4 NJ'!D133<0.5),"-",IFERROR('Tabel 4 NJ'!D133/'Tabel 4F NJ'!D133*100,"-")) -> - | E133: =IF(OR('Tabel 4F NJ'!E133<5,'Tabel 4 NJ'!E133<0.5),"-",IFERROR('Tabel 4 NJ'!E133/'Tabel 4F NJ'!E133*100,"-")) -> - | F133: =IF(OR('Tabel 4F NJ'!F133<5,'Tabel 4 NJ'!F133<0.5),"-",IFERROR('Tabel 4 NJ'!F133/'Tabel 4F NJ'!F133*100,"-")) -> - | G133: =IF(OR('Tabel 4F NJ'!G133<5,'Tabel 4 NJ'!G133<0.5),"-",IFERROR('Tabel 4 NJ'!G133/'Tabel 4F NJ'!G133*100,"-")) -> - | I133: =IF(OR('Tabel 4F NJ'!I133<5,'Tabel 4 NJ'!I133<0.5),"-",IFERROR('Tabel 4 NJ'!I133/'Tabel 4F NJ'!I133*100,"-")) -> -
A134: Arkitekt | C134: =IF(OR('Tabel 4F NJ'!C134<5,'Tabel 4 NJ'!C134<0.5),"-",IFERROR('Tabel 4 NJ'!C134/'Tabel 4F NJ'!C134*100,"-")) -> - | D134: =IF(OR('Tabel 4F NJ'!D134<5,'Tabel 4 NJ'!D134<0.5),"-",IFERROR('Tabel 4 NJ'!D134/'Tabel 4F NJ'!D134*100,"-")) -> - | E134: =IF(OR('Tabel 4F NJ'!E134<5,'Tabel 4 NJ'!E134<0.5),"-",IFERROR('Tabel 4 NJ'!E134/'Tabel 4F NJ'!E134*100,"-")) -> - | F134: =IF(OR('Tabel 4F NJ'!F134<5,'Tabel 4 NJ'!F134<0.5),"-",IFERROR('Tabel 4 NJ'!F134/'Tabel 4F NJ'!F134*100,"-")) -> - | G134: =IF(OR('Tabel 4F NJ'!G134<5,'Tabel 4 NJ'!G134<0.5),"-",IFERROR('Tabel 4 NJ'!G134/'Tabel 4F NJ'!G134*100,"-")) -> - | I134: =IF(OR('Tabel 4F NJ'!I134<5,'Tabel 4 NJ'!I134<0.5),"-",IFERROR('Tabel 4 NJ'!I134/'Tabel 4F NJ'!I134*100,"-")) -> -
A135: Landinspek. | C135: =IF(OR('Tabel 4F NJ'!C135<5,'Tabel 4 NJ'!C135<0.5),"-",IFERROR('Tabel 4 NJ'!C135/'Tabel 4F NJ'!C135*100,"-")) -> - | D135: =IF(OR('Tabel 4F NJ'!D135<5,'Tabel 4 NJ'!D135<0.5),"-",IFERROR('Tabel 4 NJ'!D135/'Tabel 4F NJ'!D135*100,"-")) -> - | E135: =IF(OR('Tabel 4F NJ'!E135<5,'Tabel 4 NJ'!E135<0.5),"-",IFERROR('Tabel 4 NJ'!E135/'Tabel 4F NJ'!E135*100,"-")) -> - | F135: =IF(OR('Tabel 4F NJ'!F135<5,'Tabel 4 NJ'!F135<0.5),"-",IFERROR('Tabel 4 NJ'!F135/'Tabel 4F NJ'!F135*100,"-")) -> - | G135: =IF(OR('Tabel 4F NJ'!G135<5,'Tabel 4 NJ'!G135<0.5),"-",IFERROR('Tabel 4 NJ'!G135/'Tabel 4F NJ'!G135*100,"-")) -> - | I135: =IF(OR('Tabel 4F NJ'!I135<5,'Tabel 4 NJ'!I135<0.5),"-",IFERROR('Tabel 4 NJ'!I135/'Tabel 4F NJ'!I135*100,"-")) -> -
A136: Bibliotekar | C136: =IF(OR('Tabel 4F NJ'!C136<5,'Tabel 4 NJ'!C136<0.5),"-",IFERROR('Tabel 4 NJ'!C136/'Tabel 4F NJ'!C136*100,"-")) -> - | D136: =IF(OR('Tabel 4F NJ'!D136<5,'Tabel 4 NJ'!D136<0.5),"-",IFERROR('Tabel 4 NJ'!D136/'Tabel 4F NJ'!D136*100,"-")) -> - | E136: =IF(OR('Tabel 4F NJ'!E136<5,'Tabel 4 NJ'!E136<0.5),"-",IFERROR('Tabel 4 NJ'!E136/'Tabel 4F NJ'!E136*100,"-")) -> - | F136: =IF(OR('Tabel 4F NJ'!F136<5,'Tabel 4 NJ'!F136<0.5),"-",IFERROR('Tabel 4 NJ'!F136/'Tabel 4F NJ'!F136*100,"-")) -> - | G136: =IF(OR('Tabel 4F NJ'!G136<5,'Tabel 4 NJ'!G136<0.5),"-",IFERROR('Tabel 4 NJ'!G136/'Tabel 4F NJ'!G136*100,"-")) -> - | I136: =IF(OR('Tabel 4F NJ'!I136<5,'Tabel 4 NJ'!I136<0.5),"-",IFERROR('Tabel 4 NJ'!I136/'Tabel 4F NJ'!I136*100,"-")) -> 8.333333333
A137: Musikudd. | C137: =IF(OR('Tabel 4F NJ'!C137<5,'Tabel 4 NJ'!C137<0.5),"-",IFERROR('Tabel 4 NJ'!C137/'Tabel 4F NJ'!C137*100,"-")) -> - | D137: =IF(OR('Tabel 4F NJ'!D137<5,'Tabel 4 NJ'!D137<0.5),"-",IFERROR('Tabel 4 NJ'!D137/'Tabel 4F NJ'!D137*100,"-")) -> - | E137: =IF(OR('Tabel 4F NJ'!E137<5,'Tabel 4 NJ'!E137<0.5),"-",IFERROR('Tabel 4 NJ'!E137/'Tabel 4F NJ'!E137*100,"-")) -> - | F137: =IF(OR('Tabel 4F NJ'!F137<5,'Tabel 4 NJ'!F137<0.5),"-",IFERROR('Tabel 4 NJ'!F137/'Tabel 4F NJ'!F137*100,"-")) -> - | G137: =IF(OR('Tabel 4F NJ'!G137<5,'Tabel 4 NJ'!G137<0.5),"-",IFERROR('Tabel 4 NJ'!G137/'Tabel 4F NJ'!G137*100,"-")) -> - | I137: =IF(OR('Tabel 4F NJ'!I137<5,'Tabel 4 NJ'!I137<0.5),"-",IFERROR('Tabel 4 NJ'!I137/'Tabel 4F NJ'!I137*100,"-")) -> -
A138: Teolog | C138: =IF(OR('Tabel 4F NJ'!C138<5,'Tabel 4 NJ'!C138<0.5),"-",IFERROR('Tabel 4 NJ'!C138/'Tabel 4F NJ'!C138*100,"-")) -> - | D138: =IF(OR('Tabel 4F NJ'!D138<5,'Tabel 4 NJ'!D138<0.5),"-",IFERROR('Tabel 4 NJ'!D138/'Tabel 4F NJ'!D138*100,"-")) -> - | E138: =IF(OR('Tabel 4F NJ'!E138<5,'Tabel 4 NJ'!E138<0.5),"-",IFERROR('Tabel 4 NJ'!E138/'Tabel 4F NJ'!E138*100,"-")) -> - | F138: =IF(OR('Tabel 4F NJ'!F138<5,'Tabel 4 NJ'!F138<0.5),"-",IFERROR('Tabel 4 NJ'!F138/'Tabel 4F NJ'!F138*100,"-")) -> - | G138: =IF(OR('Tabel 4F NJ'!G138<5,'Tabel 4 NJ'!G138<0.5),"-",IFERROR('Tabel 4 NJ'!G138/'Tabel 4F NJ'!G138*100,"-")) -> - | I138: =IF(OR('Tabel 4F NJ'!I138<5,'Tabel 4 NJ'!I138<0.5),"-",IFERROR('Tabel 4 NJ'!I138/'Tabel 4F NJ'!I138*100,"-")) -> -
A139: Psykolog | C139: =IF(OR('Tabel 4F NJ'!C139<5,'Tabel 4 NJ'!C139<0.5),"-",IFERROR('Tabel 4 NJ'!C139/'Tabel 4F NJ'!C139*100,"-")) -> - | D139: =IF(OR('Tabel 4F NJ'!D139<5,'Tabel 4 NJ'!D139<0.5),"-",IFERROR('Tabel 4 NJ'!D139/'Tabel 4F NJ'!D139*100,"-")) -> - | E139: =IF(OR('Tabel 4F NJ'!E139<5,'Tabel 4 NJ'!E139<0.5),"-",IFERROR('Tabel 4 NJ'!E139/'Tabel 4F NJ'!E139*100,"-")) -> 11.11111111 | F139: =IF(OR('Tabel 4F NJ'!F139<5,'Tabel 4 NJ'!F139<0.5),"-",IFERROR('Tabel 4 NJ'!F139/'Tabel 4F NJ'!F139*100,"-")) -> - | G139: =IF(OR('Tabel 4F NJ'!G139<5,'Tabel 4 NJ'!G139<0.5),"-",IFERROR('Tabel 4 NJ'!G139/'Tabel 4F NJ'!G139*100,"-")) -> - | I139: =IF(OR('Tabel 4F NJ'!I139<5,'Tabel 4 NJ'!I139<0.5),"-",IFERROR('Tabel 4 NJ'!I139/'Tabel 4F NJ'!I139*100,"-")) -> 4.761904762
A140: Jurist | C140: =IF(OR('Tabel 4F NJ'!C140<5,'Tabel 4 NJ'!C140<0.5),"-",IFERROR('Tabel 4 NJ'!C140/'Tabel 4F NJ'!C140*100,"-")) -> - | D140: =IF(OR('Tabel 4F NJ'!D140<5,'Tabel 4 NJ'!D140<0.5),"-",IFERROR('Tabel 4 NJ'!D140/'Tabel 4F NJ'!D140*100,"-")) -> 12.5 | E140: =IF(OR('Tabel 4F NJ'!E140<5,'Tabel 4 NJ'!E140<0.5),"-",IFERROR('Tabel 4 NJ'!E140/'Tabel 4F NJ'!E140*100,"-")) -> - | F140: =IF(OR('Tabel 4F NJ'!F140<5,'Tabel 4 NJ'!F140<0.5),"-",IFERROR('Tabel 4 NJ'!F140/'Tabel 4F NJ'!F140*100,"-")) -> - | G140: =IF(OR('Tabel 4F NJ'!G140<5,'Tabel 4 NJ'!G140<0.5),"-",IFERROR('Tabel 4 NJ'!G140/'Tabel 4F NJ'!G140*100,"-")) -> - | I140: =IF(OR('Tabel 4F NJ'!I140<5,'Tabel 4 NJ'!I140<0.5),"-",IFERROR('Tabel 4 NJ'!I140/'Tabel 4F NJ'!I140*100,"-")) -> 5.263157895
A141: Økonom | C141: =IF(OR('Tabel 4F NJ'!C141<5,'Tabel 4 NJ'!C141<0.5),"-",IFERROR('Tabel 4 NJ'!C141/'Tabel 4F NJ'!C141*100,"-")) -> - | D141: =IF(OR('Tabel 4F NJ'!D141<5,'Tabel 4 NJ'!D141<0.5),"-",IFERROR('Tabel 4 NJ'!D141/'Tabel 4F NJ'!D141*100,"-")) -> - | E141: =IF(OR('Tabel 4F NJ'!E141<5,'Tabel 4 NJ'!E141<0.5),"-",IFERROR('Tabel 4 NJ'!E141/'Tabel 4F NJ'!E141*100,"-")) -> - | F141: =IF(OR('Tabel 4F NJ'!F141<5,'Tabel 4 NJ'!F141<0.5),"-",IFERROR('Tabel 4 NJ'!F141/'Tabel 4F NJ'!F141*100,"-")) -> - | G141: =IF(OR('Tabel 4F NJ'!G141<5,'Tabel 4 NJ'!G141<0.5),"-",IFERROR('Tabel 4 NJ'!G141/'Tabel 4F NJ'!G141*100,"-")) -> - | I141: =IF(OR('Tabel 4F NJ'!I141<5,'Tabel 4 NJ'!I141<0.5),"-",IFERROR('Tabel 4 NJ'!I141/'Tabel 4F NJ'!I141*100,"-")) -> -
A142: Samf. Adm. | C142: =IF(OR('Tabel 4F NJ'!C142<5,'Tabel 4 NJ'!C142<0.5),"-",IFERROR('Tabel 4 NJ'!C142/'Tabel 4F NJ'!C142*100,"-")) -> - | D142: =IF(OR('Tabel 4F NJ'!D142<5,'Tabel 4 NJ'!D142<0.5),"-",IFERROR('Tabel 4 NJ'!D142/'Tabel 4F NJ'!D142*100,"-")) -> 5.882352941 | E142: =IF(OR('Tabel 4F NJ'!E142<5,'Tabel 4 NJ'!E142<0.5),"-",IFERROR('Tabel 4 NJ'!E142/'Tabel 4F NJ'!E142*100,"-")) -> - | F142: =IF(OR('Tabel 4F NJ'!F142<5,'Tabel 4 NJ'!F142<0.5),"-",IFERROR('Tabel 4 NJ'!F142/'Tabel 4F NJ'!F142*100,"-")) -> - | G142: =IF(OR('Tabel 4F NJ'!G142<5,'Tabel 4 NJ'!G142<0.5),"-",IFERROR('Tabel 4 NJ'!G142/'Tabel 4F NJ'!G142*100,"-")) -> - | I142: =IF(OR('Tabel 4F NJ'!I142<5,'Tabel 4 NJ'!I142<0.5),"-",IFERROR('Tabel 4 NJ'!I142/'Tabel 4F NJ'!I142*100,"-")) -> 5
A143: Cand. Merc. | C143: =IF(OR('Tabel 4F NJ'!C143<5,'Tabel 4 NJ'!C143<0.5),"-",IFERROR('Tabel 4 NJ'!C143/'Tabel 4F NJ'!C143*100,"-")) -> - | D143: =IF(OR('Tabel 4F NJ'!D143<5,'Tabel 4 NJ'!D143<0.5),"-",IFERROR('Tabel 4 NJ'!D143/'Tabel 4F NJ'!D143*100,"-")) -> 7.142857143 | E143: =IF(OR('Tabel 4F NJ'!E143<5,'Tabel 4 NJ'!E143<0.5),"-",IFERROR('Tabel 4 NJ'!E143/'Tabel 4F NJ'!E143*100,"-")) -> - | F143: =IF(OR('Tabel 4F NJ'!F143<5,'Tabel 4 NJ'!F143<0.5),"-",IFERROR('Tabel 4 NJ'!F143/'Tabel 4F NJ'!F143*100,"-")) -> - | G143: =IF(OR('Tabel 4F NJ'!G143<5,'Tabel 4 NJ'!G143<0.5),"-",IFERROR('Tabel 4 NJ'!G143/'Tabel 4F NJ'!G143*100,"-")) -> - | I143: =IF(OR('Tabel 4F NJ'!I143<5,'Tabel 4 NJ'!I143<0.5),"-",IFERROR('Tabel 4 NJ'!I143/'Tabel 4F NJ'!I143*100,"-")) -> 2.380952381
A144: HA | C144: =IF(OR('Tabel 4F NJ'!C144<5,'Tabel 4 NJ'!C144<0.5),"-",IFERROR('Tabel 4 NJ'!C144/'Tabel 4F NJ'!C144*100,"-")) -> - | D144: =IF(OR('Tabel 4F NJ'!D144<5,'Tabel 4 NJ'!D144<0.5),"-",IFERROR('Tabel 4 NJ'!D144/'Tabel 4F NJ'!D144*100,"-")) -> - | E144: =IF(OR('Tabel 4F NJ'!E144<5,'Tabel 4 NJ'!E144<0.5),"-",IFERROR('Tabel 4 NJ'!E144/'Tabel 4F NJ'!E144*100,"-")) -> - | F144: =IF(OR('Tabel 4F NJ'!F144<5,'Tabel 4 NJ'!F144<0.5),"-",IFERROR('Tabel 4 NJ'!F144/'Tabel 4F NJ'!F144*100,"-")) -> - | G144: =IF(OR('Tabel 4F NJ'!G144<5,'Tabel 4 NJ'!G144<0.5),"-",IFERROR('Tabel 4 NJ'!G144/'Tabel 4F NJ'!G144*100,"-")) -> - | I144: =IF(OR('Tabel 4F NJ'!I144<5,'Tabel 4 NJ'!I144<0.5),"-",IFERROR('Tabel 4 NJ'!I144/'Tabel 4F NJ'!I144*100,"-")) -> -
A145: HD | C145: =IF(OR('Tabel 4F NJ'!C145<5,'Tabel 4 NJ'!C145<0.5),"-",IFERROR('Tabel 4 NJ'!C145/'Tabel 4F NJ'!C145*100,"-")) -> - | D145: =IF(OR('Tabel 4F NJ'!D145<5,'Tabel 4 NJ'!D145<0.5),"-",IFERROR('Tabel 4 NJ'!D145/'Tabel 4F NJ'!D145*100,"-")) -> - | E145: =IF(OR('Tabel 4F NJ'!E145<5,'Tabel 4 NJ'!E145<0.5),"-",IFERROR('Tabel 4 NJ'!E145/'Tabel 4F NJ'!E145*100,"-")) -> - | F145: =IF(OR('Tabel 4F NJ'!F145<5,'Tabel 4 NJ'!F145<0.5),"-",IFERROR('Tabel 4 NJ'!F145/'Tabel 4F NJ'!F145*100,"-")) -> - | G145: =IF(OR('Tabel 4F NJ'!G145<5,'Tabel 4 NJ'!G145<0.5),"-",IFERROR('Tabel 4 NJ'!G145/'Tabel 4F NJ'!G145*100,"-")) -> - | I145: =IF(OR('Tabel 4F NJ'!I145<5,'Tabel 4 NJ'!I145<0.5),"-",IFERROR('Tabel 4 NJ'!I145/'Tabel 4F NJ'!I145*100,"-")) -> 6.25
